Workbook

Sheet Planilha Orçamentária Desoner (hidden)
A1: Ministério da Integração e do Desenvolvimento Regional
A2: Companhia de desenvolvimento dos Vales do São Francisco e do Parnaíba
A4: PLANILHA ORÇAMENTÁRIA - ORÇAMENTO DESONERADO
A5: OBRA: | B5: =UPPER("SERVIÇOS DE MANUTENÇÃO E OBRAS CIVIS NA ESTRUTURA DA BARRAGEM E EQUIPAMENTO HIDROMECÂNICO") -> SERVIÇOS DE MANUTENÇÃO E OBRAS CIVIS NA ESTRUTURA DA BARRAGEM E EQUIPAMENTO HIDROMECÂNICO | G5: BDI (serv.): | H5: ='BDI serv Desonerado'!D22 -> 0.3351 | I5: Bancos
A6: LOCAL: | B6: BARRAGEM POÇO DO MAGRO, GUANAMBI/BA | G6: BDI (forn.): | H6: ='BDI forn Desonerado'!D22 -> 0.212 | I6: 05/2023 - SINAPI/BA
A7: DATA BASE: | B7: 2023-05-01 | E7: Encargos sociais Horistas: | H7: ='Encargos Sociais'!C47 -> 0.8435 | I7: 01/2023 - SICRO/BA
A8: PRAZO: | B8: 120 DIAS | E8: Encargos sociais - Mensalista: | H8: ='Encargos Sociais'!D47 -> 0.4641 | I8: 04/2023 - ORSE
A9: ITEM | B9: REFERÊNCIA | D9: DESCRIÇÃO | E9: UNID. | F9: QUANT. | G9: CUSTO UNITÁRIO | H9: PREÇO UNITÁRIO | I9: PREÇO TOTAL | J9: TIPO de BDI | K9: CLASSIF
B10: FONTE | C10: CÓDIGO
A11: 1 | D11: ADMINISTRAÇÃO LOCAL | I11: =SUM(I12:I12) -> 31378.40137 | K11: ss
A12: 1.1 | B12: PRÓPRIA | C12: CPU.01 | D12: ADMINISTRAÇÃO LOCAL | E12: MÊS | F12: ='Planilha Orçamentária'!F12 -> 3 | G12: =SUMIFS('CPU DES'!$H:$H,'CPU DES'!$B:$B,'Planilha Orçamentária Desoner'!$A12,'CPU DES'!$I:$I,"ss")+SUMIFS('CPU DES'!$H:$H,'CPU DES'!$B:$B,'Planilha Orçamentária Desoner'!$A12,'CPU DES'!$I:$I,"mdo")+SUMIF('Comp SINAPI BA 05-2023 Desoner'!G:G,'Planilha Orçamentária Desoner'!C12,'Comp SINAPI BA 05-2023 Desoner'!K:K)+SUMIF('Ins SINAPI BA 05-2023 Desoner'!A:A,'Planilha Orçamentária Desoner'!C12,'Ins SINAPI BA 05-2023 Desoner'!E:E) -> 7834.22 | H12: =IF(J12="SERV",G12*(1+$H$5),G12*(1+$H$6)) -> 10459.46712 | I12: =IF(J12="SERV",G12*F12*(1+$H$5),G12*F12*(1+$H$6)) -> 31378.40137 | J12: serv | K12: s
A14: 2 | D14: SERVIÇOS PRELIMINARES | I14: =SUM(I15,I21) ->  | K14: ss
A15: 2.1 | D15: Canteiro de obras | I15: =SUM(I16:I20) ->  | K15: s
A16: 2.1.1 | B16: SINAPI | C16: 98525 | D16: =PROPER(IF(K16="i",VLOOKUP(C16,'Ins SINAPI BA 05-2023 Desoner'!$A$8:$E$5189,2,0),VLOOKUP(C16,'Comp SINAPI BA 05-2023 Desoner'!$G$7:$K$7500,2,0))) -> Limpeza Mecanizada De Camada Vegetal, Vegetação E Pequenas Árvores (Diâmetro De Tronco Menor Que 0,20 M), Com Trator De Esteiras.Af_05/2018 | E16: =LOWER(IF(K16="i",VLOOKUP(C16,'Ins SINAPI BA 05-2023 Desoner'!$A$8:$E$5189,3,0),VLOOKUP(C16,'Comp SINAPI BA 05-2023 Desoner'!$G$7:$K$7500,3,0))) -> m2 | F16: ='Planilha Orçamentária'!F16 -> 28.5 | G16: =SUMIFS('CPU DES'!$H:$H,'CPU DES'!$B:$B,'Planilha Orçamentária Desoner'!$A16,'CPU DES'!$I:$I,"ss")+SUMIFS('CPU DES'!$H:$H,'CPU DES'!$B:$B,'Planilha Orçamentária Desoner'!$A16,'CPU DES'!$I:$I,"mdo")+SUMIF('Comp SINAPI BA 05-2023 Desoner'!G:G,'Planilha Orçamentária Desoner'!C16,'Comp SINAPI BA 05-2023 Desoner'!K:K)+SUMIF('Ins SINAPI BA 05-2023 Desoner'!A:A,'Planilha Orçamentária Desoner'!C16,'Ins SINAPI BA 05-2023 Desoner'!E:E) -> 0.37 | H16: =IF(J16="SERV",G16*(1+$H$5),G16*(1+$H$6)) -> 0.493987 | I16: =IF(J16="SERV",G16*F16*(1+$H$5),G16*F16*(1+$H$6)) -> 14.0786295 | J16: serv | K16: s
A17: 2.1.2 | B17: SINAPI | C17: 94975 | D17: =PROPER(IF(K17="i",VLOOKUP(C17,'Ins SINAPI BA 05-2023 Desoner'!$A$8:$E$5189,2,0),VLOOKUP(C17,'Comp SINAPI BA 05-2023 Desoner'!$G$7:$K$7500,2,0))) -> Concreto Fck = 15Mpa, Traço 1:3,4:3,5 (Em Massa Seca De Cimento/ Areia Média/ Brita 1) - Preparo Manual. Af_05/2021 | E17: =LOWER(IF(K17="i",VLOOKUP(C17,'Ins SINAPI BA 05-2023 Desoner'!$A$8:$E$5189,3,0),VLOOKUP(C17,'Comp SINAPI BA 05-2023 Desoner'!$G$7:$K$7500,3,0))) -> m3 | F17: ='Planilha Orçamentária'!#REF! ->  | G17: =SUMIFS('CPU DES'!$H:$H,'CPU DES'!$B:$B,'Planilha Orçamentária Desoner'!$A17,'CPU DES'!$I:$I,"ss")+SUMIFS('CPU DES'!$H:$H,'CPU DES'!$B:$B,'Planilha Orçamentária Desoner'!$A17,'CPU DES'!$I:$I,"mdo")+SUMIF('Comp SINAPI BA 05-2023 Desoner'!G:G,'Planilha Orçamentária Desoner'!C17,'Comp SINAPI BA 05-2023 Desoner'!K:K)+SUMIF('Ins SINAPI BA 05-2023 Desoner'!A:A,'Planilha Orçamentária Desoner'!C17,'Ins SINAPI BA 05-2023 Desoner'!E:E) -> 510.11 | H17: =IF(J17="SERV",G17*(1+$H$5),G17*(1+$H$6)) -> 681.047861 | I17: =IF(J17="SERV",G17*F17*(1+$H$5),G17*F17*(1+$H$6)) ->  | J17: serv | K17: s
A18: 2.1.3 | B18: SINAPI | C18: 93210 | D18: =PROPER(IF(K18="i",VLOOKUP(C18,'Ins SINAPI BA 05-2023 Desoner'!$A$8:$E$5189,2,0),VLOOKUP(C18,'Comp SINAPI BA 05-2023 Desoner'!$G$7:$K$7500,2,0))) -> Execução De Refeitório Em Canteiro De Obra Em Chapa De Madeira Compensada, Não Incluso Mobiliário E Equipamentos. Af_02/2016 | E18: =LOWER(IF(K18="i",VLOOKUP(C18,'Ins SINAPI BA 05-2023 Desoner'!$A$8:$E$5189,3,0),VLOOKUP(C18,'Comp SINAPI BA 05-2023 Desoner'!$G$7:$K$7500,3,0))) -> m2 | F18: ='Planilha Orçamentária'!#REF! ->  | G18: =SUMIFS('CPU DES'!$H:$H,'CPU DES'!$B:$B,'Planilha Orçamentária Desoner'!$A18,'CPU DES'!$I:$I,"ss")+SUMIFS('CPU DES'!$H:$H,'CPU DES'!$B:$B,'Planilha Orçamentária Desoner'!$A18,'CPU DES'!$I:$I,"mdo")+SUMIF('Comp SINAPI BA 05-2023 Desoner'!G:G,'Planilha Orçamentária Desoner'!C18,'Comp SINAPI BA 05-2023 Desoner'!K:K)+SUMIF('Ins SINAPI BA 05-2023 Desoner'!A:A,'Planilha Orçamentária Desoner'!C18,'Ins SINAPI BA 05-2023 Desoner'!E:E) -> 602.5 | H18: 804.39775 | J18: serv | K18: s
A19: 2.1.4 | B19: SINAPI | C19: 93212 | D19: =PROPER(IF(K19="i",VLOOKUP(C19,'Ins SINAPI BA 05-2023 Desoner'!$A$8:$E$5189,2,0),VLOOKUP(C19,'Comp SINAPI BA 05-2023 Desoner'!$G$7:$K$7500,2,0))) -> Execução De Sanitário E Vestiário Em Canteiro De Obra Em Chapa De Madeira Compensada, Não Incluso Mobiliário. Af_02/2016 | E19: =LOWER(IF(K19="i",VLOOKUP(C19,'Ins SINAPI BA 05-2023 Desoner'!$A$8:$E$5189,3,0),VLOOKUP(C19,'Comp SINAPI BA 05-2023 Desoner'!$G$7:$K$7500,3,0))) -> m2 | F19: ='Planilha Orçamentária'!#REF! ->  | G19: =SUMIFS('CPU DES'!$H:$H,'CPU DES'!$B:$B,'Planilha Orçamentária Desoner'!$A19,'CPU DES'!$I:$I,"ss")+SUMIFS('CPU DES'!$H:$H,'CPU DES'!$B:$B,'Planilha Orçamentária Desoner'!$A19,'CPU DES'!$I:$I,"mdo")+SUMIF('Comp SINAPI BA 05-2023 Desoner'!G:G,'Planilha Orçamentária Desoner'!C19,'Comp SINAPI BA 05-2023 Desoner'!K:K)+SUMIF('Ins SINAPI BA 05-2023 Desoner'!A:A,'Planilha Orçamentária Desoner'!C19,'Ins SINAPI BA 05-2023 Desoner'!E:E) -> 1003.35 | H19: 1339.572585 | J19: serv | K19: s
A20: 2.1.5 | B20: SINAPI | C20: 93583 | D20: =PROPER(IF(K20="i",VLOOKUP(C20,'Ins SINAPI BA 05-2023 Desoner'!$A$8:$E$5189,2,0),VLOOKUP(C20,'Comp SINAPI BA 05-2023 Desoner'!$G$7:$K$7500,2,0))) -> Execução De Central De Fôrmas, Produção De Argamassa Ou Concreto Em Canteiro De Obra, Não Incluso Mobiliário E Equipamentos. Af_04/2016 | E20: =LOWER(IF(K20="i",VLOOKUP(C20,'Ins SINAPI BA 05-2023 Desoner'!$A$8:$E$5189,3,0),VLOOKUP(C20,'Comp SINAPI BA 05-2023 Desoner'!$G$7:$K$7500,3,0))) -> m2 | F20: ='Planilha Orçamentária'!#REF! ->  | G20: =SUMIFS('CPU DES'!$H:$H,'CPU DES'!$B:$B,'Planilha Orçamentária Desoner'!$A20,'CPU DES'!$I:$I,"ss")+SUMIFS('CPU DES'!$H:$H,'CPU DES'!$B:$B,'Planilha Orçamentária Desoner'!$A20,'CPU DES'!$I:$I,"mdo")+SUMIF('Comp SINAPI BA 05-2023 Desoner'!G:G,'Planilha Orçamentária Desoner'!C20,'Comp SINAPI BA 05-2023 Desoner'!K:K)+SUMIF('Ins SINAPI BA 05-2023 Desoner'!A:A,'Planilha Orçamentária Desoner'!C20,'Ins SINAPI BA 05-2023 Desoner'!E:E) -> 463.26 | H20: 618.498426 | J20: serv | K20: s
A21: 2.2 | D21: Sinalização | I21: =SUM(I22:I22) -> 1175.15502 | K21: s
A22: 2.2.1 | B22: PRÓPRIA | C22: CPU.02 | D22: PLACA DE OBRA EM CHAPA DE ACO GALVANIZADO | E22: m² | F22: ='Planilha Orçamentária'!F17 -> 2 | G22: =SUMIFS('CPU DES'!$H:$H,'CPU DES'!$B:$B,'Planilha Orçamentária Desoner'!$A22,'CPU DES'!$I:$I,"ss")+SUMIFS('CPU DES'!$H:$H,'CPU DES'!$B:$B,'Planilha Orçamentária Desoner'!$A22,'CPU DES'!$I:$I,"mdo")+SUMIF('Comp SINAPI BA 05-2023 Desoner'!G:G,'Planilha Orçamentária Desoner'!C22,'Comp SINAPI BA 05-2023 Desoner'!K:K)+SUMIF('Ins SINAPI BA 05-2023 Desoner'!A:A,'Planilha Orçamentária Desoner'!C22,'Ins SINAPI BA 05-2023 Desoner'!E:E) -> 440.1 | H22: =IF(J22="SERV",G22*(1+$H$5),G22*(1+$H$6)) -> 587.57751 | I22: =IF(J22="SERV",G22*F22*(1+$H$5),G22*F22*(1+$H$6)) -> 1175.15502 | J22: serv | K22: i
A24: 3 | D24: LIMPEZA DA REGIÃO A JUSANTE | I24: =SUM(I25) ->  | K24: ss
A25: 3.1 | D25: Remoção da vegetação a jusante | I25: =SUM(I26:I29) ->  | K25: s
A26: 3.1.1 | B26: SINAPI | C26: 98525 | D26: =PROPER(IF(K26="i",VLOOKUP(C26,'Ins SINAPI BA 05-2023 Desoner'!$A$8:$E$5189,2,0),VLOOKUP(C26,'Comp SINAPI BA 05-2023 Desoner'!$G$7:$K$7500,2,0))) -> Limpeza Mecanizada De Camada Vegetal, Vegetação E Pequenas Árvores (Diâmetro De Tronco Menor Que 0,20 M), Com Trator De Esteiras.Af_05/2018 | E26: =LOWER(IF(K26="i",VLOOKUP(C26,'Ins SINAPI BA 05-2023 Desoner'!$A$8:$E$5189,3,0),VLOOKUP(C26,'Comp SINAPI BA 05-2023 Desoner'!$G$7:$K$7500,3,0))) -> m2 | F26: ='Planilha Orçamentária'!F20 -> 41200 | G26: =SUMIFS('CPU DES'!$H:$H,'CPU DES'!$B:$B,'Planilha Orçamentária Desoner'!$A26,'CPU DES'!$I:$I,"ss")+SUMIFS('CPU DES'!$H:$H,'CPU DES'!$B:$B,'Planilha Orçamentária Desoner'!$A26,'CPU DES'!$I:$I,"mdo")+SUMIF('Comp SINAPI BA 05-2023 Desoner'!G:G,'Planilha Orçamentária Desoner'!C26,'Comp SINAPI BA 05-2023 Desoner'!K:K)+SUMIF('Ins SINAPI BA 05-2023 Desoner'!A:A,'Planilha Orçamentária Desoner'!C26,'Ins SINAPI BA 05-2023 Desoner'!E:E) -> 0.37 | H26: =IF(J26="SERV",G26*(1+$H$5),G26*(1+$H$6)) -> 0.493987 | I26: =IF(J26="SERV",G26*F26*(1+$H$5),G26*F26*(1+$H$6)) -> 20352.2644 | J26: serv | K26: s
A27: 3.1.2 | B27: EMBASA | C27: 02.04.04 | D27: CORTE DE ARVORE COM DESTOCAMENTO MANUAL,C/DIAMETRO ENTRE 15 E 30cm | E27: UN | F27: ='Planilha Orçamentária'!F21 -> 50 | G27: 60.7 | H27: =IF(J27="SERV",G27*(1+$H$5),G27*(1+$H$6)) -> 81.04057 | I27: =IF(J27="SERV",G27*F27*(1+$H$5),G27*F27*(1+$H$6)) -> 4052.0285 | J27: serv | K27: s
A28: 3.1.3 | B28: EMBASA | C28: 15.92.02 | D28: LIMPEZA E DESOBSTRUCAO DE REDES DE ESGOTO / DRENAGEM | E28: H | F28: ='Planilha Orçamentária'!F22 -> 50 | G28: 160.18 | H28: =IF(J28="SERV",G28*(1+$H$5),G28*(1+$H$6)) -> 213.856318 | I28: =IF(J28="SERV",G28*F28*(1+$H$5),G28*F28*(1+$H$6)) -> 10692.8159 | J28: serv | K28: s
A29: 3.1.4 | B29: SINAPI | C29: 97912 | D29: =PROPER(IF(K29="i",VLOOKUP(C29,'Ins SINAPI BA 05-2023 Desoner'!$A$8:$E$5189,2,0),VLOOKUP(C29,'Comp SINAPI BA 05-2023 Desoner'!$G$7:$K$7500,2,0))) -> Transporte Com Caminhão Basculante De 6 M³, Em Via Urbana Em Leito Natural (Unidade: M3Xkm). Af_07/2020 | E29: =LOWER(IF(K29="i",VLOOKUP(C29,'Ins SINAPI BA 05-2023 Desoner'!$A$8:$E$5189,3,0),VLOOKUP(C29,'Comp SINAPI BA 05-2023 Desoner'!$G$7:$K$7500,3,0))) -> m3xkm | F29: ='Planilha Orçamentária'!#REF! ->  | G29: =SUMIFS('CPU DES'!$H:$H,'CPU DES'!$B:$B,'Planilha Orçamentária Desoner'!$A29,'CPU DES'!$I:$I,"ss")+SUMIFS('CPU DES'!$H:$H,'CPU DES'!$B:$B,'Planilha Orçamentária Desoner'!$A29,'CPU DES'!$I:$I,"mdo")+SUMIF('Comp SINAPI BA 05-2023 Desoner'!G:G,'Planilha Orçamentária Desoner'!C29,'Comp SINAPI BA 05-2023 Desoner'!K:K)+SUMIF('Ins SINAPI BA 05-2023 Desoner'!A:A,'Planilha Orçamentária Desoner'!C29,'Ins SINAPI BA 05-2023 Desoner'!E:E) -> 3.41 | H29: =IF(J29="SERV",G29*(1+$H$5),G29*(1+$H$6)) -> 4.552691 | I29: =IF(J29="SERV",G29*F29*(1+$H$5),G29*F29*(1+$H$6)) ->  | J29: serv | K29: s
A31: 4 | D31: OPERAÇÃO SUBAQUÁTICA | I31: =SUM(I32,I35) ->  | K31: ss
A32: 4.1 | D32: Inspeção e Laudo da região subaquática | I32: =SUM(I33:I34) -> 
A33: 4.1.1 | B33: PRÓPRIA | C33: CPU.03 | D33: Mobilização da Equipe, Camara Hiperbarica e todos os equipamentos de mergulho envolvidos na operação | E33: un | F33: ='Planilha Orçamentária'!#REF! ->  | G33: =SUMIFS(CPU!$H:$H,CPU!$B:$B,'Planilha Orçamentária'!#REF!,CPU!$I:$I,"ss")+SUMIFS(CPU!$H:$H,CPU!$B:$B,'Planilha Orçamentária'!#REF!,CPU!$I:$I,"mdo")+SUMIF('Comp SINAPI PE 03-2024 Onerado'!G:G,'Planilha Orçamentária'!#REF!,'Comp SINAPI PE 03-2024 Onerado'!K:K)+SUMIF('Ins SINAPI PE 03-2024 Onerado'!A:A,'Planilha Orçamentária'!#REF!,'Ins SINAPI PE 03-2024 Onerado'!E:E) -> 0 | H33: =IF(J33="SERV",G33*(1+$H$5),G33*(1+$H$6)) -> 0 | I33: =IF(J33="SERV",G33*F33*(1+$H$5),G33*F33*(1+$H$6)) ->  | J33: serv | K33: s
A34: 4.1.2 | B34: SICRO | C34: 4816024 | D34: Operação de mergulho dependente em profundidade de até 30 m - inclusive descompressão | E34: h | F34: ='Planilha Orçamentária'!#REF! ->  | G34: 255.2 | H34: =IF(K34="SERV",G34*(1+$H$5),G34*(1+$H$6)) -> 309.3024 | I34: =IF(J34="SERV",G34*F34*(1+$H$5),G34*F34*(1+$H$6)) ->  | J34: serv | K34: s
A35: 4.2 | D35: Vedação/Abertura da tomada d'água | I35: =SUM(I36:I37) -> 
A36: 4.2.1 | B36: PRÓPRIA | C36: CPU.04 | D36: Vedação da entrada da tomada d’água com chapas metálicas | E36: un | F36: ='Planilha Orçamentária'!#REF! ->  | G36: =SUMIFS(CPU!$H:$H,CPU!$B:$B,'Planilha Orçamentária'!#REF!,CPU!$I:$I,"ss")+SUMIFS(CPU!$H:$H,CPU!$B:$B,'Planilha Orçamentária'!#REF!,CPU!$I:$I,"mdo")+SUMIF('Comp SINAPI PE 03-2024 Onerado'!G:G,'Planilha Orçamentária'!#REF!,'Comp SINAPI PE 03-2024 Onerado'!K:K)+SUMIF('Ins SINAPI PE 03-2024 Onerado'!A:A,'Planilha Orçamentária'!#REF!,'Ins SINAPI PE 03-2024 Onerado'!E:E) -> 0 | H36: =IF(J36="SERV",G36*(1+$H$5),G36*(1+$H$6)) -> 0 | J36: serv | K36: s
A37: 4.2.2 | B37: PRÓPRIA | C37: CPU.05 | D37: Remoção da vedação da entrada da tomada d’água com chapas metálicas | E37: un | F37: ='Planilha Orçamentária'!#REF! ->  | G37: =SUMIFS(CPU!$H:$H,CPU!$B:$B,'Planilha Orçamentária'!#REF!,CPU!$I:$I,"ss")+SUMIFS(CPU!$H:$H,CPU!$B:$B,'Planilha Orçamentária'!#REF!,CPU!$I:$I,"mdo")+SUMIF('Comp SINAPI PE 03-2024 Onerado'!G:G,'Planilha Orçamentária'!#REF!,'Comp SINAPI PE 03-2024 Onerado'!K:K)+SUMIF('Ins SINAPI PE 03-2024 Onerado'!A:A,'Planilha Orçamentária'!#REF!,'Ins SINAPI PE 03-2024 Onerado'!E:E) -> 0 | H37: 0 | J37: serv | K37: s
A39: 5 | D39: MANUTENÇÃO NOS DISPOSITIVOS DE CONTROLE | I39: =SUM(I40,I47) -> 
A40: 5.1 | D40: Manutenção das válvulas | I40: =SUM(I41:I46) -> 
A41: 5.1.1 | B41: SINAPI | C41: 98524 | D41: =PROPER(IF(K41="i",VLOOKUP(C41,'Ins SINAPI BA 05-2023 Desoner'!$A$8:$E$5189,2,0),VLOOKUP(C41,'Comp SINAPI BA 05-2023 Desoner'!$G$7:$K$7500,2,0))) -> Limpeza Manual De Vegetação Em Terreno Com Enxada.Af_05/2018 | E41: =LOWER(IF(K41="i",VLOOKUP(C41,'Ins SINAPI BA 05-2023 Desoner'!$A$8:$E$5189,3,0),VLOOKUP(C41,'Comp SINAPI BA 05-2023 Desoner'!$G$7:$K$7500,3,0))) -> m2 | F41: ='Planilha Orçamentária'!#REF! ->  | G41: =SUMIFS('CPU DES'!$H:$H,'CPU DES'!$B:$B,'Planilha Orçamentária Desoner'!$A41,'CPU DES'!$I:$I,"ss")+SUMIFS('CPU DES'!$H:$H,'CPU DES'!$B:$B,'Planilha Orçamentária Desoner'!$A41,'CPU DES'!$I:$I,"mdo")+SUMIF('Comp SINAPI BA 05-2023 Desoner'!G:G,'Planilha Orçamentária Desoner'!C41,'Comp SINAPI BA 05-2023 Desoner'!K:K)+SUMIF('Ins SINAPI BA 05-2023 Desoner'!A:A,'Planilha Orçamentária Desoner'!C41,'Ins SINAPI BA 05-2023 Desoner'!E:E) -> 2.9 | H41: =IF(J41="SERV",G41*(1+$H$5),G41*(1+$H$6)) -> 3.87179 | I41: =IF(J41="SERV",G41*F41*(1+$H$5),G41*F41*(1+$H$6)) ->  | J41: serv | K41: s
A42: 5.1.2 | B42: EMBASA | C42: 12.99.10 | D42: DESMONT. DE PECAS, CONEXOES, VALVULAS, APARELHOS E ACESSORIOS DE FERRO FUNDIDO DUCTIL OU ACO CARBONO, JUNTA TRAVADA, EXTERNA MECANICA OU FLANGEADA C/ DIAMETROS DE 700 A 1200 MM | E42: kg | F42: ='Planilha Orçamentária'!#REF! ->  | G42: 1.21 | H42: =IF(J42="SERV",G42*(1+$H$5),G42*(1+$H$6)) -> 1.615471 | I42: =IF(J42="SERV",G42*F42*(1+$H$5),G42*F42*(1+$H$6)) ->  | J42: serv | K42: s
A43: 5.1.3 | B43: EMBASA | C43: 62.01.53 | D43: MANUTENCAO EM VALVULAS (VRP, NIVEL E ANTI-GOLPE), VENTOSAS E REGISTROS ACIMA DE 16" ATÉ 24" POLEGADAS | E43: un | F43: ='Planilha Orçamentária'!#REF! ->  | G43: 581.86 | H43: =IF(J43="SERV",G43*(1+$H$5),G43*(1+$H$6)) -> 776.841286 | J43: serv | K43: s
A44: 5.1.4 | B44: EMBASA | C44: M012309000/M012309045 | D44: PARAFUSOS C/ PORCA P/ VALVULA BORBOLETA C/ FLANGE PN 10 - AWWA / PBFW10 DN 700 48,900 kg | E44: PC | F44: ='Planilha Orçamentária'!#REF! ->  | G44: 5.36 | H44: 7.156136 | J44: serv | K44: s
A45: 5.1.5 | B45: EMBASA | C45: 15.07.46 | D45: (REVISADA) - PINTURA EPOXI EM SURPEFICIE METALICA, INCL. LIXAMENTO E FUNDO EPOXI ANTICORROSIVO, DUAS DEMAOS | E45: m² | F45: ='Planilha Orçamentária'!#REF! ->  | G45: 75.54 | H45: 100.853454 | J45: serv | K45: s
A46: 5.1.6 | B46: EMBASA | C46: 12.02.07 | D46: MONT. DE PECAS, CONEXOES, VALVULAS, APARELHOS E ACESSORIOS DE FERRO FUNDIDO DUCTIL OU ACO CARBONO, JUNTA TRAVADA, EXTERNA MECANICA OU FLANGEADA C/ DIAMETROSDE 700 A 1200 mm. | E46: kg | F46: ='Planilha Orçamentária'!#REF! ->  | G46: 1.21 | H46: 1.615471 | J46: serv | K46: s
A47: 5.2 | D47: Instalação de dispositivo de drenagem na caixa de válvulas | I47: =SUM(I48:I50) -> 
A48: 5.2.1 | B48: SINAPI | C48: 97627 | D48: =PROPER(IF(K48="i",VLOOKUP(C48,'Ins SINAPI BA 05-2023 Desoner'!$A$8:$E$5189,2,0),VLOOKUP(C48,'Comp SINAPI BA 05-2023 Desoner'!$G$7:$K$7500,2,0))) -> Demolição De Pilares E Vigas Em Concreto Armado, De Forma Mecanizada Com Martelete, Sem Reaproveitamento. Af_12/2017 | E48: =LOWER(IF(K48="i",VLOOKUP(C48,'Ins SINAPI BA 05-2023 Desoner'!$A$8:$E$5189,3,0),VLOOKUP(C48,'Comp SINAPI BA 05-2023 Desoner'!$G$7:$K$7500,3,0))) -> m3 | F48: ='Planilha Orçamentária'!#REF! ->  | G48: =SUMIFS('CPU DES'!$H:$H,'CPU DES'!$B:$B,'Planilha Orçamentária Desoner'!$A48,'CPU DES'!$I:$I,"ss")+SUMIFS('CPU DES'!$H:$H,'CPU DES'!$B:$B,'Planilha Orçamentária Desoner'!$A48,'CPU DES'!$I:$I,"mdo")+SUMIF('Comp SINAPI BA 05-2023 Desoner'!G:G,'Planilha Orçamentária Desoner'!C48,'Comp SINAPI BA 05-2023 Desoner'!K:K)+SUMIF('Ins SINAPI BA 05-2023 Desoner'!A:A,'Planilha Orçamentária Desoner'!C48,'Ins SINAPI BA 05-2023 Desoner'!E:E) -> 311.2 | H48: =IF(J48="SERV",G48*(1+$H$5),G48*(1+$H$6)) -> 415.48312 | I48: =IF(J48="SERV",G48*F48*(1+$H$5),G48*F48*(1+$H$6)) ->  | J48: serv | K48: s
A49: 5.2.2 | B49: SINAPI | C49: 89714 | D49: =PROPER(IF(K49="i",VLOOKUP(C49,'Ins SINAPI BA 05-2023 Desoner'!$A$8:$E$5189,2,0),VLOOKUP(C49,'Comp SINAPI BA 05-2023 Desoner'!$G$7:$K$7500,2,0))) -> Tubo Pvc, Serie Normal, Esgoto Predial, Dn 100 Mm, Fornecido E Instalado Em Ramal De Descarga Ou Ramal De Esgoto Sanitário. Af_08/2022 | E49: =LOWER(IF(K49="i",VLOOKUP(C49,'Ins SINAPI BA 05-2023 Desoner'!$A$8:$E$5189,3,0),VLOOKUP(C49,'Comp SINAPI BA 05-2023 Desoner'!$G$7:$K$7500,3,0))) -> m | F49: ='Planilha Orçamentária'!#REF! ->  | G49: =SUMIFS('CPU DES'!$H:$H,'CPU DES'!$B:$B,'Planilha Orçamentária Desoner'!$A49,'CPU DES'!$I:$I,"ss")+SUMIFS('CPU DES'!$H:$H,'CPU DES'!$B:$B,'Planilha Orçamentária Desoner'!$A49,'CPU DES'!$I:$I,"mdo")+SUMIF('Comp SINAPI BA 05-2023 Desoner'!G:G,'Planilha Orçamentária Desoner'!C49,'Comp SINAPI BA 05-2023 Desoner'!K:K)+SUMIF('Ins SINAPI BA 05-2023 Desoner'!A:A,'Planilha Orçamentária Desoner'!C49,'Ins SINAPI BA 05-2023 Desoner'!E:E) -> 36.26 | H49: =IF(J49="SERV",G49*(1+$H$5),G49*(1+$H$6)) -> 48.410726 | I49: =IF(J49="SERV",G49*F49*(1+$H$5),G49*F49*(1+$H$6)) ->  | J49: serv | K49: s
A50: 5.2.3 | B50: SINAPI | C50: 103682 | D50: =PROPER(IF(K50="i",VLOOKUP(C50,'Ins SINAPI BA 05-2023 Desoner'!$A$8:$E$5189,2,0),VLOOKUP(C50,'Comp SINAPI BA 05-2023 Desoner'!$G$7:$K$7500,2,0))) -> Concretagem De Vigas E Lajes, Fck=25 Mpa, Para Qualquer Tipo De Laje Com Baldes Em Edificação Térrea - Lançamento, Adensamento E Acabamento. Af_02/2022 | E50: =LOWER(IF(K50="i",VLOOKUP(C50,'Ins SINAPI BA 05-2023 Desoner'!$A$8:$E$5189,3,0),VLOOKUP(C50,'Comp SINAPI BA 05-2023 Desoner'!$G$7:$K$7500,3,0))) -> m3 | F50: ='Planilha Orçamentária'!#REF! ->  | G50: =SUMIFS('CPU DES'!$H:$H,'CPU DES'!$B:$B,'Planilha Orçamentária Desoner'!$A50,'CPU DES'!$I:$I,"ss")+SUMIFS('CPU DES'!$H:$H,'CPU DES'!$B:$B,'Planilha Orçamentária Desoner'!$A50,'CPU DES'!$I:$I,"mdo")+SUMIF('Comp SINAPI BA 05-2023 Desoner'!G:G,'Planilha Orçamentária Desoner'!C50,'Comp SINAPI BA 05-2023 Desoner'!K:K)+SUMIF('Ins SINAPI BA 05-2023 Desoner'!A:A,'Planilha Orçamentária Desoner'!C50,'Ins SINAPI BA 05-2023 Desoner'!E:E) -> 962.12 | H50: 1284.526412 | J50: serv | K50: s
A52: 6 | D52: RECUPERAÇÃO | I52: =SUM(I53,I63,I69) ->  | K52: ss
A53: 6.1 | D53: Paramento a jusante | I53: =SUM(I54:I62) -> 
A54: 6.1.1 | B54: SINAPI | C54: 41805 | D54: =PROPER(IF(K54="i",VLOOKUP(C54,'Ins SINAPI BA 05-2023 Desoner'!$A$8:$E$5189,2,0),VLOOKUP(C54,'Comp SINAPI BA 05-2023 Desoner'!$G$7:$K$7500,2,0))) -> Locacao De Andaime Suspenso Ou Balancim Manual, Capacidade De Carga Total De Aproximadamente 250 Kg/M2, Plataforma De 1,50 M X 0,80 M (C X L), Cabo De 45 M | E54: =LOWER(IF(K54="i",VLOOKUP(C54,'Ins SINAPI BA 05-2023 Desoner'!$A$8:$E$5189,3,0),VLOOKUP(C54,'Comp SINAPI BA 05-2023 Desoner'!$G$7:$K$7500,3,0))) -> mes | F54: ='Planilha Orçamentária'!#REF! ->  | G54: =SUMIFS('CPU DES'!$H:$H,'CPU DES'!$B:$B,'Planilha Orçamentária Desoner'!$A54,'CPU DES'!$I:$I,"ss")+SUMIFS('CPU DES'!$H:$H,'CPU DES'!$B:$B,'Planilha Orçamentária Desoner'!$A54,'CPU DES'!$I:$I,"mdo")+SUMIF('Comp SINAPI BA 05-2023 Desoner'!G:G,'Planilha Orçamentária Desoner'!C54,'Comp SINAPI BA 05-2023 Desoner'!K:K)+SUMIF('Ins SINAPI BA 05-2023 Desoner'!A:A,'Planilha Orçamentária Desoner'!C54,'Ins SINAPI BA 05-2023 Desoner'!E:E) -> 425 | H54: =IF(J54="SERV",G54*(1+$H$5),G54*(1+$H$6)) -> 567.4175 | I54: =IF(J54="SERV",G54*F54*(1+$H$5),G54*F54*(1+$H$6)) ->  | J54: serv | K54: i
A55: 6.1.2 | B55: SICRO | C55: 3806402 | D55: Limpeza em superfície de concreto com jateamento d'água sob pressão | E55: m2 | F55: ='Planilha Orçamentária'!#REF! ->  | G55: 2.3 | H55: =IF(J55="SERV",G55*(1+$H$5),G55*(1+$H$6)) -> 3.07073 | I55: =IF(J55="SERV",G55*F55*(1+$H$5),G55*F55*(1+$H$6)) ->  | J55: serv | K55: s
A56: 6.1.3 | B56: SICRO | C56: 3806413 | D56: Apicoamento mecanizado de concreto | E56: m2 | F56: =F55 ->  | G56: 20.4 | H56: =IF(J56="SERV",G56*(1+$H$5),G56*(1+$H$6)) -> 27.23604 | J56: serv | K56: s
A57: 6.1.4 | B57: SICRO | C57: 4915645 | D57: Injeção de adesivo estrutural à base de resina epóxi de baixa viscosidade para tratamento de fissuras em estruturas de concreto - fornecimento e aplicação mecanizada | E57: kg | F57: ='Planilha Orçamentária'!#REF! ->  | G57: 272.61 | H57: 363.961611 | J57: serv | K57: s
A58: 6.1.5 | B58: SINAPI | C58: 92264 | D58: =PROPER(IF(K58="i",VLOOKUP(C58,'Ins SINAPI BA 05-2023 Desoner'!$A$8:$E$5189,2,0),VLOOKUP(C58,'Comp SINAPI BA 05-2023 Desoner'!$G$7:$K$7500,2,0))) -> Fabricação De Fôrma Para Pilares E Estruturas Similares, Em Chapa De Madeira Compensada Plastificada, E = 18 Mm. Af_09/2020 | E58: =LOWER(IF(K58="i",VLOOKUP(C58,'Ins SINAPI BA 05-2023 Desoner'!$A$8:$E$5189,3,0),VLOOKUP(C58,'Comp SINAPI BA 05-2023 Desoner'!$G$7:$K$7500,3,0))) -> m2 | F58: ='Planilha Orçamentária'!#REF! ->  | G58: =SUMIFS('CPU DES'!$H:$H,'CPU DES'!$B:$B,'Planilha Orçamentária Desoner'!$A58,'CPU DES'!$I:$I,"ss")+SUMIFS('CPU DES'!$H:$H,'CPU DES'!$B:$B,'Planilha Orçamentária Desoner'!$A58,'CPU DES'!$I:$I,"mdo")+SUMIF('Comp SINAPI BA 05-2023 Desoner'!G:G,'Planilha Orçamentária Desoner'!C58,'Comp SINAPI BA 05-2023 Desoner'!K:K)+SUMIF('Ins SINAPI BA 05-2023 Desoner'!A:A,'Planilha Orçamentária Desoner'!C58,'Ins SINAPI BA 05-2023 Desoner'!E:E) -> 204.44 | H58: 272.947844 | J58: serv | K58: s
A59: 6.1.6 | B59: PRÓPRIA | C59: CPU.06 | D59: ARGAMASSA TRACO 1:3 (CIMENTO E AREIA), PREPARO MANUAL, INCLUSO ADITIVO IMPERMEABILIZANTE | E59: m3 | F59: ='Planilha Orçamentária'!#REF! ->  | G59: =SUMIFS(CPU!$H:$H,CPU!$B:$B,'Planilha Orçamentária'!#REF!,CPU!$I:$I,"ss")+SUMIFS(CPU!$H:$H,CPU!$B:$B,'Planilha Orçamentária'!#REF!,CPU!$I:$I,"mdo")+SUMIF('Comp SINAPI PE 03-2024 Onerado'!G:G,'Planilha Orçamentária'!#REF!,'Comp SINAPI PE 03-2024 Onerado'!K:K)+SUMIF('Ins SINAPI PE 03-2024 Onerado'!A:A,'Planilha Orçamentária'!#REF!,'Ins SINAPI PE 03-2024 Onerado'!E:E) -> 0 | H59: 0 | J59: serv | K59: s
A60: 6.1.7 | B60: SINAPI | C60: 97912 | D60: =PROPER(IF(K60="i",VLOOKUP(C60,'Ins SINAPI BA 05-2023 Desoner'!$A$8:$E$5189,2,0),VLOOKUP(C60,'Comp SINAPI BA 05-2023 Desoner'!$G$7:$K$7500,2,0))) -> Transporte Com Caminhão Basculante De 6 M³, Em Via Urbana Em Leito Natural (Unidade: M3Xkm). Af_07/2020 | E60: =LOWER(IF(K60="i",VLOOKUP(C60,'Ins SINAPI BA 05-2023 Desoner'!$A$8:$E$5189,3,0),VLOOKUP(C60,'Comp SINAPI BA 05-2023 Desoner'!$G$7:$K$7500,3,0))) -> m3xkm | F60: ='Planilha Orçamentária'!#REF! ->  | G60: =SUMIFS('CPU DES'!$H:$H,'CPU DES'!$B:$B,'Planilha Orçamentária Desoner'!$A60,'CPU DES'!$I:$I,"ss")+SUMIFS('CPU DES'!$H:$H,'CPU DES'!$B:$B,'Planilha Orçamentária Desoner'!$A60,'CPU DES'!$I:$I,"mdo")+SUMIF('Comp SINAPI BA 05-2023 Desoner'!G:G,'Planilha Orçamentária Desoner'!C60,'Comp SINAPI BA 05-2023 Desoner'!K:K)+SUMIF('Ins SINAPI BA 05-2023 Desoner'!A:A,'Planilha Orçamentária Desoner'!C60,'Ins SINAPI BA 05-2023 Desoner'!E:E) -> 3.41 | H60: =IF(J60="SERV",G60*(1+$H$5),G60*(1+$H$6)) -> 4.552691 | I60: =IF(J60="SERV",G60*F60*(1+$H$5),G60*F60*(1+$H$6)) ->  | J60: serv | K60: s
A61: 6.1.8 | B61: PRÓPRIA | C61: CPU.07 | D61: CURA QUÍMICA | E61: m2 | F61: ='Planilha Orçamentária'!#REF! ->  | G61: =SUMIFS(CPU!$H:$H,CPU!$B:$B,'Planilha Orçamentária'!#REF!,CPU!$I:$I,"ss")+SUMIFS(CPU!$H:$H,CPU!$B:$B,'Planilha Orçamentária'!#REF!,CPU!$I:$I,"mdo")+SUMIF('Comp SINAPI PE 03-2024 Onerado'!G:G,'Planilha Orçamentária'!#REF!,'Comp SINAPI PE 03-2024 Onerado'!K:K)+SUMIF('Ins SINAPI PE 03-2024 Onerado'!A:A,'Planilha Orçamentária'!#REF!,'Ins SINAPI PE 03-2024 Onerado'!E:E) -> 0 | H61: 0 | J61: serv | K61: s
A62: 6.1.9 | B62: SICRO | C62: 3808043 | D62: Pintura manual com nata de cimento - 3 demãos | E62: m2 | F62: ='Planilha Orçamentária'!#REF! ->  | G62: 3.79 | H62: 5.060029 | J62: serv | K62: s
A63: 6.2 | D63: Crista | I63: =SUM(I64:I68) -> 
A64: 6.2.1 | B64: SICRO | C64: 3806402 | D64: Limpeza em superfície de concreto com jateamento d'água sob pressão | E64: m2 | F64: ='Planilha Orçamentária'!#REF! ->  | G64: 2.3 | H64: =IF(J64="SERV",G64*(1+$H$5),G64*(1+$H$6)) -> 3.07073 | I64: =IF(J64="SERV",G64*F64*(1+$H$5),G64*F64*(1+$H$6)) ->  | J64: serv | K64: s
A65: 6.2.2 | B65: SICRO | C65: 4915645 | D65: Injeção de adesivo estrutural à base de resina epóxi de baixa viscosidade para tratamento de fissuras em estruturas de concreto - fornecimento e aplicação mecanizada | E65: kg | F65: ='Planilha Orçamentária'!#REF! ->  | G65: 272.61 | H65: =IF(J65="SERV",G65*(1+$H$5),G65*(1+$H$6)) -> 363.961611 | I65: =IF(J65="SERV",G65*F65*(1+$H$5),G65*F65*(1+$H$6)) ->  | J65: serv | K65: s
A66: 6.2.3 | B66: PRÓPRIA | C66: CPU.06 | D66: ARGAMASSA TRACO 1:3 (CIMENTO E AREIA), PREPARO MANUAL, INCLUSO ADITIVO IMPERMEABILIZANTE | E66: m3 | F66: ='Planilha Orçamentária'!#REF! ->  | G66: =G59 -> 0 | H66: =IF(J66="SERV",G66*(1+$H$5),G66*(1+$H$6)) -> 0 | J66: serv | K66: s
A67: 6.2.4 | B67: SINAPI | C67: 97912 | D67: =PROPER(IF(K67="i",VLOOKUP(C67,'Ins SINAPI BA 05-2023 Desoner'!$A$8:$E$5189,2,0),VLOOKUP(C67,'Comp SINAPI BA 05-2023 Desoner'!$G$7:$K$7500,2,0))) -> Transporte Com Caminhão Basculante De 6 M³, Em Via Urbana Em Leito Natural (Unidade: M3Xkm). Af_07/2020 | E67: =LOWER(IF(K67="i",VLOOKUP(C67,'Ins SINAPI PE 03-2024 Onerado'!$A$8:$E$5189,3,0),VLOOKUP(C67,'Comp SINAPI PE 03-2024 Onerado'!$G$7:$K$7500,3,0))) -> m3xkm | F67: ='Planilha Orçamentária'!#REF! ->  | G67: =SUMIFS('CPU DES'!$H:$H,'CPU DES'!$B:$B,'Planilha Orçamentária Desoner'!$A67,'CPU DES'!$I:$I,"ss")+SUMIFS('CPU DES'!$H:$H,'CPU DES'!$B:$B,'Planilha Orçamentária Desoner'!$A67,'CPU DES'!$I:$I,"mdo")+SUMIF('Comp SINAPI BA 05-2023 Desoner'!G:G,'Planilha Orçamentária Desoner'!C67,'Comp SINAPI BA 05-2023 Desoner'!K:K)+SUMIF('Ins SINAPI BA 05-2023 Desoner'!A:A,'Planilha Orçamentária Desoner'!C67,'Ins SINAPI BA 05-2023 Desoner'!E:E) -> 3.41 | H67: =IF(J67="SERV",G67*(1+$H$5),G67*(1+$H$6)) -> 4.552691 | I67: =IF(J67="SERV",G67*F67*(1+$H$5),G67*F67*(1+$H$6)) ->  | J67: serv | K67: s
A68: 6.2.5 | B68: PRÓPRIA | C68: CPU.07 | D68: CURA QUÍMICA | E68: m2 | F68: ='Planilha Orçamentária'!#REF! ->  | G68: =G61 -> 0 | H68: =IF(J68="SERV",G68*(1+$H$5),G68*(1+$H$6)) -> 0 | J68: serv | K68: s
A69: 6.3 | D69: Vertedouro | I69: =SUM(I70:I72) -> 
A70: 6.3.1 | B70: SICRO | C70: 3806402 | D70: Limpeza em superfície de concreto com jateamento d'água sob pressão | E70: m2 | F70: ='Planilha Orçamentária'!#REF! ->  | G70: 2.3 | H70: =IF(J70="SERV",G70*(1+$H$5),G70*(1+$H$6)) -> 3.07073 | I70: =IF(J70="SERV",G70*F70*(1+$H$5),G70*F70*(1+$H$6)) ->  | J70: serv | K70: s
A71: 6.3.2 | B71: SICRO | C71: 4915645 | D71: Injeção de adesivo estrutural à base de resina epóxi de baixa viscosidade para tratamento de fissuras em estruturas de concreto - fornecimento e aplicação mecanizada | E71: kg | F71: ='Planilha Orçamentária'!#REF! ->  | G71: 272.61 | H71: =IF(J71="SERV",G71*(1+$H$5),G71*(1+$H$6)) -> 363.961611 | I71: =IF(J71="SERV",G71*F71*(1+$H$5),G71*F71*(1+$H$6)) ->  | J71: serv | K71: s
A72: 6.3.3 | B72: SICRO | C72: 4915694 | D72: Limpeza, serragem e enchimento de fissuras niveladas com abertura entre 0,4 mm e 1,0 mm e profundidade de 25 mm em estruturas de concreto com selante elástico a frio (BASEADO SICRO 4915694) | E72: m | F72: ='Planilha Orçamentária'!#REF! ->  | G72: 27 | H72: 36.0477 | J72: serv | K72: s
A74: 7 | D74: DIQUE | I74: =SUM(I75,I82) -> 
A75: 7.1 | D75: Investigação do maciço | I75: =SUM(I76:I81) -> 
A76: 7.1.1 | B76: EMBASA | C76: 32.02.01 | D76: SONDAGEM A PERCUSSÃO | E76: m | F76: ='Planilha Orçamentária'!#REF! ->  | G76: 101.49 | H76: =IF(J76="SERV",G76*(1+$H$5),G76*(1+$H$6)) -> 135.499299 | I76: =IF(J76="SERV",G76*F76*(1+$H$5),G76*F76*(1+$H$6)) ->  | J76: serv | K76: s
A77: 7.1.2 | B77: EMBASA | C77: 34.01.43 | D77: ENSAIO DE PERMEABILIDADE COM CARGA CONSTANTE | E77: un | F77: ='Planilha Orçamentária'!#REF! ->  | G77: 501.25 | H77: =IF(J77="SERV",G77*(1+$H$5),G77*(1+$H$6)) -> 669.218875 | I77: =IF(J77="SERV",G77*F77*(1+$H$5),G77*F77*(1+$H$6)) ->  | J77: serv | K77: s
A78: 7.1.3 | B78: EMBASA | C78: 34.02.04 | D78: "ANALISE GRANULOMETRICA POR PENEIRAMENTO E SEDIMENTACAO EM "TOP SOIL" | E78: un | F78: ='Planilha Orçamentária'!#REF! ->  | G78: 223.64 | H78: 298.581764 | J78: serv | K78: s
A79: 7.1.4 | B79: EMBASA | C79: 34.01.16 | D79: MASSA ESPECIFICA REAL DOS GRAOS | E79: un | F79: ='Planilha Orçamentária'!#REF! ->  | G79: 65.78 | H79: 87.822878 | J79: serv | K79: s
A80: 7.1.5 | B80: EMBASA | C80: 34.01.07 | D80: DETERMINACAO DE LIMITE DE LIQUIDEZ (NBR - 06459) | E80: un | F80: ='Planilha Orçamentária'!#REF! ->  | G80: 86.09 | H80: 114.938759 | J80: serv | K80: s
A81: 7.1.6 | B81: EMBASA | C81: 34.01.10 | D81: DETERMINACAO DE LIMITE DE PLASTICIDADE (NBR - 07180) | E81: un | F81: ='Planilha Orçamentária'!#REF! ->  | G81: 77.48 | H81: 103.443548 | J81: serv | K81: s
A82: 7.2 | D82: Recuperação do maciço | I82: =SUM(I83:I85) -> 
A83: 7.2.1 | B83: SINAPI | C83: 93358 | D83: =PROPER(IF(K83="i",VLOOKUP(C83,'Ins SINAPI BA 05-2023 Desoner'!$A$8:$E$5189,2,0),VLOOKUP(C83,'Comp SINAPI BA 05-2023 Desoner'!$G$7:$K$7500,2,0))) -> Escavação Manual De Vala Com Profundidade Menor Ou Igual A 1,30 M. Af_02/2021 | E83: =LOWER(IF(K83="i",VLOOKUP(C83,'Ins SINAPI BA 05-2023 Desoner'!$A$8:$E$5189,3,0),VLOOKUP(C83,'Comp SINAPI BA 05-2023 Desoner'!$G$7:$K$7500,3,0))) -> m3 | F83: ='Planilha Orçamentária'!#REF! ->  | G83: =SUMIFS('CPU DES'!$H:$H,'CPU DES'!$B:$B,'Planilha Orçamentária Desoner'!$A83,'CPU DES'!$I:$I,"ss")+SUMIFS('CPU DES'!$H:$H,'CPU DES'!$B:$B,'Planilha Orçamentária Desoner'!$A83,'CPU DES'!$I:$I,"mdo")+SUMIF('Comp SINAPI BA 05-2023 Desoner'!G:G,'Planilha Orçamentária Desoner'!C83,'Comp SINAPI BA 05-2023 Desoner'!K:K)+SUMIF('Ins SINAPI BA 05-2023 Desoner'!A:A,'Planilha Orçamentária Desoner'!C83,'Ins SINAPI BA 05-2023 Desoner'!E:E) -> 77.73 | H83: =IF(J83="SERV",G83*(1+$H$5),G83*(1+$H$6)) -> 103.777323 | I83: =IF(J83="SERV",G83*F83*(1+$H$5),G83*F83*(1+$H$6)) ->  | J83: serv | K83: s
A84: 7.2.2 | B84: SINAPI | C84: 99814 | D84: =PROPER(IF(K84="i",VLOOKUP(C84,'Ins SINAPI BA 05-2023 Desoner'!$A$8:$E$5189,2,0),VLOOKUP(C84,'Comp SINAPI BA 05-2023 Desoner'!$G$7:$K$7500,2,0))) -> Limpeza De Superfície Com Jato De Alta Pressão. Af_04/2019 | E84: =LOWER(IF(K84="i",VLOOKUP(C84,'Ins SINAPI BA 05-2023 Desoner'!$A$8:$E$5189,3,0),VLOOKUP(C84,'Comp SINAPI BA 05-2023 Desoner'!$G$7:$K$7500,3,0))) -> m2 | F84: ='Planilha Orçamentária'!#REF! ->  | G84: =SUMIFS('CPU DES'!$H:$H,'CPU DES'!$B:$B,'Planilha Orçamentária Desoner'!$A84,'CPU DES'!$I:$I,"ss")+SUMIFS('CPU DES'!$H:$H,'CPU DES'!$B:$B,'Planilha Orçamentária Desoner'!$A84,'CPU DES'!$I:$I,"mdo")+SUMIF('Comp SINAPI BA 05-2023 Desoner'!G:G,'Planilha Orçamentária Desoner'!C84,'Comp SINAPI BA 05-2023 Desoner'!K:K)+SUMIF('Ins SINAPI BA 05-2023 Desoner'!A:A,'Planilha Orçamentária Desoner'!C84,'Ins SINAPI BA 05-2023 Desoner'!E:E) -> 1.77 | H84: 2.363127 | J84: serv | K84: s
A85: 7.2.3 | B85: SICRO | C85: 3816196 | D85: Injeção de nata de cimento | E85: m3 | F85: ='Planilha Orçamentária'!#REF! ->  | G85: 1205.45 | H85: 1609.396295 | J85: serv | K85: s
A87: 8 | D87: SERVIÇOS AUXILIARES | I87: =SUM(I88) -> 
A88: 8.1 | D88: Análise da qualidade da água | I88: =SUM(I89:I91) -> 
A89: 8.1.1 | B89: SEDOP | C89: PT0009 | D89: Analise fisico-quimica da agua | E89: un | F89: ='Planilha Orçamentária'!#REF! ->  | G89: 236.71 | H89: =IF(J89="SERV",G89*(1+$H$5),G89*(1+$H$6)) -> 316.031521 | I89: =IF(J89="SERV",G89*F89*(1+$H$5),G89*F89*(1+$H$6)) ->  | J89: serv | K89: s
A90: 8.1.2 | B90: SEDOP | C90: PT0010 | D90: Analise bacteriologica | E90: un | F90: ='Planilha Orçamentária'!#REF! ->  | G90: 210.75 | H90: 281.372325 | J90: serv | K90: s
A91: 8.1.3 | B91: SEDOP | C91: PT0019 | D91: Relatório de analises e testes | E91: un | F91: ='Planilha Orçamentária'!#REF! ->  | G91: 1511.88 | H91: 2018.510988 | J91: serv | K91: s
D93: TOTAL Sem BDI: | I93: =SUMPRODUCT(F11:F92,G11:G92) -> 
D94: BDI: | I94: =I93*H5 -> 
D95: TOTAL COM BDI: | I95: =SUM(I93:I94) -> 

Sheet Planilha Orçamentária
A1: Ministério da Integração e do Desenvolvimento Regional
A2: Companhia de desenvolvimento dos Vales do São Francisco e do Parnaíba
A4: PLANILHA ORÇAMENTÁRIA - ORÇAMENTO NÃO DESONERADO
A5: OBRA: | B5: =UPPER("SERVIÇOS DE MANUTENÇÃO E OBRAS CIVIS NA BARRAGEM cachiMBO") -> SERVIÇOS DE MANUTENÇÃO E OBRAS CIVIS NA BARRAGEM CACHIMBO | F5: BDI (serv.): | H5: ='BDI serv'!D22 -> 0.2378 | I5: Bancos
A6: LOCAL: | B6: BARRAGEM CACHIMBO, PARNAMIRIM/PE | F6: BDI (forn.): | H6: ='BDI forn'!E6 -> 0.147 | I6: 03/2024 - SINAPI/PE
A7: DATA BASE: | B7: 2024-03-01 | E7: Encargos sociais Horistas: | H7: ='Encargos Sociais'!E47 -> 1.1398 | I7: 01/2024 - SICRO/PE
A8: PRAZO: | B8: 120 DIAS | E8: Encargos sociais - Mensalista: | H8: ='Encargos Sociais'!F47 -> 0.7
A9: ITEM | B9: REFERÊNCIA | D9: DESCRIÇÃO | E9: UNID. | F9: QUANT. | G9: CUSTO UNITÁRIO | H9: PREÇO UNITÁRIO | I9: PREÇO TOTAL | J9: TIPO de BDI | K9: CLASSIF
B10: FONTE | C10: CÓDIGO | N10: Porcentagem do valor total
A11: 1 | D11: ADMINISTRAÇÃO DA OBRA | I11: =SUM(I12) -> 87534.27004 | K11: ss | L11: COMENTÁRIOS | N11: =I11/I$63 -> 0.07373911476
A12: 1.1 | B12: PRÓPRIA | C12: CPU.01 | D12: Administração Local | E12: mês | F12: 3 | G12: =SUMIFS(CPU!$H:$H,CPU!$B:$B,'Planilha Orçamentária'!$A12,CPU!$I:$I,"ss")+SUMIFS(CPU!$H:$H,CPU!$B:$B,'Planilha Orçamentária'!$A12,CPU!$I:$I,"mdo")+SUMIF('Comp SINAPI PE 03-2024 Onerado'!G:G,'Planilha Orçamentária'!C12,'Comp SINAPI PE 03-2024 Onerado'!K:K)+SUMIF('Ins SINAPI PE 03-2024 Onerado'!A:A,'Planilha Orçamentária'!C12,'Ins SINAPI PE 03-2024 Onerado'!E:E) -> 23572.54 | H12: =IF(J12="SERV",G12*(1+$H$5),G12*(1+$H$6)) -> 29178.09001 | I12: =IF(J12="SERV",G12*F12*(1+$H$5),G12*F12*(1+$H$6)) -> 87534.27004 | J12: serv | K12: s
A14: 2 | D14: SERVIÇOS PRELIMINARES | I14: =SUM(I15:I17) -> 37460.45737 | K14: ss | N14: =I14/I$63 -> 0.03155679443
A15: 2.1 | B15: PRÓPRIA | C15: CPU.02 | D15: Mobilização e desmobilização de instalação do canteiro | E15: =VLOOKUP(A15,CPU!B5:H501,4,0) -> un | F15: ='Memorial de cálculo'!H17 -> 1 | G15: =SUMIFS(CPU!$H:$H,CPU!$B:$B,'Planilha Orçamentária'!$A15,CPU!$I:$I,"ss")+SUMIFS(CPU!$H:$H,CPU!$B:$B,'Planilha Orçamentária'!$A15,CPU!$I:$I,"mdo")+SUMIF('Comp SINAPI PE 03-2024 Onerado'!G:G,'Planilha Orçamentária'!C15,'Comp SINAPI PE 03-2024 Onerado'!K:K)+SUMIF('Ins SINAPI PE 03-2024 Onerado'!A:A,'Planilha Orçamentária'!C15,'Ins SINAPI PE 03-2024 Onerado'!E:E) -> 6866.89 | H15: =IF(J15="SERV",G15*(1+$H$5),G15*(1+$H$6)) -> 8499.836442 | I15: =IF(J15="SERV",G15*F15*(1+$H$5),G15*F15*(1+$H$6)) -> 8499.836442 | J15: serv | K15: s
A16: 2.2 | B16: PRÓPRIA | C16: CPU.03 | D16: Canteiro de obras | E16: =VLOOKUP(A16,CPU!B6:H502,4,0) -> m² | F16: ='Memorial de cálculo'!H25 -> 28.5 | G16: =SUMIFS(CPU!$H:$H,CPU!$B:$B,'Planilha Orçamentária'!$A16,CPU!$I:$I,"ss")+SUMIFS(CPU!$H:$H,CPU!$B:$B,'Planilha Orçamentária'!$A16,CPU!$I:$I,"mdo")+SUMIF('Comp SINAPI PE 03-2024 Onerado'!G:G,'Planilha Orçamentária'!C16,'Comp SINAPI PE 03-2024 Onerado'!K:K)+SUMIF('Ins SINAPI PE 03-2024 Onerado'!A:A,'Planilha Orçamentária'!C16,'Ins SINAPI PE 03-2024 Onerado'!E:E) -> 777.54 | H16: =IF(J16="SERV",G16*(1+$H$5),G16*(1+$H$6)) -> 962.439012 | I16: =IF(J16="SERV",G16*F16*(1+$H$5),G16*F16*(1+$H$6)) -> 27429.51184 | J16: serv | K16: s
A17: 2.3 | B17: PRÓPRIA | C17: CPU.04 | D17: PLACA DE OBRA EM CHAPA DE ACO GALVANIZADO | E17: m² | F17: ='Memorial de cálculo'!H58 -> 2 | G17: =SUMIFS(CPU!$H:$H,CPU!$B:$B,'Planilha Orçamentária'!$A17,CPU!$I:$I,"ss")+SUMIFS(CPU!$H:$H,CPU!$B:$B,'Planilha Orçamentária'!$A17,CPU!$I:$I,"mdo")+SUMIF('Comp SINAPI PE 03-2024 Onerado'!G:G,'Planilha Orçamentária'!C17,'Comp SINAPI PE 03-2024 Onerado'!K:K)+SUMIF('Ins SINAPI PE 03-2024 Onerado'!A:A,'Planilha Orçamentária'!C17,'Ins SINAPI PE 03-2024 Onerado'!E:E) -> 618.48 | H17: =IF(J17="SERV",G17*(1+$H$5),G17*(1+$H$6)) -> 765.554544 | I17: =IF(J17="SERV",G17*F17*(1+$H$5),G17*F17*(1+$H$6)) -> 1531.109088 | J17: serv | K17: s
A19: 3 | D19: CORTE DA VEGETAÇÃO E REMOÇÃO DAS RAIZES | I19: =SUM(I20:I22) -> 387727.4814 | K19: ss | N19: =I19/I$63 -> 0.3266227186
A20: 3.1 | B20: PRÓPRIA | C20: CPU.05 | D20: Limpeza de Vegetação | E20: =VLOOKUP(A20,CPU!B10:H506,4,0) -> m² | F20: 41200 | G20: =SUMIFS(CPU!$H:$H,CPU!$B:$B,'Planilha Orçamentária'!$A20,CPU!$I:$I,"ss")+SUMIFS(CPU!$H:$H,CPU!$B:$B,'Planilha Orçamentária'!$A20,CPU!$I:$I,"mdo")+SUMIF('Comp SINAPI PE 03-2024 Onerado'!G:G,'Planilha Orçamentária'!C20,'Comp SINAPI PE 03-2024 Onerado'!K:K)+SUMIF('Ins SINAPI PE 03-2024 Onerado'!A:A,'Planilha Orçamentária'!C20,'Ins SINAPI PE 03-2024 Onerado'!E:E) -> 7.040016983 | H20: =IF(J20="SERV",G20*(1+$H$5),G20*(1+$H$6)) -> 8.714133022 | I20: =IF(J20="SERV",G20*F20*(1+$H$5),G20*F20*(1+$H$6)) -> 359022.2805 | J20: serv | K20: s
A21: 3.2 | B21: PRÓPRIA | C21: CPU.06 | D21: Corte Raso de Árvore | E21: =VLOOKUP(A21,CPU!B11:H507,4,0) -> un | F21: 50 | G21: =SUMIFS(CPU!$H:$H,CPU!$B:$B,'Planilha Orçamentária'!$A21,CPU!$I:$I,"ss")+SUMIFS(CPU!$H:$H,CPU!$B:$B,'Planilha Orçamentária'!$A21,CPU!$I:$I,"mdo")+SUMIF('Comp SINAPI PE 03-2024 Onerado'!G:G,'Planilha Orçamentária'!C21,'Comp SINAPI PE 03-2024 Onerado'!K:K)+SUMIF('Ins SINAPI PE 03-2024 Onerado'!A:A,'Planilha Orçamentária'!C21,'Ins SINAPI PE 03-2024 Onerado'!E:E) -> 249.46 | H21: =IF(J21="SERV",G21*(1+$H$5),G21*(1+$H$6)) -> 308.781588 | I21: =IF(J21="SERV",G21*F21*(1+$H$5),G21*F21*(1+$H$6)) -> 15439.0794 | J21: serv | K21: s
A22: 3.3 | B22: PRÓPRIA | C22: CPU.07 | D22: Remoção de Raízes | E22: =VLOOKUP(A22,CPU!B12:H508,4,0) -> un | F22: 50 | G22: =SUMIFS(CPU!$H:$H,CPU!$B:$B,'Planilha Orçamentária'!$A22,CPU!$I:$I,"ss")+SUMIFS(CPU!$H:$H,CPU!$B:$B,'Planilha Orçamentária'!$A22,CPU!$I:$I,"mdo")+SUMIF('Comp SINAPI PE 03-2024 Onerado'!G:G,'Planilha Orçamentária'!C22,'Comp SINAPI PE 03-2024 Onerado'!K:K)+SUMIF('Ins SINAPI PE 03-2024 Onerado'!A:A,'Planilha Orçamentária'!C22,'Ins SINAPI PE 03-2024 Onerado'!E:E) -> 214.35 | H22: 265.32243 | I22: 13266.1215 | J22: serv | K22: s
A24: 4 | D24: APLICAÇÃO DE CONCRETO NA CRISTA | I24: =I25 -> 3945.36372 | K24: ss | N24: =I24/I$63 -> 0.003323585471
A25: 4.1 | B25: PRÓPRIA | C25: CPU.08 | D25: Aplicação de concreto - slump 22 - fck maior que 10 c/ fornecimento | E25: =VLOOKUP(A25,CPU!B15:H511,4,0) -> m³ | F25: 4 | G25: =SUMIFS(CPU!$H:$H,CPU!$B:$B,'Planilha Orçamentária'!$A25,CPU!$I:$I,"ss")+SUMIFS(CPU!$H:$H,CPU!$B:$B,'Planilha Orçamentária'!$A25,CPU!$I:$I,"mdo")+SUMIF('Comp SINAPI PE 03-2024 Onerado'!G:G,'Planilha Orçamentária'!C25,'Comp SINAPI PE 03-2024 Onerado'!K:K)+SUMIF('Ins SINAPI PE 03-2024 Onerado'!A:A,'Planilha Orçamentária'!C25,'Ins SINAPI PE 03-2024 Onerado'!E:E) -> 796.85 | H25: =IF(J25="SERV",G25*(1+$H$5),G25*(1+$H$6)) -> 986.34093 | I25: =IF(J25="SERV",G25*F25*(1+$H$5),G25*F25*(1+$H$6)) -> 3945.36372 | J25: serv | K25: s
A27: 5 | D27: REGULARIZAÇÃO E PAVIMENTAÇÃO DA CRISTA | I27: =SUM(I28:I31) -> 282101.9354 | K27: ss | N27: =I27/I$63 -> 0.2376434621
A28: 5.1 | B28: PRÓPRIA | C28: CPU.09 | D28: Demolição De Guias de concreto sem reaproveitamento | E28: =VLOOKUP(A28,CPU!B19:H515,4,0) -> m | F28: =680 -> 680 | G28: =SUMIFS(CPU!$H:$H,CPU!$B:$B,'Planilha Orçamentária'!$A28,CPU!$I:$I,"ss")+SUMIFS(CPU!$H:$H,CPU!$B:$B,'Planilha Orçamentária'!$A28,CPU!$I:$I,"mdo")+SUMIF('Comp SINAPI PE 03-2024 Onerado'!G:G,'Planilha Orçamentária'!C28,'Comp SINAPI PE 03-2024 Onerado'!K:K)+SUMIF('Ins SINAPI PE 03-2024 Onerado'!A:A,'Planilha Orçamentária'!C28,'Ins SINAPI PE 03-2024 Onerado'!E:E) -> 28.87 | H28: =IF(J28="SERV",G28*(1+$H$5),G28*(1+$H$6)) -> 35.735286 | I28: =IF(J28="SERV",G28*F28*(1+$H$5),G28*F28*(1+$H$6)) -> 24299.99448 | J28: serv | K28: s
A29: 5.2 | B29: PRÓPRIA | C29: CPU.10 | D29: Regularização E Compactação De Subleito De Solo Predominantemente Argiloso | E29: =VLOOKUP(A29,CPU!B20:H516,4,0) -> m² | F29: =4.75*680 -> 3230 | G29: =SUMIFS(CPU!$H:$H,CPU!$B:$B,'Planilha Orçamentária'!$A29,CPU!$I:$I,"ss")+SUMIFS(CPU!$H:$H,CPU!$B:$B,'Planilha Orçamentária'!$A29,CPU!$I:$I,"mdo")+SUMIF('Comp SINAPI PE 03-2024 Onerado'!G:G,'Planilha Orçamentária'!C29,'Comp SINAPI PE 03-2024 Onerado'!K:K)+SUMIF('Ins SINAPI PE 03-2024 Onerado'!A:A,'Planilha Orçamentária'!C29,'Ins SINAPI PE 03-2024 Onerado'!E:E) -> 3.44 | H29: =IF(J29="SERV",G29*(1+$H$5),G29*(1+$H$6)) -> 4.258032 | I29: =IF(J29="SERV",G29*F29*(1+$H$5),G29*F29*(1+$H$6)) -> 13753.44336 | J29: serv | K29: s
A30: 5.3 | B30: PRÓPRIA | C30: CPU.11 | D30: Construção de Guia (Meio-Fio) E Sarjeta Conjugados De Concreto | E30: =VLOOKUP(A30,CPU!B22:H518,4,0) -> m | F30: =680 -> 680 | G30: =SUMIFS(CPU!$H:$H,CPU!$B:$B,'Planilha Orçamentária'!$A30,CPU!$I:$I,"ss")+SUMIFS(CPU!$H:$H,CPU!$B:$B,'Planilha Orçamentária'!$A30,CPU!$I:$I,"mdo")+SUMIF('Comp SINAPI PE 03-2024 Onerado'!G:G,'Planilha Orçamentária'!C30,'Comp SINAPI PE 03-2024 Onerado'!K:K)+SUMIF('Ins SINAPI PE 03-2024 Onerado'!A:A,'Planilha Orçamentária'!C30,'Ins SINAPI PE 03-2024 Onerado'!E:E) -> 141.95 | H30: 175.70571 | I30: =IF(J30="SERV",G30*F30*(1+$H$5),G30*F30*(1+$H$6)) -> 119479.8828 | J30: serv | K30: s | P30: =O30*1.5 -> 0
A31: 5.4 | B31: PRÓPRIA | C31: CPU.12 | D31: Revestimento com BGTC | E31: =VLOOKUP(A31,CPU!B24:H520,4,0) -> m³ | F31: =4.75*680*0.1 -> 323 | G31: =SUMIFS(CPU!$H:$H,CPU!$B:$B,'Planilha Orçamentária'!$A31,CPU!$I:$I,"ss")+SUMIFS(CPU!$H:$H,CPU!$B:$B,'Planilha Orçamentária'!$A31,CPU!$I:$I,"mdo")+SUMIF('Comp SINAPI PE 03-2024 Onerado'!G:G,'Planilha Orçamentária'!C31,'Comp SINAPI PE 03-2024 Onerado'!K:K)+SUMIF('Ins SINAPI PE 03-2024 Onerado'!A:A,'Planilha Orçamentária'!C31,'Ins SINAPI PE 03-2024 Onerado'!E:E) -> 311.57 | H31: =IF(J31="SERV",G31*(1+$H$5),G31*(1+$H$6)) -> 385.661346 | I31: =IF(J31="SERV",G31*F31*(1+$H$5),G31*F31*(1+$H$6)) -> 124568.6148 | J31: serv | K31: s
A33: 6 | D33: =UPPER("Manutenção no talude de montante") -> MANUTENÇÃO NO TALUDE DE MONTANTE | I33: =I34 -> 126722.5601 | K33: ss | N33: =I33/I$63 -> 0.1067514403
A34: 6.1 | B34: PROPRIA | C34: CPU.13 | D34: Enrocamento c/ pedra de mão c/ fornecimento e assentamento | E34: =VLOOKUP(A34,CPU!B27:H523,4,0) -> m³ | F34: =2250*0.1 -> 225 | G34: =SUMIFS(CPU!$H:$H,CPU!$B:$B,'Planilha Orçamentária'!$A34,CPU!$I:$I,"ss")+SUMIFS(CPU!$H:$H,CPU!$B:$B,'Planilha Orçamentária'!$A34,CPU!$I:$I,"mdo")+SUMIF('Comp SINAPI PE 03-2024 Onerado'!G:G,'Planilha Orçamentária'!C34,'Comp SINAPI PE 03-2024 Onerado'!K:K)+SUMIF('Ins SINAPI PE 03-2024 Onerado'!A:A,'Planilha Orçamentária'!C34,'Ins SINAPI PE 03-2024 Onerado'!E:E) -> 455.01 | H34: =IF(J34="SERV",G34*(1+$H$5),G34*(1+$H$6)) -> 563.211378 | I34: =IF(J34="SERV",G34*F34*(1+$H$5),G34*F34*(1+$H$6)) -> 126722.5601 | J34: serv | K34: s
A36: 7 | D36: =UPPER("Recomposição de erosão_talude de jusante") -> RECOMPOSIÇÃO DE EROSÃO_TALUDE DE JUSANTE | I36: =I37 -> 30756.8544 | K36: ss | N36: =I36/I$63 -> 0.02590966047
A37: 7.1 | B37: PROPRIA | C37: CPU.14 | D37: Recuperação do talude com aterro | E37: =VLOOKUP(A37,CPU!B31:H527,4,0) -> m³ | F37: =2000*0.1 -> 200 | G37: =SUMIFS(CPU!$H:$H,CPU!$B:$B,'Planilha Orçamentária'!$A37,CPU!$I:$I,"ss")+SUMIFS(CPU!$H:$H,CPU!$B:$B,'Planilha Orçamentária'!$A37,CPU!$I:$I,"mdo")+SUMIF('Comp SINAPI PE 03-2024 Onerado'!G:G,'Planilha Orçamentária'!C37,'Comp SINAPI PE 03-2024 Onerado'!K:K)+SUMIF('Ins SINAPI PE 03-2024 Onerado'!A:A,'Planilha Orçamentária'!C37,'Ins SINAPI PE 03-2024 Onerado'!E:E) -> 124.24 | H37: =IF(J37="SERV",G37*(1+$H$5),G37*(1+$H$6)) -> 153.784272 | I37: =IF(J37="SERV",G37*F37*(1+$H$5),G37*F37*(1+$H$6)) -> 30756.8544 | J37: serv | K37: s
A39: 8 | D39: =UPPER("Drenagem superficial do talude jusante") -> DRENAGEM SUPERFICIAL DO TALUDE JUSANTE | I39: =SUM(I40:I43) -> 23802.54742 | K39: ss | N39: =I39/I$63 -> 0.02005133275
A40: 8.1 | B40: PROPRIA | C40: CPU.15 | D40: Preenchimento de buracos na estrutura de descida | E40: =VLOOKUP(A40,CPU!B35:H531,4,0) -> m³ | F40: 4 | G40: =SUMIFS(CPU!$H:$H,CPU!$B:$B,'Planilha Orçamentária'!$A40,CPU!$I:$I,"ss")+SUMIFS(CPU!$H:$H,CPU!$B:$B,'Planilha Orçamentária'!$A40,CPU!$I:$I,"mdo")+SUMIF('Comp SINAPI PE 03-2024 Onerado'!G:G,'Planilha Orçamentária'!C40,'Comp SINAPI PE 03-2024 Onerado'!K:K)+SUMIF('Ins SINAPI PE 03-2024 Onerado'!A:A,'Planilha Orçamentária'!C40,'Ins SINAPI PE 03-2024 Onerado'!E:E) -> 750.08 | H40: =IF(L37="SERV",G40*(1+$H$5),G40*(1+$H$6)) -> 860.34176 | I40: =IF(J40="SERV",G40*F40*(1+$H$5),G40*F40*(1+$H$6)) -> 3713.796096 | J40: serv | K40: s
A41: 8.2 | B41: PROPRIA | C41: CPU.16 | D41: Manutenção da Canaleta para descida d'água | E41: =VLOOKUP(A41,CPU!B37:H533,4,0) -> m³ | F41: 5 | G41: =SUMIFS(CPU!$H:$H,CPU!$B:$B,'Planilha Orçamentária'!$A41,CPU!$I:$I,"ss")+SUMIFS(CPU!$H:$H,CPU!$B:$B,'Planilha Orçamentária'!$A41,CPU!$I:$I,"mdo")+SUMIF('Comp SINAPI PE 03-2024 Onerado'!G:G,'Planilha Orçamentária'!C41,'Comp SINAPI PE 03-2024 Onerado'!K:K)+SUMIF('Ins SINAPI PE 03-2024 Onerado'!A:A,'Planilha Orçamentária'!C41,'Ins SINAPI PE 03-2024 Onerado'!E:E) -> 1666.36 | H41: =IF(J41="SERV",G41*(1+$H$5),G41*(1+$H$6)) -> 2062.620408 | I41: =IF(J41="SERV",G41*F41*(1+$H$5),G41*F41*(1+$H$6)) -> 10313.10204 | J41: serv | K41: s
A42: 8.3 | B42: PROPRIA | C42: CPU.17 | D42: Entrada para descida d'água | E42: um | F42: 10 | G42: =SUMIFS(CPU!$H:$H,CPU!$B:$B,'Planilha Orçamentária'!$A42,CPU!$I:$I,"ss")+SUMIFS(CPU!$H:$H,CPU!$B:$B,'Planilha Orçamentária'!$A42,CPU!$I:$I,"mdo")+SUMIF('Comp SINAPI PE 03-2024 Onerado'!G:G,'Planilha Orçamentária'!C42,'Comp SINAPI PE 03-2024 Onerado'!K:K)+SUMIF('Ins SINAPI PE 03-2024 Onerado'!A:A,'Planilha Orçamentária'!C42,'Ins SINAPI PE 03-2024 Onerado'!E:E) -> 347.49 | H42: =IF(J42="SERV",G42*(1+$H$5),G42*(1+$H$6)) -> 430.123122 | I42: =IF(J42="SERV",G42*F42*(1+$H$5),G42*F42*(1+$H$6)) -> 4301.23122 | J42: serv | K42: s
A43: 8.4 | B43: PROPRIA | C43: CPU.18 | D43: Manutenção da canaleta longitudinal | E43: m³ | F43: ='Memorial de cálculo'!H300 -> 470 | G43: =SUMIFS(CPU!$H:$H,CPU!$B:$B,'Planilha Orçamentária'!$A43,CPU!$I:$I,"ss")+SUMIFS(CPU!$H:$H,CPU!$B:$B,'Planilha Orçamentária'!$A43,CPU!$I:$I,"mdo")+SUMIF('Comp SINAPI PE 03-2024 Onerado'!G:G,'Planilha Orçamentária'!C43,'Comp SINAPI PE 03-2024 Onerado'!K:K)+SUMIF('Ins SINAPI PE 03-2024 Onerado'!A:A,'Planilha Orçamentária'!C43,'Ins SINAPI PE 03-2024 Onerado'!E:E) -> 9.41 | H43: =IF(J43="SERV",G43*(1+$H$5),G43*(1+$H$6)) -> 11.647698 | I43: =IF(J43="SERV",G43*F43*(1+$H$5),G43*F43*(1+$H$6)) -> 5474.41806 | J43: serv | K43: s
A45: 9 | D45: =UPPER("Proteção superficial do talude de jusante") -> PROTEÇÃO SUPERFICIAL DO TALUDE DE JUSANTE | I45: =I46 -> 113744.0414 | N45: =I45/I$63 -> 0.0958182997
A46: 9.1 | B46: PROPRIA | C46: CPU.19 | D46: Proteção vegetal | E46: =VLOOKUP(A46,CPU!B42:H538,4,0) -> m² | F46: 3000 | G46: =SUMIFS(CPU!$H:$H,CPU!$B:$B,'Planilha Orçamentária'!$A46,CPU!$I:$I,"ss")+SUMIFS(CPU!$H:$H,CPU!$B:$B,'Planilha Orçamentária'!$A46,CPU!$I:$I,"mdo")+SUMIF('Comp SINAPI PE 03-2024 Onerado'!G:G,'Planilha Orçamentária'!C46,'Comp SINAPI PE 03-2024 Onerado'!K:K)+SUMIF('Ins SINAPI PE 03-2024 Onerado'!A:A,'Planilha Orçamentária'!C46,'Ins SINAPI PE 03-2024 Onerado'!E:E) -> 30.6307 | H46: =IF(J46="SERV",G46*(1+$H$5),G46*(1+$H$6)) -> 37.91468046 | I46: =IF(J46="SERV",G46*F46*(1+$H$5),G46*F46*(1+$H$6)) -> 113744.0414 | J46: serv | K46: s
A48: 10 | D48: MANUTENÇÃO DOS MUROS LATERAIS DO VERTEDOURO | I48: =SUM(I49:I50) -> 5490.524314 | K48: ss | N48: =I48/I$63 -> 0.004625233092
A49: 10.1 | B49: PROPRIA | C49: CPU.20 | D49: Restauração da camada superficial dos muros laterais | E49: =VLOOKUP(A49,CPU!B46:H542,4,0) -> m² | F49: =8*2 -> 16 | G49: =SUMIFS(CPU!$H:$H,CPU!$B:$B,'Planilha Orçamentária'!$A49,CPU!$I:$I,"ss")+SUMIFS(CPU!$H:$H,CPU!$B:$B,'Planilha Orçamentária'!$A49,CPU!$I:$I,"mdo")+SUMIF('Comp SINAPI PE 03-2024 Onerado'!G:G,'Planilha Orçamentária'!C49,'Comp SINAPI PE 03-2024 Onerado'!K:K)+SUMIF('Ins SINAPI PE 03-2024 Onerado'!A:A,'Planilha Orçamentária'!C49,'Ins SINAPI PE 03-2024 Onerado'!E:E) -> 80.74 | H49: =IF(J49="SERV",G49*(1+$H$5),G49*(1+$H$6)) -> 99.939972 | I49: =IF(J49="SERV",G49*F49*(1+$H$5),G49*F49*(1+$H$6)) -> 1599.039552 | J49: serv | K49: s
A50: 10.2 | B50: PRÓPRIA | C50: CPU.21 | D50: Proteção dos encontros dos muros com o terreno natural e da base | E50: m³ | F50: =(8*2)*2*0.2 -> 6.4 | G50: =SUMIFS(CPU!$H:$H,CPU!$B:$B,'Planilha Orçamentária'!$A50,CPU!$I:$I,"ss")+SUMIFS(CPU!$H:$H,CPU!$B:$B,'Planilha Orçamentária'!$A50,CPU!$I:$I,"mdo")+SUMIF('Comp SINAPI PE 03-2024 Onerado'!G:G,'Planilha Orçamentária'!C50,'Comp SINAPI PE 03-2024 Onerado'!K:K)+SUMIF('Ins SINAPI PE 03-2024 Onerado'!A:A,'Planilha Orçamentária'!C50,'Ins SINAPI PE 03-2024 Onerado'!E:E) -> 491.23 | H50: =IF(J50="SERV",G50*(1+$H$5),G50*(1+$H$6)) -> 608.044494 | I50: =IF(J50="SERV",G50*F50*(1+$H$5),G50*F50*(1+$H$6)) -> 3891.484762 | J50: serv | K50: s
A52: 11 | D52: MANUTENÇÃO DO VERTEDOURO | I52: =I53 -> 6918.0642 | N52: =I52/I$63 -> 0.005827796699
A53: 11.1 | B53: PRÓPRIA | C53: CPU.22 | D53: Manutenção do vertedouro | E53: m² | F53: 900 | G53: =VLOOKUP(A53,CPU!B11:H317,7,0) -> 6.21 | H53: =IF(J53="SERV",G53*(1+$H$5),G53*(1+$H$6)) -> 7.686738 | I53: =IF(J53="SERV",G53*F53*(1+$H$5),G53*F53*(1+$H$6)) -> 6918.0642 | J53: serv | K53: s
A55: 12 | D55: SERVIÇOS COMPLEMENTARES | I55: =SUM(I56:I58) -> 80876.46566 | K55: ss | N55: =I55/I$63 -> 0.06813056167
A56: 12.1 | B56: PRÓPRIA | C56: CPU.23 | D56: Instalação de placas de aviso | E56: m² | F56: 4 | G56: =SUMIFS(CPU!$H:$H,CPU!$B:$B,'Planilha Orçamentária'!$A56,CPU!$I:$I,"ss")+SUMIFS(CPU!$H:$H,CPU!$B:$B,'Planilha Orçamentária'!$A56,CPU!$I:$I,"mdo")+SUMIF('Comp SINAPI PE 03-2024 Onerado'!G:G,'Planilha Orçamentária'!C56,'Comp SINAPI PE 03-2024 Onerado'!K:K)+SUMIF('Ins SINAPI PE 03-2024 Onerado'!A:A,'Planilha Orçamentária'!C56,'Ins SINAPI PE 03-2024 Onerado'!E:E) -> 705.72 | H56: =IF(J56="SERV",G56*(1+$H$5),G56*(1+$H$6)) -> 873.540216 | I56: =IF(J56="SERV",G56*F56*(1+$H$5),G56*F56*(1+$H$6)) -> 3494.160864 | J56: serv | K56: s
A57: 12.2 | B57: PRÓPRIA | C57: CPU.24 | D57: Instalação de cercas de proteção | E57: m | F57: 300 | G57: =VLOOKUP(A57,CPU!B17:H323,7,0) -> 123.52 | H57: =IF(J57="SERV",G57*(1+$H$5),G57*(1+$H$6)) -> 152.893056 | I57: =IF(J57="SERV",G57*F57*(1+$H$5),G57*F57*(1+$H$6)) -> 45867.9168 | J57: serv | K57: s
A58: 12.3 | B58: PRÓPRIA | C58: CPU.25 | D58: Limpeza das margens do reservatório | E58: m² | F58: 2000 | G58: =VLOOKUP(A58,CPU!B18:H324,7,0) -> 12.73 | H58: =IF(J58="SERV",G58*(1+$H$5),G58*(1+$H$6)) -> 15.757194 | I58: =IF(J58="SERV",G58*F58*(1+$H$5),G58*F58*(1+$H$6)) -> 31514.388 | J58: serv | K58: s
K59: s
D61: TOTAL Sem BDI: | I61: =SUMPRODUCT(F11:F60,G11:G60) -> 959024.5317
D62: BDI: | I62: =I61*H5 -> 228056.0336
D63: TOTAL COM BDI: | I63: =SUM(I61:I62) -> 1187080.565 | L63: =I55+I52+I48+I45+I39+I36+I33+I27+I24+I19+I14+I11 -> 1187080.565

Sheet CPU
B1: Ministério da Integração e do Desenvolvimento Regional
B2: Companhia de Desenvolvimento dos Vales do São Francisco e do Parnaíba
B4: COMPOSIÇÕES DE PREÇOS UNITÁRIOS - ORÇAMENTO NÃO DESONERADO
B5: OBRA: | C5: =UPPER("SERVIÇOS DE MANUTENÇÃO E OBRAS CIVIS NA BARRAGEM CACHIMBO") -> SERVIÇOS DE MANUTENÇÃO E OBRAS CIVIS NA BARRAGEM CACHIMBO | F5: BDI (serv.): | G5: ='BDI serv'!D22 -> 0.2378
B6: LOCAL: | C6: ='Planilha Orçamentária'!B6 -> BARRAGEM CACHIMBO, PARNAMIRIM/PE | F6: BDI (forn.): | G6: ='BDI forn'!E6 -> 0.147
B7: DATA BASE: | C7: 2024-03-01
B8: PRAZO: | C8: 120 DIAS
B10: REFERÊNCIA | C10: CÓDIGO | D10: DESCRIÇÃO | E10: UNIDADE | F10: ÍNDICE | G10: CUSTO UNITÁRIO | H10: PREÇO TOTAL
B11: ='Planilha Orçamentária'!A12 -> 1.1 | C11: =VLOOKUP($B11,'Planilha Orçamentária'!$A$11:$I$483,3,) -> CPU.01 | D11: =VLOOKUP($B11,'Planilha Orçamentária'!$A$11:$I$483,4,) -> Administração Local | E11: mes | H11: =SUM(H15,H14,H13,H12) -> 23572.54 | I11: S | J11: COMENTÁRIOS
B12: =B11 -> 1.1 | D12: MATERIAL | H12: 0 | I12: ss
B13: =B11 -> 1.1 | D13: EQUIPAMENTOS | H13: 0 | I13: ss
B14: =B11 -> 1.1 | D14: SERVIÇOS | H14: 0 | I14: ss
B15: =B11 -> 1.1 | D15: MÃO DE OBRA | H15: =SUM(H16:H18) -> 23572.54 | I15: mdo
B16: SINAPI | C16: 90778 | D16: =PROPER(IF(K16="i",VLOOKUP(C16,'Ins SINAPI PE 03-2024 Onerado'!$A$8:$E$5189,2,0),VLOOKUP(C16,'Comp SINAPI PE 03-2024 Onerado'!$G$7:$K$7500,2,0))) -> Engenheiro Civil De Obra Pleno Com Encargos Complementares | E16: =LOWER(IF(K16="i",VLOOKUP(C16,'Ins SINAPI PE 03-2024 Onerado'!$A$8:$E$5189,3,0),VLOOKUP(C16,'Comp SINAPI PE 03-2024 Onerado'!$G$7:$K$7500,3,0))) -> h | F16: ='Memorial de cálculo'!H11 -> 30 | G16: =IF(I16="i",VLOOKUP(C16,'Ins SINAPI PE 03-2024 Onerado'!$A$8:$E$5189,5,0),VLOOKUP(C16,'Comp SINAPI PE 03-2024 Onerado'!$G$7:$K$7500,5,0)) -> 126.7 | H16: =ROUND(F16*G16,2) -> 3801 | I16: ca
B17: SINAPI | C17: 93572 | D17: =PROPER(IF(K17="i",VLOOKUP(C17,'Ins SINAPI PE 03-2024 Onerado'!$A$8:$E$5189,2,0),VLOOKUP(C17,'Comp SINAPI PE 03-2024 Onerado'!$G$7:$K$7500,2,0))) -> Encarregado Geral De Obras Com Encargos Complementares | E17: =LOWER(IF(K17="i",VLOOKUP(C17,'Ins SINAPI PE 03-2024 Onerado'!$A$8:$E$5189,3,0),VLOOKUP(C17,'Comp SINAPI PE 03-2024 Onerado'!$G$7:$K$7500,3,0))) -> mes | F17: ='Memorial de cálculo'!H12 -> 0.8 | G17: =IF(I17="i",VLOOKUP(C17,'Ins SINAPI PE 03-2024 Onerado'!$A$8:$E$5189,5,0),VLOOKUP(C17,'Comp SINAPI PE 03-2024 Onerado'!$G$7:$K$7500,5,0)) -> 6318.43 | H17: =ROUND(F17*G17,2) -> 5054.74 | I17: ca
B18: SINAPI | C18: 88326 | D18: Vigia Noturno Com Encargos Complementares (BASEADO EM 100289) | E18: h | F18: ='Memorial de cálculo'!H13 -> 720 | G18: 20.44 | H18: =ROUND(F18*G18,2) -> 14716.8 | I18: ca
B20: ='Planilha Orçamentária'!A15 -> 2.1 | C20: =VLOOKUP($B20,'Planilha Orçamentária'!$A$11:$I$483,3,) -> CPU.02 | D20: =VLOOKUP($B20,'Planilha Orçamentária'!$A$11:$I$483,4,) -> Mobilização e desmobilização de instalação do canteiro | E20: un | H20: =SUM(H21,H22,H27,H28) -> 6866.89 | I20: S
B21: =B20 -> 2.1 | D21: MATERIAL | H21: 0 | I21: ss
B22: =B20 -> 2.1 | D22: EQUIPAMENTOS | H22: =SUM(H23:H26) -> 6536.81 | I22: ss
B23: SICRO | C23: E9134 | D23: Miniônibus com capacidade para 30 passageiros - 111 Kw | E23: chp | F23: ='Memorial de cálculo'!H18 -> 5 | G23: 204.47 | H23: =ROUND(F23*G23,2) -> 1022.35 | J23: =F23/F24 -> 0.4545454545
B24: SICRO | C24: E9134 | D24: Miniônibus com capacidade para 30 passageiros - 111 Kw | E24: chi | F24: ='Memorial de cálculo'!H19 -> 11 | G24: 72.08 | H24: =ROUND(F24*G24,2) -> 792.88
B25: SINAPI | C25: 100946 | D25: =IF(I25="i",VLOOKUP(C25,'Ins SINAPI PE 03-2024 Onerado'!$A$8:$E$5189,2,0),VLOOKUP(C25,'Comp SINAPI PE 03-2024 Onerado'!$G$7:$K$7500,2,0)) -> TRANSPORTE COM CAMINHÃO CARROCERIA 9T, EM VIA URBANA EM REVESTIMENTO PRIMÁRIO (UNIDADE: TXKM). AF_07/2020 | E25: =IF(I25="i",VLOOKUP(C25,'Ins SINAPI PE 03-2024 Onerado'!$A$8:$E$5189,3,0),VLOOKUP(C25,'Comp SINAPI PE 03-2024 Onerado'!$G$7:$K$7500,3,0)) -> TXKM | F25: ='Memorial de cálculo'!H21 -> 27 | G25: =IF(I25="i",VLOOKUP(C25,'Ins SINAPI PE 03-2024 Onerado'!$A$8:$E$5189,5,0),VLOOKUP(C25,'Comp SINAPI PE 03-2024 Onerado'!$G$7:$K$7500,5,0)) -> 2.42 | H25: =ROUND(F25*G25,2) -> 65.34 | I25: ca
B26: SINAPI | C26: 100947 | D26: =IF(I26="i",VLOOKUP(C26,'Ins SINAPI PE 03-2024 Onerado'!$A$8:$E$5189,2,0),VLOOKUP(C26,'Comp SINAPI PE 03-2024 Onerado'!$G$7:$K$7500,2,0)) -> TRANSPORTE COM CAMINHÃO CARROCERIA 9T, EM VIA URBANA PAVIMENTADA, DMT ATÉ 30KM (UNIDADE: TXKM). AF_07/2020 | E26: =IF(I26="i",VLOOKUP(C26,'Ins SINAPI PE 03-2024 Onerado'!$A$8:$E$5189,3,0),VLOOKUP(C26,'Comp SINAPI PE 03-2024 Onerado'!$G$7:$K$7500,3,0)) -> TXKM | F26: ='Memorial de cálculo'!H20 -> 2088 | G26: =IF(I26="i",VLOOKUP(C26,'Ins SINAPI PE 03-2024 Onerado'!$A$8:$E$5189,5,0),VLOOKUP(C26,'Comp SINAPI PE 03-2024 Onerado'!$G$7:$K$7500,5,0)) -> 2.23 | H26: 4656.24 | I26: ca
B27: =B20 -> 2.1 | D27: SERVIÇOS | I27: ss
B28: =B20 -> 2.1 | D28: MÃO DE OBRA | H28: =H29 -> 330.08 | I28: mdo
B29: SINAPI | C29: 88284 | D29: =PROPER(IF(K29="i",VLOOKUP(C29,'Ins SINAPI PE 03-2024 Onerado'!$A$8:$E$5189,2,0),VLOOKUP(C29,'Comp SINAPI PE 03-2024 Onerado'!$G$7:$K$7500,2,0))) -> Motorista De Veículo Leve Com Encargos Complementares | E29: =LOWER(IF(K29="i",VLOOKUP(C29,'Ins SINAPI PE 03-2024 Onerado'!$A$8:$E$5189,3,0),VLOOKUP(C29,'Comp SINAPI PE 03-2024 Onerado'!$G$7:$K$7500,3,0))) -> h | F29: 16 | G29: =IF(I29="i",VLOOKUP(C29,'Ins SINAPI PE 03-2024 Onerado'!$A$8:$E$5189,5,0),VLOOKUP(C29,'Comp SINAPI PE 03-2024 Onerado'!$G$7:$K$7500,5,0)) -> 20.63 | H29: =ROUND(F29*G29,2) -> 330.08 | I29: ca
B31: ='Planilha Orçamentária'!A16 -> 2.2 | C31: =VLOOKUP($B31,'Planilha Orçamentária'!$A$11:$I$483,3,) -> CPU.03 | D31: =VLOOKUP($B31,'Planilha Orçamentária'!$A$11:$I$483,4,) -> Canteiro de obras | E31: m² | H31: =SUM(H32+H33+H34+H43) -> 777.54 | I31: S
B32: =B31 -> 2.2 | D32: MATERIAL | H32: 0 | I32: ss
B33: =B31 -> 2.2 | D33: EQUIPAMENTOS | H33: 0 | I33: ss
B34: =B31 -> 2.2 | D34: SERVIÇOS | H34: =SUM(H35:H42) -> 777.54 | I34: ss
A35: 2.2.1 | B35: SINAPI | C35: 98524 | D35: =PROPER(IF(K35="i",VLOOKUP(C35,'Ins SINAPI PE 03-2024 Onerado'!$A$8:$E$5189,2,0),VLOOKUP(C35,'Comp SINAPI PE 03-2024 Onerado'!$G$7:$K$7500,2,0))) -> Limpeza Manual De Vegetação Em Terreno Com Enxada. Af_03/2024 | E35: =LOWER(IF(K35="i",VLOOKUP(C35,'Ins SINAPI PE 03-2024 Onerado'!$A$8:$E$5189,3,0),VLOOKUP(C35,'Comp SINAPI PE 03-2024 Onerado'!$G$7:$K$7500,3,0))) -> m2 | F35: 1 | G35: =IF(I35="i",VLOOKUP(C35,'Ins SINAPI PE 03-2024 Onerado'!$A$8:$E$5189,5,0),VLOOKUP(C35,'Comp SINAPI PE 03-2024 Onerado'!$G$7:$K$7500,5,0)) -> 4.32 | H35: =ROUND(F35*G35,2) -> 4.32 | I35: ca
A36: 2.2.2 | B36: SINAPI | C36: 94975 | D36: =PROPER(IF(K36="i",VLOOKUP(C36,'Ins SINAPI PE 03-2024 Onerado'!$A$8:$E$5189,2,0),VLOOKUP(C36,'Comp SINAPI PE 03-2024 Onerado'!$G$7:$K$7500,2,0))) -> Concreto Fck = 15Mpa, Traço 1:3,4:3,5 (Em Massa Seca De Cimento/ Areia Média/ Brita 1) - Preparo Manual. Af_05/2021 | E36: =LOWER(IF(K36="i",VLOOKUP(C36,'Ins SINAPI PE 03-2024 Onerado'!$A$8:$E$5189,3,0),VLOOKUP(C36,'Comp SINAPI PE 03-2024 Onerado'!$G$7:$K$7500,3,0))) -> m3 | F36: ='Memorial de cálculo'!H33/'Memorial de cálculo'!H25 -> 0.05 | G36: =IF(I36="i",VLOOKUP(C36,'Ins SINAPI PE 03-2024 Onerado'!$A$8:$E$5189,5,0),VLOOKUP(C36,'Comp SINAPI PE 03-2024 Onerado'!$G$7:$K$7500,5,0)) -> 487.54 | H36: =ROUND(F36*G36,2) -> 24.38 | I36: ca
A37: 2.2.3 | B37: SINAPI | C37: 93210 | D37: EXECUÇÃO DE REFEITÓRIO EM CANTEIRO DE OBRA EM CHAPA DE MADEIRA COMPENSADA, NÃO INCLUSO MOBILIÁRIO E EQUIPAMENTOS. AF_02/2016 | E37: m3 | F37: ='Memorial de cálculo'!H40/'Memorial de cálculo'!H25 -> 0.2631578947 | G37: 632.64 | H37: 166.48 | I37: ca
A38: 2.2.4 | B38: SINAPI | C38: 93212 | D38: EXECUÇÃO DE SANITÁRIO E VESTIÁRIO EM CANTEIRO DE OBRA EM CHAPA DE MADEIRA COMPENSADA, NÃO INCLUSO MOBILIÁRIO. AF_02/2016 | E38: m2 | F38: ='Memorial de cálculo'!H46/'Memorial de cálculo'!H25 -> 0.3157894737 | G38: 1038.41 | H38: 327.92 | I38: ca
A39: 2.2.5 | B39: SINAPI | C39: 93583 | D39: EXECUÇÃO DE CENTRAL DE FÔRMAS, PRODUÇÃO DE ARGAMASSA OU CONCRETO EM CANTEIRO DE OBRA, NÃO INCLUSO MOBILIÁRIO E EQUIPAMENTOS. AF_04/2016 | E39: m2 | F39: ='Memorial de cálculo'!H49/'Memorial de cálculo'!H25 -> 0.4210526316 | G39: 514.11 | H39: 216.47 | I39: ca
A40: 2.2.6 | B40: CPU HOSPEDAGEM | C40: CODE | D40: Hospedagem | E40: un | F40: ='Memorial de cálculo'!H51/'Memorial de cálculo'!H25 -> 0.09343595395 | G40: 100.19 | H40: =ROUND(F40*G40,2) -> 9.36 | I40: ca | J40: =F41/F42 -> 0.1428571429
A41: 2.2.7 | B41: SICRO | C41: E9134 | D41: Miniônibus com capacidade para 30 passageiros - 111 Kw | E41: chp | F41: ='Memorial de cálculo'!H53/'Memorial de cálculo'!H25 -> 0.038791875 | G41: 217.79 | H41: =ROUND(F41*G41,2) -> 8.45 | I41: ca
A42: 2.2.8 | B42: SICRO | C42: E9134 | D42: Miniônibus com capacidade para 30 passageiros - 111 Kw | E42: chi | F42: ='Memorial de cálculo'!H55/'Memorial de cálculo'!H25 -> 0.271543125 | G42: 74.24 | H42: 20.16 | I42: ca
B43: =B32 -> 2.2 | D43: MÃO DE OBRA | I43: mdo
I44: x
B45: ='Planilha Orçamentária'!A17 -> 2.3 | C45: =VLOOKUP($B45,'Planilha Orçamentária'!$A$11:$I$483,3,) -> CPU.04 | D45: =VLOOKUP($B45,'Planilha Orçamentária'!$A$11:$I$483,4,) -> PLACA DE OBRA EM CHAPA DE ACO GALVANIZADO | E45: =VLOOKUP($B45,'Planilha Orçamentária'!$A$11:$I$60,5) -> m² | H45: =SUM(H46,H57,H52,H53) -> 618.48 | I45: S
B46: =B45 -> 2.3 | D46: MATERIAL | H46: =SUM(H47:H51) -> 330.88 | I46: ss
B47: SINAPI | C47: 4417 | D47: =IF(I47="i",VLOOKUP(C47,'Ins SINAPI PE 03-2024 Onerado'!$A$8:$E$5189,2,0),VLOOKUP(C47,'Comp SINAPI PE 03-2024 Onerado'!$G$7:$K$6879,2,0)) -> SARRAFO NAO APARELHADO *2,5 X 7* CM, EM MACARANDUBA/MASSARANDUBA, ANGELIM, PEROBA-ROSA OU EQUIVALENTE DA REGIAO - BRUTA | E47: =IF(I47="i",VLOOKUP(C47,'Ins SINAPI PE 03-2024 Onerado'!$A$8:$E$5189,3,0),VLOOKUP(C47,'Comp SINAPI PE 03-2024 Onerado'!$G$7:$K$7500,3,0)) -> M | F47: 2 | G47: =IF(I47="i",VLOOKUP(C47,'Ins SINAPI PE 03-2024 Onerado'!$A$8:$E$5189,5,0),VLOOKUP(C47,'Comp SINAPI PE 03-2024 Onerado'!$G$7:$K$7500,5,0)) -> 8.02 | H47: =ROUND(F47*G47,2) -> 16.04 | I47: I
B48: SINAPI | C48: 4430 | D48: =IF(I48="i",VLOOKUP(C48,'Ins SINAPI PE 03-2024 Onerado'!$A$8:$E$5189,2,0),VLOOKUP(C48,'Comp SINAPI PE 03-2024 Onerado'!$G$7:$K$6879,2,0)) -> CAIBRO NAO APARELHADO *5 X 6* CM, EM MACARANDUBA/MASSARANDUBA, ANGELIM OU EQUIVALENTE DA REGIAO - BRUTA | E48: =IF(I48="i",VLOOKUP(C48,'Ins SINAPI PE 03-2024 Onerado'!$A$8:$E$5189,3,0),VLOOKUP(C48,'Comp SINAPI PE 03-2024 Onerado'!$G$7:$K$7500,3,0)) -> M | F48: 4 | G48: =IF(I48="i",VLOOKUP(C48,'Ins SINAPI PE 03-2024 Onerado'!$A$8:$E$5189,5,0),VLOOKUP(C48,'Comp SINAPI PE 03-2024 Onerado'!$G$7:$K$7500,5,0)) -> 14.75 | H48: =ROUND(F48*G48,2) -> 59 | I48: I
B49: SINAPI | C49: 4813 | D49: =IF(I49="i",VLOOKUP(C49,'Ins SINAPI PE 03-2024 Onerado'!$A$8:$E$5189,2,0),VLOOKUP(C49,'Comp SINAPI PE 03-2024 Onerado'!$G$7:$K$6879,2,0)) -> PLACA DE OBRA (PARA CONSTRUCAO CIVIL) EM CHAPA GALVANIZADA *N. 22*, ADESIVADA, DE *2,4 X 1,2* M (SEM POSTES PARA FIXACAO) | E49: =IF(I49="i",VLOOKUP(C49,'Ins SINAPI PE 03-2024 Onerado'!$A$8:$E$5189,3,0),VLOOKUP(C49,'Comp SINAPI PE 03-2024 Onerado'!$G$7:$K$7500,3,0)) -> M2 | F49: 1 | G49: =IF(I49="i",VLOOKUP(C49,'Ins SINAPI PE 03-2024 Onerado'!$A$8:$E$5189,5,0),VLOOKUP(C49,'Comp SINAPI PE 03-2024 Onerado'!$G$7:$K$7500,5,0)) -> 250 | H49: 250 | I49: I
B50: SINAPI | C50: 5075 | D50: =IF(I50="i",VLOOKUP(C50,'Ins SINAPI PE 03-2024 Onerado'!$A$8:$E$5189,2,0),VLOOKUP(C50,'Comp SINAPI PE 03-2024 Onerado'!$G$7:$K$6879,2,0)) -> PREGO DE ACO POLIDO COM CABECA 18 X 30 (2 3/4 X 10) | E50: =IF(I50="i",VLOOKUP(C50,'Ins SINAPI PE 03-2024 Onerado'!$A$8:$E$5189,3,0),VLOOKUP(C50,'Comp SINAPI PE 03-2024 Onerado'!$G$7:$K$7500,3,0)) -> KG | F50: 0.11 | G50: =IF(I50="i",VLOOKUP(C50,'Ins SINAPI PE 03-2024 Onerado'!$A$8:$E$5189,5,0),VLOOKUP(C50,'Comp SINAPI PE 03-2024 Onerado'!$G$7:$K$7500,5,0)) -> 16.17 | H50: 1.78 | I50: I
B51: SINAPI | C51: 94962 | D51: =IF(I51="i",VLOOKUP(C51,'Ins SINAPI PE 03-2024 Onerado'!$A$8:$E$5189,2,0),VLOOKUP(C51,'Comp SINAPI PE 03-2024 Onerado'!$G$7:$K$6879,2,0)) -> CONCRETO MAGRO PARA LASTRO, TRAÇO 1:4,5:4,5 (EM MASSA SECA DE CIMENTO/ AREIA MÉDIA/ BRITA 1) - PREPARO MECÂNICO COM BETONEIRA 400 L. AF_05/2021 | E51: =IF(I51="i",VLOOKUP(C51,'Ins SINAPI PE 03-2024 Onerado'!$A$8:$E$5189,3,0),VLOOKUP(C51,'Comp SINAPI PE 03-2024 Onerado'!$G$7:$K$7500,3,0)) -> M3 | F51: 0.01 | G51: =IF(I51="i",VLOOKUP(C51,'Ins SINAPI PE 03-2024 Onerado'!$A$8:$E$5189,5,0),VLOOKUP(C51,'Comp SINAPI PE 03-2024 Onerado'!$G$7:$K$7500,5,0)) -> 406.33 | H51: 4.06 | I51: ca
B52: =B45 -> 2.3 | D52: EQUIPAMENTOS | H52: 0 | I52: ss
B53: =B45 -> 2.3 | D53: SERVIÇOS | H53: =SUM(H54:H56) -> 221.94 | I53: ss
A54: 2.3.6 | B54: CPU HOSPEDAGEM | C54: CODE | D54: Hospedagem | E54: um | F54: ='Memorial de cálculo'!H63/'Memorial de cálculo'!H58 -> 0.375 | G54: 100.19 | H54: =ROUND(F54*G54,2) -> 37.57 | I54: ca
A55: 2.3.7 | B55: SICRO | C55: E9134 | D55: Miniônibus com capacidade para 30 passageiros - 111 Kw | E55: chp | F55: ='Memorial de cálculo'!H65/'Memorial de cálculo'!H58 -> 0.25 | G55: 217.79 | H55: =ROUND(F55*G55,2) -> 54.45 | I55: ca | J55: =F55/F56 -> 0.1428571429
A56: 2.3.8 | B56: SICRO | C56: E9134 | D56: Miniônibus com capacidade para 30 passageiros - 111 Kw | E56: chi | F56: ='Memorial de cálculo'!H67/'Memorial de cálculo'!H58 -> 1.75 | G56: 74.24 | H56: 129.92 | I56: ca
B57: =B45 -> 2.3 | D57: MÃO DE OBRA | H57: =SUM(H58:H59) -> 65.66 | I57: mdo
B58: SINAPI | C58: 88262 | D58: =IF(I58="i",VLOOKUP(C58,'Ins SINAPI PE 03-2024 Onerado'!$A$8:$E$5189,2,0),VLOOKUP(C58,'Comp SINAPI PE 03-2024 Onerado'!$G$7:$K$7500,2,0)) -> CARPINTEIRO DE FORMAS COM ENCARGOS COMPLEMENTARES | E58: =IF(I58="i",VLOOKUP(C58,'Ins SINAPI PE 03-2024 Onerado'!$A$8:$E$5189,3,0),VLOOKUP(C58,'Comp SINAPI PE 03-2024 Onerado'!$G$7:$K$7500,3,0)) -> H | F58: 1 | G58: =IF(I58="i",VLOOKUP(C58,'Ins SINAPI PE 03-2024 Onerado'!$A$8:$E$5189,5,0),VLOOKUP(C58,'Comp SINAPI PE 03-2024 Onerado'!$G$7:$K$7500,5,0)) -> 25.1 | H58: =ROUND(F58*G58,2) -> 25.1 | I58: ca
B59: SINAPI | C59: 88316 | D59: =IF(I59="i",VLOOKUP(C59,'Ins SINAPI PE 03-2024 Onerado'!$A$8:$E$5189,2,0),VLOOKUP(C59,'Comp SINAPI PE 03-2024 Onerado'!$G$7:$K$7500,2,0)) -> SERVENTE COM ENCARGOS COMPLEMENTARES | E59: =IF(I59="i",VLOOKUP(C59,'Ins SINAPI PE 03-2024 Onerado'!$A$8:$E$5189,3,0),VLOOKUP(C59,'Comp SINAPI PE 03-2024 Onerado'!$G$7:$K$7500,3,0)) -> H | F59: 2 | G59: =IF(I59="i",VLOOKUP(C59,'Ins SINAPI PE 03-2024 Onerado'!$A$8:$E$5189,5,0),VLOOKUP(C59,'Comp SINAPI PE 03-2024 Onerado'!$G$7:$K$7500,5,0)) -> 20.28 | H59: =ROUND(F59*G59,2) -> 40.56 | I59: ca
I60: x
B61: ='Planilha Orçamentária'!A20 -> 3.1 | C61: =VLOOKUP($B61,'Planilha Orçamentária'!$A$11:$I$483,3,) -> CPU.05 | D61: =VLOOKUP($B61,'Planilha Orçamentária'!$A$11:$I$483,4,) -> Limpeza de Vegetação | E61: m² | H61: =SUM(H62+H63+H64+H71) -> 7.040016983 | I61: S
B62: =B61 -> 3.1 | D62: MATERIAL | H62: 0 | I62: ss
B63: =B61 -> 3.1 | D63: EQUIPAMENTOS | H63: 0 | I63: ss
B64: =B61 -> 3.1 | D64: SERVIÇOS | H64: =SUM(H65:H70) -> 7.040016983 | I64: ss
A65: 3.1.1 | B65: SINAPI | C65: 98524 | D65: =PROPER(IF(K65="i",VLOOKUP(C65,'Ins SINAPI PE 03-2024 Onerado'!$A$8:$E$5189,2,0),VLOOKUP(C65,'Comp SINAPI PE 03-2024 Onerado'!$G$7:$K$7500,2,0))) -> Limpeza Manual De Vegetação Em Terreno Com Enxada. Af_03/2024 | E65: =LOWER(IF(K65="i",VLOOKUP(C65,'Ins SINAPI PE 03-2024 Onerado'!$A$8:$E$5189,3,0),VLOOKUP(C65,'Comp SINAPI PE 03-2024 Onerado'!$G$7:$K$7500,3,0))) -> m2 | F65: 1 | G65: =IF(I65="i",VLOOKUP(C65,'Ins SINAPI PE 03-2024 Onerado'!$A$8:$E$5189,5,0),VLOOKUP(C65,'Comp SINAPI PE 03-2024 Onerado'!$G$7:$K$7500,5,0)) -> 4.32 | H65: =ROUND(F65*G65,2) -> 4.32 | I65: ca
A66: 3.1.2 | B66: CPU HOSPEDAGEM | C66: CODE | D66: Hospedagem | E66: um | F66: ='Memorial de cálculo'!H83/'Memorial de cálculo'!H71 -> 0.01795 | G66: 100.19 | H66: =ROUND(F66*G66,2) -> 1.8 | I66: ca
A67: 3.1.3 | B67: SINAPI | C67: 97913 | D67: =PROPER(IF(K56="i",VLOOKUP(C67,'Ins SINAPI PE 03-2024 Onerado'!$A$8:$E$5189,2,0),VLOOKUP(C67,'Comp SINAPI PE 03-2024 Onerado'!$G$7:$K$7500,2,0))) -> Transporte Com Caminhão Basculante De 6 M³, Em Via Urbana Em Revestimento Primário (Unidade: M3Xkm). Af_07/2020 | E67: =LOWER(IF(K56="i",VLOOKUP(C67,'Ins SINAPI PE 03-2024 Onerado'!$A$8:$E$5189,3,0),VLOOKUP(C67,'Comp SINAPI PE 03-2024 Onerado'!$G$7:$K$7500,3,0))) -> m3xkm | F67: ='Memorial de cálculo'!H77/'Memorial de cálculo'!H71 -> 0.077 | G67: =IF(I67="i",VLOOKUP(C67,'Ins SINAPI PE 03-2024 Onerado'!$A$8:$E$5189,5,0),VLOOKUP(C67,'Comp SINAPI PE 03-2024 Onerado'!$G$7:$K$7500,5,0)) -> 3.22 | H67: =ROUND(F67*G67,2) -> 0.25 | I67: ca
A68: 3.1.4 | B68: SINAPI | C68: 97914 | D68: =PROPER(IF(K57="i",VLOOKUP(C68,'Ins SINAPI PE 03-2024 Onerado'!$A$8:$E$5189,2,0),VLOOKUP(C68,'Comp SINAPI PE 03-2024 Onerado'!$G$7:$K$7500,2,0))) -> Transporte Com Caminhão Basculante De 6 M³, Em Via Urbana Pavimentada, Dmt Até 30 Km (Unidade: M3Xkm). Af_07/2020 | E68: =LOWER(IF(K57="i",VLOOKUP(C68,'Ins SINAPI PE 03-2024 Onerado'!$A$8:$E$5189,3,0),VLOOKUP(C68,'Comp SINAPI PE 03-2024 Onerado'!$G$7:$K$7500,3,0))) -> m3xkm | F68: ='Memorial de cálculo'!H80/'Memorial de cálculo'!H71 -> 5.776699029e-06 | G68: =IF(I68="i",VLOOKUP(C68,'Ins SINAPI PE 03-2024 Onerado'!$A$8:$E$5189,5,0),VLOOKUP(C68,'Comp SINAPI PE 03-2024 Onerado'!$G$7:$K$7500,5,0)) -> 2.94 | H68: =(F68*G68) -> 1.698349515e-05 | I68: ca
A69: 3.1.5 | B69: SICRO | C69: E9134 | D69: Miniônibus com capacidade para 30 passageiros - 111 Kw | E69: chp | F69: ='Memorial de cálculo'!H85/'Memorial de cálculo'!H71 -> 0.0008975 | G69: 217.79 | H69: =ROUND(F69*G69,2) -> 0.2 | I69: ca | J69: =F69/F70 -> 0.1428571429
A70: 3.1.6 | B70: SICRO | C70: E9134 | D70: Miniônibus com capacidade para 30 passageiros - 111 Kw | E70: chi | F70: ='Memorial de cálculo'!H87/'Memorial de cálculo'!H71 -> 0.0062825 | G70: 74.24 | H70: 0.47 | I70: ca
B71: =B59 -> SINAPI | D71: MÃO DE OBRA | I71: mdo
B73: ='Planilha Orçamentária'!A21 -> 3.2 | C73: =VLOOKUP($B73,'Planilha Orçamentária'!$A$11:$I$483,3,) -> CPU.06 | D73: =VLOOKUP($B73,'Planilha Orçamentária'!$A$11:$I$483,4,) -> Corte Raso de Árvore | E73: un | H73: =SUM(H74+H75+H76+H81) -> 249.46 | I73: S
B74: =B73 -> 3.2 | D74: MATERIAL | H74: 0 | I74: ss
B75: =B73 -> 3.2 | D75: EQUIPAMENTOS | H75: 0 | I75: ss
B76: =B73 -> 3.2 | D76: SERVIÇOS | H76: =SUM(H77:H80) -> 249.46 | I76: ss
A77: 3.2.1 | B77: SINAPI | C77: 98529 | D77: =IF(I77="i",VLOOKUP(C77,'Ins SINAPI PE 03-2024 Onerado'!$A$8:$E$5189,2,0),VLOOKUP(C77,'Comp SINAPI PE 03-2024 Onerado'!$G$7:$K$7500,2,0)) -> CORTE RASO E RECORTE DE ÁRVORE COM DIÂMETRO DE TRONCO MAIOR OU IGUAL A 0,20 M E MENOR QUE 0,40 M. AF_03/2024 | E77: =IF(I77="i",VLOOKUP(C77,'Ins SINAPI PE 03-2024 Onerado'!$A$8:$E$5189,3,0),VLOOKUP(C77,'Comp SINAPI PE 03-2024 Onerado'!$G$7:$K$7500,3,0)) -> UN | F77: 1 | G77: =IF(I77="i",VLOOKUP(C77,'Ins SINAPI PE 03-2024 Onerado'!$A$8:$E$5189,5,0),VLOOKUP(C77,'Comp SINAPI PE 03-2024 Onerado'!$G$7:$K$7500,5,0)) -> 68.42 | H77: =ROUND(F77*G77,2) -> 68.42 | I77: ca
A78: 3.2.2 | B78: CPU HOSPEDAGEM | C78: CODE | D78: Hospedagem | E78: um | F78: ='Memorial de cálculo'!H96/'Memorial de cálculo'!H90 -> 0.3861 | G78: 100.19 | H78: =ROUND(F78*G78,2) -> 38.68 | I78: ca
A79: 3.2.3 | B79: SICRO | C79: E9134 | D79: Miniônibus com capacidade para 30 passageiros - 111 Kw | E79: chp | F79: ='Memorial de cálculo'!H98/'Memorial de cálculo'!H90 -> 0.19305 | G79: 217.79 | H79: 42.04 | I79: ca | J79: =F79/F80 -> 0.1428571429
A80: 3.2.4 | B80: SICRO | C80: E9134 | D80: Miniônibus com capacidade para 30 passageiros - 111 Kw | E80: chi | F80: ='Memorial de cálculo'!H100/'Memorial de cálculo'!H90 -> 1.35135 | G80: 74.24 | H80: 100.32 | I80: ca
B81: =B69 -> SICRO | D81: MÃO DE OBRA | I81: mdo
B83: ='Planilha Orçamentária'!A22 -> 3.3 | C83: =VLOOKUP($B83,'Planilha Orçamentária'!$A$11:$I$483,3,) -> CPU.07 | D83: =VLOOKUP($B83,'Planilha Orçamentária'!$A$11:$I$483,4,) -> Remoção de Raízes | E83: un | H83: =SUM(H84+H85+H86+H91) -> 214.35 | I83: S
B84: =B83 -> 3.3 | D84: MATERIAL | H84: 0 | I84: ss
B85: =B83 -> 3.3 | D85: EQUIPAMENTOS | H85: 0 | I85: ss
B86: =B83 -> 3.3 | D86: SERVIÇOS | H86: =SUM(H87:H90) -> 214.35 | I86: ss
A87: 3.3.1 | B87: SINAPI | C87: 98526 | D87: =IF(I87="i",VLOOKUP(C87,'Ins SINAPI PE 03-2024 Onerado'!$A$8:$E$5189,2,0),VLOOKUP(C87,'Comp SINAPI PE 03-2024 Onerado'!$G$7:$K$7500,2,0)) -> REMOÇÃO DE RAÍZES REMANESCENTES DE TRONCO DE ÁRVORE COM DIÂMETRO MAIOR OU IGUAL A 0,20 M E MENOR QUE 0,40 M. AF_03/2024 | E87: =IF(I87="i",VLOOKUP(C87,'Ins SINAPI PE 03-2024 Onerado'!$A$8:$E$5189,3,0),VLOOKUP(C87,'Comp SINAPI PE 03-2024 Onerado'!$G$7:$K$7500,3,0)) -> UN | F87: 1 | G87: =IF(I87="i",VLOOKUP(C87,'Ins SINAPI PE 03-2024 Onerado'!$A$8:$E$5189,5,0),VLOOKUP(C87,'Comp SINAPI PE 03-2024 Onerado'!$G$7:$K$7500,5,0)) -> 134.87 | H87: =ROUND(F87*G87,2) -> 134.87 | I87: ca
A88: 3.3.2 | B88: CPU HOSPEDAGEM | C88: CODE | D88: Hospedagem | E88: um | F88: ='Memorial de cálculo'!H109/'Memorial de cálculo'!H103 -> 0.1695 | G88: 100.19 | H88: =ROUND(F88*G88,2) -> 16.98 | I88: ca
A89: 3.3.3 | B89: SICRO | C89: E9134 | D89: Miniônibus com capacidade para 30 passageiros - 111 Kw | E89: chp | F89: ='Memorial de cálculo'!H111/'Memorial de cálculo'!H103 -> 0.08475 | G89: 217.79 | H89: =ROUND(F89*G89,2) -> 18.46 | I89: ca | J89: =F89/F90 -> 0.1428571429
A90: 3.3.4 | B90: SICRO | C90: E9134 | D90: Miniônibus com capacidade para 30 passageiros - 111 Kw | E90: chi | F90: ='Memorial de cálculo'!H113/'Memorial de cálculo'!H103 -> 0.59325 | G90: 74.24 | H90: 44.04 | I90: ca
B91: =B79 -> SICRO | D91: MÃO DE OBRA | I91: mdo
B93: ='Planilha Orçamentária'!A25 -> 4.1 | C93: =VLOOKUP($B93,'Planilha Orçamentária'!$A$11:$I$483,3,) -> CPU.08 | D93: =VLOOKUP($B93,'Planilha Orçamentária'!$A$11:$I$483,4,) -> Aplicação de concreto - slump 22 - fck maior que 10 c/ fornecimento | E93: m³ | H93: =SUM(H94+H95+H96+H103) -> 796.85 | I93: S
B94: =B93 -> 4.1 | D94: MATERIAL | H94: 0 | I94: ss
B95: =B93 -> 4.1 | D95: EQUIPAMENTOS | H95: 0 | I95: ss
B96: =B93 -> 4.1 | D96: SERVIÇOS | H96: =SUM(H97:H102) -> 796.85 | I96: ss
A97: 4.1.1 | B97: SINAPI | C97: 103684 | D97: =PROPER(IF(K97="i",VLOOKUP(C97,'Ins SINAPI PE 03-2024 Onerado'!$A$8:$E$5189,2,0),VLOOKUP(C97,'Comp SINAPI PE 03-2024 Onerado'!$G$7:$K$7500,2,0))) -> Concretagem De Reservatórios, Fck=25 Mpa, Com Uso De Bomba - Lançamento, Adensamento E Acabamento. Af_02/2022_Ps | E97: =LOWER(IF(K97="i",VLOOKUP(C97,'Ins SINAPI PE 03-2024 Onerado'!$A$8:$E$5189,3,0),VLOOKUP(C97,'Comp SINAPI PE 03-2024 Onerado'!$G$7:$K$7500,3,0))) -> m3 | F97: 1 | G97: =IF(I97="i",VLOOKUP(C97,'Ins SINAPI PE 03-2024 Onerado'!$A$8:$E$5189,5,0),VLOOKUP(C97,'Comp SINAPI PE 03-2024 Onerado'!$G$7:$K$7500,5,0)) -> 608.03 | H97: =ROUND(F97*G97,2) -> 608.03 | I97: ca
A98: 4.1.2 | B98: SINAPI | C98: 93595 | D98: =PROPER(IF(K98="i",VLOOKUP(C98,'Ins SINAPI PE 03-2024 Onerado'!$A$8:$E$5189,2,0),VLOOKUP(C98,'Comp SINAPI PE 03-2024 Onerado'!$G$7:$K$7500,2,0))) -> Transporte Com Caminhão Basculante De 10 M³, Em Via Urbana Em Revestimento Primário (Unidade: Txkm). Af_07/2020 | E98: =LOWER(IF(K98="i",VLOOKUP(C98,'Ins SINAPI PE 03-2024 Onerado'!$A$8:$E$5189,3,0),VLOOKUP(C98,'Comp SINAPI PE 03-2024 Onerado'!$G$7:$K$7500,3,0))) -> txkm | F98: ='Memorial de cálculo'!H124/'Memorial de cálculo'!H117 -> 6.21 | G98: =IF(I98="i",VLOOKUP(C98,'Ins SINAPI PE 03-2024 Onerado'!$A$8:$E$5189,5,0),VLOOKUP(C98,'Comp SINAPI PE 03-2024 Onerado'!$G$7:$K$7500,5,0)) -> 1.81 | H98: =ROUND(F98*G98,2) -> 11.24 | I98: ca
A99: 4.1.3 | B99: SINAPI | C99: 93596 | D99: =PROPER(IF(K99="i",VLOOKUP(C99,'Ins SINAPI PE 03-2024 Onerado'!$A$8:$E$5189,2,0),VLOOKUP(C99,'Comp SINAPI PE 03-2024 Onerado'!$G$7:$K$7500,2,0))) -> Transporte Com Caminhão Basculante De 10 M³, Em Via Urbana Pavimentada, Adicional Para Dmt Excedente A 30 Km (Unidade: Txkm). Af_07/2020 | E99: =LOWER(IF(K99="i",VLOOKUP(C99,'Ins SINAPI PE 03-2024 Onerado'!$A$8:$E$5189,3,0),VLOOKUP(C99,'Comp SINAPI PE 03-2024 Onerado'!$G$7:$K$7500,3,0))) -> txkm | F99: ='Memorial de cálculo'!H126/'Memorial de cálculo'!H117 -> 54.74 | G99: =IF(I99="i",VLOOKUP(C99,'Ins SINAPI PE 03-2024 Onerado'!$A$8:$E$5189,5,0),VLOOKUP(C99,'Comp SINAPI PE 03-2024 Onerado'!$G$7:$K$7500,5,0)) -> 0.65 | H99: 35.58 | I99: ca
A100: 4.1.4 | B100: CPU HOSPEDAGEM | C100: CODE | D100: Hospedagem | E100: um | F100: ='Memorial de cálculo'!H129/'Memorial de cálculo'!H117 -> 0.30125 | G100: 100.19 | H100: =ROUND(F100*G100,2) -> 30.18 | I100: ca
A101: 4.1.5 | B101: SICRO | C101: E9134 | D101: Miniônibus com capacidade para 30 passageiros - 111 Kw | E101: chp | F101: ='Memorial de cálculo'!H131/'Memorial de cálculo'!H117 -> 0.151625 | G101: 217.79 | H101: =ROUND(F101*G101,2) -> 33.02 | I101: ca | J101: =F101/F102 -> 0.1428571429
A102: 4.1.6 | B102: SICRO | C102: E9134 | D102: Miniônibus com capacidade para 30 passageiros - 111 Kw | E102: chi | F102: ='Memorial de cálculo'!H133/'Memorial de cálculo'!H117 -> 1.061375 | G102: 74.24 | H102: 78.8 | I102: ca
B103: =B91 -> SICRO | D103: MÃO DE OBRA | I103: mdo
B105: ='Planilha Orçamentária'!A28 -> 5.1 | C105: =VLOOKUP($B105,'Planilha Orçamentária'!$A$11:$I$483,3,) -> CPU.09 | D105: =VLOOKUP($B105,'Planilha Orçamentária'!$A$11:$I$483,4,) -> Demolição De Guias de concreto sem reaproveitamento | E105: m | H105: =SUM(H106+H107+H108+H115) -> 28.87 | I105: S
B106: =B105 -> 5.1 | D106: MATERIAL | H106: 0 | I106: ss
B107: =B105 -> 5.1 | D107: EQUIPAMENTOS | H107: 0 | I107: ss
B108: =B105 -> 5.1 | D108: SERVIÇOS | H108: =SUM(H109:H114) -> 28.87 | I108: ss
A109: 5.1.1 | B109: SINAPI | C109: 104796 | D109: =PROPER(IF(K109="i",VLOOKUP(C109,'Ins SINAPI PE 03-2024 Onerado'!$A$8:$E$5189,2,0),VLOOKUP(C109,'Comp SINAPI PE 03-2024 Onerado'!$G$7:$K$7500,2,0))) -> Demolição De Guias, Sarjetas Ou Sarjetões, De Forma Mecanizada, Sem Reaproveitamento. Af_09/2023 | E109: =LOWER(IF(K109="i",VLOOKUP(C109,'Ins SINAPI PE 03-2024 Onerado'!$A$8:$E$5189,3,0),VLOOKUP(C109,'Comp SINAPI PE 03-2024 Onerado'!$G$7:$K$7500,3,0))) -> m | F109: 1 | G109: =IF(I109="i",VLOOKUP(C109,'Ins SINAPI PE 03-2024 Onerado'!$A$8:$E$5189,5,0),VLOOKUP(C109,'Comp SINAPI PE 03-2024 Onerado'!$G$7:$K$7500,5,0)) -> 14.17 | H109: =ROUND(F109*G109,2) -> 14.17 | I109: ca
A110: 5.1.2 | B110: SINAPI | C110: 100946 | D110: =PROPER(IF(K110="i",VLOOKUP(C110,'Ins SINAPI PE 03-2024 Onerado'!$A$8:$E$5189,2,0),VLOOKUP(C110,'Comp SINAPI PE 03-2024 Onerado'!$G$7:$K$7500,2,0))) -> Transporte Com Caminhão Carroceria 9T, Em Via Urbana Em Revestimento Primário (Unidade: Txkm). Af_07/2020 | E110: =LOWER(IF(K110="i",VLOOKUP(C110,'Ins SINAPI PE 03-2024 Onerado'!$A$8:$E$5189,3,0),VLOOKUP(C110,'Comp SINAPI PE 03-2024 Onerado'!$G$7:$K$7500,3,0))) -> txkm | F110: ='Memorial de cálculo'!H143/'Memorial de cálculo'!H137 -> 0.15525 | G110: =IF(I110="i",VLOOKUP(C110,'Ins SINAPI PE 03-2024 Onerado'!$A$8:$E$5189,5,0),VLOOKUP(C110,'Comp SINAPI PE 03-2024 Onerado'!$G$7:$K$7500,5,0)) -> 2.42 | H110: =ROUND(F110*G110,2) -> 0.38 | I110: ca
A111: 5.1.3 | B111: SINAPI | C111: 100947 | D111: =PROPER(IF(K111="i",VLOOKUP(C111,'Ins SINAPI PE 03-2024 Onerado'!$A$8:$E$5189,2,0),VLOOKUP(C111,'Comp SINAPI PE 03-2024 Onerado'!$G$7:$K$7500,2,0))) -> Transporte Com Caminhão Carroceria 9T, Em Via Urbana Pavimentada, Dmt Até 30Km (Unidade: Txkm). Af_07/2020 | E111: =LOWER(IF(K111="i",VLOOKUP(C111,'Ins SINAPI PE 03-2024 Onerado'!$A$8:$E$5189,3,0),VLOOKUP(C111,'Comp SINAPI PE 03-2024 Onerado'!$G$7:$K$7500,3,0))) -> txkm | F111: ='Memorial de cálculo'!H146/'Memorial de cálculo'!H137 -> 1.3685 | G111: =IF(I111="i",VLOOKUP(C111,'Ins SINAPI PE 03-2024 Onerado'!$A$8:$E$5189,5,0),VLOOKUP(C111,'Comp SINAPI PE 03-2024 Onerado'!$G$7:$K$7500,5,0)) -> 2.23 | H111: 3.05 | I111: ca
A112: 5.1.4 | B112: CPU HOSPEDAGEM | C112: CODE | D112: Hospedagem | E112: um | F112: ='Memorial de cálculo'!H149/'Memorial de cálculo'!H137 -> 0.0316375 | G112: 100.19 | H112: =ROUND(F112*G112,2) -> 3.17 | I112: ca
A113: 5.1.5 | B113: SICRO | C113: E9134 | D113: Miniônibus com capacidade para 30 passageiros - 111 Kw | E113: chp | F113: ='Memorial de cálculo'!H151/'Memorial de cálculo'!H137 -> 0.01099375 | G113: 217.79 | H113: =ROUND(F113*G113,2) -> 2.39 | I113: ca | J113: =F113/F114 -> 0.1428571429
A114: 5.1.6 | B114: SICRO | C114: E9134 | D114: Miniônibus com capacidade para 30 passageiros - 111 Kw | E114: chi | F114: ='Memorial de cálculo'!H153/'Memorial de cálculo'!H137 -> 0.07695625 | G114: 74.24 | H114: 5.71 | I114: ca
B115: =B103 -> SICRO | D115: MÃO DE OBRA | I115: mdo
B117: ='Planilha Orçamentária'!A29 -> 5.2 | C117: =VLOOKUP($B117,'Planilha Orçamentária'!$A$11:$I$483,3,) -> CPU.10 | D117: =VLOOKUP($B117,'Planilha Orçamentária'!$A$11:$I$483,4,) -> Regularização E Compactação De Subleito De Solo Predominantemente Argiloso | E117: m² | H117: =SUM(H118+H119+H120+H125) -> 3.44 | I117: S
B118: =B117 -> 5.2 | D118: MATERIAL | H118: 0 | I118: ss
B119: =B117 -> 5.2 | D119: EQUIPAMENTOS | H119: 0 | I119: ss
B120: =B117 -> 5.2 | D120: SERVIÇOS | H120: =SUM(H121:H124) -> 3.44 | I120: ss
A121: 5.2.1 | B121: SINAPI | C121: 100576 | D121: =PROPER(IF(K121="i",VLOOKUP(C121,'Ins SINAPI PE 03-2024 Onerado'!$A$8:$E$5189,2,0),VLOOKUP(C121,'Comp SINAPI PE 03-2024 Onerado'!$G$7:$K$7500,2,0))) -> Regularização E Compactação De Subleito De Solo Predominantemente Argiloso. Af_11/2019 | E121: =LOWER(IF(K121="i",VLOOKUP(C121,'Ins SINAPI PE 03-2024 Onerado'!$A$8:$E$5189,3,0),VLOOKUP(C121,'Comp SINAPI PE 03-2024 Onerado'!$G$7:$K$7500,3,0))) -> m2 | F121: 1 | G121: =IF(I121="i",VLOOKUP(C121,'Ins SINAPI PE 03-2024 Onerado'!$A$8:$E$5189,5,0),VLOOKUP(C121,'Comp SINAPI PE 03-2024 Onerado'!$G$7:$K$7500,5,0)) -> 2.6 | H121: =ROUND(F121*G121,2) -> 2.6 | I121: ca
A122: 5.2.2 | B122: CPU HOSPEDAGEM | C122: CODE | D122: Hospedagem | E122: um | F122: ='Memorial de cálculo'!H160/'Memorial de cálculo'!H156 -> 0.001 | G122: 100.19 | H122: =ROUND(F122*G122,2) -> 0.1 | I122: ca
A123: 5.2.3 | B123: SICRO | C123: E9134 | D123: Miniônibus com capacidade para 30 passageiros - 111 Kw | E123: chp | F123: ='Memorial de cálculo'!H162/'Memorial de cálculo'!H156 -> 0.001 | G123: 217.79 | H123: =ROUND(F123*G123,2) -> 0.22 | I123: ca | J123: =F123/F124 -> 0.1428571429
A124: 5.2.4 | B124: SICRO | C124: E9134 | D124: Miniônibus com capacidade para 30 passageiros - 111 Kw | E124: chi | F124: ='Memorial de cálculo'!H164/'Memorial de cálculo'!H156 -> 0.007 | G124: 74.24 | H124: 0.52 | I124: ca
B125: =B112 -> CPU HOSPEDAGEM | D125: MÃO DE OBRA | I125: mdo
B127: ='Planilha Orçamentária'!A30 -> 5.3 | C127: =VLOOKUP($B127,'Planilha Orçamentária'!$A$11:$I$483,3,) -> CPU.11 | D127: =VLOOKUP($B127,'Planilha Orçamentária'!$A$11:$I$483,4,) -> Construção de Guia (Meio-Fio) E Sarjeta Conjugados De Concreto | E127: m | H127: =SUM(H128+H129+H130+H138) -> 141.95 | I127: S
B128: =B127 -> 5.3 | D128: MATERIAL | H128: 0 | I128: ss
B129: =B127 -> 5.3 | D129: EQUIPAMENTOS | H129: 0 | I129: ss
B130: =B127 -> 5.3 | D130: SERVIÇOS | H130: =SUM(H131:H137) -> 141.95 | I130: ss
A131: 5.3.1 | B131: SINAPI | C131: 94267 | D131: =PROPER(IF(K131="i",VLOOKUP(C131,'Ins SINAPI PE 03-2024 Onerado'!$A$8:$E$5189,2,0),VLOOKUP(C131,'Comp SINAPI PE 03-2024 Onerado'!$G$7:$K$7500,2,0))) -> Guia (Meio-Fio) E Sarjeta Conjugados De Concreto, Moldada In Loco Em Trecho Reto Com Extrusora, 45 Cm Base (15 Cm Base Da Guia + 30 Cm Base Da Sarjeta) X 22 Cm Altura. Af_01/2024 | E131: =LOWER(IF(K131="i",VLOOKUP(C131,'Ins SINAPI PE 03-2024 Onerado'!$A$8:$E$5189,3,0),VLOOKUP(C131,'Comp SINAPI PE 03-2024 Onerado'!$G$7:$K$7500,3,0))) -> m | F131: 1 | G131: =IF(I131="i",VLOOKUP(C131,'Ins SINAPI PE 03-2024 Onerado'!$A$8:$E$5189,5,0),VLOOKUP(C131,'Comp SINAPI PE 03-2024 Onerado'!$G$7:$K$7500,5,0)) -> 52.2 | H131: =ROUND(F131*G131,2) -> 52.2 | I131: ca
A132: 5.3.2 | B132: SINAPI | C132: 88830 | D132: =PROPER(IF(K132="i",VLOOKUP(C132,'Ins SINAPI PE 03-2024 Onerado'!$A$8:$E$5189,2,0),VLOOKUP(C132,'Comp SINAPI PE 03-2024 Onerado'!$G$7:$K$7500,2,0))) -> Betoneira Capacidade Nominal De 400 L, Capacidade De Mistura 280 L, Motor Elétrico Trifásico Potência De 2 Cv, Sem Carregador - Chp Diurno. Af_05/2023 | E132: =LOWER(IF(K132="i",VLOOKUP(C132,'Ins SINAPI PE 03-2024 Onerado'!$A$8:$E$5189,3,0),VLOOKUP(C132,'Comp SINAPI PE 03-2024 Onerado'!$G$7:$K$7500,3,0))) -> chp | F132: ='Memorial de cálculo'!H174/'Memorial de cálculo'!H167 -> 0.109 | G132: =IF(I132="i",VLOOKUP(C132,'Ins SINAPI PE 03-2024 Onerado'!$A$8:$E$5189,5,0),VLOOKUP(C132,'Comp SINAPI PE 03-2024 Onerado'!$G$7:$K$7500,5,0)) -> 2.03 | H132: =ROUND(F132*G132,2) -> 0.22 | I132: ca
A133: 5.3.3 | B133: SINAPI | C133: 100946 | D133: =PROPER(IF(K133="i",VLOOKUP(C133,'Ins SINAPI PE 03-2024 Onerado'!$A$8:$E$5189,2,0),VLOOKUP(C133,'Comp SINAPI PE 03-2024 Onerado'!$G$7:$K$7500,2,0))) -> Transporte Com Caminhão Carroceria 9T, Em Via Urbana Em Revestimento Primário (Unidade: Txkm). Af_07/2020 | E133: =LOWER(IF(K133="i",VLOOKUP(C133,'Ins SINAPI PE 03-2024 Onerado'!$A$8:$E$5189,3,0),VLOOKUP(C133,'Comp SINAPI PE 03-2024 Onerado'!$G$7:$K$7500,3,0))) -> txkm | F133: ='Memorial de cálculo'!H176/'Memorial de cálculo'!H167 -> 11.83695882 | G133: =IF(I133="i",VLOOKUP(C133,'Ins SINAPI PE 03-2024 Onerado'!$A$8:$E$5189,5,0),VLOOKUP(C133,'Comp SINAPI PE 03-2024 Onerado'!$G$7:$K$7500,5,0)) -> 2.42 | H133: 28.65 | I133: ca
A134: 5.3.4 | B134: SINAPI | C134: 100947 | D134: =PROPER(IF(K134="i",VLOOKUP(C134,'Ins SINAPI PE 03-2024 Onerado'!$A$8:$E$5189,2,0),VLOOKUP(C134,'Comp SINAPI PE 03-2024 Onerado'!$G$7:$K$7500,2,0))) -> Transporte Com Caminhão Carroceria 9T, Em Via Urbana Pavimentada, Dmt Até 30Km (Unidade: Txkm). Af_07/2020 | E134: =LOWER(IF(K134="i",VLOOKUP(C134,'Ins SINAPI PE 03-2024 Onerado'!$A$8:$E$5189,3,0),VLOOKUP(C134,'Comp SINAPI PE 03-2024 Onerado'!$G$7:$K$7500,3,0))) -> txkm | F134: ='Memorial de cálculo'!H178/'Memorial de cálculo'!H167 -> 17.53623529 | G134: =IF(I134="i",VLOOKUP(C134,'Ins SINAPI PE 03-2024 Onerado'!$A$8:$E$5189,5,0),VLOOKUP(C134,'Comp SINAPI PE 03-2024 Onerado'!$G$7:$K$7500,5,0)) -> 2.23 | H134: 39.11 | I134: ca
A135: 5.3.5 | B135: CPU HOSPEDAGEM | C135: CODE | D135: Hospedagem | E135: um | F135: ='Memorial de cálculo'!H180/'Memorial de cálculo'!H167 -> 0.105 | G135: 100.19 | H135: =ROUND(F135*G135,2) -> 10.52 | I135: ca
A136: 5.3.6 | B136: SICRO | C136: E9134 | D136: Miniônibus com capacidade para 30 passageiros - 111 Kw | E136: chp | F136: ='Memorial de cálculo'!H182/'Memorial de cálculo'!H167 -> 0.01525 | G136: 217.79 | H136: =ROUND(F136*G136,2) -> 3.32 | I136: ca | J136: =F136/F137 -> 0.1428571429
A137: 5.3.7 | B137: SICRO | C137: E9134 | D137: Miniônibus com capacidade para 30 passageiros - 111 Kw | E137: chi | F137: ='Memorial de cálculo'!H184/'Memorial de cálculo'!H167 -> 0.10675 | G137: 74.24 | H137: 7.93 | I137: ca
B138: =B125 -> CPU HOSPEDAGEM | D138: MÃO DE OBRA | I138: mdo
B141: ='Planilha Orçamentária'!A31 -> 5.4 | C141: =VLOOKUP($B141,'Planilha Orçamentária'!$A$11:$I$483,3,) -> CPU.12 | D141: =VLOOKUP($B141,'Planilha Orçamentária'!$A$11:$I$483,4,) -> Revestimento com BGTC | E141: m³ | H141: =SUM(H142+H143+H144+H152) -> 311.57 | I141: S
B142: =B141 -> 5.4 | D142: MATERIAL | H142: 0 | I142: ss
B143: =B141 -> 5.4 | D143: EQUIPAMENTOS | H143: 0 | I143: ss
B144: =B141 -> 5.4 | D144: SERVIÇOS | H144: =SUM(H145:H151) -> 311.57 | I144: ss
A145: 5.4.1 | B145: SINAPI | C145: 96397 | D145: =PROPER(IF(K145="i",VLOOKUP(C145,'Ins SINAPI PE 03-2024 Onerado'!$A$8:$E$5189,2,0),VLOOKUP(C145,'Comp SINAPI PE 03-2024 Onerado'!$G$7:$K$7500,2,0))) -> Execução E Compactação De Base E Ou Sub Base Para Pavimentação De Brita Graduada Simples Tratada Com Cimento - Exclusive Carga E Transporte. Af_11/2019 | E145: =LOWER(IF(K145="i",VLOOKUP(C145,'Ins SINAPI PE 03-2024 Onerado'!$A$8:$E$5189,3,0),VLOOKUP(C145,'Comp SINAPI PE 03-2024 Onerado'!$G$7:$K$7500,3,0))) -> m3 | F145: 1 | G145: =IF(I145="i",VLOOKUP(C145,'Ins SINAPI PE 03-2024 Onerado'!$A$8:$E$5189,5,0),VLOOKUP(C145,'Comp SINAPI PE 03-2024 Onerado'!$G$7:$K$7500,5,0)) -> 240.21 | H145: =ROUND(F145*G145,2) -> 240.21 | I145: ca
A146: 5.4.2 | B146: SINAPI | C146: 100976 | D146: =PROPER(IF(K146="i",VLOOKUP(C146,'Ins SINAPI PE 03-2024 Onerado'!$A$8:$E$5189,2,0),VLOOKUP(C146,'Comp SINAPI PE 03-2024 Onerado'!$G$7:$K$7500,2,0))) -> Carga, Manobra E Descarga De Solos E Materiais Granulares Em Caminhão Basculante 18 M³ - Carga Com Pá Carregadeira (Caçamba De 1,7 A 2,8 M³ / 128 Hp) E Descarga Livre (Unidade: M3). Af_07/2020 | E146: =LOWER(IF(K146="i",VLOOKUP(C146,'Ins SINAPI PE 03-2024 Onerado'!$A$8:$E$5189,3,0),VLOOKUP(C146,'Comp SINAPI PE 03-2024 Onerado'!$G$7:$K$7500,3,0))) -> m3 | F146: ='Memorial de cálculo'!H192/'Memorial de cálculo'!H187 -> 1 | G146: =IF(I146="i",VLOOKUP(C146,'Ins SINAPI PE 03-2024 Onerado'!$A$8:$E$5189,5,0),VLOOKUP(C146,'Comp SINAPI PE 03-2024 Onerado'!$G$7:$K$7500,5,0)) -> 8.4 | H146: =ROUND(F146*G146,2) -> 8.4 | I146: ca
A147: 5.4.3 | B147: SINAPI | C147: 95426 | D147: =PROPER(IF(K147="i",VLOOKUP(C147,'Ins SINAPI PE 03-2024 Onerado'!$A$8:$E$5189,2,0),VLOOKUP(C147,'Comp SINAPI PE 03-2024 Onerado'!$G$7:$K$7500,2,0))) -> Transporte Com Caminhão Basculante De 18 M³, Em Via Urbana Em Revestimento Primário (Unidade: M3Xkm). Af_07/2020 | E147: =LOWER(IF(K147="i",VLOOKUP(C147,'Ins SINAPI PE 03-2024 Onerado'!$A$8:$E$5189,3,0),VLOOKUP(C147,'Comp SINAPI PE 03-2024 Onerado'!$G$7:$K$7500,3,0))) -> m3xkm | F147: ='Memorial de cálculo'!H194/'Memorial de cálculo'!H187 -> 2.7 | G147: =IF(I147="i",VLOOKUP(C147,'Ins SINAPI PE 03-2024 Onerado'!$A$8:$E$5189,5,0),VLOOKUP(C147,'Comp SINAPI PE 03-2024 Onerado'!$G$7:$K$7500,5,0)) -> 1.95 | H147: 5.27 | I147: ca
A148: 5.4.4 | B148: SINAPI | C148: 95425 | D148: =PROPER(IF(K148="i",VLOOKUP(C148,'Ins SINAPI PE 03-2024 Onerado'!$A$8:$E$5189,2,0),VLOOKUP(C148,'Comp SINAPI PE 03-2024 Onerado'!$G$7:$K$7500,2,0))) -> Transporte Com Caminhão Basculante De 18 M³, Em Via Urbana Em Leito Natural (Unidade: M3Xkm). Af_07/2020 | E148: =LOWER(IF(K148="i",VLOOKUP(C148,'Ins SINAPI PE 03-2024 Onerado'!$A$8:$E$5189,3,0),VLOOKUP(C148,'Comp SINAPI PE 03-2024 Onerado'!$G$7:$K$7500,3,0))) -> m3xkm | F148: ='Memorial de cálculo'!H196/'Memorial de cálculo'!H187 -> 23.8 | G148: =IF(I148="i",VLOOKUP(C148,'Ins SINAPI PE 03-2024 Onerado'!$A$8:$E$5189,5,0),VLOOKUP(C148,'Comp SINAPI PE 03-2024 Onerado'!$G$7:$K$7500,5,0)) -> 2.27 | H148: 54.03 | I148: ca
A149: 5.4.5 | B149: CPU HOSPEDAGEM | C149: CODE | D149: Hospedagem | E149: um | F149: ='Memorial de cálculo'!H198/'Memorial de cálculo'!H187 -> 0.004375 | G149: 100.19 | H149: =ROUND(F149*G149,2) -> 0.44 | I149: ca
A150: 5.4.6 | B150: SICRO | C150: E9134 | D150: Miniônibus com capacidade para 30 passageiros - 111 Kw | E150: chp | F150: ='Memorial de cálculo'!H200/'Memorial de cálculo'!H187 -> 0.004375 | G150: 217.79 | H150: =ROUND(F150*G150,2) -> 0.95 | I150: ca | J150: =F150/F151 -> 0.1428571429
A151: 5.4.7 | B151: SICRO | C151: E9134 | D151: Miniônibus com capacidade para 30 passageiros - 111 Kw | E151: chi | F151: ='Memorial de cálculo'!H202/'Memorial de cálculo'!H187 -> 0.030625 | G151: 74.24 | H151: 2.27 | I151: ca
B152: =B136 -> SICRO | D152: MÃO DE OBRA | I152: mdo
B154: ='Planilha Orçamentária'!A34 -> 6.1 | C154: =VLOOKUP($B154,'Planilha Orçamentária'!$A$11:$I$483,3,) -> CPU.13 | D154: =VLOOKUP($B154,'Planilha Orçamentária'!$A$11:$I$483,4,) -> Enrocamento c/ pedra de mão c/ fornecimento e assentamento | E154: m³ | F154: 1 | H154: =SUM(H155,H157,H158,H165) -> 455.01 | I154: S
B155: =B154 -> 6.1 | D155: MATERIAL | H155: =SUM(H156:H156) -> 117.84 | I155: ss
A156: 6.1.1 | B156: SINAPI | C156: 4730 | D156: =IF(I156="i",VLOOKUP(C156,'Ins SINAPI PE 03-2024 Onerado'!$A$8:$E$5189,2,0),VLOOKUP(C156,'Comp SINAPI PE 03-2024 Onerado'!$G$7:$K$7500,2,0)) -> PEDRA DE MAO OU PEDRA RACHAO PARA ARRIMO/FUNDACAO (POSTO PEDREIRA/FORNECEDOR, SEM FRETE) | E156: =IF(I156="i",VLOOKUP(C156,'Ins SINAPI PE 03-2024 Onerado'!$A$8:$E$5189,3,0),VLOOKUP(C156,'Comp SINAPI PE 03-2024 Onerado'!$G$7:$K$7500,3,0)) -> M3 | F156: ='Memorial de cálculo'!H208 -> 1.2 | G156: =IF(I156="i",VLOOKUP(C156,'Ins SINAPI PE 03-2024 Onerado'!$A$8:$E$5189,5,0),VLOOKUP(C156,'Comp SINAPI PE 03-2024 Onerado'!$G$7:$K$7500,5,0)) -> 98.2 | H156: =ROUND(F156*G156,2) -> 117.84 | I156: i | J156: INDICES COM BASE NA COMPOSIÇÃO DA SICRO
B157: =B154 -> 6.1 | D157: EQUIPAMENTOS | I157: ss
B158: =B154 -> 6.1 | D158: SERVIÇOS | H158: =SUM(H159:H164) -> 223.04 | I158: ss
A159: 6.1.2 | B159: SINAPI | C159: 93589 | D159: =IF(I159="i",VLOOKUP(C159,'Ins SINAPI PE 03-2024 Onerado'!$A$8:$E$5189,2,0),VLOOKUP(C159,'Comp SINAPI PE 03-2024 Onerado'!$G$7:$K$7500,2,0)) -> TRANSPORTE COM CAMINHÃO BASCULANTE DE 10 M³, EM VIA URBANA EM REVESTIMENTO PRIMÁRIO (UNIDADE: M3XKM). AF_07/2020 | E159: =IF(I159="i",VLOOKUP(C159,'Ins SINAPI PE 03-2024 Onerado'!$A$8:$E$5189,3,0),VLOOKUP(C159,'Comp SINAPI PE 03-2024 Onerado'!$G$7:$K$7500,3,0)) -> M3XKM | F159: ='Memorial de cálculo'!H210 -> 2.7 | G159: =IF(I159="i",VLOOKUP(C159,'Ins SINAPI PE 03-2024 Onerado'!$A$8:$E$5189,5,0),VLOOKUP(C159,'Comp SINAPI PE 03-2024 Onerado'!$G$7:$K$7500,5,0)) -> 2.67 | H159: =ROUND(F159*G159,2) -> 7.21 | I159: ca
A160: 6.1.3 | B160: SINAPI | C160: 93590 | D160: =IF(I160="i",VLOOKUP(C160,'Ins SINAPI PE 03-2024 Onerado'!$A$8:$E$5189,2,0),VLOOKUP(C160,'Comp SINAPI PE 03-2024 Onerado'!$G$7:$K$7500,2,0)) -> TRANSPORTE COM CAMINHÃO BASCULANTE DE 10 M³, EM VIA URBANA PAVIMENTADA, ADICIONAL PARA DMT EXCEDENTE A 30 KM (UNIDADE: M3XKM). AF_07/2020 | E160: =IF(I160="i",VLOOKUP(C160,'Ins SINAPI PE 03-2024 Onerado'!$A$8:$E$5189,3,0),VLOOKUP(C160,'Comp SINAPI PE 03-2024 Onerado'!$G$7:$K$7500,3,0)) -> M3XKM | F160: ='Memorial de cálculo'!H212 -> 23.8 | G160: =IF(I160="i",VLOOKUP(C160,'Ins SINAPI PE 03-2024 Onerado'!$A$8:$E$5189,5,0),VLOOKUP(C160,'Comp SINAPI PE 03-2024 Onerado'!$G$7:$K$7500,5,0)) -> 0.98 | H160: =ROUND(F160*G160,2) -> 23.32 | I160: ca
A161: 6.1.4 | B161: SINAPI | C161: 100976 | D161: =IF(I161="i",VLOOKUP(C161,'Ins SINAPI PE 03-2024 Onerado'!$A$8:$E$5189,2,0),VLOOKUP(C161,'Comp SINAPI PE 03-2024 Onerado'!$G$7:$K$7500,2,0)) -> CARGA, MANOBRA E DESCARGA DE SOLOS E MATERIAIS GRANULARES EM CAMINHÃO BASCULANTE 18 M³ - CARGA COM PÁ CARREGADEIRA (CAÇAMBA DE 1,7 A 2,8 M³ / 128 HP) E DESCARGA LIVRE (UNIDADE: M3). AF_07/2020 | E161: =IF(I161="i",VLOOKUP(C161,'Ins SINAPI PE 03-2024 Onerado'!$A$8:$E$5189,3,0),VLOOKUP(C161,'Comp SINAPI PE 03-2024 Onerado'!$G$7:$K$7500,3,0)) -> M3 | F161: ='Memorial de cálculo'!H214 -> 1 | G161: =IF(I161="i",VLOOKUP(C161,'Ins SINAPI PE 03-2024 Onerado'!$A$8:$E$5189,5,0),VLOOKUP(C161,'Comp SINAPI PE 03-2024 Onerado'!$G$7:$K$7500,5,0)) -> 8.4 | H161: =ROUND(F161*G161,2) -> 8.4 | I161: ca
A162: 6.1.5 | B162: CPU HOSPEDAGEM | C162: CODE | D162: Hospedagem | E162: um | F162: ='Memorial de cálculo'!H221 -> 0.6875 | G162: 100.19 | H162: =ROUND(F162*G162,2) -> 68.88 | I162: ca
A163: 6.1.6 | B163: SICRO | C163: E9134 | D163: Miniônibus com capacidade para 30 passageiros - 111 Kw | E163: chp | F163: ='Memorial de cálculo'!H223 -> 0.15625 | G163: 217.79 | H163: =ROUND(F163*G163,2) -> 34.03 | I163: ca | J163: =F163/F164 -> 0.1428571429
A164: 6.1.7 | B164: SICRO | C164: E9134 | D164: Miniônibus com capacidade para 30 passageiros - 111 Kw | E164: chi | F164: ='Memorial de cálculo'!H225 -> 1.09375 | G164: 74.24 | H164: 81.2 | I164: ca
B165: =B154 -> 6.1 | D165: MÃO DE OBRA | H165: =SUM(H166:H167) -> 114.13 | I165: mdo
B166: SINAPI | C166: 88309 | D166: =IF(I166="i",VLOOKUP(C166,'Ins SINAPI PE 03-2024 Onerado'!$A$8:$E$5189,2,0),VLOOKUP(C166,'Comp SINAPI PE 03-2024 Onerado'!$G$7:$K$7500,2,0)) -> PEDREIRO COM ENCARGOS COMPLEMENTARES | E166: =IF(I166="i",VLOOKUP(C166,'Ins SINAPI PE 03-2024 Onerado'!$A$8:$E$5189,3,0),VLOOKUP(C166,'Comp SINAPI PE 03-2024 Onerado'!$G$7:$K$7500,3,0)) -> H | F166: 0.5 | G166: =IF(I166="i",VLOOKUP(C166,'Ins SINAPI PE 03-2024 Onerado'!$A$8:$E$5189,5,0),VLOOKUP(C166,'Comp SINAPI PE 03-2024 Onerado'!$G$7:$K$7500,5,0)) -> 25.46 | H166: =ROUND(F166*G166,2) -> 12.73 | I166: ca
B167: SINAPI | C167: 88316 | D167: =IF(I167="i",VLOOKUP(C167,'Ins SINAPI PE 03-2024 Onerado'!$A$8:$E$5189,2,0),VLOOKUP(C167,'Comp SINAPI PE 03-2024 Onerado'!$G$7:$K$7500,2,0)) -> SERVENTE COM ENCARGOS COMPLEMENTARES | E167: =IF(I167="i",VLOOKUP(C167,'Ins SINAPI PE 03-2024 Onerado'!$A$8:$E$5189,3,0),VLOOKUP(C167,'Comp SINAPI PE 03-2024 Onerado'!$G$7:$K$7500,3,0)) -> H | F167: 5 | G167: =IF(I167="i",VLOOKUP(C167,'Ins SINAPI PE 03-2024 Onerado'!$A$8:$E$5189,5,0),VLOOKUP(C167,'Comp SINAPI PE 03-2024 Onerado'!$G$7:$K$7500,5,0)) -> 20.28 | H167: =ROUND(F167*G167,2) -> 101.4 | I167: ca
B169: ='Planilha Orçamentária'!A37 -> 7.1 | C169: =VLOOKUP($B169,'Planilha Orçamentária'!$A$11:$I$483,3,) -> CPU.14 | D169: Recuperação do talude com aterro manual | E169: m³ | F169: 1 | H169: =SUM(H170,H171,H172,H179) -> 124.24 | I169: S
B170: =B169 -> 7.1 | D170: MATERIAL | H170: 0 | I170: ss
B171: =B169 -> 7.1 | D171: EQUIPAMENTOS | H171: 0 | I171: ss
B172: =B169 -> 7.1 | D172: SERVIÇOS | H172: =SUM(H173:H178) -> 124.24 | I172: ss
A173: 7.1.1 | B173: SINAPI | C173: 94319 | D173: =IF(I173="i",VLOOKUP(C173,'Ins SINAPI PE 03-2024 Onerado'!$A$8:$E$5189,2,0),VLOOKUP(C173,'Comp SINAPI PE 03-2024 Onerado'!$G$7:$K$7500,2,0)) -> ATERRO MANUAL DE VALAS COM SOLO ARGILO-ARENOSO. AF_08/2023 | E173: =IF(I173="i",VLOOKUP(C173,'Ins SINAPI PE 03-2024 Onerado'!$A$8:$E$5189,3,0),VLOOKUP(C173,'Comp SINAPI PE 03-2024 Onerado'!$G$7:$K$7500,3,0)) -> M3 | F173: 1 | G173: =IF(I173="i",VLOOKUP(C173,'Ins SINAPI PE 03-2024 Onerado'!$A$8:$E$5189,5,0),VLOOKUP(C173,'Comp SINAPI PE 03-2024 Onerado'!$G$7:$K$7500,5,0)) -> 77.48 | H173: =ROUND(F173*G173,2) -> 77.48 | I173: ca
A174: 7.1.2 | B174: SINAPI | C174: 100947 | D174: =IF(I174="i",VLOOKUP(C174,'Ins SINAPI PE 03-2024 Onerado'!$A$8:$E$5189,2,0),VLOOKUP(C174,'Comp SINAPI PE 03-2024 Onerado'!$G$7:$K$7500,2,0)) -> TRANSPORTE COM CAMINHÃO CARROCERIA 9T, EM VIA URBANA PAVIMENTADA, DMT ATÉ 30KM (UNIDADE: TXKM). AF_07/2020 | E174: =IF(I174="i",VLOOKUP(C174,'Ins SINAPI PE 03-2024 Onerado'!$A$8:$E$5189,3,0),VLOOKUP(C174,'Comp SINAPI PE 03-2024 Onerado'!$G$7:$K$7500,3,0)) -> TXKM | F174: ='Memorial de cálculo'!H234/'Memorial de cálculo'!H229 -> 0.2618 | G174: =IF(I174="i",VLOOKUP(C174,'Ins SINAPI PE 03-2024 Onerado'!$A$8:$E$5189,5,0),VLOOKUP(C174,'Comp SINAPI PE 03-2024 Onerado'!$G$7:$K$7500,5,0)) -> 2.23 | H174: =ROUND(F174*G174,2) -> 0.58 | I174: ca | J174: considerando 25 km pela distância do centro da cidade
A175: 7.1.3 | B175: SINAPI | C175: 100946 | D175: =IF(I175="i",VLOOKUP(C175,'Ins SINAPI PE 03-2024 Onerado'!$A$8:$E$5189,2,0),VLOOKUP(C175,'Comp SINAPI PE 03-2024 Onerado'!$G$7:$K$7500,2,0)) -> TRANSPORTE COM CAMINHÃO CARROCERIA 9T, EM VIA URBANA EM REVESTIMENTO PRIMÁRIO (UNIDADE: TXKM). AF_07/2020 | E175: =IF(I175="i",VLOOKUP(C175,'Ins SINAPI PE 03-2024 Onerado'!$A$8:$E$5189,3,0),VLOOKUP(C175,'Comp SINAPI PE 03-2024 Onerado'!$G$7:$K$7500,3,0)) -> TXKM | F175: ='Memorial de cálculo'!H236/'Memorial de cálculo'!H229 -> 0.0297 | G175: =IF(I175="i",VLOOKUP(C175,'Ins SINAPI PE 03-2024 Onerado'!$A$8:$E$5189,5,0),VLOOKUP(C175,'Comp SINAPI PE 03-2024 Onerado'!$G$7:$K$7500,5,0)) -> 2.42 | H175: 0.07 | I175: ca
A176: 7.1.4 | B176: CPU HOSPEDAGEM | C176: CODE | D176: Hospedagem | E176: um | F176: ='Memorial de cálculo'!H239/'Memorial de cálculo'!H229 -> 0.098325 | G176: 100.19 | H176: =ROUND(F176*G176,2) -> 9.85 | I176: ca
A177: 7.1.5 | B177: SICRO | C177: E9134 | D177: Miniônibus com capacidade para 30 passageiros - 111 Kw | E177: chp | F177: ='Memorial de cálculo'!H240/'Memorial de cálculo'!H229 -> 0.0491625 | G177: 217.79 | H177: =ROUND(F177*G177,2) -> 10.71 | I177: ca | J177: =F177/F178 -> 0.1428571429
A178: 7.1.6 | B178: SICRO | C178: E9134 | D178: Miniônibus com capacidade para 30 passageiros - 111 Kw | E178: chi | F178: ='Memorial de cálculo'!H242/'Memorial de cálculo'!H229 -> 0.3441375 | G178: 74.24 | H178: 25.55 | I178: ca
B179: =B169 -> 7.1 | D179: MÃO DE OBRA | I179: mdo
B181: ='Planilha Orçamentária'!A40 -> 8.1 | C181: =VLOOKUP($B181,'Planilha Orçamentária'!$A$11:$I$483,3,) -> CPU.15 | D181: =VLOOKUP($B181,'Planilha Orçamentária'!$A$11:$I$483,4,) -> Preenchimento de buracos na estrutura de descida | E181: m³ | H181: =SUM(H182,H183,H184,H191) -> 750.08 | I181: S
B182: =B181 -> 8.1 | D182: MATERIAL | H182: 0 | I182: ss
B183: =B181 -> 8.1 | D183: EQUIPAMENTOS | H183: 0 | I183: ss
B184: =B181 -> 8.1 | D184: SERVIÇOS | H184: =SUM(H185:H190) -> 750.08 | I184: ss
A185: 8.1.1 | B185: SINAPI | C185: 103684 | D185: =PROPER(IF(K185="i",VLOOKUP(C185,'Ins SINAPI PE 03-2024 Onerado'!$A$8:$E$5189,2,0),VLOOKUP(C185,'Comp SINAPI PE 03-2024 Onerado'!$G$7:$K$7500,2,0))) -> Concretagem De Reservatórios, Fck=25 Mpa, Com Uso De Bomba - Lançamento, Adensamento E Acabamento. Af_02/2022_Ps | E185: =LOWER(IF(K185="i",VLOOKUP(C185,'Ins SINAPI PE 03-2024 Onerado'!$A$8:$E$5189,3,0),VLOOKUP(C185,'Comp SINAPI PE 03-2024 Onerado'!$G$7:$K$7500,3,0))) -> m3 | F185: 1 | G185: =IF(I185="i",VLOOKUP(C185,'Ins SINAPI PE 03-2024 Onerado'!$A$8:$E$5189,5,0),VLOOKUP(C185,'Comp SINAPI PE 03-2024 Onerado'!$G$7:$K$7500,5,0)) -> 608.03 | H185: =ROUND(F185*G185,2) -> 608.03 | I185: ca
A186: 8.1.2 | B186: SINAPI | C186: 93595 | D186: =PROPER(IF(K186="i",VLOOKUP(C186,'Ins SINAPI PE 03-2024 Onerado'!$A$8:$E$5189,2,0),VLOOKUP(C186,'Comp SINAPI PE 03-2024 Onerado'!$G$7:$K$7500,2,0))) -> Transporte Com Caminhão Basculante De 10 M³, Em Via Urbana Em Revestimento Primário (Unidade: Txkm). Af_07/2020 | E186: =LOWER(IF(K186="i",VLOOKUP(C186,'Ins SINAPI PE 03-2024 Onerado'!$A$8:$E$5189,3,0),VLOOKUP(C186,'Comp SINAPI PE 03-2024 Onerado'!$G$7:$K$7500,3,0))) -> txkm | F186: ='Memorial de cálculo'!H253/'Memorial de cálculo'!H247 -> 0.00621 | G186: =IF(I186="i",VLOOKUP(C186,'Ins SINAPI PE 03-2024 Onerado'!$A$8:$E$5189,5,0),VLOOKUP(C186,'Comp SINAPI PE 03-2024 Onerado'!$G$7:$K$7500,5,0)) -> 1.81 | H186: =ROUND(F186*G186,2) -> 0.01 | I186: ca
A187: 8.1.3 | B187: SINAPI | C187: 93596 | D187: =PROPER(IF(K187="i",VLOOKUP(C187,'Ins SINAPI PE 03-2024 Onerado'!$A$8:$E$5189,2,0),VLOOKUP(C187,'Comp SINAPI PE 03-2024 Onerado'!$G$7:$K$7500,2,0))) -> Transporte Com Caminhão Basculante De 10 M³, Em Via Urbana Pavimentada, Adicional Para Dmt Excedente A 30 Km (Unidade: Txkm). Af_07/2020 | E187: =LOWER(IF(K187="i",VLOOKUP(C187,'Ins SINAPI PE 03-2024 Onerado'!$A$8:$E$5189,3,0),VLOOKUP(C187,'Comp SINAPI PE 03-2024 Onerado'!$G$7:$K$7500,3,0))) -> txkm | F187: ='Memorial de cálculo'!H255/'Memorial de cálculo'!H247 -> 0.05474 | G187: =IF(I187="i",VLOOKUP(C187,'Ins SINAPI PE 03-2024 Onerado'!$A$8:$E$5189,5,0),VLOOKUP(C187,'Comp SINAPI PE 03-2024 Onerado'!$G$7:$K$7500,5,0)) -> 0.65 | H187: 0.04 | I187: ca
A188: 8.1.4 | B188: CPU HOSPEDAGEM | C188: CODE | D188: Hospedagem | E188: um | F188: ='Memorial de cálculo'!H257/'Memorial de cálculo'!H247 -> 0.30125 | G188: 100.19 | H188: =ROUND(F188*G188,2) -> 30.18 | I188: ca
A189: 8.1.5 | B189: SICRO | C189: E9134 | D189: Miniônibus com capacidade para 30 passageiros - 111 Kw | E189: chp | F189: ='Memorial de cálculo'!H259/'Memorial de cálculo'!H247 -> 0.151625 | G189: 217.79 | H189: =ROUND(F189*G189,2) -> 33.02 | I189: ca | J189: =F189/F190 -> 0.1428571429
A190: 8.1.6 | B190: SICRO | C190: E9134 | D190: Miniônibus com capacidade para 30 passageiros - 111 Kw | E190: chi | F190: ='Memorial de cálculo'!H261/'Memorial de cálculo'!H247 -> 1.061375 | G190: 74.24 | H190: 78.8 | I190: ca
B191: =B179 -> 7.1 | D191: MÃO DE OBRA | I191: mdo
B193: ='Planilha Orçamentária'!A41 -> 8.2 | C193: =VLOOKUP($B193,'Planilha Orçamentária'!$A$11:$I$483,3,) -> CPU.16 | D193: =VLOOKUP($B193,'Planilha Orçamentária'!$A$11:$I$483,4,) -> Manutenção da Canaleta para descida d'água | E193: m³ | H193: =SUM(H194,H195,H196,H203) -> 1666.36 | I193: S
B194: =B193 -> 8.2 | D194: MATERIAL | H194: 0 | I194: ss
B195: =B193 -> 8.2 | D195: EQUIPAMENTOS | H195: 0 | I195: ss
B196: =B193 -> 8.2 | D196: SERVIÇOS | H196: =SUM(H197:H202) -> 1666.36 | I196: ss
A197: 8.2.1 | B197: SINAPI | C197: 103933 | D197: =PROPER(IF(K197="i",VLOOKUP(C197,'Ins SINAPI PE 03-2024 Onerado'!$A$8:$E$5189,2,0),VLOOKUP(C197,'Comp SINAPI PE 03-2024 Onerado'!$G$7:$K$7500,2,0))) -> Descida D'Água Rápida (Dar 03), Em Concreto Usinado, Fck = 20 Mpa, Lançado Com Bomba, Incluindo Armação, Materiais E Fôrmas (2 Utilizações). Af_08/2022 | E197: =LOWER(IF(K197="i",VLOOKUP(C197,'Ins SINAPI PE 03-2024 Onerado'!$A$8:$E$5189,3,0),VLOOKUP(C197,'Comp SINAPI PE 03-2024 Onerado'!$G$7:$K$7500,3,0))) -> m3 | F197: 1 | G197: =IF(I197="i",VLOOKUP(C197,'Ins SINAPI PE 03-2024 Onerado'!$A$8:$E$5189,5,0),VLOOKUP(C197,'Comp SINAPI PE 03-2024 Onerado'!$G$7:$K$7500,5,0)) -> 1539.21 | H197: =ROUND(F197*G197,2) -> 1539.21 | I197: ca
A198: 8.2.2 | B198: SINAPI | C198: 100946 | D198: =PROPER(IF(K198="i",VLOOKUP(C198,'Ins SINAPI PE 03-2024 Onerado'!$A$8:$E$5189,2,0),VLOOKUP(C198,'Comp SINAPI PE 03-2024 Onerado'!$G$7:$K$7500,2,0))) -> Transporte Com Caminhão Carroceria 9T, Em Via Urbana Em Revestimento Primário (Unidade: Txkm). Af_07/2020 | E198: =LOWER(IF(K198="i",VLOOKUP(C198,'Ins SINAPI PE 03-2024 Onerado'!$A$8:$E$5189,3,0),VLOOKUP(C198,'Comp SINAPI PE 03-2024 Onerado'!$G$7:$K$7500,3,0))) -> txkm | F198: ='Memorial de cálculo'!H269/'Memorial de cálculo'!H264 -> 0.00621 | G198: =IF(I198="i",VLOOKUP(C198,'Ins SINAPI PE 03-2024 Onerado'!$A$8:$E$5189,5,0),VLOOKUP(C198,'Comp SINAPI PE 03-2024 Onerado'!$G$7:$K$7500,5,0)) -> 2.42 | H198: =ROUND(F198*G198,2) -> 0.02 | I198: ca
A199: 8.2.3 | B199: SINAPI | C199: 100947 | D199: =PROPER(IF(K199="i",VLOOKUP(C199,'Ins SINAPI PE 03-2024 Onerado'!$A$8:$E$5189,2,0),VLOOKUP(C199,'Comp SINAPI PE 03-2024 Onerado'!$G$7:$K$7500,2,0))) -> Transporte Com Caminhão Carroceria 9T, Em Via Urbana Pavimentada, Dmt Até 30Km (Unidade: Txkm). Af_07/2020 | E199: =LOWER(IF(K199="i",VLOOKUP(C199,'Ins SINAPI PE 03-2024 Onerado'!$A$8:$E$5189,3,0),VLOOKUP(C199,'Comp SINAPI PE 03-2024 Onerado'!$G$7:$K$7500,3,0))) -> txkm | F199: ='Memorial de cálculo'!H271/'Memorial de cálculo'!H264 -> 0.05474 | G199: =IF(I199="i",VLOOKUP(C199,'Ins SINAPI PE 03-2024 Onerado'!$A$8:$E$5189,5,0),VLOOKUP(C199,'Comp SINAPI PE 03-2024 Onerado'!$G$7:$K$7500,5,0)) -> 2.23 | H199: 0.12 | I199: ca
A200: 8.2.4 | B200: CPU HOSPEDAGEM | C200: CODE | D200: Hospedagem | E200: um | F200: ='Memorial de cálculo'!H273/'Memorial de cálculo'!H264 -> 0.151625 | G200: 100.19 | H200: =ROUND(F200*G200,2) -> 15.19 | I200: ca
A201: 8.2.5 | B201: SICRO | C201: E9134 | D201: Miniônibus com capacidade para 30 passageiros - 111 Kw | E201: chp | F201: ='Memorial de cálculo'!H275/'Memorial de cálculo'!H264 -> 0.151625 | G201: 217.79 | H201: =ROUND(F201*G201,2) -> 33.02 | I201: ca | J201: =F201/F202 -> 0.1428571429
A202: 8.2.6 | B202: SICRO | C202: E9134 | D202: Miniônibus com capacidade para 30 passageiros - 111 Kw | E202: chi | F202: ='Memorial de cálculo'!H277/'Memorial de cálculo'!H264 -> 1.061375 | G202: 74.24 | H202: 78.8 | I202: ca
B203: =B190 -> SICRO | D203: MÃO DE OBRA | I203: mdo
B205: ='Planilha Orçamentária'!A42 -> 8.3 | C205: =VLOOKUP($B205,'Planilha Orçamentária'!$A$11:$I$483,3,) -> CPU.17 | D205: =VLOOKUP($B205,'Planilha Orçamentária'!$A$11:$I$483,4,) -> Entrada para descida d'água | E205: un | H205: =H206+H207+H208+H214 -> 347.49 | I205: s
B206: =B205 -> 8.3 | D206: MATERIAL | I206: ss
B207: =B205 -> 8.3 | D207: EQUIPAMENTOS | I207: ss
B208: =B205 -> 8.3 | D208: SERVIÇOS | H208: =SUM(H209:H213) -> 347.49 | I208: ss
A209: 8.3.1 | B209: SINAPI | C209: 94964 | D209: =PROPER(IF(K209="i",VLOOKUP(C209,'Ins SINAPI PE 03-2024 Onerado'!$A$8:$E$5189,2,0),VLOOKUP(C209,'Comp SINAPI PE 03-2024 Onerado'!$G$7:$K$7500,2,0))) -> Concreto Fck = 20Mpa, Traço 1:2,7:3 (Em Massa Seca De Cimento/ Areia Média/ Brita 1) - Preparo Mecânico Com Betoneira 400 L. Af_05/2021 | E209: =IF(I209="i",VLOOKUP(C209,'Ins SINAPI PE 03-2024 Onerado'!$A$8:$E$5189,3,0),VLOOKUP(C209,'Comp SINAPI PE 03-2024 Onerado'!$G$7:$K$7500,3,0)) -> M3 | F209: 0.11 | G209: =IF(I209="i",VLOOKUP(C209,'Ins SINAPI PE 03-2024 Onerado'!$A$8:$E$5189,5,0),VLOOKUP(C209,'Comp SINAPI PE 03-2024 Onerado'!$G$7:$K$7500,5,0)) -> 483.22 | H209: =ROUND(F209*G209,2) -> 53.15 | I209: ca | J209: índices baseados em SICRO 2003385 Entrada para descida d'água - EDA 01 - areia e brita comerciais
A210: 8.3.2 | B210: SINAPI | C210: 92268 | D210: =PROPER(IF(K210="i",VLOOKUP(C210,'Ins SINAPI PE 03-2024 Onerado'!$A$8:$E$5189,2,0),VLOOKUP(C210,'Comp SINAPI PE 03-2024 Onerado'!$G$7:$K$7500,2,0))) -> Fabricação De Fôrma Para Lajes, Em Chapa De Madeira Compensada Plastificada, E = 18 Mm. Af_09/2020 | E210: =IF(I210="i",VLOOKUP(C210,'Ins SINAPI PE 03-2024 Onerado'!$A$8:$E$5189,3,0),VLOOKUP(C210,'Comp SINAPI PE 03-2024 Onerado'!$G$7:$K$7500,3,0)) -> M2 | F210: 0.1 | G210: =IF(I210="i",VLOOKUP(C210,'Ins SINAPI PE 03-2024 Onerado'!$A$8:$E$5189,5,0),VLOOKUP(C210,'Comp SINAPI PE 03-2024 Onerado'!$G$7:$K$7500,5,0)) -> 88.55 | H210: 8.86 | I210: ca
A211: 8.3.3 | B211: CPU HOSPEDAGEM | C211: CODE | D211: Hospedagem | E211: un | F211: =VLOOKUP(A211,'Memorial de cálculo'!A10:H421,8,0) -> 0.5184875 | G211: 100.19 | H211: =ROUND(F211*G211,2) -> 51.95 | I211: ca
A212: 8.3.4 | B212: SICRO | C212: E9134 | D212: Miniônibus com capacidade para 30 passageiros - 111 Kw | E212: chp | F212: =VLOOKUP(A212,'Memorial de cálculo'!A11:H422,8,0) -> 0.3166625 | G212: 217.79 | H212: =ROUND(F212*G212,2) -> 68.97 | I212: ca
A213: 8.3.5 | B213: SICRO | C213: E9134 | D213: Miniônibus com capacidade para 30 passageiros - 111 Kw | E213: chi | F213: =VLOOKUP(A213,'Memorial de cálculo'!A12:H423,8,0) -> 2.2166375 | G213: 74.24 | H213: 164.56 | I213: ca
B214: =B205 -> 8.3 | D214: MÃO DE OBRA | H214: 0 | I214: mdo
B216: ='Planilha Orçamentária'!A43 -> 8.4 | C216: =VLOOKUP($B216,'Planilha Orçamentária'!$A$11:$I$483,3,) -> CPU.18 | D216: =VLOOKUP($B216,'Planilha Orçamentária'!$A$11:$I$483,4,) -> Manutenção da canaleta longitudinal | E216: un | H216: =H217+H218+H219+H224 -> 9.41 | I216: s
B217: =B216 -> 8.4 | D217: MATERIAL | I217: ss
B218: =B216 -> 8.4 | D218: EQUIPAMENTOS | I218: ss
... 86 more rows

Sheet CPU DES (hidden)
B1: Ministério da Integração e do Desenvolvimento Regional
B2: Companhia de Desenvolvimento dos Vales do São Francisco e do Parnaíba
B4: COMPOSIÇÕES DE PREÇOS UNITÁRIOS - ORÇAMENTO DESONERADO
B5: OBRA: | C5: SERVIÇOS DE MANUTENÇÃO E OBRAS CIVIS NA ESTRUTURA DA BARRAGEM E EQUIPAMENTO HIDROMECÂNICO | F5: BDI (serv.): | G5: ='BDI serv Desonerado'!D22 -> 0.3351
B6: LOCAL: | C6: BARRAGEM POÇO DO MAGRO, GUANAMBI/BA | F6: BDI (forn.): | G6: ='BDI forn Desonerado'!D22 -> 0.212
B7: DATA BASE: | C7: 2023-05-01
B8: PRAZO: | C8: 120 DIAS
B10: REFERÊNCIA | C10: CÓDIGO | D10: DESCRIÇÃO | E10: UNIDADE | F10: ÍNDICE | G10: CUSTO UNITÁRIO | H10: PREÇO TOTAL
B11: ='Planilha Orçamentária Desoner'!A12 -> 1.1 | C11: =VLOOKUP($B11,'Planilha Orçamentária Desoner'!$A$11:$I$504,3,) -> CPU.01 | D11: =VLOOKUP($B11,'Planilha Orçamentária Desoner'!$A$11:$I$504,4,) -> ADMINISTRAÇÃO LOCAL | E11: un | H11: =SUM(H15,H14,H13,H12) -> 7834.22 | I11: S
B12: =B11 -> 1.1 | D12: MATERIAL | I12: ss
B13: =B11 -> 1.1 | D13: EQUIPAMENTOS | H13: 0 | I13: ss
B14: =B11 -> 1.1 | D14: SERVIÇOS | I14: ss
B15: =B11 -> 1.1 | D15: MÃO DE OBRA | H15: =SUM(H16:H17) -> 7834.22 | I15: mdo
B16: SINAPI | C16: 90778 | D16: =PROPER(IF(I16="i",VLOOKUP(C16,'Ins SINAPI BA 05-2023 Desoner'!$A$8:$E$5189,2,0),VLOOKUP(C16,'Comp SINAPI BA 05-2023 Desoner'!$G$7:$K$7500,2,0))) -> Engenheiro Civil De Obra Pleno Com Encargos Complementares | E16: =LOWER(IF(I16="i",VLOOKUP(C16,'Ins SINAPI BA 05-2023 Desoner'!$A$8:$E$5189,3,0),VLOOKUP(C16,'Comp SINAPI BA 05-2023 Desoner'!$G$7:$K$7500,3,0))) -> h | F16: =CPU!F16 -> 30 | G16: =IF(I16="i",VLOOKUP(C16,'Ins SINAPI BA 05-2023 Desoner'!$A$8:$E$5189,5,0),VLOOKUP(C16,'Comp SINAPI BA 05-2023 Desoner'!$G$7:$K$7500,5,0)) -> 111.26 | H16: =ROUND(F16*G16,2) -> 3337.8 | I16: ca
B17: SINAPI | C17: 93572 | D17: =PROPER(IF(I17="i",VLOOKUP(C17,'Ins SINAPI BA 05-2023 Desoner'!$A$8:$E$5189,2,0),VLOOKUP(C17,'Comp SINAPI BA 05-2023 Desoner'!$G$7:$K$7500,2,0))) -> Encarregado Geral De Obras Com Encargos Complementares | E17: =LOWER(IF(I17="i",VLOOKUP(C17,'Ins SINAPI BA 05-2023 Desoner'!$A$8:$E$5189,3,0),VLOOKUP(C17,'Comp SINAPI BA 05-2023 Desoner'!$G$7:$K$7500,3,0))) -> mes | F17: =CPU!F17 -> 0.8 | G17: =IF(I17="i",VLOOKUP(C17,'Ins SINAPI BA 05-2023 Desoner'!$A$8:$E$5189,5,0),VLOOKUP(C17,'Comp SINAPI BA 05-2023 Desoner'!$G$7:$K$7500,5,0)) -> 5620.52 | H17: =ROUND(F17*G17,2) -> 4496.42 | I17: ca
I18: x
B19: ='Planilha Orçamentária Desoner'!A22 -> 2.2.1 | C19: =VLOOKUP($B19,'Planilha Orçamentária Desoner'!$A$11:$I$504,3,) -> CPU.02 | D19: =VLOOKUP($B19,'Planilha Orçamentária Desoner'!$A$11:$I$504,4,) -> PLACA DE OBRA EM CHAPA DE ACO GALVANIZADO | E19: m² | H19: =SUM(H20,H28,H26,H27) -> 440.1 | I19: S
B20: =B19 -> 2.2.1 | D20: MATERIAL | H20: =SUM(H21:H25) -> 373.64 | I20: SS
B21: SINAPI | C21: 4417 | D21: =PROPER(IF(I21="i",VLOOKUP(C21,'Ins SINAPI BA 05-2023 Desoner'!$A$8:$E$5189,2,0),VLOOKUP(C21,'Comp SINAPI BA 05-2023 Desoner'!$G$7:$K$7500,2,0))) -> Sarrafo Nao Aparelhado *2,5 X 7* Cm, Em Macaranduba, Angelim Ou Equivalente Da Regiao - Bruta | E21: =LOWER(IF(I21="i",VLOOKUP(C21,'Ins SINAPI BA 05-2023 Desoner'!$A$8:$E$5189,3,0),VLOOKUP(C21,'Comp SINAPI BA 05-2023 Desoner'!$G$7:$K$7500,3,0))) -> m | F21: =CPU!F47 -> 2 | G21: =IF(I21="i",VLOOKUP(C21,'Ins SINAPI BA 05-2023 Desoner'!$A$8:$E$5189,5,0),VLOOKUP(C21,'Comp SINAPI BA 05-2023 Desoner'!$G$7:$K$7500,5,0)) -> 7.18 | H21: =ROUND(F21*G21,2) -> 14.36 | I21: i
B22: SINAPI | C22: 4430 | D22: =PROPER(IF(I22="i",VLOOKUP(C22,'Ins SINAPI BA 05-2023 Desoner'!$A$8:$E$5189,2,0),VLOOKUP(C22,'Comp SINAPI BA 05-2023 Desoner'!$G$7:$K$7500,2,0))) -> Caibro Nao Aparelhado *5 X 6* Cm, Em Macaranduba, Angelim Ou Equivalente Da Regiao - Bruta | E22: =LOWER(IF(I22="i",VLOOKUP(C22,'Ins SINAPI BA 05-2023 Desoner'!$A$8:$E$5189,3,0),VLOOKUP(C22,'Comp SINAPI BA 05-2023 Desoner'!$G$7:$K$7500,3,0))) -> m | F22: =CPU!F48 -> 4 | G22: =IF(I22="i",VLOOKUP(C22,'Ins SINAPI BA 05-2023 Desoner'!$A$8:$E$5189,5,0),VLOOKUP(C22,'Comp SINAPI BA 05-2023 Desoner'!$G$7:$K$7500,5,0)) -> 13.2 | H22: =ROUND(F22*G22,2) -> 52.8 | I22: I
B23: SINAPI | C23: 4813 | D23: =PROPER(IF(I23="i",VLOOKUP(C23,'Ins SINAPI BA 05-2023 Desoner'!$A$8:$E$5189,2,0),VLOOKUP(C23,'Comp SINAPI BA 05-2023 Desoner'!$G$7:$K$7500,2,0))) -> Placa De Obra (Para Construcao Civil) Em Chapa Galvanizada *N. 22*, Adesivada, De *2,4 X 1,2* M (Sem Postes Para Fixacao) | E23: =LOWER(IF(I23="i",VLOOKUP(C23,'Ins SINAPI BA 05-2023 Desoner'!$A$8:$E$5189,3,0),VLOOKUP(C23,'Comp SINAPI BA 05-2023 Desoner'!$G$7:$K$7500,3,0))) -> m2 | F23: =CPU!F49 -> 1 | G23: =IF(I23="i",VLOOKUP(C23,'Ins SINAPI BA 05-2023 Desoner'!$A$8:$E$5189,5,0),VLOOKUP(C23,'Comp SINAPI BA 05-2023 Desoner'!$G$7:$K$7500,5,0)) -> 300 | H23: =ROUND(F23*G23,2) -> 300 | I23: I
B24: SINAPI | C24: 5075 | D24: =PROPER(IF(I24="i",VLOOKUP(C24,'Ins SINAPI BA 05-2023 Desoner'!$A$8:$E$5189,2,0),VLOOKUP(C24,'Comp SINAPI BA 05-2023 Desoner'!$G$7:$K$7500,2,0))) -> Prego De Aco Polido Com Cabeca 18 X 30 (2 3/4 X 10) | E24: =LOWER(IF(I24="i",VLOOKUP(C24,'Ins SINAPI BA 05-2023 Desoner'!$A$8:$E$5189,3,0),VLOOKUP(C24,'Comp SINAPI BA 05-2023 Desoner'!$G$7:$K$7500,3,0))) -> kg | F24: =CPU!F50 -> 0.11 | G24: =IF(I24="i",VLOOKUP(C24,'Ins SINAPI BA 05-2023 Desoner'!$A$8:$E$5189,5,0),VLOOKUP(C24,'Comp SINAPI BA 05-2023 Desoner'!$G$7:$K$7500,5,0)) -> 20.6 | H24: =ROUND(F24*G24,2) -> 2.27 | I24: I
B25: SINAPI | C25: 94962 | D25: =PROPER(IF(I25="i",VLOOKUP(C25,'Ins SINAPI BA 05-2023 Desoner'!$A$8:$E$5189,2,0),VLOOKUP(C25,'Comp SINAPI BA 05-2023 Desoner'!$G$7:$K$7500,2,0))) -> Concreto Magro Para Lastro, Traço 1:4,5:4,5 (Em Massa Seca De Cimento/ Areia Média/ Brita 1) - Preparo Mecânico Com Betoneira 400 L. Af_05/2021 | E25: =LOWER(IF(I25="i",VLOOKUP(C25,'Ins SINAPI BA 05-2023 Desoner'!$A$8:$E$5189,3,0),VLOOKUP(C25,'Comp SINAPI BA 05-2023 Desoner'!$G$7:$K$7500,3,0))) -> m3 | F25: =CPU!F51 -> 0.01 | G25: =IF(I25="i",VLOOKUP(C25,'Ins SINAPI BA 05-2023 Desoner'!$A$8:$E$5189,5,0),VLOOKUP(C25,'Comp SINAPI BA 05-2023 Desoner'!$G$7:$K$7500,5,0)) -> 421.32 | H25: =ROUND(F25*G25,2) -> 4.21 | I25: ca
B26: =B19 -> 2.2.1 | D26: EQUIPAMENTOS | H26: 0 | I26: SS
B27: =B19 -> 2.2.1 | D27: SERVIÇOS | H27: 0 | I27: SS
B28: =B19 -> 2.2.1 | D28: MÃO DE OBRA | H28: =SUM(H29:H30) -> 66.46 | I28: ss
B29: SINAPI | C29: 88262 | D29: =PROPER(IF(I29="i",VLOOKUP(C29,'Ins SINAPI BA 05-2023 Desoner'!$A$8:$E$5189,2,0),VLOOKUP(C29,'Comp SINAPI BA 05-2023 Desoner'!$G$7:$K$7500,2,0))) -> Carpinteiro De Formas Com Encargos Complementares | E29: =LOWER(IF(I29="i",VLOOKUP(C29,'Ins SINAPI BA 05-2023 Desoner'!$A$8:$E$5189,3,0),VLOOKUP(C29,'Comp SINAPI BA 05-2023 Desoner'!$G$7:$K$7500,3,0))) -> h | F29: =CPU!F58 -> 1 | G29: =IF(I29="i",VLOOKUP(C29,'Ins SINAPI BA 05-2023 Desoner'!$A$8:$E$5189,5,0),VLOOKUP(C29,'Comp SINAPI BA 05-2023 Desoner'!$G$7:$K$7500,5,0)) -> 27.16 | H29: =ROUND(F29*G29,2) -> 27.16 | I29: ca
B30: SINAPI | C30: 88316 | D30: =PROPER(IF(I30="i",VLOOKUP(C30,'Ins SINAPI BA 05-2023 Desoner'!$A$8:$E$5189,2,0),VLOOKUP(C30,'Comp SINAPI BA 05-2023 Desoner'!$G$7:$K$7500,2,0))) -> Servente Com Encargos Complementares | E30: =LOWER(IF(I30="i",VLOOKUP(C30,'Ins SINAPI BA 05-2023 Desoner'!$A$8:$E$5189,3,0),VLOOKUP(C30,'Comp SINAPI BA 05-2023 Desoner'!$G$7:$K$7500,3,0))) -> h | F30: =CPU!F59 -> 2 | G30: =IF(I30="i",VLOOKUP(C30,'Ins SINAPI BA 05-2023 Desoner'!$A$8:$E$5189,5,0),VLOOKUP(C30,'Comp SINAPI BA 05-2023 Desoner'!$G$7:$K$7500,5,0)) -> 19.65 | H30: =ROUND(F30*G30,2) -> 39.3 | I30: ca
B32: ='Planilha Orçamentária Desoner'!A33 -> 4.1.1 | C32: =VLOOKUP($B32,'Planilha Orçamentária Desoner'!$A$11:$I$504,3,) -> CPU.03 | D32: =VLOOKUP($B32,'Planilha Orçamentária Desoner'!$A$11:$I$504,4,) -> Mobilização da Equipe, Camara Hiperbarica e todos os equipamentos de mergulho envolvidos na operação | E32: un | F32: 1 | H32: =SUM(H33,H35,H37) ->  | I32: S
B33: =B32 -> 4.1.1 | D33: MATERIAL | H33: 0 | I33: ss
B34: =B32 -> 4.1.1 | D34: EQUIPAMENTOS | H34: 0 | I34: ss
B35: =B32 -> 4.1.1 | D35: SERVIÇOS | H35: =H36 ->  | I35: ss
B36: COTAÇÃO | C36: 2023-05-01 | D36: Mobilização e desmobilização da Equipe, Camara Hiperbarica e todos os equipamentos de mergulho envolvidos na operação | E36: un | F36: =CPU!#REF! ->  | G36: =2*(21000+22000+19400)/3 -> 41600 | H36: =ROUND(F36*G36,2) ->  | I36: ca
B37: =B32 -> 4.1.1 | D37: MÃO DE OBRA | H37: 0 | I37: ss
I38: x
B39: ='Planilha Orçamentária Desoner'!A36 -> 4.2.1 | C39: =VLOOKUP($B39,'Planilha Orçamentária Desoner'!$A$11:$I$504,3,) -> CPU.04 | D39: =VLOOKUP($B39,'Planilha Orçamentária Desoner'!$A$11:$I$504,4,) -> Vedação da entrada da tomada d’água com chapas metálicas | E39: un | F39: 1 | H39: =SUM(H40,H51,H53,H56) ->  | I39: S
B40: =B39 -> 4.2.1 | D40: MATERIAL | H40: =SUM(H41:H50) ->  | I40: ss
B41: CODEVASF | C41: DP | D41: DIÁRIA | E41: dia | F41: =CPU!F156 -> 1.2 | G41: 305.1 | H41: =ROUND(F41*G41,2) -> 366.12
B42: SICRO | C42: E9043 | D42: Embarcação de alumínio com comprimento de 6 m e motor de popa - 18,60 kW | E42: h | F42: =CPU!#REF! ->  | G42: 66.1577 | H42: =ROUND(F42*G42,2) -> 
B43: SICRO | C43: 2408149 | D43: Estrutura em chapa de aço ASTM A36 corte, solda e montagem - fornecimento e instalação | E43: kg | F43: =CPU!#REF! ->  | G43: 14.84 | H43: =ROUND(F43*G43,2) -> 
B44: SICRO | C44: E9243 | D44: Câmara hiperbárica com filtro, serpentina e reservatório de ar para mergulho raso - D= 1,80 m e H = 2,22 m. | E44: h | F44: =CPU!#REF! ->  | G44: 58.3517 | H44: =ROUND(F44*G44,2) -> 
B45: SICRO | C45: E9245 | D45: Estação transmissora de superfície para comunicação com fio | E45: h | F45: =CPU!#REF! ->  | G45: 0.7428
B46: SICRO | C46: E9242 | D46: Estação transmissora de superfície para televisionamento | E46: h | F46: =CPU!#REF! ->  | G46: 1.3333
B47: SICRO | C47: E9066 | D47: Grupo gerador - 14 kVA | E47: h | F47: =CPU!#REF! ->  | G47: 19.3801
B48: SICRO | C48: E9246 | D48: Painel de controle de ar com manômetros e pneufatômetros | E48: h | F48: =CPU!#REF! ->  | G48: 1.4255
B49: SICRO | C49: E9248 | D49: Sistema de ar comprimido para mergulho até 30 m com pressão de trabalho de 1,4 MPa - 7,46 kW | E49: h | F49: =CPU!#REF! ->  | G49: 15.0543
B50: SICRO | C50: E9058 | D50: Plataforma flutuante de 12 x 24 x 1,8 m com capacidade de 150 t | E50: h | F50: =CPU!#REF! ->  | G50: 40.3012 | H50: =ROUND(F50*G50,2) -> 
B51: =B39 -> 4.2.1 | D51: EQUIPAMENTOS | H51: =SUM(H52) ->  | I51: ss
B52: CODEVASF | D52: CAMINHONETE | E52: mes | F52: =CPU!#REF! ->  | G52: 5885.33 | H52: =ROUND(F52*G52,2) ->  | I52: I
B53: =B39 -> 4.2.1 | D53: SERVIÇOS | H53: =SUM(H54:H55) -> 39.41 | I53: ss
B54: SICRO | C54: 3807863 | D54: Chumbador para concreto D = 12,5 mm tipo tecbolt - fornecimento e instalação | E54: un | F54: =CPU!F159 -> 2.7 | G54: 13.2 | H54: =ROUND(F54*G54,2) -> 35.64
B55: SICRO | C55: 4915639 | D55: Limpeza em superfície de concreto com escova de aço | E55: m² | F55: =CPU!F161 -> 1 | G55: 3.77 | H55: =ROUND(F55*G55,2) -> 3.77
B56: =B39 -> 4.2.1 | D56: MÃO DE OBRA | H56: =SUM(H57:H59) ->  | I56: ss
B57: SICRO | C57: P9926 | D57: Mergulhador raso auxiliar de superfície | E57: h | F57: =CPU!F166 -> 0.5 | G57: 28.2203 | H57: =ROUND(F57*G57,2) -> 14.11
B58: EMBASA | C58: B010000113 | D58: MERGULHADOR PROFISSIONAL | E58: h | F58: =CPU!F167 -> 5 | G58: 76.19 | H58: =ROUND(F58*G58,2) -> 380.95
B59: SICRO | C59: P9922 | D59: Mergulhador raso dependente de emergência | E59: h | F59: =CPU!#REF! ->  | G59: 31.5522
B61: ='Planilha Orçamentária Desoner'!A37 -> 4.2.2 | C61: =VLOOKUP($B61,'Planilha Orçamentária Desoner'!$A$11:$I$504,3,) -> CPU.05 | D61: =VLOOKUP($B61,'Planilha Orçamentária Desoner'!$A$11:$I$504,4,) -> Remoção da vedação da entrada da tomada d’água com chapas metálicas | E61: un | F61: 1 | H61: =SUM(H62,H72,H74,H75) ->  | I61: S
B62: =B61 -> 4.2.2 | D62: MATERIAL | H62: =SUM(H63:H71) ->  | I62: ss
B63: CODEVASF | C63: DP | D63: DIÁRIA | E63: dia | F63: =CPU!#REF! ->  | G63: 305.1 | H63: =ROUND(F63*G63,2) -> 
B64: SICRO | C64: E9043 | D64: Embarcação de alumínio com comprimento de 6 m e motor de popa - 18,60 kW | E64: h | F64: =CPU!#REF! ->  | G64: 66.1577 | H64: =ROUND(F64*G64,2) -> 
B65: SICRO | C65: E9243 | D65: Câmara hiperbárica com filtro, serpentina e reservatório de ar para mergulho raso - D= 1,80 m e H = 2,22 m. | E65: h | F65: =CPU!#REF! ->  | G65: 58.3517 | H65: =ROUND(F65*G65,2) -> 
B66: SICRO | C66: E9245 | D66: Estação transmissora de superfície para comunicação com fio | E66: h | F66: =CPU!#REF! ->  | G66: 0.7428
B67: SICRO | C67: E9242 | D67: Estação transmissora de superfície para televisionamento | E67: h | F67: =CPU!#REF! ->  | G67: 1.3333
B68: SICRO | C68: E9066 | D68: Grupo gerador - 14 kVA | E68: h | F68: =CPU!#REF! ->  | G68: 19.3801
B69: SICRO | C69: E9246 | D69: Painel de controle de ar com manômetros e pneufatômetros | E69: h | F69: =CPU!#REF! ->  | G69: 1.4255
B70: SICRO | C70: E9248 | D70: Sistema de ar comprimido para mergulho até 30 m com pressão de trabalho de 1,4 MPa - 7,46 kW | E70: h | F70: =CPU!#REF! ->  | G70: 15.0543
B71: SICRO | C71: E9058 | D71: Plataforma flutuante de 12 x 24 x 1,8 m com capacidade de 150 t | E71: h | F71: =CPU!#REF! ->  | G71: 40.3012 | H71: =ROUND(F71*G71,2) -> 
B72: =B61 -> 4.2.2 | D72: EQUIPAMENTOS | H72: =SUM(H73) ->  | I72: ss
B73: CODEVASF | D73: CAMINHONETE | E73: mes | F73: =CPU!#REF! ->  | G73: 5885.33 | H73: =ROUND(F73*G73,2) ->  | I73: I
B74: =B61 -> 4.2.2 | D74: SERVIÇOS | H74: 0 | I74: ss
B75: =B61 -> 4.2.2 | D75: MÃO DE OBRA | H75: =SUM(H76:H78) ->  | I75: ss
B76: SICRO | C76: P9926 | D76: Mergulhador raso auxiliar de superfície | E76: h | F76: =CPU!#REF! ->  | G76: 28.2203 | H76: =ROUND(F76*G76,2) -> 
B77: EMBASA | C77: B010000113 | D77: MERGULHADOR PROFISSIONAL | E77: h | F77: =CPU!#REF! ->  | G77: 76.19
B78: SICRO | C78: P9922 | D78: Mergulhador raso dependente de emergência | E78: h | F78: =CPU!#REF! ->  | G78: 31.5522
B80: ='Planilha Orçamentária Desoner'!A59 -> 6.1.6 | C80: =VLOOKUP($B80,'Planilha Orçamentária Desoner'!$A$11:$I$504,3,) -> CPU.06 | D80: =VLOOKUP($B80,'Planilha Orçamentária Desoner'!$A$11:$I$504,4,) -> ARGAMASSA TRACO 1:3 (CIMENTO E AREIA), PREPARO MANUAL, INCLUSO ADITIVO IMPERMEABILIZANTE | E80: m3 | H80: =H81+H84+H86+H87 ->  | I80: s
B81: =B80 -> 6.1.6 | D81: MATERIAL | H81: =SUM(H82:H83) ->  | I81: ss
B82: SINAPI | C82: 88629 | D82: =PROPER(IF(I82="i",VLOOKUP(C82,'Ins SINAPI BA 05-2023 Desoner'!$A$8:$E$5189,2,0),VLOOKUP(C82,'Comp SINAPI BA 05-2023 Desoner'!$G$7:$K$7500,2,0))) -> Argamassa Traço 1:3 (Em Volume De Cimento E Areia Média Úmida), Preparo Manual. Af_08/2019 | E82: =LOWER(IF(I82="i",VLOOKUP(C82,'Ins SINAPI BA 05-2023 Desoner'!$A$8:$E$5189,3,0),VLOOKUP(C82,'Comp SINAPI BA 05-2023 Desoner'!$G$7:$K$7500,3,0))) -> m3 | F82: =CPU!#REF! ->  | G82: =IF(I82="i",VLOOKUP(C82,'Ins SINAPI BA 05-2023 Desoner'!$A$8:$E$5189,5,0),VLOOKUP(C82,'Comp SINAPI BA 05-2023 Desoner'!$G$7:$K$7500,5,0)) -> 693.49 | H82: =ROUND(F82*G82,2) ->  | I82: ca
B83: SINAPI | C83: 123 | D83: =PROPER(IF(I83="i",VLOOKUP(C83,'Ins SINAPI BA 05-2023 Desoner'!$A$8:$E$5189,2,0),VLOOKUP(C83,'Comp SINAPI BA 05-2023 Desoner'!$G$7:$K$7500,2,0))) -> Aditivo Impermeabilizante De Pega Normal Para Argamassas E Concretos Sem Armacao, Liquido E Isento De Cloretos | E83: =LOWER(IF(I83="i",VLOOKUP(C83,'Ins SINAPI BA 05-2023 Desoner'!$A$8:$E$5189,3,0),VLOOKUP(C83,'Comp SINAPI BA 05-2023 Desoner'!$G$7:$K$7500,3,0))) -> l | F83: =CPU!#REF! ->  | G83: =IF(I83="i",VLOOKUP(C83,'Ins SINAPI BA 05-2023 Desoner'!$A$8:$E$5189,5,0),VLOOKUP(C83,'Comp SINAPI BA 05-2023 Desoner'!$G$7:$K$7500,5,0)) -> 6.85 | H83: =ROUND(F83*G83,2) ->  | I83: i
B84: =B80 -> 6.1.6 | D84: EQUIPAMENTOS | H84: =H85 ->  | I84: ss
B85: SICRO | C85: E9121 | D85: Plataforma elevatória articulada elétrica com alcance de 6 m com capacidade de 500 kg - 1,5 kW | E85: h | F85: =CPU!#REF! ->  | G85: 36.3564 | H85: =ROUND(F85*G85,2) ->  | I85: ca
B86: =B80 -> 6.1.6 | D86: SERVIÇOS | H86: 0 | I86: ss
B87: =B80 -> 6.1.6 | D87: MÃO DE OBRA | H87: 0 | I87: mdo
B89: ='Planilha Orçamentária Desoner'!A61 -> 6.1.8 | C89: =VLOOKUP($B89,'Planilha Orçamentária Desoner'!$A$11:$I$504,3,) -> CPU.07 | D89: =VLOOKUP($B89,'Planilha Orçamentária Desoner'!$A$11:$I$504,4,) -> CURA QUÍMICA | E89: m2 | H89: =H90+H92+H94+H95 ->  | I89: s
B90: =B89 -> 6.1.8 | D90: MATERIAL | H90: =SUM(H91) ->  | I90: ss
B91: SICRO | C91: M2152 | D91: Aditivo de cura para concreto | E91: kg | F91: =CPU!#REF! ->  | G91: 7.7205 | H91: =ROUND(F91*G91,2) ->  | I91: ca
B92: =B89 -> 6.1.8 | D92: EQUIPAMENTOS | H92: =SUM(H93) ->  | I92: ss
B93: SICRO | C93: E9589 | D93: Máquina texturizadora e aplicadora de cura química em pavimento de concreto - 44,80 kW | E93: H | F93: =CPU!#REF! ->  | G93: 206.4583 | H93: =ROUND(F93*G93,2) ->  | I93: ca
B94: =B89 -> 6.1.8 | D94: SERVIÇOS | H94: 0 | I94: ss
B95: =B89 -> 6.1.8 | D95: MÃO DE OBRA | H95: =SUM(H96) ->  | I95: mdo
B96: SINAPI | C96: 88316 | D96: =PROPER(IF(I96="i",VLOOKUP(C96,'Ins SINAPI BA 05-2023 Desoner'!$A$8:$E$5189,2,0),VLOOKUP(C96,'Comp SINAPI BA 05-2023 Desoner'!$G$7:$K$7500,2,0))) -> Servente Com Encargos Complementares | E96: =LOWER(IF(I96="i",VLOOKUP(C96,'Ins SINAPI BA 05-2023 Desoner'!$A$8:$E$5189,3,0),VLOOKUP(C96,'Comp SINAPI BA 05-2023 Desoner'!$G$7:$K$7500,3,0))) -> h | F96: =CPU!#REF! ->  | G96: =IF(I96="i",VLOOKUP(C96,'Ins SINAPI BA 05-2023 Desoner'!$A$8:$E$5189,5,0),VLOOKUP(C96,'Comp SINAPI BA 05-2023 Desoner'!$G$7:$K$7500,5,0)) -> 19.65 | H96: =ROUND(F96*G96,2) ->  | I96: ca

Sheet Equipe de Mergulho (hidden)
B2: Definições de acordo com a TABELA REFERÊNCIA | H2: TABELA REFERÊNCIA
B3: 20 | C3: m | D3: Profundidade
B4: 48 | C4: min | D4: Tempo de mergulho
B5: =B4/60 -> 0.8 | C5: h
B6: 8 | C6: un | D6: Qd de mergulhadores
B8: EQUIPE ADOTADA DE ACORDO COM A NR 15 - ATIVIDADES E OPERAÇÕES INSALUBRES (POR DIA)
B9: H | C9: QTD
B10: =$B$5 -> 0.8 | C10: 1 | D10: Mergulhador Profissional
B11: =$B$5 -> 0.8 | C11: 1 | D11: Mergulhador Profissional
B12: 0.8 | C12: 1 | D12: Mergulhador Profissional
B13: 0.8 | C13: 1 | D13: Mergulhador Profissional
B14: 0.8 | C14: 1 | D14: Mergulhador Profissional
B15: 0.8 | C15: 1 | D15: Mergulhador Profissional
B16: 0.8 | C16: 1 | D16: Mergulhador Profissional
B17: 0.8 | C17: 1 | D17: Mergulhador Profissional
B18: =B5*B6 -> 6.4 | C18: 1 | D18: Mergulhador raso auxiliar de superfície
B19: =B5*B6 -> 6.4 | C19: 1 | D19: Mergulhador raso auxiliar de superfície
B20: =B5*B6 -> 6.4 | C20: 1 | D20: Mergulhador raso dependente de emergência
B21: =MAX(B10:B20) -> 6.4 | C21: =SUM(C10:C20) -> 11 | D21: TOTAL
B23: Identificação | D23: Serviço | E23: Duração (dias) | F23: Total (h)
B24: =CPU!B154 -> 6.1 | C24: =CPU!C154 -> CPU.13 | D24: =CPU!D154 -> Enrocamento c/ pedra de mão c/ fornecimento e assentamento | E24: 2 | F24: =$B$21*E24 -> 12.8
B25: =CPU!B169 -> 7.1 | C25: =CPU!C169 -> CPU.14 | D25: =CPU!D169 -> Recuperação do talude com aterro manual | E25: 2 | F25: =$B$21*E25 -> 12.8
D27: De acordo com a duração do serviço será atualizada a quantidade de diárias
D28: Duração | E28: 2
D29: Diária | E29: =E28-1 -> 1

Sheet Cronograma
A1: Ministério da Integração e do Desenvolvimento Regional
A2: Companhia de Desenvolvimento dos Vales do São Francisco e do Parnaíba
A4: CRONOGRAMA FÍSICO-FINANCEIRO ONERADO
A5: OBRA: | B5: =CPU!C5 -> SERVIÇOS DE MANUTENÇÃO E OBRAS CIVIS NA BARRAGEM CACHIMBO | E5: BDI (serv.): | F5: ='BDI serv'!D22 -> 0.2378
A6: LOCAL: | B6: =CPU!C6 -> BARRAGEM CACHIMBO, PARNAMIRIM/PE | E6: BDI (forn.): | F6: ='BDI forn'!E6 -> 0.147
A7: DATA BASE: | B7: =CPU!C7 -> 2024-03-01
A8: PRAZO: | B8: =CPU!C8 -> 120 DIAS
A9: ITEM | B9: DESCRIÇÃO | C9: TOTAL POR ETAPA | D9: MESES | G9: TOTAL
D10: 1 | E10: 2 | F10: 3
A11: 1 | B11: =VLOOKUP(A11,'Planilha Orçamentária'!$A$11:$D$60,4) -> ADMINISTRAÇÃO DA OBRA | C11: =SUMIF('Planilha Orçamentária'!$A$11:$A$60,A11,'Planilha Orçamentária'!$I$11:$I$60) -> 87534.27004 | D11: =$C11*D12 -> 40981.18692 | E11: 31329.5164 | F11: 15223.56672 | G11: =SUM(D11:F11) -> 87534.27004 | H11: R$
C12: =C11/C11 -> 1 | D12: =D37 -> 0.4681730584 | E12: =D38-D37+E37 -> 0.3579114373 | F12: =1-SUM(D12:E12) -> 0.1739155043 | G12: 1 | H12: %
A13: 2 | B13: =VLOOKUP(A13,'Planilha Orçamentária'!$A$11:$D$60,4) -> SERVIÇOS PRELIMINARES | C13: =SUMIF('Planilha Orçamentária'!$A$11:$A$60,A13,'Planilha Orçamentária'!$I$11:$I$60) -> 37460.45737 | D13: =$C13*D14 -> 12486.819 | E13: =$C13*E14 -> 12486.819 | F13: 12486.819 | G13: 37460.457 | H13: R$
C14: =C13/C13 -> 1 | D14: 0.33333333 | E14: 0.33333333 | F14: 0.33333333 | G14: 0.99999999 | H14: %
A15: 3 | B15: =VLOOKUP(A15,'Planilha Orçamentária'!$A$11:$D$60,4) -> CORTE DA VEGETAÇÃO E REMOÇÃO DAS RAIZES | C15: =SUMIF('Planilha Orçamentária'!$A$11:$A$60,A15,'Planilha Orçamentária'!$I$11:$I$60) -> 387727.4814 | D15: =$C15*D16 -> 193863.7407 | E15: =$C15*E16 -> 193863.7407 | G15: 387727.4814 | H15: R$
C16: =C15/C15 -> 1 | D16: 0.5 | E16: 0.5 | G16: 1 | H16: %
A17: 4 | B17: =VLOOKUP(A17,'Planilha Orçamentária'!$A$11:$D$60,4) -> APLICAÇÃO DE CONCRETO NA CRISTA | C17: =SUMIF('Planilha Orçamentária'!$A$11:$A$60,A17,'Planilha Orçamentária'!$I$11:$I$60) -> 3945.36372 | D17: =$C17*D18 -> 3945.36372 | G17: 3945.36372 | H17: R$
C18: =C17/C17 -> 1 | D18: 1 | G18: 1 | H18: %
A19: 5 | B19: =VLOOKUP(A19,'Planilha Orçamentária'!$A$11:$D$60,4) -> REGULARIZAÇÃO E PAVIMENTAÇÃO DA CRISTA | C19: =SUMIF('Planilha Orçamentária'!$A$11:$A$60,A19,'Planilha Orçamentária'!$I$11:$I$60) -> 282101.9354 | D19: =$C19*D20 -> 282101.9354 | G19: 282101.9354 | H19: R$
C20: =C19/C19 -> 1 | D20: 1 | G20: 1 | H20: %
A21: 6 | B21: =VLOOKUP(A21,'Planilha Orçamentária'!$A$11:$D$60,4) -> MANUTENÇÃO NO TALUDE DE MONTANTE | C21: =SUMIF('Planilha Orçamentária'!$A$11:$A$60,A21,'Planilha Orçamentária'!$I$11:$I$60) -> 126722.5601 | D21: =$C21*D22 -> 63361.28003 | E21: =$C21*E22 -> 63361.28003 | G21: 126722.5601 | H21: R$
C22: =C21/C21 -> 1 | D22: 0.5 | E22: 0.5 | G22: 1 | H22: %
A23: 7 | B23: =VLOOKUP(A23,'Planilha Orçamentária'!$A$11:$D$60,4) -> RECOMPOSIÇÃO DE EROSÃO_TALUDE DE JUSANTE | C23: =SUMIF('Planilha Orçamentária'!$A$11:$A$60,A23,'Planilha Orçamentária'!$I$11:$I$60) -> 30756.8544 | E23: =$C23*E24 -> 30756.8544 | G23: =SUM(E23:F23) -> 30756.8544 | H23: R$
C24: =C23/C23 -> 1 | E24: 1 | G24: =SUM(E24:F24) -> 1 | H24: %
A25: 8 | B25: =VLOOKUP(A25,'Planilha Orçamentária'!$A$11:$D$60,4) -> DRENAGEM SUPERFICIAL DO TALUDE JUSANTE | C25: =SUMIF('Planilha Orçamentária'!$A$11:$A$60,A25,'Planilha Orçamentária'!$I$11:$I$60) -> 23802.54742 | E25: =$C25*E26 -> 23802.54742 | G25: =SUM(D25:F25) -> 23802.54742 | H25: R$
C26: =C25/C25 -> 1 | E26: 1 | G26: 1 | H26: %
A27: 9 | B27: =VLOOKUP(A27,'Planilha Orçamentária'!$A$11:$D$60,4) -> PROTEÇÃO SUPERFICIAL DO TALUDE DE JUSANTE | C27: =SUMIF('Planilha Orçamentária'!$A$11:$A$60,A27,'Planilha Orçamentária'!$I$11:$I$60) -> 113744.0414 | E27: =$C27*E28 -> 56872.02069 | F27: =$C27*F28 -> 56872.02069 | G27: 113744.0414 | H27: R$
C28: =C27/C27 -> 1 | E28: 0.5 | F28: 0.5 | G28: 1 | H28: %
A29: 10 | B29: =VLOOKUP(A29,'Planilha Orçamentária'!$A$11:$D$60,4) -> MANUTENÇÃO DOS MUROS LATERAIS DO VERTEDOURO | C29: =SUMIF('Planilha Orçamentária'!$A$11:$A$60,A29,'Planilha Orçamentária'!$I$11:$I$60) -> 5490.524314 | E29: =$C29*E30 -> 2745.262157 | F29: =$C29*F30 -> 2745.262157 | G29: 5490.524314 | H29: R$
C30: =C29/C29 -> 1 | E30: 0.5 | F30: 0.5 | G30: 1 | H30: %
A31: 11 | B31: =VLOOKUP(A31,'Planilha Orçamentária'!$A$11:$D$60,4) -> MANUTENÇÃO DO VERTEDOURO | C31: =SUMIF('Planilha Orçamentária'!$A$11:$A$60,A31,'Planilha Orçamentária'!$I$11:$I$60) -> 6918.0642 | F31: =$C31*F32 -> 6918.0642 | G31: 6918.0642 | H31: R$
C32: =C31/C31 -> 1 | F32: 1 | G32: 1 | H32: %
A33: 12 | B33: =VLOOKUP(A33,'Planilha Orçamentária'!$A$11:$D$60,4) -> SERVIÇOS COMPLEMENTARES | C33: =SUMIF('Planilha Orçamentária'!$A$11:$A$60,A33,'Planilha Orçamentária'!$I$11:$I$60) -> 80876.46566 | F33: =$C33*F34 -> 80876.46566 | G33: 80876.46566 | H33: R$
C34: =C33/C33 -> 1 | F34: 1 | G34: 1 | H34: %
B35: VALOR TOTAL: | C35: =SUMIF($H$11:$H$34,"R$",C$11:C$34) -> 1187080.565 | D35: =SUMIF($H$11:$H$34,"R$",D$11:D$34) -> 596740.3258 | E35: =SUMIF($H$11:$H$34,"R$",E$11:E$34) -> 415218.0408 | F35: =SUMIF($H$11:$H$34,"R$",F$11:F$34) -> 175122.1984 | G35: =SUMIF($H$11:$H$34,"R$",G$11:G$34) -> 1187080.565
B36: VALOR ACUMULADO: | D36: =D35 -> 596740.3258 | E36: =E35+D36 -> 1011958.367 | F36: =F35+E36 -> 1187080.565 | G36: =G35 -> 1187080.565
B37: FÍSICO PARCIAL: | D37: =SUMIF($H$13:$H$34,"R$",D$13:D$34)/$C$35 -> 0.4681730584 | E37: =SUMIF($H$13:$H$34,"R$",E$13:E$34)/$C$35 -> 0.3233887704 | F37: =SUMIF($H$13:$H$34,"R$",F$13:F$34)/$C$35 -> 0.1346990561 | G37: =G35/$C$35 -> 0.9999999997
B38: AVANÇO FÍSICO: | D38: =D35/$C$35 -> 0.5026957253 | E38: =E35/$C$35 -> 0.3497808429 | F38: =F35/$C$35 -> 0.1475234315

Sheet Cronograma Desoner (hidden)
A1: Ministério da Integração e do Desenvolvimento Regional
A2: Companhia de Desenvolvimento dos Vales do São Francisco e do Parnaíba
A4: CRONOGRAMA FÍSICO-FINANCEIRO DESONERADO
A5: OBRA: | B5: =UPPER("SERVIÇOS DE MANUTENÇÃO E OBRAS CIVIS NA ESTRUTURA DA BARRAGEM E EQUIPAMENTO HIDROMECÂNICO") -> SERVIÇOS DE MANUTENÇÃO E OBRAS CIVIS NA ESTRUTURA DA BARRAGEM E EQUIPAMENTO HIDROMECÂNICO | F5: BDI (serv.): | G5: ='BDI serv Desonerado'!D22 -> 0.3351
A6: LOCAL: | B6: BARRAGEM POÇO DO MAGRO, GUANAMBI/BA | F6: BDI (forn.): | G6: ='BDI forn Desonerado'!D22 -> 0.212
A7: DATA BASE: | B7: 2023-05-01
A8: PRAZO: | B8: 120 DIAS
A9: ITEM | B9: DESCRIÇÃO | C9: TOTAL POR ETAPA | D9: MESES | H9: TOTAL
D10: 1 | E10: 2 | F10: 3 | G10: 4
A11: 1 | B11: =VLOOKUP(A11,'Planilha Orçamentária Desoner'!$A$11:$D$92,4) -> ADMINISTRAÇÃO LOCAL | C11: =SUMIF('Planilha Orçamentária Desoner'!$A$11:$A$92,A11,'Planilha Orçamentária Desoner'!$I$11:$I$92) -> 31378.40137 | D11: =$C11*D12 ->  | H11: =SUM(D11:G11) ->  | I11: R$
C12: =C11/C11 -> 1 | D12: =D37 ->  | E12: =D38-D37+E37 ->  | F12: =E38-E37+F37 ->  | G12: =1-SUM(D12:F12) ->  | I12: %
A13: 2 | B13: =VLOOKUP(A13,'Planilha Orçamentária Desoner'!$A$11:$D$92,4) -> SERVIÇOS PRELIMINARES | C13: =SUMIF('Planilha Orçamentária Desoner'!$A$11:$A$92,A13,'Planilha Orçamentária Desoner'!$I$11:$I$92) ->  | D13: =$C13*D14 ->  | I13: R$
C14: =C13/C13 ->  | D14: 1 | H14: 1 | I14: %
A15: 3 | B15: =VLOOKUP(A15,'Planilha Orçamentária Desoner'!$A$11:$D$92,4) -> LIMPEZA DA REGIÃO A JUSANTE | C15: =SUMIF('Planilha Orçamentária Desoner'!$A$11:$A$92,A15,'Planilha Orçamentária Desoner'!$I$11:$I$92) ->  | D15: =$C15*D16 ->  | I15: R$
C16: =C15/C15 ->  | D16: 1 | H16: 1 | I16: %
A17: 4.1 | B17: =VLOOKUP(A17,'Planilha Orçamentária Desoner'!$A$11:$D$92,4) -> Inspeção e Laudo da região subaquática | C17: =SUMIF('Planilha Orçamentária Desoner'!$A$11:$A$92,A17,'Planilha Orçamentária Desoner'!$I$11:$I$92) ->  | D17: =$C17*D18 ->  | I17: R$
C18: =C17/C17 ->  | D18: 1 | H18: 1 | I18: %
A19: 4.2 | B19: =VLOOKUP(A19,'Planilha Orçamentária Desoner'!$A$11:$D$92,4) -> Vedação/Abertura da tomada d'água | C19: =SUMIF('Planilha Orçamentária Desoner'!$A$11:$A$92,A19,'Planilha Orçamentária Desoner'!$I$11:$I$92) ->  | D19: =$C19*D20 ->  | E19: =$C19*E20 ->  | I19: R$
C20: =C19/C19 ->  | D20: 0.5 | E20: 0.5 | H20: 1 | I20: %
A21: 5 | B21: =VLOOKUP(A21,'Planilha Orçamentária Desoner'!$A$11:$D$92,4) -> MANUTENÇÃO NOS DISPOSITIVOS DE CONTROLE | C21: =SUMIF('Planilha Orçamentária Desoner'!$A$11:$A$92,A21,'Planilha Orçamentária Desoner'!$I$11:$I$92) ->  | E21: =$C21*E22 ->  | H21: =SUM(E21:G21) ->  | I21: R$
C22: =C21/C21 ->  | E22: 1 | H22: =SUM(E22:G22) -> 1 | I22: %
A23: 6.1 | B23: =VLOOKUP(A23,'Planilha Orçamentária Desoner'!$A$11:$D$92,4) -> Paramento a jusante | C23: =SUMIF('Planilha Orçamentária Desoner'!$A$11:$A$92,A23,'Planilha Orçamentária Desoner'!$I$11:$I$92) ->  | E23: =$C23*E24 ->  | F23: =$C23*F24 ->  | H23: =SUM(E23:G23) ->  | I23: R$
C24: =C23/C23 ->  | E24: 0.5 | F24: 0.5 | H24: 1 | I24: %
A25: 6.2 | B25: =VLOOKUP(A25,'Planilha Orçamentária Desoner'!$A$11:$D$92,4) -> Crista | C25: =SUMIF('Planilha Orçamentária Desoner'!$A$11:$A$92,A25,'Planilha Orçamentária Desoner'!$I$11:$I$92) ->  | F25: =$C25*F26 ->  | I25: R$
C26: =C25/C25 ->  | F26: 1 | H26: 1 | I26: %
A27: 6.3 | B27: =VLOOKUP(A27,'Planilha Orçamentária Desoner'!$A$11:$D$92,4) -> Vertedouro | C27: =SUMIF('Planilha Orçamentária Desoner'!$A$11:$A$92,A27,'Planilha Orçamentária Desoner'!$I$11:$I$92) ->  | F27: =$C27*F28 ->  | I27: R$
C28: =C27/C27 ->  | F28: 1 | H28: 1 | I28: %
A29: 7.1 | B29: =VLOOKUP(A29,'Planilha Orçamentária Desoner'!$A$11:$D$92,4) -> Investigação do maciço | C29: =SUMIF('Planilha Orçamentária Desoner'!$A$11:$A$92,A29,'Planilha Orçamentária Desoner'!$I$11:$I$92) ->  | F29: =$C29*F30 ->  | I29: R$
C30: =C29/C29 ->  | F30: 1 | H30: 1 | I30: %
A31: 7.2 | B31: =VLOOKUP(A31,'Planilha Orçamentária Desoner'!$A$11:$D$92,4) -> Recuperação do maciço | C31: =SUMIF('Planilha Orçamentária Desoner'!$A$11:$A$92,A31,'Planilha Orçamentária Desoner'!$I$11:$I$92) ->  | F31: =$C31*F32 ->  | I31: R$
C32: =C31/C31 ->  | F32: 1 | H32: 1 | I32: %
A33: 8 | B33: =VLOOKUP(A33,'Planilha Orçamentária Desoner'!$A$11:$D$92,4) -> SERVIÇOS AUXILIARES | C33: =SUMIF('Planilha Orçamentária Desoner'!$A$11:$A$92,A33,'Planilha Orçamentária Desoner'!$I$11:$I$92) ->  | G33: =$C33*G34 ->  | I33: R$
C34: =C33/C33 ->  | G34: 1 | H34: 1 | I34: %
B35: VALOR TOTAL: | C35: =SUMIF($I$11:$I$34,"R$",C$11:C$34) -> 
B36: VALOR ACUMULADO: | D36: =D35 ->  | E36: =E35+D36 ->  | H36: =H35 -> 
B37: FÍSICO PARCIAL: | D37: =SUMIF($I$13:$I$34,"R$",D$13:D$34)/$C$35 ->  | E37: =SUMIF($I$13:$I$34,"R$",E$13:E$34)/$C$35 ->  | F37: =SUMIF($I$13:$I$34,"R$",F$13:F$34)/$C$35 ->  | G37: =SUMIF($I$13:$I$34,"R$",G$13:G$34)/$C$35 ->  | H37: =H35/$C$35 -> 
B38: AVANÇO FÍSICO: | D38: =D35/$C$35 ->  | E38: =E35/$C$35 ->  | F38: =F35/$C$35 -> 

Sheet Cotações
A1: Ministério do Desenvolvimento Regional
A2: Companhia de Desenvolvimento dos Vales do São Francisco e do Parnaíba
A3: ='Planilha Orçamentária'!A3:I3 -> 0
A4: COTAÇÕES
A5: OBRA: | B5: ='Planilha Orçamentária'!B5:D5 -> SERVIÇOS DE MANUTENÇÃO E OBRAS CIVIS NA BARRAGEM CACHIMBO | K5: BDI (serv.): | L5: ='BDI serv'!D22 -> 0.2378
A6: LOCAL: | B6: ='Planilha Orçamentária'!B6 -> BARRAGEM CACHIMBO, PARNAMIRIM/PE | K6: BDI (forn.): | L6: ='BDI forn'!E6 -> 0.147
A7: DATA BASE: | B7: ='Planilha Orçamentária'!B7:C7 -> 2024-03-01
A8: PRAZO: | B8: ='Planilha Orçamentária'!B8:C8 -> 120 DIAS
A9: ITEM | B9: EMPRESA | G9: ORÇADO POR | H9: DESCRIÇÃO / OBSERVAÇÃO | I9: UNID | J9: QUANT | K9: LINK OU LOCAL DO ARQUIVO | L9: VALOR
B10: DATA | C10: EMPRESA / CNPJ | D10: RESPONSÁVEL | E10: ENDEREÇO | F10: CONTATO | L10: MAT | M10: MDO | N10: TRANSPORTE | O10: TOTAL
B12: Régua linimétrica | O12: =AVERAGE(O13:O15) -> 183
A13: 1 | B13: 2024-01-22 | C13: POLIMEDIÇÃO COMERCIAL | D13: Preço na loja online | E13: R. Arlete, 151 - Jardim Penha - São Paulo - SP | F13: Tel: (11) 4328-3003 WhatsApp: (11) 98575-6343 polimedicao@gmail.com | G13: Murilo - RHA | H13: Régua linimétrica em alumínio 2 X 70 X 1000MM | I13: un | J13: 1 | K13: https://www.polimedicao.com.br/product-page/r%C3%A9gua-linim%C3%A9trica-em-chapa-de-aluminio-2-x-70-x-1000mm | L13: 169 | O13: =SUM(L13:N13) -> 169
A14: 2 | B14: 2024-01-22 | C14: Gravametal | D14: Preço na loja online | E14: Rua Uniflor, 1012 - Emiliano Perneta Pinhais - Paraná - CEP: 83324-227 | F14: ☎ (41) 3403-0144 ✆ (41) 99672-9692 ✉ gravametal@gmail.com | G14: Murilo - RHA | H14: Régua linimétrica em alumínio 2 X 70 X 1000MM | I14: un | J14: 1 | K14: https://www.gravametal.com.br/product-page/r%C3%A9gua-linim%C3%A9trica-fluviom%C3%A9trica-1000x70x2mm | L14: 240 | O14: =SUM(L14:N14) -> 240
A15: 3 | B15: 2024-01-22 | C15: Hidromec | D15: Consulta via Whatsapp | E15: Rua Sacadura Cabral, 351 Saúde - Rio de Janeiro - RJ CEP: 20221-160 | F15: (21) 3622-8000 contato@hidromechc.com.br | G15: Murilo - RHA | H15: Régua linimétrica em alumínio 2 X 70 X 1000MM | I15: un | J15: 1 | K15: https://www.hidromechc.com.br/regua | L15: 140 | O15: 140
A16: 4 | B16: 2024-01-22 | C16: Agrosensores | G16: Murilo - RHA | H16: Régua linimétrica em alumínio 2 X 70 X 1000MM | I16: un | J16: 1 | K16: https://www.agrosensores.com.br/sensores/limnimetro/regua-limnimetrica-dualbase | N16: 89.53 | O16: 89.53

Sheet Memorial de cálculo
A1: Ministério da Integração e do Desenvolvimento Regional
A2: Companhia de desenvolvimento dos Vales do São Francisco e do Parnaíba
A4: MEMORIAL DE CÁLCULO
A5: OBRA: | B5: ='Planilha Orçamentária'!B5 -> SERVIÇOS DE MANUTENÇÃO E OBRAS CIVIS NA BARRAGEM CACHIMBO | E5: DESLOCAMENTO - Petrolina para Parnamirim (km): | H5: =185 -> 185
A6: LOCAL: | B6: ='Planilha Orçamentária'!B6 -> BARRAGEM CACHIMBO, PARNAMIRIM/PE | E6: DESLOCAMENTO - Parnamirim para Barragem Cachimbo (km) - (tempo IDA E VOLTA): | H6: 26.5
A7: DATA BASE: | B7: ='Planilha Orçamentária'!B7 -> 2024-03-01 | E7: VIA URBANA PAVIMENTADA - Parnamirim para Barragem Cachimbo (km) | H7: 23.8
A8: PRAZO: | B8: ='Planilha Orçamentária'!B8 -> 120 DIAS | E8: REVESTIMENTO PRIMÁRIO - Parnamirim para Barragem Cachimbo (km) | H8: =H6-H7 -> 2.7
A9: ITEM | B9: DESCRIÇÃO | C9: UNID. | D9: PARÂMETRO 1 | E9: PARÂMETRO 2 | F9: PARÂMETRO 3 | G9: PARÂMETRO 4 | H9: TOTAL
A10: 1.1 | B10: =VLOOKUP(A10,'Planilha Orçamentária'!$A$8:$E$5172,4,0) -> Administração Local | C10: =VLOOKUP(A10,'Planilha Orçamentária'!$A$8:$E$5172,5,0) -> mês | D10: QUANT.PESSOAS | E10: HORAS DIÁRIA | F10: DIAS TRABALHADOS NO MÊS | G10: MESES | H10: 4
B11: =CPU!D16 -> Engenheiro Civil De Obra Pleno Com Encargos Complementares | C11: =CPU!E16 -> h | D11: 1 | E11: 1.5 | F11: =4*5 -> 20 | H11: =D11*E11*F11 -> 30
B12: =CPU!D17 -> Encarregado Geral De Obras Com Encargos Complementares | C12: =CPU!E17 -> mes | D12: 1 | G12: 0.8 | H12: =D12*G12 -> 0.8
B13: =CPU!D18 -> Vigia Noturno Com Encargos Complementares (BASEADO EM 100289) | C13: =CPU!E18 -> h | D13: 4 | E13: 12 | F13: 15 | H13: =D13*E13*F13 -> 720
A15: ='Planilha Orçamentária'!A14 -> 2 | B15: =VLOOKUP(A15,'Planilha Orçamentária'!$A$10:$D$31,4,0) -> SERVIÇOS PRELIMINARES
A16: =CPU!B20 -> 2.1 | B16: =VLOOKUP(A16,'Planilha Orçamentária'!$A$8:$E$5172,4,0) -> Mobilização e desmobilização de instalação do canteiro
A17: =CPU!B20 -> 2.1 | B17: =VLOOKUP(A17,'Planilha Orçamentária'!$A$8:$E$5172,4,0) -> Mobilização e desmobilização de instalação do canteiro | C17: =VLOOKUP(A17,'Planilha Orçamentária'!$A$8:$E$5172,5,0) -> un | D17: TEMPO DE VIAGEM | E17: TONELADAS | F17: KM | G17: IDA E VOLTA | H17: 1
B18: Miniônibus com capacidade para 30 passageiros - 111 Kw | C18: chp | D18: =2.5 -> 2.5 | G18: 2 | H18: =G18*D18 -> 5 | J18: 02:30:00
B19: Miniônibus com capacidade para 30 passageiros - 111 Kw | C19: chi | D19: =8-D18 -> 5.5 | G19: 2 | H19: =G19*D19 -> 11
B20: Deslocamento Petrolina - Parnamirim - Barragem Cachimo | C20: TxKM | E20: 5 | F20: =H5+H7 -> 208.8 | G20: 2 | H20: =E20*G20*F20 -> 2088
B21: =E8 -> REVESTIMENTO PRIMÁRIO - Parnamirim para Barragem Cachimbo (km) | C21: TxKM | E21: 5 | F21: =H8 -> 2.7 | G21: 2 | H21: =E21*G21*F21 -> 27
B22: Motorista | C22: H | H22: =SUM(H18:H19) -> 16
A24: =CPU!B31 -> 2.2 | B24: =VLOOKUP(A24,'Planilha Orçamentária'!$A$8:$E$5172,4,0) -> Canteiro de obras
A25: 2.2.1 | B25: =VLOOKUP(A25,CPU!$A$8:$E$5449,4,0) -> Limpeza Manual De Vegetação Em Terreno Com Enxada. Af_03/2024 | C25: =VLOOKUP(A25,CPU!$A$8:$E$5446,5,0) -> m2 | H25: =H26 -> 28.5
B26: Conforme as áreas REFEITÓRIO, SANITÁRIO E CENTRAL DE FORMAS | C26: =H40+H46+H49 -> 28.5 | H26: =C26 -> 28.5
B27: Mão de Obra | D27: QUANT PESSOAS | E27: ÍNDICE | F27: RENDIMENTO | G27: H | H27: DIAS
B28: 88316 SERVENTE COM ENCARGOS COMPLEMENTARES | C28: h | D28: 1 | E28: =0.0718 -> 0.0718 | F28: =E28/D28 -> 0.0718 | G28: =F28*H25 -> 2.0463 | H28: =G28/8 -> 0.2557875
B29: 88441 JARDINEIRO COM ENCARGOS COMPLEMENTARES | C29: h | D29: 1 | E29: =0.0718 -> 0.0718 | F29: =E29/D29 -> 0.0718 | G29: =F29*H26 -> 2.0463 | H29: =G29/8 -> 0.2557875
A30: =CPU!A40 -> 2.2.6 | B30: =VLOOKUP(A30,CPU!$A$7:$E$5624,4,0) -> Hospedagem | C30: =VLOOKUP(A30,CPU!$A$8:$E$5446,5,0) -> un | H30: =H31 -> 0.511575
H31: =D28*H28+D29*H29 -> 0.511575
A33: =CPU!A36 -> 2.2.2 | B33: =VLOOKUP(A33,CPU!$A$8:$E$5449,4,0) -> Concreto Fck = 15Mpa, Traço 1:3,4:3,5 (Em Massa Seca De Cimento/ Areia Média/ Brita 1) - Preparo Manual. Af_05/2021 | C33: =VLOOKUP(A33,CPU!$A$8:$E$5446,5,0) -> m3 | H33: =H34 -> 1.425
B34: Soma da área das instalações do canteiro | D34: =H40+H46+H49 -> 28.5 | G34: 0.05 | H34: =D34*G34 -> 1.425
B35: Mão de Obra | D35: QUANT PESSOAS | E35: ÍNDICE | F35: RENDIMENTO | G35: H | H35: DIAS
B36: 88316 SERVENTE COM ENCARGOS COMPLEMENTARES | D36: 1 | E36: 6.2067 | F36: =E36/D36 -> 6.2067 | G36: =F36*H33 -> 8.8445475 | H36: =G36/8 -> 1.105568437
A37: =CPU!A40 -> 2.2.6 | B37: =VLOOKUP(A37,CPU!$A$7:$E$5624,4,0) -> Hospedagem | C37: =VLOOKUP(A37,CPU!$A$8:$E$5446,5,0) -> un | H37: =H38 -> 1.105568437
H38: =D36*H36 -> 1.105568437
A40: =CPU!A37 -> 2.2.3 | B40: =VLOOKUP(A40,CPU!$A$7:$E$5624,4,0) -> EXECUÇÃO DE REFEITÓRIO EM CANTEIRO DE OBRA EM CHAPA DE MADEIRA COMPENSADA, NÃO INCLUSO MOBILIÁRIO E EQUIPAMENTOS. AF_02/2016 | C40: =VLOOKUP(A40,CPU!$A$8:$E$5446,5,0) -> m3 | H40: =H41 -> 7.5
B41: Área do Refeitório Em Canteiro De Obra | D41: 1 | E41: 3 | F41: 2.5 | H41: =D41*E41*F41 -> 7.5
B42: Mão de Obra | D42: QUANT PESSOAS | E42: ÍNDICE | F42: RENDIMENTO | G42: H | H42: DIAS
B43: 88262 CARPINTEIRO DE FORMAS COM ENCARGOS COMPLEMENTARES | D43: 1 | E43: 1.1155 | F43: =E43/D43 -> 1.1155 | G43: =F43*H40 -> 8.36625 | H43: =G43/8 -> 1.04578125
A44: =CPU!A40 -> 2.2.6 | B44: =VLOOKUP(A44,CPU!$A$7:$E$5624,4,0) -> Hospedagem | C44: =VLOOKUP(A44,CPU!$A$8:$E$5446,5,0) -> un | H44: =H45 -> 1.04578125
H45: =D43*H43 -> 1.04578125
A46: =CPU!A38 -> 2.2.4 | B46: =VLOOKUP(A46,CPU!$A$8:$E$5449,4,0) -> EXECUÇÃO DE SANITÁRIO E VESTIÁRIO EM CANTEIRO DE OBRA EM CHAPA DE MADEIRA COMPENSADA, NÃO INCLUSO MOBILIÁRIO. AF_02/2016 | C46: =VLOOKUP(A46,CPU!$A$8:$E$5446,5,0) -> m2 | H46: =H47 -> 9
B47: Área do Sanitário Em Canteiro De Obra | D47: 1 | E47: 4.5 | F47: 2 | H47: =D47*E47*F47 -> 9
A49: =CPU!A39 -> 2.2.5 | B49: =VLOOKUP(A49,CPU!$A$8:$E$5449,4,0) -> EXECUÇÃO DE CENTRAL DE FÔRMAS, PRODUÇÃO DE ARGAMASSA OU CONCRETO EM CANTEIRO DE OBRA, NÃO INCLUSO MOBILIÁRIO E EQUIPAMENTOS. AF_04/2016 | C49: =VLOOKUP(A49,CPU!$A$8:$E$5446,5,0) -> m2 | H49: =H50 -> 12
B50: Área da Central de Fôrmas Em Canteiro De Obra | D50: 1 | E50: 4 | F50: 3 | H50: =D50*E50*F50 -> 12
A51: =CPU!A40 -> 2.2.6 | B51: =VLOOKUP(A51,CPU!$A$7:$E$5624,4,0) -> Hospedagem | C51: =VLOOKUP(A51,CPU!$A$8:$E$5446,5,0) -> un | G51: Dias | H51: =H52 -> 2.662924687
H52: =H37+H30+H44 -> 2.662924687
A53: =CPU!A41 -> 2.2.7 | B53: =VLOOKUP(A53,CPU!$A$7:$E$5624,4,0) -> Miniônibus com capacidade para 30 passageiros - 111 Kw | C53: =VLOOKUP(A53,CPU!$A$8:$E$5446,5,0) -> chp | E53: Horas/dia | F53: Quant.Dias | H53: =H54 -> 1.105568437
E54: 1 | F54: =H37 -> 1.105568437 | H54: =E54*F54 -> 1.105568437
A55: =CPU!A42 -> 2.2.8 | B55: =VLOOKUP(A55,CPU!$A$7:$E$5624,4,0) -> Miniônibus com capacidade para 30 passageiros - 111 Kw | C55: =VLOOKUP(A55,CPU!$A$8:$E$5446,5,0) -> chi | E55: Horas/dia | F55: Quant.Dias | H55: =H56 -> 7.738979062
E56: =8-E54 -> 7 | F56: =H37 -> 1.105568437 | H56: =E56*F56 -> 7.738979062
A57: =CPU!B45 -> 2.3 | B57: =VLOOKUP(A57,'Planilha Orçamentária'!$A$8:$E$5172,4,0) -> PLACA DE OBRA EM CHAPA DE ACO GALVANIZADO
A58: =CPU!B45 -> 2.3 | B58: =VLOOKUP(A58,'Planilha Orçamentária'!$A$8:$E$5172,4,0) -> PLACA DE OBRA EM CHAPA DE ACO GALVANIZADO | C58: =VLOOKUP(A58,'Planilha Orçamentária'!A11:I63,5,0) -> m² | D58: QUANT. | E58: COMP. (M) | F58: LARG. (M) | H58: =H59 -> 2
B59: Área da Placa | D59: 1 | E59: 2 | F59: 1 | H59: =D59*E59*F59 -> 2
B60: Mão de Obra | D60: QUANT. PESSOAS | E60: ÍNDICE | F60: RENDIMENTO | G60: H | H60: DIAS
B61: CPU.03 - Carpinteiro De Formas Com Encargos Complementares | D61: 1 | E61: 1 | F61: =E61/D61 -> 1 | G61: =F61*$H$58 -> 2 | H61: =G61/8 -> 0.25
B62: CPU.03 - Servente Com Encargos Complementares | D62: 1 | E62: 2 | F62: =E62/D62 -> 2 | G62: =F62*$H$58 -> 4 | H62: =G62/8 -> 0.5
A63: =CPU!A54 -> 2.3.6 | B63: =VLOOKUP(A63,CPU!$A$7:$E$5624,4,0) -> Hospedagem | C63: =VLOOKUP(A63,CPU!$A$8:$E$5446,5,0) -> um | G63: Dias | H63: =H64 -> 0.75
H64: =D62*H62+D61*H61 -> 0.75
A65: =CPU!A55 -> 2.3.7 | B65: =VLOOKUP(A65,CPU!$A$7:$E$5624,4,0) -> Miniônibus com capacidade para 30 passageiros - 111 Kw | C65: =VLOOKUP(A65,CPU!$A$8:$E$5446,5,0) -> chp | E65: Horas/dia | F65: Quant.Dias | H65: =H66 -> 0.5
E66: 1 | F66: =H62 -> 0.5 | H66: =E66*F66 -> 0.5
A67: =CPU!A56 -> 2.3.8 | B67: =VLOOKUP(A67,CPU!$A$7:$E$5624,4,0) -> Miniônibus com capacidade para 30 passageiros - 111 Kw | C67: =VLOOKUP(A67,CPU!$A$8:$E$5446,5,0) -> chi | E67: Horas/dia | F67: Quant.Dias | H67: =H68 -> 3.5
E68: =8-E66 -> 7 | F68: =H62 -> 0.5 | H68: =E68*F68 -> 3.5
A70: ='Planilha Orçamentária'!A19 -> 3 | B70: =VLOOKUP(A70,'Planilha Orçamentária'!$A$10:$D$31,4,0) -> CORTE DA VEGETAÇÃO E REMOÇÃO DAS RAIZES
A71: =CPU!A65 -> 3.1.1 | B71: =VLOOKUP(A71,CPU!$A$7:$E$5624,4,0) -> Limpeza Manual De Vegetação Em Terreno Com Enxada. Af_03/2024 | C71: =VLOOKUP(A71,CPU!$A$8:$E$5446,5,0) -> m2 | H71: =H72 -> 41200
B72: Área calculada no Google Earth | C72: 41200 | H72: =C72 -> 41200
B73: Mão de Obra | D73: QUANT. PESSOAS | E73: ÍNDICE | F73: RENDIMENTO | G73: H | H73: DIAS
B74: 88316 SERVENTE COM ENCARGOS COMPLEMENTARES | C74: h | D74: 10 | E74: =0.0718 -> 0.0718 | F74: =E74/D74 -> 0.00718 | G74: =F74*H71 -> 295.816 | H74: =G74/8 -> 36.977
B75: 88441 JARDINEIRO COM ENCARGOS COMPLEMENTARES | C75: h | D75: 10 | E75: =0.0718 -> 0.0718 | F75: =E75/D75 -> 0.00718 | G75: =F75*H72 -> 295.816 | H75: =G75/8 -> 36.977
A77: =CPU!A67 -> 3.1.3 | B77: =VLOOKUP(A77,CPU!$A$7:$E$5624,4,0) -> Transporte Com Caminhão Basculante De 6 M³, Em Via Urbana Em Revestimento Primário (Unidade: M3Xkm). Af_07/2020 | C77: =VLOOKUP(A77,CPU!$A$8:$E$5446,5,0) -> m3xkm | D77: m² | E77: Km | F77: m | H77: =SUM(H78:H78) -> 3172.4
B78: Área medida do googleearth, considerou-se 5km até o ponto de descarte | D78: 41200 | E78: =5+H8 -> 7.7 | F78: 0.01 | H78: =D78*E78*F78 -> 3172.4
A80: =CPU!A68 -> 3.1.4 | B80: =VLOOKUP(A80,CPU!$A$7:$E$5624,4,0) -> Transporte Com Caminhão Basculante De 6 M³, Em Via Urbana Pavimentada, Dmt Até 30 Km (Unidade: M3Xkm). Af_07/2020 | C80: =VLOOKUP(A80,CPU!$A$8:$E$5446,5,0) -> m3xkm | D80: m² | E80: Km | F80: m | H80: =SUM(H81:H81) -> 0.238
B81: Área medida do googleearth, considerou-se o deslocamento da cidade mais próxima até a barragem sem carregamento de material | D81: 1 | E81: =H7 -> 23.8 | F81: 0.01 | H81: =D81*E81*F81 -> 0.238
A83: =CPU!A66 -> 3.1.2 | B83: =VLOOKUP(A83,CPU!$A$7:$E$5624,4,0) -> Hospedagem | C83: =VLOOKUP(A83,CPU!$A$8:$E$5446,5,0) -> um | G83: Dias | H83: =H84 -> 739.54
H84: =D75*H75+D74*H74 -> 739.54
A85: =CPU!A69 -> 3.1.5 | B85: =VLOOKUP(A85,CPU!$A$7:$E$5624,4,0) -> Miniônibus com capacidade para 30 passageiros - 111 Kw | C85: =VLOOKUP(A85,CPU!$A$8:$E$5446,5,0) -> chp | E85: Horas/dia | F85: Quant.Dias | H85: =H86 -> 36.977
E86: 1 | F86: =H75 -> 36.977 | H86: =E86*F86 -> 36.977
A87: =CPU!A70 -> 3.1.6 | B87: =VLOOKUP(A87,CPU!$A$7:$E$5624,4,0) -> Miniônibus com capacidade para 30 passageiros - 111 Kw | C87: =VLOOKUP(A87,CPU!$A$8:$E$5446,5,0) -> chi | E87: Horas/dia | F87: Quant.Dias | H87: =H88 -> 258.839
E88: =8-E86 -> 7 | F88: =H75 -> 36.977 | H88: =E88*F88 -> 258.839
A90: =CPU!A77 -> 3.2.1 | B90: =VLOOKUP(A90,CPU!$A$7:$E$5624,4,0) -> CORTE RASO E RECORTE DE ÁRVORE COM DIÂMETRO DE TRONCO MAIOR OU IGUAL A 0,20 M E MENOR QUE 0,40 M. AF_03/2024 | C90: =VLOOKUP(A90,CPU!$A$8:$E$5446,5,0) -> UN | H90: =H91 -> 50
B91: Quantidade estimada através das imagens obtidas na visita técnica (Contém na especificação técnica) | D91: 50 | H91: =D91 -> 50
B92: Mão de Obra | D92: QUANT. PESSOAS | E92: ÍNDICE | F92: RENDIMENTO | G92: H | H92: DIAS
B93: 88316 SERVENTE COM ENCARGOS COMPLEMENTARES | D93: 1 | E93: 1.5444 | F93: =E93/D93 -> 1.5444 | G93: =F93*$H$90 -> 77.22 | H93: =G93/8 -> 9.6525
B94: 88441 JARDINEIRO COM ENCARGOS COMPLEMENTARES | D94: 1 | E94: 1.5444 | F94: =E94/D94 -> 1.5444 | G94: =F94*$H$90 -> 77.22 | H94: =G94/8 -> 9.6525 | P94: =L56*P56+L55*P55 -> 0 | X94: =T56*X56+T55*X55 -> 0 | AF94: =AB56*AF56+AB55*AF55 -> 0 | AN94: =AJ56*AN56+AJ55*AN55 -> 0 | AV94: =AR56*AV56+AR55*AV55 -> 0 | BD94: =AZ56*BD56+AZ55*BD55 -> 0 | BL94: =BH56*BL56+BH55*BL55 -> 0 | BT94: =BP56*BT56+BP55*BT55 -> 0 | CB94: =BX56*CB56+BX55*CB55 -> 0 | CJ94: =CF56*CJ56+CF55*CJ55 -> 0 | CR94: =CN56*CR56+CN55*CR55 -> 0 | CZ94: =CV56*CZ56+CV55*CZ55 -> 0 | DH94: =DD56*DH56+DD55*DH55 -> 0 | DP94: =DL56*DP56+DL55*DP55 -> 0 | DX94: =DT56*DX56+DT55*DX55 -> 0 | EF94: =EB56*EF56+EB55*EF55 -> 0 | EN94: =EJ56*EN56+EJ55*EN55 -> 0 | EV94: =ER56*EV56+ER55*EV55 -> 0 | FD94: =EZ56*FD56+EZ55*FD55 -> 0 | FL94: =FH56*FL56+FH55*FL55 -> 0 | FT94: =FP56*FT56+FP55*FT55 -> 0 | GB94: =FX56*GB56+FX55*GB55 -> 0 | GJ94: =GF56*GJ56+GF55*GJ55 -> 0 | GR94: =GN56*GR56+GN55*GR55 -> 0 | GZ94: =GV56*GZ56+GV55*GZ55 -> 0 | HH94: =HD56*HH56+HD55*HH55 -> 0 | HP94: =HL56*HP56+HL55*HP55 -> 0 | HX94: =HT56*HX56+HT55*HX55 -> 0 | IF94: =IB56*IF56+IB55*IF55 -> 0 | IN94: =IJ56*IN56+IJ55*IN55 -> 0 | IV94: =IR56*IV56+IR55*IV55 -> 0 | JD94: =IZ56*JD56+IZ55*JD55 -> 0 | JL94: =JH56*JL56+JH55*JL55 -> 0 | JT94: =JP56*JT56+JP55*JT55 -> 0 | KB94: =JX56*KB56+JX55*KB55 -> 0 | KJ94: =KF56*KJ56+KF55*KJ55 -> 0 | KR94: =KN56*KR56+KN55*KR55 -> 0 | KZ94: =KV56*KZ56+KV55*KZ55 -> 0 | LH94: =LD56*LH56+LD55*LH55 -> 0 | LP94: =LL56*LP56+LL55*LP55 -> 0 | LX94: =LT56*LX56+LT55*LX55 -> 0 | MF94: =MB56*MF56+MB55*MF55 -> 0 | MN94: =MJ56*MN56+MJ55*MN55 -> 0 | MV94: =MR56*MV56+MR55*MV55 -> 0 | ND94: =MZ56*ND56+MZ55*ND55 -> 0 | NL94: =NH56*NL56+NH55*NL55 -> 0 | NT94: =NP56*NT56+NP55*NT55 -> 0 | OB94: =NX56*OB56+NX55*OB55 -> 0 | OJ94: =OF56*OJ56+OF55*OJ55 -> 0 | OR94: =ON56*OR56+ON55*OR55 -> 0 | OZ94: =OV56*OZ56+OV55*OZ55 -> 0 | PH94: =PD56*PH56+PD55*PH55 -> 0 | PP94: =PL56*PP56+PL55*PP55 -> 0 | PX94: =PT56*PX56+PT55*PX55 -> 0 | QF94: =QB56*QF56+QB55*QF55 -> 0 | QN94: =QJ56*QN56+QJ55*QN55 -> 0 | QV94: =QR56*QV56+QR55*QV55 -> 0 | RD94: =QZ56*RD56+QZ55*RD55 -> 0 | RL94: =RH56*RL56+RH55*RL55 -> 0 | RT94: =RP56*RT56+RP55*RT55 -> 0 | SB94: =RX56*SB56+RX55*SB55 -> 0 | SJ94: =SF56*SJ56+SF55*SJ55 -> 0 | SR94: =SN56*SR56+SN55*SR55 -> 0 | SZ94: =SV56*SZ56+SV55*SZ55 -> 0 | TH94: =TD56*TH56+TD55*TH55 -> 0 | TP94: =TL56*TP56+TL55*TP55 -> 0 | TX94: =TT56*TX56+TT55*TX55 -> 0 | UF94: =UB56*UF56+UB55*UF55 -> 0 | UN94: =UJ56*UN56+UJ55*UN55 -> 0 | UV94: =UR56*UV56+UR55*UV55 -> 0 | VD94: =UZ56*VD56+UZ55*VD55 -> 0 | VL94: =VH56*VL56+VH55*VL55 -> 0 | VT94: =VP56*VT56+VP55*VT55 -> 0 | WB94: =VX56*WB56+VX55*WB55 -> 0 | WJ94: =WF56*WJ56+WF55*WJ55 -> 0 | WR94: =WN56*WR56+WN55*WR55 -> 0 | WZ94: =WV56*WZ56+WV55*WZ55 -> 0 | XH94: =XD56*XH56+XD55*XH55 -> 0 | XP94: =XL56*XP56+XL55*XP55 -> 0 | XX94: =XT56*XX56+XT55*XX55 -> 0 | YF94: =YB56*YF56+YB55*YF55 -> 0 | YN94: =YJ56*YN56+YJ55*YN55 -> 0 | YV94: =YR56*YV56+YR55*YV55 -> 0 | ZD94: =YZ56*ZD56+YZ55*ZD55 -> 0 | ZL94: =ZH56*ZL56+ZH55*ZL55 -> 0 | ZT94: =ZP56*ZT56+ZP55*ZT55 -> 0 | AAB94: =ZX56*AAB56+ZX55*AAB55 -> 0 | AAJ94: =AAF56*AAJ56+AAF55*AAJ55 -> 0 | AAR94: =AAN56*AAR56+AAN55*AAR55 -> 0 | AAZ94: =AAV56*AAZ56+AAV55*AAZ55 -> 0 | ABH94: =ABD56*ABH56+ABD55*ABH55 -> 0 | ABP94: =ABL56*ABP56+ABL55*ABP55 -> 0 | ABX94: =ABT56*ABX56+ABT55*ABX55 -> 0 | ACF94: =ACB56*ACF56+ACB55*ACF55 -> 0 | ACN94: =ACJ56*ACN56+ACJ55*ACN55 -> 0 | ACV94: =ACR56*ACV56+ACR55*ACV55 -> 0 | ADD94: =ACZ56*ADD56+ACZ55*ADD55 -> 0 | ADL94: =ADH56*ADL56+ADH55*ADL55 -> 0 | ADT94: =ADP56*ADT56+ADP55*ADT55 -> 0 | AEB94: =ADX56*AEB56+ADX55*AEB55 -> 0 | AEJ94: =AEF56*AEJ56+AEF55*AEJ55 -> 0 | AER94: =AEN56*AER56+AEN55*AER55 -> 0 | AEZ94: =AEV56*AEZ56+AEV55*AEZ55 -> 0 | AFH94: =AFD56*AFH56+AFD55*AFH55 -> 0 | AFP94: =AFL56*AFP56+AFL55*AFP55 -> 0 | AFX94: =AFT56*AFX56+AFT55*AFX55 -> 0 | AGF94: =AGB56*AGF56+AGB55*AGF55 -> 0 | AGN94: =AGJ56*AGN56+AGJ55*AGN55 -> 0 | AGV94: =AGR56*AGV56+AGR55*AGV55 -> 0 | AHD94: =AGZ56*AHD56+AGZ55*AHD55 -> 0 | AHL94: =AHH56*AHL56+AHH55*AHL55 -> 0 | AHT94: =AHP56*AHT56+AHP55*AHT55 -> 0 | AIB94: =AHX56*AIB56+AHX55*AIB55 -> 0 | AIJ94: =AIF56*AIJ56+AIF55*AIJ55 -> 0 | AIR94: =AIN56*AIR56+AIN55*AIR55 -> 0 | AIZ94: =AIV56*AIZ56+AIV55*AIZ55 -> 0 | AJH94: =AJD56*AJH56+AJD55*AJH55 -> 0 | AJP94: =AJL56*AJP56+AJL55*AJP55 -> 0 | AJX94: =AJT56*AJX56+AJT55*AJX55 -> 0 | AKF94: =AKB56*AKF56+AKB55*AKF55 -> 0 | AKN94: =AKJ56*AKN56+AKJ55*AKN55 -> 0 | AKV94: =AKR56*AKV56+AKR55*AKV55 -> 0 | ALD94: =AKZ56*ALD56+AKZ55*ALD55 -> 0 | ALL94: =ALH56*ALL56+ALH55*ALL55 -> 0 | ALT94: =ALP56*ALT56+ALP55*ALT55 -> 0 | AMB94: =ALX56*AMB56+ALX55*AMB55 -> 0 | AMJ94: =AMF56*AMJ56+AMF55*AMJ55 -> 0 | AMR94: =AMN56*AMR56+AMN55*AMR55 -> 0 | AMZ94: =AMV56*AMZ56+AMV55*AMZ55 -> 0 | ANH94: =AND56*ANH56+AND55*ANH55 -> 0 | ANP94: =ANL56*ANP56+ANL55*ANP55 -> 0 | ANX94: =ANT56*ANX56+ANT55*ANX55 -> 0 | AOF94: =AOB56*AOF56+AOB55*AOF55 -> 0 | AON94: =AOJ56*AON56+AOJ55*AON55 -> 0 | AOV94: =AOR56*AOV56+AOR55*AOV55 -> 0 | APD94: =AOZ56*APD56+AOZ55*APD55 -> 0 | APL94: =APH56*APL56+APH55*APL55 -> 0 | APT94: =APP56*APT56+APP55*APT55 -> 0 | AQB94: =APX56*AQB56+APX55*AQB55 -> 0 | AQJ94: =AQF56*AQJ56+AQF55*AQJ55 -> 0 | AQR94: =AQN56*AQR56+AQN55*AQR55 -> 0 | AQZ94: =AQV56*AQZ56+AQV55*AQZ55 -> 0 | ARH94: =ARD56*ARH56+ARD55*ARH55 -> 0 | ARP94: =ARL56*ARP56+ARL55*ARP55 -> 0 | ARX94: =ART56*ARX56+ART55*ARX55 -> 0 | ASF94: =ASB56*ASF56+ASB55*ASF55 -> 0 | ASN94: =ASJ56*ASN56+ASJ55*ASN55 -> 0 | ASV94: =ASR56*ASV56+ASR55*ASV55 -> 0 | ATD94: =ASZ56*ATD56+ASZ55*ATD55 -> 0 | ATL94: =ATH56*ATL56+ATH55*ATL55 -> 0 | ATT94: =ATP56*ATT56+ATP55*ATT55 -> 0 | AUB94: =ATX56*AUB56+ATX55*AUB55 -> 0 | AUJ94: =AUF56*AUJ56+AUF55*AUJ55 -> 0 | AUR94: =AUN56*AUR56+AUN55*AUR55 -> 0 | AUZ94: =AUV56*AUZ56+AUV55*AUZ55 -> 0 | AVH94: =AVD56*AVH56+AVD55*AVH55 -> 0 | AVP94: =AVL56*AVP56+AVL55*AVP55 -> 0 | AVX94: =AVT56*AVX56+AVT55*AVX55 -> 0 | AWF94: =AWB56*AWF56+AWB55*AWF55 -> 0 | AWN94: =AWJ56*AWN56+AWJ55*AWN55 -> 0 | AWV94: =AWR56*AWV56+AWR55*AWV55 -> 0 | AXD94: =AWZ56*AXD56+AWZ55*AXD55 -> 0 | AXL94: =AXH56*AXL56+AXH55*AXL55 -> 0 | AXT94: =AXP56*AXT56+AXP55*AXT55 -> 0 | AYB94: =AXX56*AYB56+AXX55*AYB55 -> 0 | AYJ94: =AYF56*AYJ56+AYF55*AYJ55 -> 0 | AYR94: =AYN56*AYR56+AYN55*AYR55 -> 0 | AYZ94: =AYV56*AYZ56+AYV55*AYZ55 -> 0 | AZH94: =AZD56*AZH56+AZD55*AZH55 -> 0 | AZP94: =AZL56*AZP56+AZL55*AZP55 -> 0 | AZX94: =AZT56*AZX56+AZT55*AZX55 -> 0 | BAF94: =BAB56*BAF56+BAB55*BAF55 -> 0 | BAN94: =BAJ56*BAN56+BAJ55*BAN55 -> 0 | BAV94: =BAR56*BAV56+BAR55*BAV55 -> 0 | BBD94: =BAZ56*BBD56+BAZ55*BBD55 -> 0 | BBL94: =BBH56*BBL56+BBH55*BBL55 -> 0 | BBT94: =BBP56*BBT56+BBP55*BBT55 -> 0 | BCB94: =BBX56*BCB56+BBX55*BCB55 -> 0 | BCJ94: =BCF56*BCJ56+BCF55*BCJ55 -> 0 | BCR94: =BCN56*BCR56+BCN55*BCR55 -> 0 | BCZ94: =BCV56*BCZ56+BCV55*BCZ55 -> 0 | BDH94: =BDD56*BDH56+BDD55*BDH55 -> 0 | BDP94: =BDL56*BDP56+BDL55*BDP55 -> 0 | BDX94: =BDT56*BDX56+BDT55*BDX55 -> 0 | BEF94: =BEB56*BEF56+BEB55*BEF55 -> 0 | BEN94: =BEJ56*BEN56+BEJ55*BEN55 -> 0 | BEV94: =BER56*BEV56+BER55*BEV55 -> 0 | BFD94: =BEZ56*BFD56+BEZ55*BFD55 -> 0 | BFL94: =BFH56*BFL56+BFH55*BFL55 -> 0 | BFT94: =BFP56*BFT56+BFP55*BFT55 -> 0 | BGB94: =BFX56*BGB56+BFX55*BGB55 -> 0 | BGJ94: =BGF56*BGJ56+BGF55*BGJ55 -> 0 | BGR94: =BGN56*BGR56+BGN55*BGR55 -> 0 | BGZ94: =BGV56*BGZ56+BGV55*BGZ55 -> 0 | BHH94: =BHD56*BHH56+BHD55*BHH55 -> 0 | BHP94: =BHL56*BHP56+BHL55*BHP55 -> 0 | BHX94: =BHT56*BHX56+BHT55*BHX55 -> 0 | BIF94: =BIB56*BIF56+BIB55*BIF55 -> 0 | BIN94: =BIJ56*BIN56+BIJ55*BIN55 -> 0 | BIV94: =BIR56*BIV56+BIR55*BIV55 -> 0 | BJD94: =BIZ56*BJD56+BIZ55*BJD55 -> 0 | BJL94: =BJH56*BJL56+BJH55*BJL55 -> 0 | BJT94: =BJP56*BJT56+BJP55*BJT55 -> 0 | BKB94: =BJX56*BKB56+BJX55*BKB55 -> 0 | BKJ94: =BKF56*BKJ56+BKF55*BKJ55 -> 0 | BKR94: =BKN56*BKR56+BKN55*BKR55 -> 0 | BKZ94: =BKV56*BKZ56+BKV55*BKZ55 -> 0 | BLH94: =BLD56*BLH56+BLD55*BLH55 -> 0 | BLP94: =BLL56*BLP56+BLL55*BLP55 -> 0 | BLX94: =BLT56*BLX56+BLT55*BLX55 -> 0 | BMF94: =BMB56*BMF56+BMB55*BMF55 -> 0 | BMN94: =BMJ56*BMN56+BMJ55*BMN55 -> 0 | BMV94: =BMR56*BMV56+BMR55*BMV55 -> 0 | BND94: =BMZ56*BND56+BMZ55*BND55 -> 0 | BNL94: =BNH56*BNL56+BNH55*BNL55 -> 0 | BNT94: =BNP56*BNT56+BNP55*BNT55 -> 0 | BOB94: =BNX56*BOB56+BNX55*BOB55 -> 0 | BOJ94: =BOF56*BOJ56+BOF55*BOJ55 -> 0 | BOR94: =BON56*BOR56+BON55*BOR55 -> 0 | BOZ94: =BOV56*BOZ56+BOV55*BOZ55 -> 0 | BPH94: =BPD56*BPH56+BPD55*BPH55 -> 0 | BPP94: =BPL56*BPP56+BPL55*BPP55 -> 0 | BPX94: =BPT56*BPX56+BPT55*BPX55 -> 0 | BQF94: =BQB56*BQF56+BQB55*BQF55 -> 0 | BQN94: =BQJ56*BQN56+BQJ55*BQN55 -> 0 | BQV94: =BQR56*BQV56+BQR55*BQV55 -> 0 | BRD94: =BQZ56*BRD56+BQZ55*BRD55 -> 0 | BRL94: =BRH56*BRL56+BRH55*BRL55 -> 0 | BRT94: =BRP56*BRT56+BRP55*BRT55 -> 0 | BSB94: =BRX56*BSB56+BRX55*BSB55 -> 0 | BSJ94: =BSF56*BSJ56+BSF55*BSJ55 -> 0 | BSR94: =BSN56*BSR56+BSN55*BSR55 -> 0 | BSZ94: =BSV56*BSZ56+BSV55*BSZ55 -> 0 | BTH94: =BTD56*BTH56+BTD55*BTH55 -> 0 | BTP94: =BTL56*BTP56+BTL55*BTP55 -> 0 | BTX94: =BTT56*BTX56+BTT55*BTX55 -> 0 | BUF94: =BUB56*BUF56+BUB55*BUF55 -> 0 | BUN94: =BUJ56*BUN56+BUJ55*BUN55 -> 0 | BUV94: =BUR56*BUV56+BUR55*BUV55 -> 0 | BVD94: =BUZ56*BVD56+BUZ55*BVD55 -> 0 | BVL94: =BVH56*BVL56+BVH55*BVL55 -> 0 | BVT94: =BVP56*BVT56+BVP55*BVT55 -> 0 | BWB94: =BVX56*BWB56+BVX55*BWB55 -> 0 | BWJ94: =BWF56*BWJ56+BWF55*BWJ55 -> 0 | BWR94: =BWN56*BWR56+BWN55*BWR55 -> 0 | BWZ94: =BWV56*BWZ56+BWV55*BWZ55 -> 0 | BXH94: =BXD56*BXH56+BXD55*BXH55 -> 0 | BXP94: =BXL56*BXP56+BXL55*BXP55 -> 0 | BXX94: =BXT56*BXX56+BXT55*BXX55 -> 0 | BYF94: =BYB56*BYF56+BYB55*BYF55 -> 0 | BYN94: =BYJ56*BYN56+BYJ55*BYN55 -> 0 | BYV94: =BYR56*BYV56+BYR55*BYV55 -> 0 | BZD94: =BYZ56*BZD56+BYZ55*BZD55 -> 0 | BZL94: =BZH56*BZL56+BZH55*BZL55 -> 0 | BZT94: =BZP56*BZT56+BZP55*BZT55 -> 0 | CAB94: =BZX56*CAB56+BZX55*CAB55 -> 0 | CAJ94: =CAF56*CAJ56+CAF55*CAJ55 -> 0 | CAR94: =CAN56*CAR56+CAN55*CAR55 -> 0 | CAZ94: =CAV56*CAZ56+CAV55*CAZ55 -> 0 | CBH94: =CBD56*CBH56+CBD55*CBH55 -> 0 | CBP94: =CBL56*CBP56+CBL55*CBP55 -> 0 | CBX94: =CBT56*CBX56+CBT55*CBX55 -> 0 | CCF94: =CCB56*CCF56+CCB55*CCF55 -> 0 | CCN94: =CCJ56*CCN56+CCJ55*CCN55 -> 0 | CCV94: =CCR56*CCV56+CCR55*CCV55 -> 0 | CDD94: =CCZ56*CDD56+CCZ55*CDD55 -> 0 | CDL94: =CDH56*CDL56+CDH55*CDL55 -> 0 | CDT94: =CDP56*CDT56+CDP55*CDT55 -> 0 | CEB94: =CDX56*CEB56+CDX55*CEB55 -> 0 | CEJ94: =CEF56*CEJ56+CEF55*CEJ55 -> 0 | CER94: =CEN56*CER56+CEN55*CER55 -> 0 | CEZ94: =CEV56*CEZ56+CEV55*CEZ55 -> 0 | CFH94: =CFD56*CFH56+CFD55*CFH55 -> 0 | CFP94: =CFL56*CFP56+CFL55*CFP55 -> 0 | CFX94: =CFT56*CFX56+CFT55*CFX55 -> 0 | CGF94: =CGB56*CGF56+CGB55*CGF55 -> 0 | CGN94: =CGJ56*CGN56+CGJ55*CGN55 -> 0 | CGV94: =CGR56*CGV56+CGR55*CGV55 -> 0 | CHD94: =CGZ56*CHD56+CGZ55*CHD55 -> 0 | CHL94: =CHH56*CHL56+CHH55*CHL55 -> 0 | CHT94: =CHP56*CHT56+CHP55*CHT55 -> 0 | CIB94: =CHX56*CIB56+CHX55*CIB55 -> 0 | CIJ94: =CIF56*CIJ56+CIF55*CIJ55 -> 0 | CIR94: =CIN56*CIR56+CIN55*CIR55 -> 0 | CIZ94: =CIV56*CIZ56+CIV55*CIZ55 -> 0 | CJH94: =CJD56*CJH56+CJD55*CJH55 -> 0 | CJP94: =CJL56*CJP56+CJL55*CJP55 -> 0 | CJX94: =CJT56*CJX56+CJT55*CJX55 -> 0 | CKF94: =CKB56*CKF56+CKB55*CKF55 -> 0 | CKN94: =CKJ56*CKN56+CKJ55*CKN55 -> 0 | CKV94: =CKR56*CKV56+CKR55*CKV55 -> 0 | CLD94: =CKZ56*CLD56+CKZ55*CLD55 -> 0 | CLL94: =CLH56*CLL56+CLH55*CLL55 -> 0 | CLT94: =CLP56*CLT56+CLP55*CLT55 -> 0 | CMB94: =CLX56*CMB56+CLX55*CMB55 -> 0 | CMJ94: =CMF56*CMJ56+CMF55*CMJ55 -> 0 | CMR94: =CMN56*CMR56+CMN55*CMR55 -> 0 | CMZ94: =CMV56*CMZ56+CMV55*CMZ55 -> 0 | CNH94: =CND56*CNH56+CND55*CNH55 -> 0 | CNP94: =CNL56*CNP56+CNL55*CNP55 -> 0 | CNX94: =CNT56*CNX56+CNT55*CNX55 -> 0 | COF94: =COB56*COF56+COB55*COF55 -> 0 | CON94: =COJ56*CON56+COJ55*CON55 -> 0 | COV94: =COR56*COV56+COR55*COV55 -> 0 | CPD94: =COZ56*CPD56+COZ55*CPD55 -> 0 | CPL94: =CPH56*CPL56+CPH55*CPL55 -> 0 | CPT94: =CPP56*CPT56+CPP55*CPT55 -> 0 | CQB94: =CPX56*CQB56+CPX55*CQB55 -> 0 | CQJ94: =CQF56*CQJ56+CQF55*CQJ55 -> 0 | CQR94: =CQN56*CQR56+CQN55*CQR55 -> 0 | CQZ94: =CQV56*CQZ56+CQV55*CQZ55 -> 0 | CRH94: =CRD56*CRH56+CRD55*CRH55 -> 0 | CRP94: =CRL56*CRP56+CRL55*CRP55 -> 0 | CRX94: =CRT56*CRX56+CRT55*CRX55 -> 0 | CSF94: =CSB56*CSF56+CSB55*CSF55 -> 0 | CSN94: =CSJ56*CSN56+CSJ55*CSN55 -> 0 | CSV94: =CSR56*CSV56+CSR55*CSV55 -> 0 | CTD94: =CSZ56*CTD56+CSZ55*CTD55 -> 0 | CTL94: =CTH56*CTL56+CTH55*CTL55 -> 0 | CTT94: =CTP56*CTT56+CTP55*CTT55 -> 0 | CUB94: =CTX56*CUB56+CTX55*CUB55 -> 0 | CUJ94: =CUF56*CUJ56+CUF55*CUJ55 -> 0 | CUR94: =CUN56*CUR56+CUN55*CUR55 -> 0 | CUZ94: =CUV56*CUZ56+CUV55*CUZ55 -> 0 | CVH94: =CVD56*CVH56+CVD55*CVH55 -> 0 | CVP94: =CVL56*CVP56+CVL55*CVP55 -> 0 | CVX94: =CVT56*CVX56+CVT55*CVX55 -> 0 | CWF94: =CWB56*CWF56+CWB55*CWF55 -> 0 | CWN94: =CWJ56*CWN56+CWJ55*CWN55 -> 0 | CWV94: =CWR56*CWV56+CWR55*CWV55 -> 0 | CXD94: =CWZ56*CXD56+CWZ55*CXD55 -> 0 | CXL94: =CXH56*CXL56+CXH55*CXL55 -> 0 | CXT94: =CXP56*CXT56+CXP55*CXT55 -> 0 | CYB94: =CXX56*CYB56+CXX55*CYB55 -> 0 | CYJ94: =CYF56*CYJ56+CYF55*CYJ55 -> 0 | CYR94: =CYN56*CYR56+CYN55*CYR55 -> 0 | CYZ94: =CYV56*CYZ56+CYV55*CYZ55 -> 0 | CZH94: =CZD56*CZH56+CZD55*CZH55 -> 0 | CZP94: =CZL56*CZP56+CZL55*CZP55 -> 0 | CZX94: =CZT56*CZX56+CZT55*CZX55 -> 0 | DAF94: =DAB56*DAF56+DAB55*DAF55 -> 0 | DAN94: =DAJ56*DAN56+DAJ55*DAN55 -> 0 | DAV94: =DAR56*DAV56+DAR55*DAV55 -> 0 | DBD94: =DAZ56*DBD56+DAZ55*DBD55 -> 0 | DBL94: =DBH56*DBL56+DBH55*DBL55 -> 0 | DBT94: =DBP56*DBT56+DBP55*DBT55 -> 0 | DCB94: =DBX56*DCB56+DBX55*DCB55 -> 0 | DCJ94: =DCF56*DCJ56+DCF55*DCJ55 -> 0 | DCR94: =DCN56*DCR56+DCN55*DCR55 -> 0 | DCZ94: =DCV56*DCZ56+DCV55*DCZ55 -> 0 | DDH94: =DDD56*DDH56+DDD55*DDH55 -> 0 | DDP94: =DDL56*DDP56+DDL55*DDP55 -> 0 | DDX94: =DDT56*DDX56+DDT55*DDX55 -> 0 | DEF94: =DEB56*DEF56+DEB55*DEF55 -> 0 | DEN94: =DEJ56*DEN56+DEJ55*DEN55 -> 0 | DEV94: =DER56*DEV56+DER55*DEV55 -> 0 | DFD94: =DEZ56*DFD56+DEZ55*DFD55 -> 0 | DFL94: =DFH56*DFL56+DFH55*DFL55 -> 0 | DFT94: =DFP56*DFT56+DFP55*DFT55 -> 0 | DGB94: =DFX56*DGB56+DFX55*DGB55 -> 0 | DGJ94: =DGF56*DGJ56+DGF55*DGJ55 -> 0 | DGR94: =DGN56*DGR56+DGN55*DGR55 -> 0 | DGZ94: =DGV56*DGZ56+DGV55*DGZ55 -> 0 | DHH94: =DHD56*DHH56+DHD55*DHH55 -> 0 | DHP94: =DHL56*DHP56+DHL55*DHP55 -> 0 | DHX94: =DHT56*DHX56+DHT55*DHX55 -> 0 | DIF94: =DIB56*DIF56+DIB55*DIF55 -> 0 | DIN94: =DIJ56*DIN56+DIJ55*DIN55 -> 0 | DIV94: =DIR56*DIV56+DIR55*DIV55 -> 0 | DJD94: =DIZ56*DJD56+DIZ55*DJD55 -> 0 | DJL94: =DJH56*DJL56+DJH55*DJL55 -> 0 | DJT94: =DJP56*DJT56+DJP55*DJT55 -> 0 | DKB94: =DJX56*DKB56+DJX55*DKB55 -> 0 | DKJ94: =DKF56*DKJ56+DKF55*DKJ55 -> 0 | DKR94: =DKN56*DKR56+DKN55*DKR55 -> 0 | DKZ94: =DKV56*DKZ56+DKV55*DKZ55 -> 0 | DLH94: =DLD56*DLH56+DLD55*DLH55 -> 0 | DLP94: =DLL56*DLP56+DLL55*DLP55 -> 0 | DLX94: =DLT56*DLX56+DLT55*DLX55 -> 0 | DMF94: =DMB56*DMF56+DMB55*DMF55 -> 0 | DMN94: =DMJ56*DMN56+DMJ55*DMN55 -> 0 | DMV94: =DMR56*DMV56+DMR55*DMV55 -> 0 | DND94: =DMZ56*DND56+DMZ55*DND55 -> 0 | DNL94: =DNH56*DNL56+DNH55*DNL55 -> 0 | DNT94: =DNP56*DNT56+DNP55*DNT55 -> 0 | DOB94: =DNX56*DOB56+DNX55*DOB55 -> 0 | DOJ94: =DOF56*DOJ56+DOF55*DOJ55 -> 0 | DOR94: =DON56*DOR56+DON55*DOR55 -> 0 | DOZ94: =DOV56*DOZ56+DOV55*DOZ55 -> 0 | DPH94: =DPD56*DPH56+DPD55*DPH55 -> 0 | DPP94: =DPL56*DPP56+DPL55*DPP55 -> 0 | DPX94: =DPT56*DPX56+DPT55*DPX55 -> 0 | DQF94: =DQB56*DQF56+DQB55*DQF55 -> 0 | DQN94: =DQJ56*DQN56+DQJ55*DQN55 -> 0 | DQV94: =DQR56*DQV56+DQR55*DQV55 -> 0 | DRD94: =DQZ56*DRD56+DQZ55*DRD55 -> 0 | DRL94: =DRH56*DRL56+DRH55*DRL55 -> 0 | DRT94: =DRP56*DRT56+DRP55*DRT55 -> 0 | DSB94: =DRX56*DSB56+DRX55*DSB55 -> 0 | DSJ94: =DSF56*DSJ56+DSF55*DSJ55 -> 0 | DSR94: =DSN56*DSR56+DSN55*DSR55 -> 0 | DSZ94: =DSV56*DSZ56+DSV55*DSZ55 -> 0 | DTH94: =DTD56*DTH56+DTD55*DTH55 -> 0 | DTP94: =DTL56*DTP56+DTL55*DTP55 -> 0 | DTX94: =DTT56*DTX56+DTT55*DTX55 -> 0 | DUF94: =DUB56*DUF56+DUB55*DUF55 -> 0 | DUN94: =DUJ56*DUN56+DUJ55*DUN55 -> 0 | DUV94: =DUR56*DUV56+DUR55*DUV55 -> 0 | DVD94: =DUZ56*DVD56+DUZ55*DVD55 -> 0 | DVL94: =DVH56*DVL56+DVH55*DVL55 -> 0 | DVT94: =DVP56*DVT56+DVP55*DVT55 -> 0 | DWB94: =DVX56*DWB56+DVX55*DWB55 -> 0 | DWJ94: =DWF56*DWJ56+DWF55*DWJ55 -> 0 | DWR94: =DWN56*DWR56+DWN55*DWR55 -> 0 | DWZ94: =DWV56*DWZ56+DWV55*DWZ55 -> 0 | DXH94: =DXD56*DXH56+DXD55*DXH55 -> 0 | DXP94: =DXL56*DXP56+DXL55*DXP55 -> 0 | DXX94: =DXT56*DXX56+DXT55*DXX55 -> 0 | DYF94: =DYB56*DYF56+DYB55*DYF55 -> 0 | DYN94: =DYJ56*DYN56+DYJ55*DYN55 -> 0 | DYV94: =DYR56*DYV56+DYR55*DYV55 -> 0 | DZD94: =DYZ56*DZD56+DYZ55*DZD55 -> 0 | DZL94: =DZH56*DZL56+DZH55*DZL55 -> 0 | DZT94: =DZP56*DZT56+DZP55*DZT55 -> 0 | EAB94: =DZX56*EAB56+DZX55*EAB55 -> 0 | EAJ94: =EAF56*EAJ56+EAF55*EAJ55 -> 0 | EAR94: =EAN56*EAR56+EAN55*EAR55 -> 0 | EAZ94: =EAV56*EAZ56+EAV55*EAZ55 -> 0 | EBH94: =EBD56*EBH56+EBD55*EBH55 -> 0 | EBP94: =EBL56*EBP56+EBL55*EBP55 -> 0 | EBX94: =EBT56*EBX56+EBT55*EBX55 -> 0 | ECF94: =ECB56*ECF56+ECB55*ECF55 -> 0 | ECN94: =ECJ56*ECN56+ECJ55*ECN55 -> 0 | ECV94: =ECR56*ECV56+ECR55*ECV55 -> 0 | EDD94: =ECZ56*EDD56+ECZ55*EDD55 -> 0 | EDL94: =EDH56*EDL56+EDH55*EDL55 -> 0 | EDT94: =EDP56*EDT56+EDP55*EDT55 -> 0 | EEB94: =EDX56*EEB56+EDX55*EEB55 -> 0 | EEJ94: =EEF56*EEJ56+EEF55*EEJ55 -> 0 | EER94: =EEN56*EER56+EEN55*EER55 -> 0 | EEZ94: =EEV56*EEZ56+EEV55*EEZ55 -> 0 | EFH94: =EFD56*EFH56+EFD55*EFH55 -> 0 | EFP94: =EFL56*EFP56+EFL55*EFP55 -> 0 | EFX94: =EFT56*EFX56+EFT55*EFX55 -> 0 | EGF94: =EGB56*EGF56+EGB55*EGF55 -> 0 | EGN94: =EGJ56*EGN56+EGJ55*EGN55 -> 0 | EGV94: =EGR56*EGV56+EGR55*EGV55 -> 0 | EHD94: =EGZ56*EHD56+EGZ55*EHD55 -> 0 | EHL94: =EHH56*EHL56+EHH55*EHL55 -> 0 | EHT94: =EHP56*EHT56+EHP55*EHT55 -> 0 | EIB94: =EHX56*EIB56+EHX55*EIB55 -> 0 | EIJ94: =EIF56*EIJ56+EIF55*EIJ55 -> 0 | EIR94: =EIN56*EIR56+EIN55*EIR55 -> 0 | EIZ94: =EIV56*EIZ56+EIV55*EIZ55 -> 0 | EJH94: =EJD56*EJH56+EJD55*EJH55 -> 0 | EJP94: =EJL56*EJP56+EJL55*EJP55 -> 0 | EJX94: =EJT56*EJX56+EJT55*EJX55 -> 0 | EKF94: =EKB56*EKF56+EKB55*EKF55 -> 0 | EKN94: =EKJ56*EKN56+EKJ55*EKN55 -> 0 | EKV94: =EKR56*EKV56+EKR55*EKV55 -> 0 | ELD94: =EKZ56*ELD56+EKZ55*ELD55 -> 0 | ELL94: =ELH56*ELL56+ELH55*ELL55 -> 0 | ELT94: =ELP56*ELT56+ELP55*ELT55 -> 0 | EMB94: =ELX56*EMB56+ELX55*EMB55 -> 0 | EMJ94: =EMF56*EMJ56+EMF55*EMJ55 -> 0 | EMR94: =EMN56*EMR56+EMN55*EMR55 -> 0 | EMZ94: =EMV56*EMZ56+EMV55*EMZ55 -> 0 | ENH94: =END56*ENH56+END55*ENH55 -> 0 | ENP94: =ENL56*ENP56+ENL55*ENP55 -> 0 | ENX94: =ENT56*ENX56+ENT55*ENX55 -> 0 | EOF94: =EOB56*EOF56+EOB55*EOF55 -> 0 | EON94: =EOJ56*EON56+EOJ55*EON55 -> 0 | EOV94: =EOR56*EOV56+EOR55*EOV55 -> 0 | EPD94: =EOZ56*EPD56+EOZ55*EPD55 -> 0 | EPL94: =EPH56*EPL56+EPH55*EPL55 -> 0 | EPT94: =EPP56*EPT56+EPP55*EPT55 -> 0 | EQB94: =EPX56*EQB56+EPX55*EQB55 -> 0 | EQJ94: =EQF56*EQJ56+EQF55*EQJ55 -> 0 | EQR94: =EQN56*EQR56+EQN55*EQR55 -> 0 | EQZ94: =EQV56*EQZ56+EQV55*EQZ55 -> 0 | ERH94: =ERD56*ERH56+ERD55*ERH55 -> 0 | ERP94: =ERL56*ERP56+ERL55*ERP55 -> 0 | ERX94: =ERT56*ERX56+ERT55*ERX55 -> 0 | ESF94: =ESB56*ESF56+ESB55*ESF55 -> 0 | ESN94: =ESJ56*ESN56+ESJ55*ESN55 -> 0 | ESV94: =ESR56*ESV56+ESR55*ESV55 -> 0 | ETD94: =ESZ56*ETD56+ESZ55*ETD55 -> 0 | ETL94: =ETH56*ETL56+ETH55*ETL55 -> 0 | ETT94: =ETP56*ETT56+ETP55*ETT55 -> 0 | EUB94: =ETX56*EUB56+ETX55*EUB55 -> 0 | EUJ94: =EUF56*EUJ56+EUF55*EUJ55 -> 0 | EUR94: =EUN56*EUR56+EUN55*EUR55 -> 0 | EUZ94: =EUV56*EUZ56+EUV55*EUZ55 -> 0 | EVH94: =EVD56*EVH56+EVD55*EVH55 -> 0 | EVP94: =EVL56*EVP56+EVL55*EVP55 -> 0 | EVX94: =EVT56*EVX56+EVT55*EVX55 -> 0 | EWF94: =EWB56*EWF56+EWB55*EWF55 -> 0 | EWN94: =EWJ56*EWN56+EWJ55*EWN55 -> 0 | EWV94: =EWR56*EWV56+EWR55*EWV55 -> 0 | EXD94: =EWZ56*EXD56+EWZ55*EXD55 -> 0 | EXL94: =EXH56*EXL56+EXH55*EXL55 -> 0 | EXT94: =EXP56*EXT56+EXP55*EXT55 -> 0 | EYB94: =EXX56*EYB56+EXX55*EYB55 -> 0 | EYJ94: =EYF56*EYJ56+EYF55*EYJ55 -> 0 | EYR94: =EYN56*EYR56+EYN55*EYR55 -> 0 | EYZ94: =EYV56*EYZ56+EYV55*EYZ55 -> 0 | EZH94: =EZD56*EZH56+EZD55*EZH55 -> 0 | EZP94: =EZL56*EZP56+EZL55*EZP55 -> 0 | EZX94: =EZT56*EZX56+EZT55*EZX55 -> 0 | FAF94: =FAB56*FAF56+FAB55*FAF55 -> 0 | FAN94: =FAJ56*FAN56+FAJ55*FAN55 -> 0 | FAV94: =FAR56*FAV56+FAR55*FAV55 -> 0 | FBD94: =FAZ56*FBD56+FAZ55*FBD55 -> 0 | FBL94: =FBH56*FBL56+FBH55*FBL55 -> 0 | FBT94: =FBP56*FBT56+FBP55*FBT55 -> 0 | FCB94: =FBX56*FCB56+FBX55*FCB55 -> 0 | FCJ94: =FCF56*FCJ56+FCF55*FCJ55 -> 0 | FCR94: =FCN56*FCR56+FCN55*FCR55 -> 0 | FCZ94: =FCV56*FCZ56+FCV55*FCZ55 -> 0 | FDH94: =FDD56*FDH56+FDD55*FDH55 -> 0 | FDP94: =FDL56*FDP56+FDL55*FDP55 -> 0 | FDX94: =FDT56*FDX56+FDT55*FDX55 -> 0 | FEF94: =FEB56*FEF56+FEB55*FEF55 -> 0 | FEN94: =FEJ56*FEN56+FEJ55*FEN55 -> 0 | FEV94: =FER56*FEV56+FER55*FEV55 -> 0 | FFD94: =FEZ56*FFD56+FEZ55*FFD55 -> 0 | FFL94: =FFH56*FFL56+FFH55*FFL55 -> 0 | FFT94: =FFP56*FFT56+FFP55*FFT55 -> 0 | FGB94: =FFX56*FGB56+FFX55*FGB55 -> 0 | FGJ94: =FGF56*FGJ56+FGF55*FGJ55 -> 0 | FGR94: =FGN56*FGR56+FGN55*FGR55 -> 0 | FGZ94: =FGV56*FGZ56+FGV55*FGZ55 -> 0 | FHH94: =FHD56*FHH56+FHD55*FHH55 -> 0 | FHP94: =FHL56*FHP56+FHL55*FHP55 -> 0 | FHX94: =FHT56*FHX56+FHT55*FHX55 -> 0 | FIF94: =FIB56*FIF56+FIB55*FIF55 -> 0 | FIN94: =FIJ56*FIN56+FIJ55*FIN55 -> 0 | FIV94: =FIR56*FIV56+FIR55*FIV55 -> 0 | FJD94: =FIZ56*FJD56+FIZ55*FJD55 -> 0 | FJL94: =FJH56*FJL56+FJH55*FJL55 -> 0 | FJT94: =FJP56*FJT56+FJP55*FJT55 -> 0 | FKB94: =FJX56*FKB56+FJX55*FKB55 -> 0 | FKJ94: =FKF56*FKJ56+FKF55*FKJ55 -> 0 | FKR94: =FKN56*FKR56+FKN55*FKR55 -> 0 | FKZ94: =FKV56*FKZ56+FKV55*FKZ55 -> 0 | FLH94: =FLD56*FLH56+FLD55*FLH55 -> 0 | FLP94: =FLL56*FLP56+FLL55*FLP55 -> 0 | FLX94: =FLT56*FLX56+FLT55*FLX55 -> 0 | FMF94: =FMB56*FMF56+FMB55*FMF55 -> 0 | FMN94: =FMJ56*FMN56+FMJ55*FMN55 -> 0 | FMV94: =FMR56*FMV56+FMR55*FMV55 -> 0 | FND94: =FMZ56*FND56+FMZ55*FND55 -> 0 | FNL94: =FNH56*FNL56+FNH55*FNL55 -> 0 | FNT94: =FNP56*FNT56+FNP55*FNT55 -> 0 | FOB94: =FNX56*FOB56+FNX55*FOB55 -> 0 | FOJ94: =FOF56*FOJ56+FOF55*FOJ55 -> 0 | FOR94: =FON56*FOR56+FON55*FOR55 -> 0 | FOZ94: =FOV56*FOZ56+FOV55*FOZ55 -> 0 | FPH94: =FPD56*FPH56+FPD55*FPH55 -> 0 | FPP94: =FPL56*FPP56+FPL55*FPP55 -> 0 | FPX94: =FPT56*FPX56+FPT55*FPX55 -> 0 | FQF94: =FQB56*FQF56+FQB55*FQF55 -> 0 | FQN94: =FQJ56*FQN56+FQJ55*FQN55 -> 0 | FQV94: =FQR56*FQV56+FQR55*FQV55 -> 0 | FRD94: =FQZ56*FRD56+FQZ55*FRD55 -> 0 | FRL94: =FRH56*FRL56+FRH55*FRL55 -> 0 | FRT94: =FRP56*FRT56+FRP55*FRT55 -> 0 | FSB94: =FRX56*FSB56+FRX55*FSB55 -> 0 | FSJ94: =FSF56*FSJ56+FSF55*FSJ55 -> 0 | FSR94: =FSN56*FSR56+FSN55*FSR55 -> 0 | FSZ94: =FSV56*FSZ56+FSV55*FSZ55 -> 0 | FTH94: =FTD56*FTH56+FTD55*FTH55 -> 0 | FTP94: =FTL56*FTP56+FTL55*FTP55 -> 0 | FTX94: =FTT56*FTX56+FTT55*FTX55 -> 0 | FUF94: =FUB56*FUF56+FUB55*FUF55 -> 0 | FUN94: =FUJ56*FUN56+FUJ55*FUN55 -> 0 | FUV94: =FUR56*FUV56+FUR55*FUV55 -> 0 | FVD94: =FUZ56*FVD56+FUZ55*FVD55 -> 0 | FVL94: =FVH56*FVL56+FVH55*FVL55 -> 0 | FVT94: =FVP56*FVT56+FVP55*FVT55 -> 0 | FWB94: =FVX56*FWB56+FVX55*FWB55 -> 0 | FWJ94: =FWF56*FWJ56+FWF55*FWJ55 -> 0 | FWR94: =FWN56*FWR56+FWN55*FWR55 -> 0 | FWZ94: =FWV56*FWZ56+FWV55*FWZ55 -> 0 | FXH94: =FXD56*FXH56+FXD55*FXH55 -> 0 | FXP94: =FXL56*FXP56+FXL55*FXP55 -> 0 | FXX94: =FXT56*FXX56+FXT55*FXX55 -> 0 | FYF94: =FYB56*FYF56+FYB55*FYF55 -> 0 | FYN94: =FYJ56*FYN56+FYJ55*FYN55 -> 0 | FYV94: =FYR56*FYV56+FYR55*FYV55 -> 0 | FZD94: =FYZ56*FZD56+FYZ55*FZD55 -> 0 | FZL94: =FZH56*FZL56+FZH55*FZL55 -> 0 | FZT94: =FZP56*FZT56+FZP55*FZT55 -> 0 | GAB94: =FZX56*GAB56+FZX55*GAB55 -> 0 | GAJ94: =GAF56*GAJ56+GAF55*GAJ55 -> 0 | GAR94: =GAN56*GAR56+GAN55*GAR55 -> 0 | GAZ94: =GAV56*GAZ56+GAV55*GAZ55 -> 0 | GBH94: =GBD56*GBH56+GBD55*GBH55 -> 0 | GBP94: =GBL56*GBP56+GBL55*GBP55 -> 0 | GBX94: =GBT56*GBX56+GBT55*GBX55 -> 0 | GCF94: =GCB56*GCF56+GCB55*GCF55 -> 0 | GCN94: =GCJ56*GCN56+GCJ55*GCN55 -> 0 | GCV94: =GCR56*GCV56+GCR55*GCV55 -> 0 | GDD94: =GCZ56*GDD56+GCZ55*GDD55 -> 0 | GDL94: =GDH56*GDL56+GDH55*GDL55 -> 0 | GDT94: =GDP56*GDT56+GDP55*GDT55 -> 0 | GEB94: =GDX56*GEB56+GDX55*GEB55 -> 0 | GEJ94: =GEF56*GEJ56+GEF55*GEJ55 -> 0 | GER94: =GEN56*GER56+GEN55*GER55 -> 0 | GEZ94: =GEV56*GEZ56+GEV55*GEZ55 -> 0 | GFH94: =GFD56*GFH56+GFD55*GFH55 -> 0 | GFP94: =GFL56*GFP56+GFL55*GFP55 -> 0 | GFX94: =GFT56*GFX56+GFT55*GFX55 -> 0 | GGF94: =GGB56*GGF56+GGB55*GGF55 -> 0 | GGN94: =GGJ56*GGN56+GGJ55*GGN55 -> 0 | GGV94: =GGR56*GGV56+GGR55*GGV55 -> 0 | GHD94: =GGZ56*GHD56+GGZ55*GHD55 -> 0 | GHL94: =GHH56*GHL56+GHH55*GHL55 -> 0 | GHT94: =GHP56*GHT56+GHP55*GHT55 -> 0 | GIB94: =GHX56*GIB56+GHX55*GIB55 -> 0 | GIJ94: =GIF56*GIJ56+GIF55*GIJ55 -> 0 | GIR94: =GIN56*GIR56+GIN55*GIR55 -> 0 | GIZ94: =GIV56*GIZ56+GIV55*GIZ55 -> 0 | GJH94: =GJD56*GJH56+GJD55*GJH55 -> 0 | GJP94: =GJL56*GJP56+GJL55*GJP55 -> 0 | GJX94: =GJT56*GJX56+GJT55*GJX55 -> 0 | GKF94: =GKB56*GKF56+GKB55*GKF55 -> 0 | GKN94: =GKJ56*GKN56+GKJ55*GKN55 -> 0 | GKV94: =GKR56*GKV56+GKR55*GKV55 -> 0 | GLD94: =GKZ56*GLD56+GKZ55*GLD55 -> 0 | GLL94: =GLH56*GLL56+GLH55*GLL55 -> 0 | GLT94: =GLP56*GLT56+GLP55*GLT55 -> 0 | GMB94: =GLX56*GMB56+GLX55*GMB55 -> 0 | GMJ94: =GMF56*GMJ56+GMF55*GMJ55 -> 0 | GMR94: =GMN56*GMR56+GMN55*GMR55 -> 0 | GMZ94: =GMV56*GMZ56+GMV55*GMZ55 -> 0 | GNH94: =GND56*GNH56+GND55*GNH55 -> 0 | GNP94: =GNL56*GNP56+GNL55*GNP55 -> 0 | GNX94: =GNT56*GNX56+GNT55*GNX55 -> 0 | GOF94: =GOB56*GOF56+GOB55*GOF55 -> 0 | GON94: =GOJ56*GON56+GOJ55*GON55 -> 0 | GOV94: =GOR56*GOV56+GOR55*GOV55 -> 0 | GPD94: =GOZ56*GPD56+GOZ55*GPD55 -> 0 | GPL94: =GPH56*GPL56+GPH55*GPL55 -> 0 | GPT94: =GPP56*GPT56+GPP55*GPT55 -> 0 | GQB94: =GPX56*GQB56+GPX55*GQB55 -> 0 | GQJ94: =GQF56*GQJ56+GQF55*GQJ55 -> 0 | GQR94: =GQN56*GQR56+GQN55*GQR55 -> 0 | GQZ94: =GQV56*GQZ56+GQV55*GQZ55 -> 0 | GRH94: =GRD56*GRH56+GRD55*GRH55 -> 0 | GRP94: =GRL56*GRP56+GRL55*GRP55 -> 0 | GRX94: =GRT56*GRX56+GRT55*GRX55 -> 0 | GSF94: =GSB56*GSF56+GSB55*GSF55 -> 0 | GSN94: =GSJ56*GSN56+GSJ55*GSN55 -> 0 | GSV94: =GSR56*GSV56+GSR55*GSV55 -> 0 | GTD94: =GSZ56*GTD56+GSZ55*GTD55 -> 0 | GTL94: =GTH56*GTL56+GTH55*GTL55 -> 0 | GTT94: =GTP56*GTT56+GTP55*GTT55 -> 0 | GUB94: =GTX56*GUB56+GTX55*GUB55 -> 0 | GUJ94: =GUF56*GUJ56+GUF55*GUJ55 -> 0 | GUR94: =GUN56*GUR56+GUN55*GUR55 -> 0 | GUZ94: =GUV56*GUZ56+GUV55*GUZ55 -> 0 | GVH94: =GVD56*GVH56+GVD55*GVH55 -> 0 | GVP94: =GVL56*GVP56+GVL55*GVP55 -> 0 | GVX94: =GVT56*GVX56+GVT55*GVX55 -> 0 | GWF94: =GWB56*GWF56+GWB55*GWF55 -> 0 | GWN94: =GWJ56*GWN56+GWJ55*GWN55 -> 0 | GWV94: =GWR56*GWV56+GWR55*GWV55 -> 0 | GXD94: =GWZ56*GXD56+GWZ55*GXD55 -> 0 | GXL94: =GXH56*GXL56+GXH55*GXL55 -> 0 | GXT94: =GXP56*GXT56+GXP55*GXT55 -> 0 | GYB94: =GXX56*GYB56+GXX55*GYB55 -> 0 | GYJ94: =GYF56*GYJ56+GYF55*GYJ55 -> 0 | GYR94: =GYN56*GYR56+GYN55*GYR55 -> 0 | GYZ94: =GYV56*GYZ56+GYV55*GYZ55 -> 0 | GZH94: =GZD56*GZH56+GZD55*GZH55 -> 0 | GZP94: =GZL56*GZP56+GZL55*GZP55 -> 0 | GZX94: =GZT56*GZX56+GZT55*GZX55 -> 0 | HAF94: =HAB56*HAF56+HAB55*HAF55 -> 0 | HAN94: =HAJ56*HAN56+HAJ55*HAN55 -> 0 | HAV94: =HAR56*HAV56+HAR55*HAV55 -> 0 | HBD94: =HAZ56*HBD56+HAZ55*HBD55 -> 0 | HBL94: =HBH56*HBL56+HBH55*HBL55 -> 0 | HBT94: =HBP56*HBT56+HBP55*HBT55 -> 0 | HCB94: =HBX56*HCB56+HBX55*HCB55 -> 0 | HCJ94: =HCF56*HCJ56+HCF55*HCJ55 -> 0 | HCR94: =HCN56*HCR56+HCN55*HCR55 -> 0 | HCZ94: =HCV56*HCZ56+HCV55*HCZ55 -> 0 | HDH94: =HDD56*HDH56+HDD55*HDH55 -> 0 | HDP94: =HDL56*HDP56+HDL55*HDP55 -> 0 | HDX94: =HDT56*HDX56+HDT55*HDX55 -> 0 | HEF94: =HEB56*HEF56+HEB55*HEF55 -> 0 | HEN94: =HEJ56*HEN56+HEJ55*HEN55 -> 0 | HEV94: =HER56*HEV56+HER55*HEV55 -> 0 | HFD94: =HEZ56*HFD56+HEZ55*HFD55 -> 0 | HFL94: =HFH56*HFL56+HFH55*HFL55 -> 0 | HFT94: =HFP56*HFT56+HFP55*HFT55 -> 0 | HGB94: =HFX56*HGB56+HFX55*HGB55 -> 0 | HGJ94: =HGF56*HGJ56+HGF55*HGJ55 -> 0 | HGR94: =HGN56*HGR56+HGN55*HGR55 -> 0 | HGZ94: =HGV56*HGZ56+HGV55*HGZ55 -> 0 | HHH94: =HHD56*HHH56+HHD55*HHH55 -> 0 | HHP94: =HHL56*HHP56+HHL55*HHP55 -> 0 | HHX94: =HHT56*HHX56+HHT55*HHX55 -> 0 | HIF94: =HIB56*HIF56+HIB55*HIF55 -> 0 | HIN94: =HIJ56*HIN56+HIJ55*HIN55 -> 0 | HIV94: =HIR56*HIV56+HIR55*HIV55 -> 0 | HJD94: =HIZ56*HJD56+HIZ55*HJD55 -> 0 | HJL94: =HJH56*HJL56+HJH55*HJL55 -> 0 | HJT94: =HJP56*HJT56+HJP55*HJT55 -> 0 | HKB94: =HJX56*HKB56+HJX55*HKB55 -> 0 | HKJ94: =HKF56*HKJ56+HKF55*HKJ55 -> 0 | HKR94: =HKN56*HKR56+HKN55*HKR55 -> 0 | HKZ94: =HKV56*HKZ56+HKV55*HKZ55 -> 0 | HLH94: =HLD56*HLH56+HLD55*HLH55 -> 0 | HLP94: =HLL56*HLP56+HLL55*HLP55 -> 0 | HLX94: =HLT56*HLX56+HLT55*HLX55 -> 0 | HMF94: =HMB56*HMF56+HMB55*HMF55 -> 0 | HMN94: =HMJ56*HMN56+HMJ55*HMN55 -> 0 | HMV94: =HMR56*HMV56+HMR55*HMV55 -> 0 | HND94: =HMZ56*HND56+HMZ55*HND55 -> 0 | HNL94: =HNH56*HNL56+HNH55*HNL55 -> 0 | HNT94: =HNP56*HNT56+HNP55*HNT55 -> 0 | HOB94: =HNX56*HOB56+HNX55*HOB55 -> 0 | HOJ94: =HOF56*HOJ56+HOF55*HOJ55 -> 0 | HOR94: =HON56*HOR56+HON55*HOR55 -> 0 | HOZ94: =HOV56*HOZ56+HOV55*HOZ55 -> 0 | HPH94: =HPD56*HPH56+HPD55*HPH55 -> 0 | HPP94: =HPL56*HPP56+HPL55*HPP55 -> 0 | HPX94: =HPT56*HPX56+HPT55*HPX55 -> 0 | HQF94: =HQB56*HQF56+HQB55*HQF55 -> 0 | HQN94: =HQJ56*HQN56+HQJ55*HQN55 -> 0 | HQV94: =HQR56*HQV56+HQR55*HQV55 -> 0 | HRD94: =HQZ56*HRD56+HQZ55*HRD55 -> 0 | HRL94: =HRH56*HRL56+HRH55*HRL55 -> 0 | HRT94: =HRP56*HRT56+HRP55*HRT55 -> 0 | HSB94: =HRX56*HSB56+HRX55*HSB55 -> 0 | HSJ94: =HSF56*HSJ56+HSF55*HSJ55 -> 0 | HSR94: =HSN56*HSR56+HSN55*HSR55 -> 0 | HSZ94: =HSV56*HSZ56+HSV55*HSZ55 -> 0 | HTH94: =HTD56*HTH56+HTD55*HTH55 -> 0 | HTP94: =HTL56*HTP56+HTL55*HTP55 -> 0 | HTX94: =HTT56*HTX56+HTT55*HTX55 -> 0 | HUF94: =HUB56*HUF56+HUB55*HUF55 -> 0 | HUN94: =HUJ56*HUN56+HUJ55*HUN55 -> 0 | HUV94: =HUR56*HUV56+HUR55*HUV55 -> 0 | HVD94: =HUZ56*HVD56+HUZ55*HVD55 -> 0 | HVL94: =HVH56*HVL56+HVH55*HVL55 -> 0 | HVT94: =HVP56*HVT56+HVP55*HVT55 -> 0 | HWB94: =HVX56*HWB56+HVX55*HWB55 -> 0 | HWJ94: =HWF56*HWJ56+HWF55*HWJ55 -> 0 | HWR94: =HWN56*HWR56+HWN55*HWR55 -> 0 | HWZ94: =HWV56*HWZ56+HWV55*HWZ55 -> 0 | HXH94: =HXD56*HXH56+HXD55*HXH55 -> 0 | HXP94: =HXL56*HXP56+HXL55*HXP55 -> 0 | HXX94: =HXT56*HXX56+HXT55*HXX55 -> 0 | HYF94: =HYB56*HYF56+HYB55*HYF55 -> 0 | HYN94: =HYJ56*HYN56+HYJ55*HYN55 -> 0 | HYV94: =HYR56*HYV56+HYR55*HYV55 -> 0 | HZD94: =HYZ56*HZD56+HYZ55*HZD55 -> 0 | HZL94: =HZH56*HZL56+HZH55*HZL55 -> 0 | HZT94: =HZP56*HZT56+HZP55*HZT55 -> 0 | IAB94: =HZX56*IAB56+HZX55*IAB55 -> 0 | IAJ94: =IAF56*IAJ56+IAF55*IAJ55 -> 0 | IAR94: =IAN56*IAR56+IAN55*IAR55 -> 0 | IAZ94: =IAV56*IAZ56+IAV55*IAZ55 -> 0 | IBH94: =IBD56*IBH56+IBD55*IBH55 -> 0 | IBP94: =IBL56*IBP56+IBL55*IBP55 -> 0 | IBX94: =IBT56*IBX56+IBT55*IBX55 -> 0 | ICF94: =ICB56*ICF56+ICB55*ICF55 -> 0 | ICN94: =ICJ56*ICN56+ICJ55*ICN55 -> 0 | ICV94: =ICR56*ICV56+ICR55*ICV55 -> 0 | IDD94: =ICZ56*IDD56+ICZ55*IDD55 -> 0 | IDL94: =IDH56*IDL56+IDH55*IDL55 -> 0 | IDT94: =IDP56*IDT56+IDP55*IDT55 -> 0 | IEB94: =IDX56*IEB56+IDX55*IEB55 -> 0 | IEJ94: =IEF56*IEJ56+IEF55*IEJ55 -> 0 | IER94: =IEN56*IER56+IEN55*IER55 -> 0 | IEZ94: =IEV56*IEZ56+IEV55*IEZ55 -> 0 | IFH94: =IFD56*IFH56+IFD55*IFH55 -> 0 | IFP94: =IFL56*IFP56+IFL55*IFP55 -> 0 | IFX94: =IFT56*IFX56+IFT55*IFX55 -> 0 | IGF94: =IGB56*IGF56+IGB55*IGF55 -> 0 | IGN94: =IGJ56*IGN56+IGJ55*IGN55 -> 0 | IGV94: =IGR56*IGV56+IGR55*IGV55 -> 0 | IHD94: =IGZ56*IHD56+IGZ55*IHD55 -> 0 | IHL94: =IHH56*IHL56+IHH55*IHL55 -> 0 | IHT94: =IHP56*IHT56+IHP55*IHT55 -> 0 | IIB94: =IHX56*IIB56+IHX55*IIB55 -> 0 | IIJ94: =IIF56*IIJ56+IIF55*IIJ55 -> 0 | IIR94: =IIN56*IIR56+IIN55*IIR55 -> 0 | IIZ94: =IIV56*IIZ56+IIV55*IIZ55 -> 0 | IJH94: =IJD56*IJH56+IJD55*IJH55 -> 0 | IJP94: =IJL56*IJP56+IJL55*IJP55 -> 0 | IJX94: =IJT56*IJX56+IJT55*IJX55 -> 0 | IKF94: =IKB56*IKF56+IKB55*IKF55 -> 0 | IKN94: =IKJ56*IKN56+IKJ55*IKN55 -> 0 | IKV94: =IKR56*IKV56+IKR55*IKV55 -> 0 | ILD94: =IKZ56*ILD56+IKZ55*ILD55 -> 0 | ILL94: =ILH56*ILL56+ILH55*ILL55 -> 0 | ILT94: =ILP56*ILT56+ILP55*ILT55 -> 0 | IMB94: =ILX56*IMB56+ILX55*IMB55 -> 0 | IMJ94: =IMF56*IMJ56+IMF55*IMJ55 -> 0 | IMR94: =IMN56*IMR56+IMN55*IMR55 -> 0 | IMZ94: =IMV56*IMZ56+IMV55*IMZ55 -> 0 | INH94: =IND56*INH56+IND55*INH55 -> 0 | INP94: =INL56*INP56+INL55*INP55 -> 0 | INX94: =INT56*INX56+INT55*INX55 -> 0 | IOF94: =IOB56*IOF56+IOB55*IOF55 -> 0 | ION94: =IOJ56*ION56+IOJ55*ION55 -> 0 | IOV94: =IOR56*IOV56+IOR55*IOV55 -> 0 | IPD94: =IOZ56*IPD56+IOZ55*IPD55 -> 0 | IPL94: =IPH56*IPL56+IPH55*IPL55 -> 0 | IPT94: =IPP56*IPT56+IPP55*IPT55 -> 0 | IQB94: =IPX56*IQB56+IPX55*IQB55 -> 0 | IQJ94: =IQF56*IQJ56+IQF55*IQJ55 -> 0 | IQR94: =IQN56*IQR56+IQN55*IQR55 -> 0 | IQZ94: =IQV56*IQZ56+IQV55*IQZ55 -> 0 | IRH94: =IRD56*IRH56+IRD55*IRH55 -> 0 | IRP94: =IRL56*IRP56+IRL55*IRP55 -> 0 | IRX94: =IRT56*IRX56+IRT55*IRX55 -> 0 | ISF94: =ISB56*ISF56+ISB55*ISF55 -> 0 | ISN94: =ISJ56*ISN56+ISJ55*ISN55 -> 0 | ISV94: =ISR56*ISV56+ISR55*ISV55 -> 0 | ITD94: =ISZ56*ITD56+ISZ55*ITD55 -> 0 | ITL94: =ITH56*ITL56+ITH55*ITL55 -> 0 | ITT94: =ITP56*ITT56+ITP55*ITT55 -> 0 | IUB94: =ITX56*IUB56+ITX55*IUB55 -> 0 | IUJ94: =IUF56*IUJ56+IUF55*IUJ55 -> 0 | IUR94: =IUN56*IUR56+IUN55*IUR55 -> 0 | IUZ94: =IUV56*IUZ56+IUV55*IUZ55 -> 0 | IVH94: =IVD56*IVH56+IVD55*IVH55 -> 0 | IVP94: =IVL56*IVP56+IVL55*IVP55 -> 0 | IVX94: =IVT56*IVX56+IVT55*IVX55 -> 0 | IWF94: =IWB56*IWF56+IWB55*IWF55 -> 0 | IWN94: =IWJ56*IWN56+IWJ55*IWN55 -> 0 | IWV94: =IWR56*IWV56+IWR55*IWV55 -> 0 | IXD94: =IWZ56*IXD56+IWZ55*IXD55 -> 0 | IXL94: =IXH56*IXL56+IXH55*IXL55 -> 0 | IXT94: =IXP56*IXT56+IXP55*IXT55 -> 0 | IYB94: =IXX56*IYB56+IXX55*IYB55 -> 0 | IYJ94: =IYF56*IYJ56+IYF55*IYJ55 -> 0 | IYR94: =IYN56*IYR56+IYN55*IYR55 -> 0 | IYZ94: =IYV56*IYZ56+IYV55*IYZ55 -> 0 | IZH94: =IZD56*IZH56+IZD55*IZH55 -> 0 | IZP94: =IZL56*IZP56+IZL55*IZP55 -> 0 | IZX94: =IZT56*IZX56+IZT55*IZX55 -> 0 | JAF94: =JAB56*JAF56+JAB55*JAF55 -> 0 | JAN94: =JAJ56*JAN56+JAJ55*JAN55 -> 0 | JAV94: =JAR56*JAV56+JAR55*JAV55 -> 0 | JBD94: =JAZ56*JBD56+JAZ55*JBD55 -> 0 | JBL94: =JBH56*JBL56+JBH55*JBL55 -> 0 | JBT94: =JBP56*JBT56+JBP55*JBT55 -> 0 | JCB94: =JBX56*JCB56+JBX55*JCB55 -> 0 | JCJ94: =JCF56*JCJ56+JCF55*JCJ55 -> 0 | JCR94: =JCN56*JCR56+JCN55*JCR55 -> 0 | JCZ94: =JCV56*JCZ56+JCV55*JCZ55 -> 0 | JDH94: =JDD56*JDH56+JDD55*JDH55 -> 0 | JDP94: =JDL56*JDP56+JDL55*JDP55 -> 0 | JDX94: =JDT56*JDX56+JDT55*JDX55 -> 0 | JEF94: =JEB56*JEF56+JEB55*JEF55 -> 0 | JEN94: =JEJ56*JEN56+JEJ55*JEN55 -> 0 | JEV94: =JER56*JEV56+JER55*JEV55 -> 0 | JFD94: =JEZ56*JFD56+JEZ55*JFD55 -> 0 | JFL94: =JFH56*JFL56+JFH55*JFL55 -> 0 | JFT94: =JFP56*JFT56+JFP55*JFT55 -> 0 | JGB94: =JFX56*JGB56+JFX55*JGB55 -> 0 | JGJ94: =JGF56*JGJ56+JGF55*JGJ55 -> 0 | JGR94: =JGN56*JGR56+JGN55*JGR55 -> 0 | JGZ94: =JGV56*JGZ56+JGV55*JGZ55 -> 0 | JHH94: =JHD56*JHH56+JHD55*JHH55 -> 0 | JHP94: =JHL56*JHP56+JHL55*JHP55 -> 0 | JHX94: =JHT56*JHX56+JHT55*JHX55 -> 0 | JIF94: =JIB56*JIF56+JIB55*JIF55 -> 0 | JIN94: =JIJ56*JIN56+JIJ55*JIN55 -> 0 | JIV94: =JIR56*JIV56+JIR55*JIV55 -> 0 | JJD94: =JIZ56*JJD56+JIZ55*JJD55 -> 0 | JJL94: =JJH56*JJL56+JJH55*JJL55 -> 0 | JJT94: =JJP56*JJT56+JJP55*JJT55 -> 0 | JKB94: =JJX56*JKB56+JJX55*JKB55 -> 0 | JKJ94: =JKF56*JKJ56+JKF55*JKJ55 -> 0 | JKR94: =JKN56*JKR56+JKN55*JKR55 -> 0 | JKZ94: =JKV56*JKZ56+JKV55*JKZ55 -> 0 | JLH94: =JLD56*JLH56+JLD55*JLH55 -> 0 | JLP94: =JLL56*JLP56+JLL55*JLP55 -> 0 | JLX94: =JLT56*JLX56+JLT55*JLX55 -> 0 | JMF94: =JMB56*JMF56+JMB55*JMF55 -> 0 | JMN94: =JMJ56*JMN56+JMJ55*JMN55 -> 0 | JMV94: =JMR56*JMV56+JMR55*JMV55 -> 0 | JND94: =JMZ56*JND56+JMZ55*JND55 -> 0 | JNL94: =JNH56*JNL56+JNH55*JNL55 -> 0 | JNT94: =JNP56*JNT56+JNP55*JNT55 -> 0 | JOB94: =JNX56*JOB56+JNX55*JOB55 -> 0 | JOJ94: =JOF56*JOJ56+JOF55*JOJ55 -> 0 | JOR94: =JON56*JOR56+JON55*JOR55 -> 0 | JOZ94: =JOV56*JOZ56+JOV55*JOZ55 -> 0 | JPH94: =JPD56*JPH56+JPD55*JPH55 -> 0 | JPP94: =JPL56*JPP56+JPL55*JPP55 -> 0 | JPX94: =JPT56*JPX56+JPT55*JPX55 -> 0 | JQF94: =JQB56*JQF56+JQB55*JQF55 -> 0 | JQN94: =JQJ56*JQN56+JQJ55*JQN55 -> 0 | JQV94: =JQR56*JQV56+JQR55*JQV55 -> 0 | JRD94: =JQZ56*JRD56+JQZ55*JRD55 -> 0 | JRL94: =JRH56*JRL56+JRH55*JRL55 -> 0 | JRT94: =JRP56*JRT56+JRP55*JRT55 -> 0 | JSB94: =JRX56*JSB56+JRX55*JSB55 -> 0 | JSJ94: =JSF56*JSJ56+JSF55*JSJ55 -> 0 | JSR94: =JSN56*JSR56+JSN55*JSR55 -> 0 | JSZ94: =JSV56*JSZ56+JSV55*JSZ55 -> 0 | JTH94: =JTD56*JTH56+JTD55*JTH55 -> 0 | JTP94: =JTL56*JTP56+JTL55*JTP55 -> 0 | JTX94: =JTT56*JTX56+JTT55*JTX55 -> 0 | JUF94: =JUB56*JUF56+JUB55*JUF55 -> 0 | JUN94: =JUJ56*JUN56+JUJ55*JUN55 -> 0 | JUV94: =JUR56*JUV56+JUR55*JUV55 -> 0 | JVD94: =JUZ56*JVD56+JUZ55*JVD55 -> 0 | JVL94: =JVH56*JVL56+JVH55*JVL55 -> 0 | JVT94: =JVP56*JVT56+JVP55*JVT55 -> 0 | JWB94: =JVX56*JWB56+JVX55*JWB55 -> 0 | JWJ94: =JWF56*JWJ56+JWF55*JWJ55 -> 0 | JWR94: =JWN56*JWR56+JWN55*JWR55 -> 0 | JWZ94: =JWV56*JWZ56+JWV55*JWZ55 -> 0 | JXH94: =JXD56*JXH56+JXD55*JXH55 -> 0 | JXP94: =JXL56*JXP56+JXL55*JXP55 -> 0 | JXX94: =JXT56*JXX56+JXT55*JXX55 -> 0 | JYF94: =JYB56*JYF56+JYB55*JYF55 -> 0 | JYN94: =JYJ56*JYN56+JYJ55*JYN55 -> 0 | JYV94: =JYR56*JYV56+JYR55*JYV55 -> 0 | JZD94: =JYZ56*JZD56+JYZ55*JZD55 -> 0 | JZL94: =JZH56*JZL56+JZH55*JZL55 -> 0 | JZT94: =JZP56*JZT56+JZP55*JZT55 -> 0 | KAB94: =JZX56*KAB56+JZX55*KAB55 -> 0 | KAJ94: =KAF56*KAJ56+KAF55*KAJ55 -> 0 | KAR94: =KAN56*KAR56+KAN55*KAR55 -> 0 | KAZ94: =KAV56*KAZ56+KAV55*KAZ55 -> 0 | KBH94: =KBD56*KBH56+KBD55*KBH55 -> 0 | KBP94: =KBL56*KBP56+KBL55*KBP55 -> 0 | KBX94: =KBT56*KBX56+KBT55*KBX55 -> 0 | KCF94: =KCB56*KCF56+KCB55*KCF55 -> 0 | KCN94: =KCJ56*KCN56+KCJ55*KCN55 -> 0 | KCV94: =KCR56*KCV56+KCR55*KCV55 -> 0 | KDD94: =KCZ56*KDD56+KCZ55*KDD55 -> 0 | KDL94: =KDH56*KDL56+KDH55*KDL55 -> 0 | KDT94: =KDP56*KDT56+KDP55*KDT55 -> 0 | KEB94: =KDX56*KEB56+KDX55*KEB55 -> 0 | KEJ94: =KEF56*KEJ56+KEF55*KEJ55 -> 0 | KER94: =KEN56*KER56+KEN55*KER55 -> 0 | KEZ94: =KEV56*KEZ56+KEV55*KEZ55 -> 0 | KFH94: =KFD56*KFH56+KFD55*KFH55 -> 0 | KFP94: =KFL56*KFP56+KFL55*KFP55 -> 0 | KFX94: =KFT56*KFX56+KFT55*KFX55 -> 0 | KGF94: =KGB56*KGF56+KGB55*KGF55 -> 0 | KGN94: =KGJ56*KGN56+KGJ55*KGN55 -> 0 | KGV94: =KGR56*KGV56+KGR55*KGV55 -> 0 | KHD94: =KGZ56*KHD56+KGZ55*KHD55 -> 0 | KHL94: =KHH56*KHL56+KHH55*KHL55 -> 0 | KHT94: =KHP56*KHT56+KHP55*KHT55 -> 0 | KIB94: =KHX56*KIB56+KHX55*KIB55 -> 0 | KIJ94: =KIF56*KIJ56+KIF55*KIJ55 -> 0 | KIR94: =KIN56*KIR56+KIN55*KIR55 -> 0 | KIZ94: =KIV56*KIZ56+KIV55*KIZ55 -> 0 | KJH94: =KJD56*KJH56+KJD55*KJH55 -> 0 | KJP94: =KJL56*KJP56+KJL55*KJP55 -> 0 | KJX94: =KJT56*KJX56+KJT55*KJX55 -> 0 | KKF94: =KKB56*KKF56+KKB55*KKF55 -> 0 | KKN94: =KKJ56*KKN56+KKJ55*KKN55 -> 0 | KKV94: =KKR56*KKV56+KKR55*KKV55 -> 0 | KLD94: =KKZ56*KLD56+KKZ55*KLD55 -> 0 | KLL94: =KLH56*KLL56+KLH55*KLL55 -> 0 | KLT94: =KLP56*KLT56+KLP55*KLT55 -> 0 | KMB94: =KLX56*KMB56+KLX55*KMB55 -> 0 | KMJ94: =KMF56*KMJ56+KMF55*KMJ55 -> 0 | KMR94: =KMN56*KMR56+KMN55*KMR55 -> 0 | KMZ94: =KMV56*KMZ56+KMV55*KMZ55 -> 0 | KNH94: =KND56*KNH56+KND55*KNH55 -> 0 | KNP94: =KNL56*KNP56+KNL55*KNP55 -> 0 | KNX94: =KNT56*KNX56+KNT55*KNX55 -> 0 | KOF94: =KOB56*KOF56+KOB55*KOF55 -> 0 | KON94: =KOJ56*KON56+KOJ55*KON55 -> 0 | KOV94: =KOR56*KOV56+KOR55*KOV55 -> 0 | KPD94: =KOZ56*KPD56+KOZ55*KPD55 -> 0 | KPL94: =KPH56*KPL56+KPH55*KPL55 -> 0 | KPT94: =KPP56*KPT56+KPP55*KPT55 -> 0 | KQB94: =KPX56*KQB56+KPX55*KQB55 -> 0 | KQJ94: =KQF56*KQJ56+KQF55*KQJ55 -> 0 | KQR94: =KQN56*KQR56+KQN55*KQR55 -> 0 | KQZ94: =KQV56*KQZ56+KQV55*KQZ55 -> 0 | KRH94: =KRD56*KRH56+KRD55*KRH55 -> 0 | KRP94: =KRL56*KRP56+KRL55*KRP55 -> 0 | KRX94: =KRT56*KRX56+KRT55*KRX55 -> 0 | KSF94: =KSB56*KSF56+KSB55*KSF55 -> 0 | KSN94: =KSJ56*KSN56+KSJ55*KSN55 -> 0 | KSV94: =KSR56*KSV56+KSR55*KSV55 -> 0 | KTD94: =KSZ56*KTD56+KSZ55*KTD55 -> 0 | KTL94: =KTH56*KTL56+KTH55*KTL55 -> 0 | KTT94: =KTP56*KTT56+KTP55*KTT55 -> 0 | KUB94: =KTX56*KUB56+KTX55*KUB55 -> 0 | KUJ94: =KUF56*KUJ56+KUF55*KUJ55 -> 0 | KUR94: =KUN56*KUR56+KUN55*KUR55 -> 0 | KUZ94: =KUV56*KUZ56+KUV55*KUZ55 -> 0 | KVH94: =KVD56*KVH56+KVD55*KVH55 -> 0 | KVP94: =KVL56*KVP56+KVL55*KVP55 -> 0 | KVX94: =KVT56*KVX56+KVT55*KVX55 -> 0 | KWF94: =KWB56*KWF56+KWB55*KWF55 -> 0 | KWN94: =KWJ56*KWN56+KWJ55*KWN55 -> 0 | KWV94: =KWR56*KWV56+KWR55*KWV55 -> 0 | KXD94: =KWZ56*KXD56+KWZ55*KXD55 -> 0 | KXL94: =KXH56*KXL56+KXH55*KXL55 -> 0 | KXT94: =KXP56*KXT56+KXP55*KXT55 -> 0 | KYB94: =KXX56*KYB56+KXX55*KYB55 -> 0 | KYJ94: =KYF56*KYJ56+KYF55*KYJ55 -> 0 | KYR94: =KYN56*KYR56+KYN55*KYR55 -> 0 | KYZ94: =KYV56*KYZ56+KYV55*KYZ55 -> 0 | KZH94: =KZD56*KZH56+KZD55*KZH55 -> 0 | KZP94: =KZL56*KZP56+KZL55*KZP55 -> 0 | KZX94: =KZT56*KZX56+KZT55*KZX55 -> 0 | LAF94: =LAB56*LAF56+LAB55*LAF55 -> 0 | LAN94: =LAJ56*LAN56+LAJ55*LAN55 -> 0 | LAV94: =LAR56*LAV56+LAR55*LAV55 -> 0 | LBD94: =LAZ56*LBD56+LAZ55*LBD55 -> 0 | LBL94: =LBH56*LBL56+LBH55*LBL55 -> 0 | LBT94: =LBP56*LBT56+LBP55*LBT55 -> 0 | LCB94: =LBX56*LCB56+LBX55*LCB55 -> 0 | LCJ94: =LCF56*LCJ56+LCF55*LCJ55 -> 0 | LCR94: =LCN56*LCR56+LCN55*LCR55 -> 0 | LCZ94: =LCV56*LCZ56+LCV55*LCZ55 -> 0 | LDH94: =LDD56*LDH56+LDD55*LDH55 -> 0 | LDP94: =LDL56*LDP56+LDL55*LDP55 -> 0 | LDX94: =LDT56*LDX56+LDT55*LDX55 -> 0 | LEF94: =LEB56*LEF56+LEB55*LEF55 -> 0 | LEN94: =LEJ56*LEN56+LEJ55*LEN55 -> 0 | LEV94: =LER56*LEV56+LER55*LEV55 -> 0 | LFD94: =LEZ56*LFD56+LEZ55*LFD55 -> 0 | LFL94: =LFH56*LFL56+LFH55*LFL55 -> 0 | LFT94: =LFP56*LFT56+LFP55*LFT55 -> 0 | LGB94: =LFX56*LGB56+LFX55*LGB55 -> 0 | LGJ94: =LGF56*LGJ56+LGF55*LGJ55 -> 0 | LGR94: =LGN56*LGR56+LGN55*LGR55 -> 0 | LGZ94: =LGV56*LGZ56+LGV55*LGZ55 -> 0 | LHH94: =LHD56*LHH56+LHD55*LHH55 -> 0 | LHP94: =LHL56*LHP56+LHL55*LHP55 -> 0 | LHX94: =LHT56*LHX56+LHT55*LHX55 -> 0 | LIF94: =LIB56*LIF56+LIB55*LIF55 -> 0 | LIN94: =LIJ56*LIN56+LIJ55*LIN55 -> 0 | LIV94: =LIR56*LIV56+LIR55*LIV55 -> 0 | LJD94: =LIZ56*LJD56+LIZ55*LJD55 -> 0 | LJL94: =LJH56*LJL56+LJH55*LJL55 -> 0 | LJT94: =LJP56*LJT56+LJP55*LJT55 -> 0 | LKB94: =LJX56*LKB56+LJX55*LKB55 -> 0 | LKJ94: =LKF56*LKJ56+LKF55*LKJ55 -> 0 | LKR94: =LKN56*LKR56+LKN55*LKR55 -> 0 | LKZ94: =LKV56*LKZ56+LKV55*LKZ55 -> 0 | LLH94: =LLD56*LLH56+LLD55*LLH55 -> 0 | LLP94: =LLL56*LLP56+LLL55*LLP55 -> 0 | LLX94: =LLT56*LLX56+LLT55*LLX55 -> 0 | LMF94: =LMB56*LMF56+LMB55*LMF55 -> 0 | LMN94: =LMJ56*LMN56+LMJ55*LMN55 -> 0 | LMV94: =LMR56*LMV56+LMR55*LMV55 -> 0 | LND94: =LMZ56*LND56+LMZ55*LND55 -> 0 | LNL94: =LNH56*LNL56+LNH55*LNL55 -> 0 | LNT94: =LNP56*LNT56+LNP55*LNT55 -> 0 | LOB94: =LNX56*LOB56+LNX55*LOB55 -> 0 | LOJ94: =LOF56*LOJ56+LOF55*LOJ55 -> 0 | LOR94: =LON56*LOR56+LON55*LOR55 -> 0 | LOZ94: =LOV56*LOZ56+LOV55*LOZ55 -> 0 | LPH94: =LPD56*LPH56+LPD55*LPH55 -> 0 | LPP94: =LPL56*LPP56+LPL55*LPP55 -> 0 | LPX94: =LPT56*LPX56+LPT55*LPX55 -> 0 | LQF94: =LQB56*LQF56+LQB55*LQF55 -> 0 | LQN94: =LQJ56*LQN56+LQJ55*LQN55 -> 0 | LQV94: =LQR56*LQV56+LQR55*LQV55 -> 0 | LRD94: =LQZ56*LRD56+LQZ55*LRD55 -> 0 | LRL94: =LRH56*LRL56+LRH55*LRL55 -> 0 | LRT94: =LRP56*LRT56+LRP55*LRT55 -> 0 | LSB94: =LRX56*LSB56+LRX55*LSB55 -> 0 | LSJ94: =LSF56*LSJ56+LSF55*LSJ55 -> 0 | LSR94: =LSN56*LSR56+LSN55*LSR55 -> 0 | LSZ94: =LSV56*LSZ56+LSV55*LSZ55 -> 0 | LTH94: =LTD56*LTH56+LTD55*LTH55 -> 0 | LTP94: =LTL56*LTP56+LTL55*LTP55 -> 0 | LTX94: =LTT56*LTX56+LTT55*LTX55 -> 0 | LUF94: =LUB56*LUF56+LUB55*LUF55 -> 0 | LUN94: =LUJ56*LUN56+LUJ55*LUN55 -> 0 | LUV94: =LUR56*LUV56+LUR55*LUV55 -> 0 | LVD94: =LUZ56*LVD56+LUZ55*LVD55 -> 0 | LVL94: =LVH56*LVL56+LVH55*LVL55 -> 0 | LVT94: =LVP56*LVT56+LVP55*LVT55 -> 0 | LWB94: =LVX56*LWB56+LVX55*LWB55 -> 0 | LWJ94: =LWF56*LWJ56+LWF55*LWJ55 -> 0 | LWR94: =LWN56*LWR56+LWN55*LWR55 -> 0 | LWZ94: =LWV56*LWZ56+LWV55*LWZ55 -> 0 | LXH94: =LXD56*LXH56+LXD55*LXH55 -> 0 | LXP94: =LXL56*LXP56+LXL55*LXP55 -> 0 | LXX94: =LXT56*LXX56+LXT55*LXX55 -> 0 | LYF94: =LYB56*LYF56+LYB55*LYF55 -> 0 | LYN94: =LYJ56*LYN56+LYJ55*LYN55 -> 0 | LYV94: =LYR56*LYV56+LYR55*LYV55 -> 0 | LZD94: =LYZ56*LZD56+LYZ55*LZD55 -> 0 | LZL94: =LZH56*LZL56+LZH55*LZL55 -> 0 | LZT94: =LZP56*LZT56+LZP55*LZT55 -> 0 | MAB94: =LZX56*MAB56+LZX55*MAB55 -> 0 | MAJ94: =MAF56*MAJ56+MAF55*MAJ55 -> 0 | MAR94: =MAN56*MAR56+MAN55*MAR55 -> 0 | MAZ94: =MAV56*MAZ56+MAV55*MAZ55 -> 0 | MBH94: =MBD56*MBH56+MBD55*MBH55 -> 0 | MBP94: =MBL56*MBP56+MBL55*MBP55 -> 0 | MBX94: =MBT56*MBX56+MBT55*MBX55 -> 0 | MCF94: =MCB56*MCF56+MCB55*MCF55 -> 0 | MCN94: =MCJ56*MCN56+MCJ55*MCN55 -> 0 | MCV94: =MCR56*MCV56+MCR55*MCV55 -> 0 | MDD94: =MCZ56*MDD56+MCZ55*MDD55 -> 0 | MDL94: =MDH56*MDL56+MDH55*MDL55 -> 0 | MDT94: =MDP56*MDT56+MDP55*MDT55 -> 0 | MEB94: =MDX56*MEB56+MDX55*MEB55 -> 0 | MEJ94: =MEF56*MEJ56+MEF55*MEJ55 -> 0 | MER94: =MEN56*MER56+MEN55*MER55 -> 0 | MEZ94: =MEV56*MEZ56+MEV55*MEZ55 -> 0 | MFH94: =MFD56*MFH56+MFD55*MFH55 -> 0 | MFP94: =MFL56*MFP56+MFL55*MFP55 -> 0 | MFX94: =MFT56*MFX56+MFT55*MFX55 -> 0 | MGF94: =MGB56*MGF56+MGB55*MGF55 -> 0 | MGN94: =MGJ56*MGN56+MGJ55*MGN55 -> 0 | MGV94: =MGR56*MGV56+MGR55*MGV55 -> 0 | MHD94: =MGZ56*MHD56+MGZ55*MHD55 -> 0 | MHL94: =MHH56*MHL56+MHH55*MHL55 -> 0 | MHT94: =MHP56*MHT56+MHP55*MHT55 -> 0 | MIB94: =MHX56*MIB56+MHX55*MIB55 -> 0 | MIJ94: =MIF56*MIJ56+MIF55*MIJ55 -> 0 | MIR94: =MIN56*MIR56+MIN55*MIR55 -> 0 | MIZ94: =MIV56*MIZ56+MIV55*MIZ55 -> 0 | MJH94: =MJD56*MJH56+MJD55*MJH55 -> 0 | MJP94: =MJL56*MJP56+MJL55*MJP55 -> 0 | MJX94: =MJT56*MJX56+MJT55*MJX55 -> 0 | MKF94: =MKB56*MKF56+MKB55*MKF55 -> 0 | MKN94: =MKJ56*MKN56+MKJ55*MKN55 -> 0 | MKV94: =MKR56*MKV56+MKR55*MKV55 -> 0 | MLD94: =MKZ56*MLD56+MKZ55*MLD55 -> 0 | MLL94: =MLH56*MLL56+MLH55*MLL55 -> 0 | MLT94: =MLP56*MLT56+MLP55*MLT55 -> 0 | MMB94: =MLX56*MMB56+MLX55*MMB55 -> 0 | MMJ94: =MMF56*MMJ56+MMF55*MMJ55 -> 0 | MMR94: =MMN56*MMR56+MMN55*MMR55 -> 0 | MMZ94: =MMV56*MMZ56+MMV55*MMZ55 -> 0 | MNH94: =MND56*MNH56+MND55*MNH55 -> 0 | MNP94: =MNL56*MNP56+MNL55*MNP55 -> 0 | MNX94: =MNT56*MNX56+MNT55*MNX55 -> 0 | MOF94: =MOB56*MOF56+MOB55*MOF55 -> 0 | MON94: =MOJ56*MON56+MOJ55*MON55 -> 0 | MOV94: =MOR56*MOV56+MOR55*MOV55 -> 0 | MPD94: =MOZ56*MPD56+MOZ55*MPD55 -> 0 | MPL94: =MPH56*MPL56+MPH55*MPL55 -> 0 | MPT94: =MPP56*MPT56+MPP55*MPT55 -> 0 | MQB94: =MPX56*MQB56+MPX55*MQB55 -> 0 | MQJ94: =MQF56*MQJ56+MQF55*MQJ55 -> 0 | MQR94: =MQN56*MQR56+MQN55*MQR55 -> 0 | MQZ94: =MQV56*MQZ56+MQV55*MQZ55 -> 0 | MRH94: =MRD56*MRH56+MRD55*MRH55 -> 0 | MRP94: =MRL56*MRP56+MRL55*MRP55 -> 0 | MRX94: =MRT56*MRX56+MRT55*MRX55 -> 0 | MSF94: =MSB56*MSF56+MSB55*MSF55 -> 0 | MSN94: =MSJ56*MSN56+MSJ55*MSN55 -> 0 | MSV94: =MSR56*MSV56+MSR55*MSV55 -> 0 | MTD94: =MSZ56*MTD56+MSZ55*MTD55 -> 0 | MTL94: =MTH56*MTL56+MTH55*MTL55 -> 0 | MTT94: =MTP56*MTT56+MTP55*MTT55 -> 0 | MUB94: =MTX56*MUB56+MTX55*MUB55 -> 0 | MUJ94: =MUF56*MUJ56+MUF55*MUJ55 -> 0 | MUR94: =MUN56*MUR56+MUN55*MUR55 -> 0 | MUZ94: =MUV56*MUZ56+MUV55*MUZ55 -> 0 | MVH94: =MVD56*MVH56+MVD55*MVH55 -> 0 | MVP94: =MVL56*MVP56+MVL55*MVP55 -> 0 | MVX94: =MVT56*MVX56+MVT55*MVX55 -> 0 | MWF94: =MWB56*MWF56+MWB55*MWF55 -> 0 | MWN94: =MWJ56*MWN56+MWJ55*MWN55 -> 0 | MWV94: =MWR56*MWV56+MWR55*MWV55 -> 0 | MXD94: =MWZ56*MXD56+MWZ55*MXD55 -> 0 | MXL94: =MXH56*MXL56+MXH55*MXL55 -> 0 | MXT94: =MXP56*MXT56+MXP55*MXT55 -> 0 | MYB94: =MXX56*MYB56+MXX55*MYB55 -> 0 | MYJ94: =MYF56*MYJ56+MYF55*MYJ55 -> 0 | MYR94: =MYN56*MYR56+MYN55*MYR55 -> 0 | MYZ94: =MYV56*MYZ56+MYV55*MYZ55 -> 0 | MZH94: =MZD56*MZH56+MZD55*MZH55 -> 0 | MZP94: =MZL56*MZP56+MZL55*MZP55 -> 0 | MZX94: =MZT56*MZX56+MZT55*MZX55 -> 0 | NAF94: =NAB56*NAF56+NAB55*NAF55 -> 0 | NAN94: =NAJ56*NAN56+NAJ55*NAN55 -> 0 | NAV94: =NAR56*NAV56+NAR55*NAV55 -> 0 | NBD94: =NAZ56*NBD56+NAZ55*NBD55 -> 0 | NBL94: =NBH56*NBL56+NBH55*NBL55 -> 0 | NBT94: =NBP56*NBT56+NBP55*NBT55 -> 0 | NCB94: =NBX56*NCB56+NBX55*NCB55 -> 0 | NCJ94: =NCF56*NCJ56+NCF55*NCJ55 -> 0 | NCR94: =NCN56*NCR56+NCN55*NCR55 -> 0 | NCZ94: =NCV56*NCZ56+NCV55*NCZ55 -> 0 | NDH94: =NDD56*NDH56+NDD55*NDH55 -> 0 | NDP94: =NDL56*NDP56+NDL55*NDP55 -> 0 | NDX94: =NDT56*NDX56+NDT55*NDX55 -> 0 | NEF94: =NEB56*NEF56+NEB55*NEF55 -> 0 | NEN94: =NEJ56*NEN56+NEJ55*NEN55 -> 0 | NEV94: =NER56*NEV56+NER55*NEV55 -> 0 | NFD94: =NEZ56*NFD56+NEZ55*NFD55 -> 0 | NFL94: =NFH56*NFL56+NFH55*NFL55 -> 0 | NFT94: =NFP56*NFT56+NFP55*NFT55 -> 0 | NGB94: =NFX56*NGB56+NFX55*NGB55 -> 0 | NGJ94: =NGF56*NGJ56+NGF55*NGJ55 -> 0 | NGR94: =NGN56*NGR56+NGN55*NGR55 -> 0 | NGZ94: =NGV56*NGZ56+NGV55*NGZ55 -> 0 | NHH94: =NHD56*NHH56+NHD55*NHH55 -> 0 | NHP94: =NHL56*NHP56+NHL55*NHP55 -> 0 | NHX94: =NHT56*NHX56+NHT55*NHX55 -> 0 | NIF94: =NIB56*NIF56+NIB55*NIF55 -> 0 | NIN94: =NIJ56*NIN56+NIJ55*NIN55 -> 0 | NIV94: =NIR56*NIV56+NIR55*NIV55 -> 0 | NJD94: =NIZ56*NJD56+NIZ55*NJD55 -> 0 | NJL94: =NJH56*NJL56+NJH55*NJL55 -> 0 | NJT94: =NJP56*NJT56+NJP55*NJT55 -> 0 | NKB94: =NJX56*NKB56+NJX55*NKB55 -> 0 | NKJ94: =NKF56*NKJ56+NKF55*NKJ55 -> 0 | NKR94: =NKN56*NKR56+NKN55*NKR55 -> 0 | NKZ94: =NKV56*NKZ56+NKV55*NKZ55 -> 0 | NLH94: =NLD56*NLH56+NLD55*NLH55 -> 0 | NLP94: =NLL56*NLP56+NLL55*NLP55 -> 0 | NLX94: =NLT56*NLX56+NLT55*NLX55 -> 0 | NMF94: =NMB56*NMF56+NMB55*NMF55 -> 0 | NMN94: =NMJ56*NMN56+NMJ55*NMN55 -> 0 | NMV94: =NMR56*NMV56+NMR55*NMV55 -> 0 | NND94: =NMZ56*NND56+NMZ55*NND55 -> 0 | NNL94: =NNH56*NNL56+NNH55*NNL55 -> 0 | NNT94: =NNP56*NNT56+NNP55*NNT55 -> 0 | NOB94: =NNX56*NOB56+NNX55*NOB55 -> 0 | NOJ94: =NOF56*NOJ56+NOF55*NOJ55 -> 0 | NOR94: =NON56*NOR56+NON55*NOR55 -> 0 | NOZ94: =NOV56*NOZ56+NOV55*NOZ55 -> 0 | NPH94: =NPD56*NPH56+NPD55*NPH55 -> 0 | NPP94: =NPL56*NPP56+NPL55*NPP55 -> 0 | NPX94: =NPT56*NPX56+NPT55*NPX55 -> 0 | NQF94: =NQB56*NQF56+NQB55*NQF55 -> 0 | NQN94: =NQJ56*NQN56+NQJ55*NQN55 -> 0 | NQV94: =NQR56*NQV56+NQR55*NQV55 -> 0 | NRD94: =NQZ56*NRD56+NQZ55*NRD55 -> 0 | NRL94: =NRH56*NRL56+NRH55*NRL55 -> 0 | NRT94: =NRP56*NRT56+NRP55*NRT55 -> 0 | NSB94: =NRX56*NSB56+NRX55*NSB55 -> 0 | NSJ94: =NSF56*NSJ56+NSF55*NSJ55 -> 0 | NSR94: =NSN56*NSR56+NSN55*NSR55 -> 0 | NSZ94: =NSV56*NSZ56+NSV55*NSZ55 -> 0 | NTH94: =NTD56*NTH56+NTD55*NTH55 -> 0 | NTP94: =NTL56*NTP56+NTL55*NTP55 -> 0 | NTX94: =NTT56*NTX56+NTT55*NTX55 -> 0 | NUF94: =NUB56*NUF56+NUB55*NUF55 -> 0 | NUN94: =NUJ56*NUN56+NUJ55*NUN55 -> 0 | NUV94: =NUR56*NUV56+NUR55*NUV55 -> 0 | NVD94: =NUZ56*NVD56+NUZ55*NVD55 -> 0 | NVL94: =NVH56*NVL56+NVH55*NVL55 -> 0 | NVT94: =NVP56*NVT56+NVP55*NVT55 -> 0 | NWB94: =NVX56*NWB56+NVX55*NWB55 -> 0 | NWJ94: =NWF56*NWJ56+NWF55*NWJ55 -> 0 | NWR94: =NWN56*NWR56+NWN55*NWR55 -> 0 | NWZ94: =NWV56*NWZ56+NWV55*NWZ55 -> 0 | NXH94: =NXD56*NXH56+NXD55*NXH55 -> 0 | NXP94: =NXL56*NXP56+NXL55*NXP55 -> 0 | NXX94: =NXT56*NXX56+NXT55*NXX55 -> 0 | NYF94: =NYB56*NYF56+NYB55*NYF55 -> 0 | NYN94: =NYJ56*NYN56+NYJ55*NYN55 -> 0 | NYV94: =NYR56*NYV56+NYR55*NYV55 -> 0 | NZD94: =NYZ56*NZD56+NYZ55*NZD55 -> 0 | NZL94: =NZH56*NZL56+NZH55*NZL55 -> 0 | NZT94: =NZP56*NZT56+NZP55*NZT55 -> 0 | OAB94: =NZX56*OAB56+NZX55*OAB55 -> 0 | OAJ94: =OAF56*OAJ56+OAF55*OAJ55 -> 0 | OAR94: =OAN56*OAR56+OAN55*OAR55 -> 0 | OAZ94: =OAV56*OAZ56+OAV55*OAZ55 -> 0 | OBH94: =OBD56*OBH56+OBD55*OBH55 -> 0 | OBP94: =OBL56*OBP56+OBL55*OBP55 -> 0 | OBX94: =OBT56*OBX56+OBT55*OBX55 -> 0 | OCF94: =OCB56*OCF56+OCB55*OCF55 -> 0 | OCN94: =OCJ56*OCN56+OCJ55*OCN55 -> 0 | OCV94: =OCR56*OCV56+OCR55*OCV55 -> 0 | ODD94: =OCZ56*ODD56+OCZ55*ODD55 -> 0 | ODL94: =ODH56*ODL56+ODH55*ODL55 -> 0 | ODT94: =ODP56*ODT56+ODP55*ODT55 -> 0 | OEB94: =ODX56*OEB56+ODX55*OEB55 -> 0 | OEJ94: =OEF56*OEJ56+OEF55*OEJ55 -> 0 | OER94: =OEN56*OER56+OEN55*OER55 -> 0 | OEZ94: =OEV56*OEZ56+OEV55*OEZ55 -> 0 | OFH94: =OFD56*OFH56+OFD55*OFH55 -> 0 | OFP94: =OFL56*OFP56+OFL55*OFP55 -> 0 | OFX94: =OFT56*OFX56+OFT55*OFX55 -> 0 | OGF94: =OGB56*OGF56+OGB55*OGF55 -> 0 | OGN94: =OGJ56*OGN56+OGJ55*OGN55 -> 0 | OGV94: =OGR56*OGV56+OGR55*OGV55 -> 0 | OHD94: =OGZ56*OHD56+OGZ55*OHD55 -> 0 | OHL94: =OHH56*OHL56+OHH55*OHL55 -> 0 | OHT94: =OHP56*OHT56+OHP55*OHT55 -> 0 | OIB94: =OHX56*OIB56+OHX55*OIB55 -> 0 | OIJ94: =OIF56*OIJ56+OIF55*OIJ55 -> 0 | OIR94: =OIN56*OIR56+OIN55*OIR55 -> 0 | OIZ94: =OIV56*OIZ56+OIV55*OIZ55 -> 0 | OJH94: =OJD56*OJH56+OJD55*OJH55 -> 0 | OJP94: =OJL56*OJP56+OJL55*OJP55 -> 0 | OJX94: =OJT56*OJX56+OJT55*OJX55 -> 0 | OKF94: =OKB56*OKF56+OKB55*OKF55 -> 0 | OKN94: =OKJ56*OKN56+OKJ55*OKN55 -> 0 | OKV94: =OKR56*OKV56+OKR55*OKV55 -> 0 | OLD94: =OKZ56*OLD56+OKZ55*OLD55 -> 0 | OLL94: =OLH56*OLL56+OLH55*OLL55 -> 0 | OLT94: =OLP56*OLT56+OLP55*OLT55 -> 0 | OMB94: =OLX56*OMB56+OLX55*OMB55 -> 0 | OMJ94: =OMF56*OMJ56+OMF55*OMJ55 -> 0 | OMR94: =OMN56*OMR56+OMN55*OMR55 -> 0 | OMZ94: =OMV56*OMZ56+OMV55*OMZ55 -> 0 | ONH94: =OND56*ONH56+OND55*ONH55 -> 0 | ONP94: =ONL56*ONP56+ONL55*ONP55 -> 0 | ONX94: =ONT56*ONX56+ONT55*ONX55 -> 0 | OOF94: =OOB56*OOF56+OOB55*OOF55 -> 0 | OON94: =OOJ56*OON56+OOJ55*OON55 -> 0 | OOV94: =OOR56*OOV56+OOR55*OOV55 -> 0 | OPD94: =OOZ56*OPD56+OOZ55*OPD55 -> 0 | OPL94: =OPH56*OPL56+OPH55*OPL55 -> 0 | OPT94: =OPP56*OPT56+OPP55*OPT55 -> 0 | OQB94: =OPX56*OQB56+OPX55*OQB55 -> 0 | OQJ94: =OQF56*OQJ56+OQF55*OQJ55 -> 0 | OQR94: =OQN56*OQR56+OQN55*OQR55 -> 0 | OQZ94: =OQV56*OQZ56+OQV55*OQZ55 -> 0 | ORH94: =ORD56*ORH56+ORD55*ORH55 -> 0 | ORP94: =ORL56*ORP56+ORL55*ORP55 -> 0 | ORX94: =ORT56*ORX56+ORT55*ORX55 -> 0 | OSF94: =OSB56*OSF56+OSB55*OSF55 -> 0 | OSN94: =OSJ56*OSN56+OSJ55*OSN55 -> 0 | OSV94: =OSR56*OSV56+OSR55*OSV55 -> 0 | OTD94: =OSZ56*OTD56+OSZ55*OTD55 -> 0 | OTL94: =OTH56*OTL56+OTH55*OTL55 -> 0 | OTT94: =OTP56*OTT56+OTP55*OTT55 -> 0 | OUB94: =OTX56*OUB56+OTX55*OUB55 -> 0 | OUJ94: =OUF56*OUJ56+OUF55*OUJ55 -> 0 | OUR94: =OUN56*OUR56+OUN55*OUR55 -> 0 | OUZ94: =OUV56*OUZ56+OUV55*OUZ55 -> 0 | OVH94: =OVD56*OVH56+OVD55*OVH55 -> 0 | OVP94: =OVL56*OVP56+OVL55*OVP55 -> 0 | OVX94: =OVT56*OVX56+OVT55*OVX55 -> 0 | OWF94: =OWB56*OWF56+OWB55*OWF55 -> 0 | OWN94: =OWJ56*OWN56+OWJ55*OWN55 -> 0 | OWV94: =OWR56*OWV56+OWR55*OWV55 -> 0 | OXD94: =OWZ56*OXD56+OWZ55*OXD55 -> 0 | OXL94: =OXH56*OXL56+OXH55*OXL55 -> 0 | OXT94: =OXP56*OXT56+OXP55*OXT55 -> 0 | OYB94: =OXX56*OYB56+OXX55*OYB55 -> 0 | OYJ94: =OYF56*OYJ56+OYF55*OYJ55 -> 0 | OYR94: =OYN56*OYR56+OYN55*OYR55 -> 0 | OYZ94: =OYV56*OYZ56+OYV55*OYZ55 -> 0 | OZH94: =OZD56*OZH56+OZD55*OZH55 -> 0 | OZP94: =OZL56*OZP56+OZL55*OZP55 -> 0 | OZX94: =OZT56*OZX56+OZT55*OZX55 -> 0 | PAF94: =PAB56*PAF56+PAB55*PAF55 -> 0 | PAN94: =PAJ56*PAN56+PAJ55*PAN55 -> 0 | PAV94: =PAR56*PAV56+PAR55*PAV55 -> 0 | PBD94: =PAZ56*PBD56+PAZ55*PBD55 -> 0 | PBL94: =PBH56*PBL56+PBH55*PBL55 -> 0 | PBT94: =PBP56*PBT56+PBP55*PBT55 -> 0 | PCB94: =PBX56*PCB56+PBX55*PCB55 -> 0 | PCJ94: =PCF56*PCJ56+PCF55*PCJ55 -> 0 | PCR94: =PCN56*PCR56+PCN55*PCR55 -> 0 | PCZ94: =PCV56*PCZ56+PCV55*PCZ55 -> 0 | PDH94: =PDD56*PDH56+PDD55*PDH55 -> 0 | PDP94: =PDL56*PDP56+PDL55*PDP55 -> 0 | PDX94: =PDT56*PDX56+PDT55*PDX55 -> 0 | PEF94: =PEB56*PEF56+PEB55*PEF55 -> 0 | PEN94: =PEJ56*PEN56+PEJ55*PEN55 -> 0 | PEV94: =PER56*PEV56+PER55*PEV55 -> 0 | PFD94: =PEZ56*PFD56+PEZ55*PFD55 -> 0 | PFL94: =PFH56*PFL56+PFH55*PFL55 -> 0 | PFT94: =PFP56*PFT56+PFP55*PFT55 -> 0 | PGB94: =PFX56*PGB56+PFX55*PGB55 -> 0 | PGJ94: =PGF56*PGJ56+PGF55*PGJ55 -> 0 | PGR94: =PGN56*PGR56+PGN55*PGR55 -> 0 | PGZ94: =PGV56*PGZ56+PGV55*PGZ55 -> 0 | PHH94: =PHD56*PHH56+PHD55*PHH55 -> 0 | PHP94: =PHL56*PHP56+PHL55*PHP55 -> 0 | PHX94: =PHT56*PHX56+PHT55*PHX55 -> 0 | PIF94: =PIB56*PIF56+PIB55*PIF55 -> 0 | PIN94: =PIJ56*PIN56+PIJ55*PIN55 -> 0 | PIV94: =PIR56*PIV56+PIR55*PIV55 -> 0 | PJD94: =PIZ56*PJD56+PIZ55*PJD55 -> 0 | PJL94: =PJH56*PJL56+PJH55*PJL55 -> 0 | PJT94: =PJP56*PJT56+PJP55*PJT55 -> 0 | PKB94: =PJX56*PKB56+PJX55*PKB55 -> 0 | PKJ94: =PKF56*PKJ56+PKF55*PKJ55 -> 0 | PKR94: =PKN56*PKR56+PKN55*PKR55 -> 0 | PKZ94: =PKV56*PKZ56+PKV55*PKZ55 -> 0 | PLH94: =PLD56*PLH56+PLD55*PLH55 -> 0 | PLP94: =PLL56*PLP56+PLL55*PLP55 -> 0 | PLX94: =PLT56*PLX56+PLT55*PLX55 -> 0 | PMF94: =PMB56*PMF56+PMB55*PMF55 -> 0 | PMN94: =PMJ56*PMN56+PMJ55*PMN55 -> 0 | PMV94: =PMR56*PMV56+PMR55*PMV55 -> 0 | PND94: =PMZ56*PND56+PMZ55*PND55 -> 0 | PNL94: =PNH56*PNL56+PNH55*PNL55 -> 0 | PNT94: =PNP56*PNT56+PNP55*PNT55 -> 0 | POB94: =PNX56*POB56+PNX55*POB55 -> 0 | POJ94: =POF56*POJ56+POF55*POJ55 -> 0 | POR94: =PON56*POR56+PON55*POR55 -> 0 | POZ94: =POV56*POZ56+POV55*POZ55 -> 0 | PPH94: =PPD56*PPH56+PPD55*PPH55 -> 0 | PPP94: =PPL56*PPP56+PPL55*PPP55 -> 0 | PPX94: =PPT56*PPX56+PPT55*PPX55 -> 0 | PQF94: =PQB56*PQF56+PQB55*PQF55 -> 0 | PQN94: =PQJ56*PQN56+PQJ55*PQN55 -> 0 | PQV94: =PQR56*PQV56+PQR55*PQV55 -> 0 | PRD94: =PQZ56*PRD56+PQZ55*PRD55 -> 0 | PRL94: =PRH56*PRL56+PRH55*PRL55 -> 0 | PRT94: =PRP56*PRT56+PRP55*PRT55 -> 0 | PSB94: =PRX56*PSB56+PRX55*PSB55 -> 0 | PSJ94: =PSF56*PSJ56+PSF55*PSJ55 -> 0 | PSR94: =PSN56*PSR56+PSN55*PSR55 -> 0 | PSZ94: =PSV56*PSZ56+PSV55*PSZ55 -> 0 | PTH94: =PTD56*PTH56+PTD55*PTH55 -> 0 | PTP94: =PTL56*PTP56+PTL55*PTP55 -> 0 | PTX94: =PTT56*PTX56+PTT55*PTX55 -> 0 | PUF94: =PUB56*PUF56+PUB55*PUF55 -> 0 | PUN94: =PUJ56*PUN56+PUJ55*PUN55 -> 0 | PUV94: =PUR56*PUV56+PUR55*PUV55 -> 0 | PVD94: =PUZ56*PVD56+PUZ55*PVD55 -> 0 | PVL94: =PVH56*PVL56+PVH55*PVL55 -> 0 | PVT94: =PVP56*PVT56+PVP55*PVT55 -> 0 | PWB94: =PVX56*PWB56+PVX55*PWB55 -> 0 | PWJ94: =PWF56*PWJ56+PWF55*PWJ55 -> 0 | PWR94: =PWN56*PWR56+PWN55*PWR55 -> 0 | PWZ94: =PWV56*PWZ56+PWV55*PWZ55 -> 0 | PXH94: =PXD56*PXH56+PXD55*PXH55 -> 0 | PXP94: =PXL56*PXP56+PXL55*PXP55 -> 0 | PXX94: =PXT56*PXX56+PXT55*PXX55 -> 0 | PYF94: =PYB56*PYF56+PYB55*PYF55 -> 0 | PYN94: =PYJ56*PYN56+PYJ55*PYN55 -> 0 | PYV94: =PYR56*PYV56+PYR55*PYV55 -> 0 | PZD94: =PYZ56*PZD56+PYZ55*PZD55 -> 0 | PZL94: =PZH56*PZL56+PZH55*PZL55 -> 0 | PZT94: =PZP56*PZT56+PZP55*PZT55 -> 0 | QAB94: =PZX56*QAB56+PZX55*QAB55 -> 0 | QAJ94: =QAF56*QAJ56+QAF55*QAJ55 -> 0 | QAR94: =QAN56*QAR56+QAN55*QAR55 -> 0 | QAZ94: =QAV56*QAZ56+QAV55*QAZ55 -> 0 | QBH94: =QBD56*QBH56+QBD55*QBH55 -> 0 | QBP94: =QBL56*QBP56+QBL55*QBP55 -> 0 | QBX94: =QBT56*QBX56+QBT55*QBX55 -> 0 | QCF94: =QCB56*QCF56+QCB55*QCF55 -> 0 | QCN94: =QCJ56*QCN56+QCJ55*QCN55 -> 0 | QCV94: =QCR56*QCV56+QCR55*QCV55 -> 0 | QDD94: =QCZ56*QDD56+QCZ55*QDD55 -> 0 | QDL94: =QDH56*QDL56+QDH55*QDL55 -> 0 | QDT94: =QDP56*QDT56+QDP55*QDT55 -> 0 | QEB94: =QDX56*QEB56+QDX55*QEB55 -> 0 | QEJ94: =QEF56*QEJ56+QEF55*QEJ55 -> 0 | QER94: =QEN56*QER56+QEN55*QER55 -> 0 | QEZ94: =QEV56*QEZ56+QEV55*QEZ55 -> 0 | QFH94: =QFD56*QFH56+QFD55*QFH55 -> 0 | QFP94: =QFL56*QFP56+QFL55*QFP55 -> 0 | QFX94: =QFT56*QFX56+QFT55*QFX55 -> 0 | QGF94: =QGB56*QGF56+QGB55*QGF55 -> 0 | QGN94: =QGJ56*QGN56+QGJ55*QGN55 -> 0 | QGV94: =QGR56*QGV56+QGR55*QGV55 -> 0 | QHD94: =QGZ56*QHD56+QGZ55*QHD55 -> 0 | QHL94: =QHH56*QHL56+QHH55*QHL55 -> 0 | QHT94: =QHP56*QHT56+QHP55*QHT55 -> 0 | QIB94: =QHX56*QIB56+QHX55*QIB55 -> 0 | QIJ94: =QIF56*QIJ56+QIF55*QIJ55 -> 0 | QIR94: =QIN56*QIR56+QIN55*QIR55 -> 0 | QIZ94: =QIV56*QIZ56+QIV55*QIZ55 -> 0 | QJH94: =QJD56*QJH56+QJD55*QJH55 -> 0 | QJP94: =QJL56*QJP56+QJL55*QJP55 -> 0 | QJX94: =QJT56*QJX56+QJT55*QJX55 -> 0 | QKF94: =QKB56*QKF56+QKB55*QKF55 -> 0 | QKN94: =QKJ56*QKN56+QKJ55*QKN55 -> 0 | QKV94: =QKR56*QKV56+QKR55*QKV55 -> 0 | QLD94: =QKZ56*QLD56+QKZ55*QLD55 -> 0 | QLL94: =QLH56*QLL56+QLH55*QLL55 -> 0 | QLT94: =QLP56*QLT56+QLP55*QLT55 -> 0 | QMB94: =QLX56*QMB56+QLX55*QMB55 -> 0 | QMJ94: =QMF56*QMJ56+QMF55*QMJ55 -> 0 | QMR94: =QMN56*QMR56+QMN55*QMR55 -> 0 | QMZ94: =QMV56*QMZ56+QMV55*QMZ55 -> 0 | QNH94: =QND56*QNH56+QND55*QNH55 -> 0 | QNP94: =QNL56*QNP56+QNL55*QNP55 -> 0 | QNX94: =QNT56*QNX56+QNT55*QNX55 -> 0 | QOF94: =QOB56*QOF56+QOB55*QOF55 -> 0 | QON94: =QOJ56*QON56+QOJ55*QON55 -> 0 | QOV94: =QOR56*QOV56+QOR55*QOV55 -> 0 | QPD94: =QOZ56*QPD56+QOZ55*QPD55 -> 0 | QPL94: =QPH56*QPL56+QPH55*QPL55 -> 0 | QPT94: =QPP56*QPT56+QPP55*QPT55 -> 0 | QQB94: =QPX56*QQB56+QPX55*QQB55 -> 0 | QQJ94: =QQF56*QQJ56+QQF55*QQJ55 -> 0 | QQR94: =QQN56*QQR56+QQN55*QQR55 -> 0 | QQZ94: =QQV56*QQZ56+QQV55*QQZ55 -> 0 | QRH94: =QRD56*QRH56+QRD55*QRH55 -> 0 | QRP94: =QRL56*QRP56+QRL55*QRP55 -> 0 | QRX94: =QRT56*QRX56+QRT55*QRX55 -> 0 | QSF94: =QSB56*QSF56+QSB55*QSF55 -> 0 | QSN94: =QSJ56*QSN56+QSJ55*QSN55 -> 0 | QSV94: =QSR56*QSV56+QSR55*QSV55 -> 0 | QTD94: =QSZ56*QTD56+QSZ55*QTD55 -> 0 | QTL94: =QTH56*QTL56+QTH55*QTL55 -> 0 | QTT94: =QTP56*QTT56+QTP55*QTT55 -> 0 | QUB94: =QTX56*QUB56+QTX55*QUB55 -> 0 | QUJ94: =QUF56*QUJ56+QUF55*QUJ55 -> 0 | QUR94: =QUN56*QUR56+QUN55*QUR55 -> 0 | QUZ94: =QUV56*QUZ56+QUV55*QUZ55 -> 0 | QVH94: =QVD56*QVH56+QVD55*QVH55 -> 0 | QVP94: =QVL56*QVP56+QVL55*QVP55 -> 0 | QVX94: =QVT56*QVX56+QVT55*QVX55 -> 0 | QWF94: =QWB56*QWF56+QWB55*QWF55 -> 0 | QWN94: =QWJ56*QWN56+QWJ55*QWN55 -> 0 | QWV94: =QWR56*QWV56+QWR55*QWV55 -> 0 | QXD94: =QWZ56*QXD56+QWZ55*QXD55 -> 0 | QXL94: =QXH56*QXL56+QXH55*QXL55 -> 0 | QXT94: =QXP56*QXT56+QXP55*QXT55 -> 0 | QYB94: =QXX56*QYB56+QXX55*QYB55 -> 0 | QYJ94: =QYF56*QYJ56+QYF55*QYJ55 -> 0 | QYR94: =QYN56*QYR56+QYN55*QYR55 -> 0 | QYZ94: =QYV56*QYZ56+QYV55*QYZ55 -> 0 | QZH94: =QZD56*QZH56+QZD55*QZH55 -> 0 | QZP94: =QZL56*QZP56+QZL55*QZP55 -> 0 | QZX94: =QZT56*QZX56+QZT55*QZX55 -> 0 | RAF94: =RAB56*RAF56+RAB55*RAF55 -> 0 | RAN94: =RAJ56*RAN56+RAJ55*RAN55 -> 0 | RAV94: =RAR56*RAV56+RAR55*RAV55 -> 0 | RBD94: =RAZ56*RBD56+RAZ55*RBD55 -> 0 | RBL94: =RBH56*RBL56+RBH55*RBL55 -> 0 | RBT94: =RBP56*RBT56+RBP55*RBT55 -> 0 | RCB94: =RBX56*RCB56+RBX55*RCB55 -> 0 | RCJ94: =RCF56*RCJ56+RCF55*RCJ55 -> 0 | RCR94: =RCN56*RCR56+RCN55*RCR55 -> 0 | RCZ94: =RCV56*RCZ56+RCV55*RCZ55 -> 0 | RDH94: =RDD56*RDH56+RDD55*RDH55 -> 0 | RDP94: =RDL56*RDP56+RDL55*RDP55 -> 0 | RDX94: =RDT56*RDX56+RDT55*RDX55 -> 0 | REF94: =REB56*REF56+REB55*REF55 -> 0 | REN94: =REJ56*REN56+REJ55*REN55 -> 0 | REV94: =RER56*REV56+RER55*REV55 -> 0 | RFD94: =REZ56*RFD56+REZ55*RFD55 -> 0 | RFL94: =RFH56*RFL56+RFH55*RFL55 -> 0 | RFT94: =RFP56*RFT56+RFP55*RFT55 -> 0 | RGB94: =RFX56*RGB56+RFX55*RGB55 -> 0 | RGJ94: =RGF56*RGJ56+RGF55*RGJ55 -> 0 | RGR94: =RGN56*RGR56+RGN55*RGR55 -> 0 | RGZ94: =RGV56*RGZ56+RGV55*RGZ55 -> 0 | RHH94: =RHD56*RHH56+RHD55*RHH55 -> 0 | RHP94: =RHL56*RHP56+RHL55*RHP55 -> 0 | RHX94: =RHT56*RHX56+RHT55*RHX55 -> 0 | RIF94: =RIB56*RIF56+RIB55*RIF55 -> 0 | RIN94: =RIJ56*RIN56+RIJ55*RIN55 -> 0 | RIV94: =RIR56*RIV56+RIR55*RIV55 -> 0 | RJD94: =RIZ56*RJD56+RIZ55*RJD55 -> 0 | RJL94: =RJH56*RJL56+RJH55*RJL55 -> 0 | RJT94: =RJP56*RJT56+RJP55*RJT55 -> 0 | RKB94: =RJX56*RKB56+RJX55*RKB55 -> 0 | RKJ94: =RKF56*RKJ56+RKF55*RKJ55 -> 0 | RKR94: =RKN56*RKR56+RKN55*RKR55 -> 0 | RKZ94: =RKV56*RKZ56+RKV55*RKZ55 -> 0 | RLH94: =RLD56*RLH56+RLD55*RLH55 -> 0 | RLP94: =RLL56*RLP56+RLL55*RLP55 -> 0 | RLX94: =RLT56*RLX56+RLT55*RLX55 -> 0 | RMF94: =RMB56*RMF56+RMB55*RMF55 -> 0 | RMN94: =RMJ56*RMN56+RMJ55*RMN55 -> 0 | RMV94: =RMR56*RMV56+RMR55*RMV55 -> 0 | RND94: =RMZ56*RND56+RMZ55*RND55 -> 0 | RNL94: =RNH56*RNL56+RNH55*RNL55 -> 0 | RNT94: =RNP56*RNT56+RNP55*RNT55 -> 0 | ROB94: =RNX56*ROB56+RNX55*ROB55 -> 0 | ROJ94: =ROF56*ROJ56+ROF55*ROJ55 -> 0 | ROR94: =RON56*ROR56+RON55*ROR55 -> 0 | ROZ94: =ROV56*ROZ56+ROV55*ROZ55 -> 0 | RPH94: =RPD56*RPH56+RPD55*RPH55 -> 0 | RPP94: =RPL56*RPP56+RPL55*RPP55 -> 0 | RPX94: =RPT56*RPX56+RPT55*RPX55 -> 0 | RQF94: =RQB56*RQF56+RQB55*RQF55 -> 0 | RQN94: =RQJ56*RQN56+RQJ55*RQN55 -> 0 | RQV94: =RQR56*RQV56+RQR55*RQV55 -> 0 | RRD94: =RQZ56*RRD56+RQZ55*RRD55 -> 0 | RRL94: =RRH56*RRL56+RRH55*RRL55 -> 0 | RRT94: =RRP56*RRT56+RRP55*RRT55 -> 0 | RSB94: =RRX56*RSB56+RRX55*RSB55 -> 0 | RSJ94: =RSF56*RSJ56+RSF55*RSJ55 -> 0 | RSR94: =RSN56*RSR56+RSN55*RSR55 -> 0 | RSZ94: =RSV56*RSZ56+RSV55*RSZ55 -> 0 | RTH94: =RTD56*RTH56+RTD55*RTH55 -> 0 | RTP94: =RTL56*RTP56+RTL55*RTP55 -> 0 | RTX94: =RTT56*RTX56+RTT55*RTX55 -> 0 | RUF94: =RUB56*RUF56+RUB55*RUF55 -> 0 | RUN94: =RUJ56*RUN56+RUJ55*RUN55 -> 0 | RUV94: =RUR56*RUV56+RUR55*RUV55 -> 0 | RVD94: =RUZ56*RVD56+RUZ55*RVD55 -> 0 | RVL94: =RVH56*RVL56+RVH55*RVL55 -> 0 | RVT94: =RVP56*RVT56+RVP55*RVT55 -> 0 | RWB94: =RVX56*RWB56+RVX55*RWB55 -> 0 | RWJ94: =RWF56*RWJ56+RWF55*RWJ55 -> 0 | RWR94: =RWN56*RWR56+RWN55*RWR55 -> 0 | RWZ94: =RWV56*RWZ56+RWV55*RWZ55 -> 0 | RXH94: =RXD56*RXH56+RXD55*RXH55 -> 0 | RXP94: =RXL56*RXP56+RXL55*RXP55 -> 0 | RXX94: =RXT56*RXX56+RXT55*RXX55 -> 0 | RYF94: =RYB56*RYF56+RYB55*RYF55 -> 0 | RYN94: =RYJ56*RYN56+RYJ55*RYN55 -> 0 | RYV94: =RYR56*RYV56+RYR55*RYV55 -> 0 | RZD94: =RYZ56*RZD56+RYZ55*RZD55 -> 0 | RZL94: =RZH56*RZL56+RZH55*RZL55 -> 0 | RZT94: =RZP56*RZT56+RZP55*RZT55 -> 0 | SAB94: =RZX56*SAB56+RZX55*SAB55 -> 0 | SAJ94: =SAF56*SAJ56+SAF55*SAJ55 -> 0 | SAR94: =SAN56*SAR56+SAN55*SAR55 -> 0 | SAZ94: =SAV56*SAZ56+SAV55*SAZ55 -> 0 | SBH94: =SBD56*SBH56+SBD55*SBH55 -> 0 | SBP94: =SBL56*SBP56+SBL55*SBP55 -> 0 | SBX94: =SBT56*SBX56+SBT55*SBX55 -> 0 | SCF94: =SCB56*SCF56+SCB55*SCF55 -> 0 | SCN94: =SCJ56*SCN56+SCJ55*SCN55 -> 0 | SCV94: =SCR56*SCV56+SCR55*SCV55 -> 0 | SDD94: =SCZ56*SDD56+SCZ55*SDD55 -> 0 | SDL94: =SDH56*SDL56+SDH55*SDL55 -> 0 | SDT94: =SDP56*SDT56+SDP55*SDT55 -> 0 | SEB94: =SDX56*SEB56+SDX55*SEB55 -> 0 | SEJ94: =SEF56*SEJ56+SEF55*SEJ55 -> 0 | SER94: =SEN56*SER56+SEN55*SER55 -> 0 | SEZ94: =SEV56*SEZ56+SEV55*SEZ55 -> 0 | SFH94: =SFD56*SFH56+SFD55*SFH55 -> 0 | SFP94: =SFL56*SFP56+SFL55*SFP55 -> 0 | SFX94: =SFT56*SFX56+SFT55*SFX55 -> 0 | SGF94: =SGB56*SGF56+SGB55*SGF55 -> 0 | SGN94: =SGJ56*SGN56+SGJ55*SGN55 -> 0 | SGV94: =SGR56*SGV56+SGR55*SGV55 -> 0 | SHD94: =SGZ56*SHD56+SGZ55*SHD55 -> 0 | SHL94: =SHH56*SHL56+SHH55*SHL55 -> 0 | SHT94: =SHP56*SHT56+SHP55*SHT55 -> 0 | SIB94: =SHX56*SIB56+SHX55*SIB55 -> 0 | SIJ94: =SIF56*SIJ56+SIF55*SIJ55 -> 0 | SIR94: =SIN56*SIR56+SIN55*SIR55 -> 0 | SIZ94: =SIV56*SIZ56+SIV55*SIZ55 -> 0 | SJH94: =SJD56*SJH56+SJD55*SJH55 -> 0 | SJP94: =SJL56*SJP56+SJL55*SJP55 -> 0 | SJX94: =SJT56*SJX56+SJT55*SJX55 -> 0 | SKF94: =SKB56*SKF56+SKB55*SKF55 -> 0 | SKN94: =SKJ56*SKN56+SKJ55*SKN55 -> 0 | SKV94: =SKR56*SKV56+SKR55*SKV55 -> 0 | SLD94: =SKZ56*SLD56+SKZ55*SLD55 -> 0 | SLL94: =SLH56*SLL56+SLH55*SLL55 -> 0 | SLT94: =SLP56*SLT56+SLP55*SLT55 -> 0 | SMB94: =SLX56*SMB56+SLX55*SMB55 -> 0 | SMJ94: =SMF56*SMJ56+SMF55*SMJ55 -> 0 | SMR94: =SMN56*SMR56+SMN55*SMR55 -> 0 | SMZ94: =SMV56*SMZ56+SMV55*SMZ55 -> 0 | SNH94: =SND56*SNH56+SND55*SNH55 -> 0 | SNP94: =SNL56*SNP56+SNL55*SNP55 -> 0 | SNX94: =SNT56*SNX56+SNT55*SNX55 -> 0 | SOF94: =SOB56*SOF56+SOB55*SOF55 -> 0 | SON94: =SOJ56*SON56+SOJ55*SON55 -> 0 | SOV94: =SOR56*SOV56+SOR55*SOV55 -> 0 | SPD94: =SOZ56*SPD56+SOZ55*SPD55 -> 0 | SPL94: =SPH56*SPL56+SPH55*SPL55 -> 0 | SPT94: =SPP56*SPT56+SPP55*SPT55 -> 0 | SQB94: =SPX56*SQB56+SPX55*SQB55 -> 0 | SQJ94: =SQF56*SQJ56+SQF55*SQJ55 -> 0 | SQR94: =SQN56*SQR56+SQN55*SQR55 -> 0 | SQZ94: =SQV56*SQZ56+SQV55*SQZ55 -> 0 | SRH94: =SRD56*SRH56+SRD55*SRH55 -> 0 | SRP94: =SRL56*SRP56+SRL55*SRP55 -> 0 | SRX94: =SRT56*SRX56+SRT55*SRX55 -> 0 | SSF94: =SSB56*SSF56+SSB55*SSF55 -> 0 | SSN94: =SSJ56*SSN56+SSJ55*SSN55 -> 0 | SSV94: =SSR56*SSV56+SSR55*SSV55 -> 0 | STD94: =SSZ56*STD56+SSZ55*STD55 -> 0 | STL94: =STH56*STL56+STH55*STL55 -> 0 | STT94: =STP56*STT56+STP55*STT55 -> 0 | SUB94: =STX56*SUB56+STX55*SUB55 -> 0 | SUJ94: =SUF56*SUJ56+SUF55*SUJ55 -> 0 | SUR94: =SUN56*SUR56+SUN55*SUR55 -> 0 | SUZ94: =SUV56*SUZ56+SUV55*SUZ55 -> 0 | SVH94: =SVD56*SVH56+SVD55*SVH55 -> 0 | SVP94: =SVL56*SVP56+SVL55*SVP55 -> 0 | SVX94: =SVT56*SVX56+SVT55*SVX55 -> 0 | SWF94: =SWB56*SWF56+SWB55*SWF55 -> 0 | SWN94: =SWJ56*SWN56+SWJ55*SWN55 -> 0 | SWV94: =SWR56*SWV56+SWR55*SWV55 -> 0 | SXD94: =SWZ56*SXD56+SWZ55*SXD55 -> 0 | SXL94: =SXH56*SXL56+SXH55*SXL55 -> 0 | SXT94: =SXP56*SXT56+SXP55*SXT55 -> 0 | SYB94: =SXX56*SYB56+SXX55*SYB55 -> 0 | SYJ94: =SYF56*SYJ56+SYF55*SYJ55 -> 0 | SYR94: =SYN56*SYR56+SYN55*SYR55 -> 0 | SYZ94: =SYV56*SYZ56+SYV55*SYZ55 -> 0 | SZH94: =SZD56*SZH56+SZD55*SZH55 -> 0 | SZP94: =SZL56*SZP56+SZL55*SZP55 -> 0 | SZX94: =SZT56*SZX56+SZT55*SZX55 -> 0 | TAF94: =TAB56*TAF56+TAB55*TAF55 -> 0 | TAN94: =TAJ56*TAN56+TAJ55*TAN55 -> 0 | TAV94: =TAR56*TAV56+TAR55*TAV55 -> 0 | TBD94: =TAZ56*TBD56+TAZ55*TBD55 -> 0 | TBL94: =TBH56*TBL56+TBH55*TBL55 -> 0 | TBT94: =TBP56*TBT56+TBP55*TBT55 -> 0 | TCB94: =TBX56*TCB56+TBX55*TCB55 -> 0 | TCJ94: =TCF56*TCJ56+TCF55*TCJ55 -> 0 | TCR94: =TCN56*TCR56+TCN55*TCR55 -> 0 | TCZ94: =TCV56*TCZ56+TCV55*TCZ55 -> 0 | TDH94: =TDD56*TDH56+TDD55*TDH55 -> 0 | TDP94: =TDL56*TDP56+TDL55*TDP55 -> 0 | TDX94: =TDT56*TDX56+TDT55*TDX55 -> 0 | TEF94: =TEB56*TEF56+TEB55*TEF55 -> 0 | TEN94: =TEJ56*TEN56+TEJ55*TEN55 -> 0 | TEV94: =TER56*TEV56+TER55*TEV55 -> 0 | TFD94: =TEZ56*TFD56+TEZ55*TFD55 -> 0 | TFL94: =TFH56*TFL56+TFH55*TFL55 -> 0 | TFT94: =TFP56*TFT56+TFP55*TFT55 -> 0 | TGB94: =TFX56*TGB56+TFX55*TGB55 -> 0 | TGJ94: =TGF56*TGJ56+TGF55*TGJ55 -> 0 | TGR94: =TGN56*TGR56+TGN55*TGR55 -> 0 | TGZ94: =TGV56*TGZ56+TGV55*TGZ55 -> 0 | THH94: =THD56*THH56+THD55*THH55 -> 0 | THP94: =THL56*THP56+THL55*THP55 -> 0 | THX94: =THT56*THX56+THT55*THX55 -> 0 | TIF94: =TIB56*TIF56+TIB55*TIF55 -> 0 | TIN94: =TIJ56*TIN56+TIJ55*TIN55 -> 0 | TIV94: =TIR56*TIV56+TIR55*TIV55 -> 0 | TJD94: =TIZ56*TJD56+TIZ55*TJD55 -> 0 | TJL94: =TJH56*TJL56+TJH55*TJL55 -> 0 | TJT94: =TJP56*TJT56+TJP55*TJT55 -> 0 | TKB94: =TJX56*TKB56+TJX55*TKB55 -> 0 | TKJ94: =TKF56*TKJ56+TKF55*TKJ55 -> 0 | TKR94: =TKN56*TKR56+TKN55*TKR55 -> 0 | TKZ94: =TKV56*TKZ56+TKV55*TKZ55 -> 0 | TLH94: =TLD56*TLH56+TLD55*TLH55 -> 0 | TLP94: =TLL56*TLP56+TLL55*TLP55 -> 0 | TLX94: =TLT56*TLX56+TLT55*TLX55 -> 0 | TMF94: =TMB56*TMF56+TMB55*TMF55 -> 0 | TMN94: =TMJ56*TMN56+TMJ55*TMN55 -> 0 | TMV94: =TMR56*TMV56+TMR55*TMV55 -> 0 | TND94: =TMZ56*TND56+TMZ55*TND55 -> 0 | TNL94: =TNH56*TNL56+TNH55*TNL55 -> 0 | TNT94: =TNP56*TNT56+TNP55*TNT55 -> 0 | TOB94: =TNX56*TOB56+TNX55*TOB55 -> 0 | TOJ94: =TOF56*TOJ56+TOF55*TOJ55 -> 0 | TOR94: =TON56*TOR56+TON55*TOR55 -> 0 | TOZ94: =TOV56*TOZ56+TOV55*TOZ55 -> 0 | TPH94: =TPD56*TPH56+TPD55*TPH55 -> 0 | TPP94: =TPL56*TPP56+TPL55*TPP55 -> 0 | TPX94: =TPT56*TPX56+TPT55*TPX55 -> 0 | TQF94: =TQB56*TQF56+TQB55*TQF55 -> 0 | TQN94: =TQJ56*TQN56+TQJ55*TQN55 -> 0 | TQV94: =TQR56*TQV56+TQR55*TQV55 -> 0 | TRD94: =TQZ56*TRD56+TQZ55*TRD55 -> 0 | TRL94: =TRH56*TRL56+TRH55*TRL55 -> 0 | TRT94: =TRP56*TRT56+TRP55*TRT55 -> 0 | TSB94: =TRX56*TSB56+TRX55*TSB55 -> 0 | TSJ94: =TSF56*TSJ56+TSF55*TSJ55 -> 0 | TSR94: =TSN56*TSR56+TSN55*TSR55 -> 0 | TSZ94: =TSV56*TSZ56+TSV55*TSZ55 -> 0 | TTH94: =TTD56*TTH56+TTD55*TTH55 -> 0 | TTP94: =TTL56*TTP56+TTL55*TTP55 -> 0 | TTX94: =TTT56*TTX56+TTT55*TTX55 -> 0 | TUF94: =TUB56*TUF56+TUB55*TUF55 -> 0 | TUN94: =TUJ56*TUN56+TUJ55*TUN55 -> 0 | TUV94: =TUR56*TUV56+TUR55*TUV55 -> 0 | TVD94: =TUZ56*TVD56+TUZ55*TVD55 -> 0 | TVL94: =TVH56*TVL56+TVH55*TVL55 -> 0 | TVT94: =TVP56*TVT56+TVP55*TVT55 -> 0 | TWB94: =TVX56*TWB56+TVX55*TWB55 -> 0 | TWJ94: =TWF56*TWJ56+TWF55*TWJ55 -> 0 | TWR94: =TWN56*TWR56+TWN55*TWR55 -> 0 | TWZ94: =TWV56*TWZ56+TWV55*TWZ55 -> 0 | TXH94: =TXD56*TXH56+TXD55*TXH55 -> 0 | TXP94: =TXL56*TXP56+TXL55*TXP55 -> 0 | TXX94: =TXT56*TXX56+TXT55*TXX55 -> 0 | TYF94: =TYB56*TYF56+TYB55*TYF55 -> 0 | TYN94: =TYJ56*TYN56+TYJ55*TYN55 -> 0 | TYV94: =TYR56*TYV56+TYR55*TYV55 -> 0 | TZD94: =TYZ56*TZD56+TYZ55*TZD55 -> 0 | TZL94: =TZH56*TZL56+TZH55*TZL55 -> 0 | TZT94: =TZP56*TZT56+TZP55*TZT55 -> 0 | UAB94: =TZX56*UAB56+TZX55*UAB55 -> 0 | UAJ94: =UAF56*UAJ56+UAF55*UAJ55 -> 0 | UAR94: =UAN56*UAR56+UAN55*UAR55 -> 0 | UAZ94: =UAV56*UAZ56+UAV55*UAZ55 -> 0 | UBH94: =UBD56*UBH56+UBD55*UBH55 -> 0 | UBP94: =UBL56*UBP56+UBL55*UBP55 -> 0 | UBX94: =UBT56*UBX56+UBT55*UBX55 -> 0 | UCF94: =UCB56*UCF56+UCB55*UCF55 -> 0 | UCN94: =UCJ56*UCN56+UCJ55*UCN55 -> 0 | UCV94: =UCR56*UCV56+UCR55*UCV55 -> 0 | UDD94: =UCZ56*UDD56+UCZ55*UDD55 -> 0 | UDL94: =UDH56*UDL56+UDH55*UDL55 -> 0 | UDT94: =UDP56*UDT56+UDP55*UDT55 -> 0 | UEB94: =UDX56*UEB56+UDX55*UEB55 -> 0 | UEJ94: =UEF56*UEJ56+UEF55*UEJ55 -> 0 | UER94: =UEN56*UER56+UEN55*UER55 -> 0 | UEZ94: =UEV56*UEZ56+UEV55*UEZ55 -> 0 | UFH94: =UFD56*UFH56+UFD55*UFH55 -> 0 | UFP94: =UFL56*UFP56+UFL55*UFP55 -> 0 | UFX94: =UFT56*UFX56+UFT55*UFX55 -> 0 | UGF94: =UGB56*UGF56+UGB55*UGF55 -> 0 | UGN94: =UGJ56*UGN56+UGJ55*UGN55 -> 0 | UGV94: =UGR56*UGV56+UGR55*UGV55 -> 0 | UHD94: =UGZ56*UHD56+UGZ55*UHD55 -> 0 | UHL94: =UHH56*UHL56+UHH55*UHL55 -> 0 | UHT94: =UHP56*UHT56+UHP55*UHT55 -> 0 | UIB94: =UHX56*UIB56+UHX55*UIB55 -> 0 | UIJ94: =UIF56*UIJ56+UIF55*UIJ55 -> 0 | UIR94: =UIN56*UIR56+UIN55*UIR55 -> 0 | UIZ94: =UIV56*UIZ56+UIV55*UIZ55 -> 0 | UJH94: =UJD56*UJH56+UJD55*UJH55 -> 0 | UJP94: =UJL56*UJP56+UJL55*UJP55 -> 0 | UJX94: =UJT56*UJX56+UJT55*UJX55 -> 0 | UKF94: =UKB56*UKF56+UKB55*UKF55 -> 0 | UKN94: =UKJ56*UKN56+UKJ55*UKN55 -> 0 | UKV94: =UKR56*UKV56+UKR55*UKV55 -> 0 | ULD94: =UKZ56*ULD56+UKZ55*ULD55 -> 0 | ULL94: =ULH56*ULL56+ULH55*ULL55 -> 0 | ULT94: =ULP56*ULT56+ULP55*ULT55 -> 0 | UMB94: =ULX56*UMB56+ULX55*UMB55 -> 0 | UMJ94: =UMF56*UMJ56+UMF55*UMJ55 -> 0 | UMR94: =UMN56*UMR56+UMN55*UMR55 -> 0 | UMZ94: =UMV56*UMZ56+UMV55*UMZ55 -> 0 | UNH94: =UND56*UNH56+UND55*UNH55 -> 0 | UNP94: =UNL56*UNP56+UNL55*UNP55 -> 0 | UNX94: =UNT56*UNX56+UNT55*UNX55 -> 0 | UOF94: =UOB56*UOF56+UOB55*UOF55 -> 0 | UON94: =UOJ56*UON56+UOJ55*UON55 -> 0 | UOV94: =UOR56*UOV56+UOR55*UOV55 -> 0 | UPD94: =UOZ56*UPD56+UOZ55*UPD55 -> 0 | UPL94: =UPH56*UPL56+UPH55*UPL55 -> 0 | UPT94: =UPP56*UPT56+UPP55*UPT55 -> 0 | UQB94: =UPX56*UQB56+UPX55*UQB55 -> 0 | UQJ94: =UQF56*UQJ56+UQF55*UQJ55 -> 0 | UQR94: =UQN56*UQR56+UQN55*UQR55 -> 0 | UQZ94: =UQV56*UQZ56+UQV55*UQZ55 -> 0 | URH94: =URD56*URH56+URD55*URH55 -> 0 | URP94: =URL56*URP56+URL55*URP55 -> 0 | URX94: =URT56*URX56+URT55*URX55 -> 0 | USF94: =USB56*USF56+USB55*USF55 -> 0 | USN94: =USJ56*USN56+USJ55*USN55 -> 0 | USV94: =USR56*USV56+USR55*USV55 -> 0 | UTD94: =USZ56*UTD56+USZ55*UTD55 -> 0 | UTL94: =UTH56*UTL56+UTH55*UTL55 -> 0 | UTT94: =UTP56*UTT56+UTP55*UTT55 -> 0 | UUB94: =UTX56*UUB56+UTX55*UUB55 -> 0 | UUJ94: =UUF56*UUJ56+UUF55*UUJ55 -> 0 | UUR94: =UUN56*UUR56+UUN55*UUR55 -> 0 | UUZ94: =UUV56*UUZ56+UUV55*UUZ55 -> 0 | UVH94: =UVD56*UVH56+UVD55*UVH55 -> 0 | UVP94: =UVL56*UVP56+UVL55*UVP55 -> 0 | UVX94: =UVT56*UVX56+UVT55*UVX55 -> 0 | UWF94: =UWB56*UWF56+UWB55*UWF55 -> 0 | UWN94: =UWJ56*UWN56+UWJ55*UWN55 -> 0 | UWV94: =UWR56*UWV56+UWR55*UWV55 -> 0 | UXD94: =UWZ56*UXD56+UWZ55*UXD55 -> 0 | UXL94: =UXH56*UXL56+UXH55*UXL55 -> 0 | UXT94: =UXP56*UXT56+UXP55*UXT55 -> 0 | UYB94: =UXX56*UYB56+UXX55*UYB55 -> 0 | UYJ94: =UYF56*UYJ56+UYF55*UYJ55 -> 0 | UYR94: =UYN56*UYR56+UYN55*UYR55 -> 0 | UYZ94: =UYV56*UYZ56+UYV55*UYZ55 -> 0 | UZH94: =UZD56*UZH56+UZD55*UZH55 -> 0 | UZP94: =UZL56*UZP56+UZL55*UZP55 -> 0 | UZX94: =UZT56*UZX56+UZT55*UZX55 -> 0 | VAF94: =VAB56*VAF56+VAB55*VAF55 -> 0 | VAN94: =VAJ56*VAN56+VAJ55*VAN55 -> 0 | VAV94: =VAR56*VAV56+VAR55*VAV55 -> 0 | VBD94: =VAZ56*VBD56+VAZ55*VBD55 -> 0 | VBL94: =VBH56*VBL56+VBH55*VBL55 -> 0 | VBT94: =VBP56*VBT56+VBP55*VBT55 -> 0 | VCB94: =VBX56*VCB56+VBX55*VCB55 -> 0 | VCJ94: =VCF56*VCJ56+VCF55*VCJ55 -> 0 | VCR94: =VCN56*VCR56+VCN55*VCR55 -> 0 | VCZ94: =VCV56*VCZ56+VCV55*VCZ55 -> 0 | VDH94: =VDD56*VDH56+VDD55*VDH55 -> 0 | VDP94: =VDL56*VDP56+VDL55*VDP55 -> 0 | VDX94: =VDT56*VDX56+VDT55*VDX55 -> 0 | VEF94: =VEB56*VEF56+VEB55*VEF55 -> 0 | VEN94: =VEJ56*VEN56+VEJ55*VEN55 -> 0 | VEV94: =VER56*VEV56+VER55*VEV55 -> 0 | VFD94: =VEZ56*VFD56+VEZ55*VFD55 -> 0 | VFL94: =VFH56*VFL56+VFH55*VFL55 -> 0 | VFT94: =VFP56*VFT56+VFP55*VFT55 -> 0 | VGB94: =VFX56*VGB56+VFX55*VGB55 -> 0 | VGJ94: =VGF56*VGJ56+VGF55*VGJ55 -> 0 | VGR94: =VGN56*VGR56+VGN55*VGR55 -> 0 | VGZ94: =VGV56*VGZ56+VGV55*VGZ55 -> 0 | VHH94: =VHD56*VHH56+VHD55*VHH55 -> 0 | VHP94: =VHL56*VHP56+VHL55*VHP55 -> 0 | VHX94: =VHT56*VHX56+VHT55*VHX55 -> 0 | VIF94: =VIB56*VIF56+VIB55*VIF55 -> 0 | VIN94: =VIJ56*VIN56+VIJ55*VIN55 -> 0 | VIV94: =VIR56*VIV56+VIR55*VIV55 -> 0 | VJD94: =VIZ56*VJD56+VIZ55*VJD55 -> 0 | VJL94: =VJH56*VJL56+VJH55*VJL55 -> 0 | VJT94: =VJP56*VJT56+VJP55*VJT55 -> 0 | VKB94: =VJX56*VKB56+VJX55*VKB55 -> 0 | VKJ94: =VKF56*VKJ56+VKF55*VKJ55 -> 0 | VKR94: =VKN56*VKR56+VKN55*VKR55 -> 0 | VKZ94: =VKV56*VKZ56+VKV55*VKZ55 -> 0 | VLH94: =VLD56*VLH56+VLD55*VLH55 -> 0 | VLP94: =VLL56*VLP56+VLL55*VLP55 -> 0 | VLX94: =VLT56*VLX56+VLT55*VLX55 -> 0 | VMF94: =VMB56*VMF56+VMB55*VMF55 -> 0 | VMN94: =VMJ56*VMN56+VMJ55*VMN55 -> 0 | VMV94: =VMR56*VMV56+VMR55*VMV55 -> 0 | VND94: =VMZ56*VND56+VMZ55*VND55 -> 0 | VNL94: =VNH56*VNL56+VNH55*VNL55 -> 0 | VNT94: =VNP56*VNT56+VNP55*VNT55 -> 0 | VOB94: =VNX56*VOB56+VNX55*VOB55 -> 0 | VOJ94: =VOF56*VOJ56+VOF55*VOJ55 -> 0 | VOR94: =VON56*VOR56+VON55*VOR55 -> 0 | VOZ94: =VOV56*VOZ56+VOV55*VOZ55 -> 0 | VPH94: =VPD56*VPH56+VPD55*VPH55 -> 0 | VPP94: =VPL56*VPP56+VPL55*VPP55 -> 0 | VPX94: =VPT56*VPX56+VPT55*VPX55 -> 0 | VQF94: =VQB56*VQF56+VQB55*VQF55 -> 0 | VQN94: =VQJ56*VQN56+VQJ55*VQN55 -> 0 | VQV94: =VQR56*VQV56+VQR55*VQV55 -> 0 | VRD94: =VQZ56*VRD56+VQZ55*VRD55 -> 0 | VRL94: =VRH56*VRL56+VRH55*VRL55 -> 0 | VRT94: =VRP56*VRT56+VRP55*VRT55 -> 0 | VSB94: =VRX56*VSB56+VRX55*VSB55 -> 0 | VSJ94: =VSF56*VSJ56+VSF55*VSJ55 -> 0 | VSR94: =VSN56*VSR56+VSN55*VSR55 -> 0 | VSZ94: =VSV56*VSZ56+VSV55*VSZ55 -> 0 | VTH94: =VTD56*VTH56+VTD55*VTH55 -> 0 | VTP94: =VTL56*VTP56+VTL55*VTP55 -> 0 | VTX94: =VTT56*VTX56+VTT55*VTX55 -> 0 | VUF94: =VUB56*VUF56+VUB55*VUF55 -> 0 | VUN94: =VUJ56*VUN56+VUJ55*VUN55 -> 0 | VUV94: =VUR56*VUV56+VUR55*VUV55 -> 0 | VVD94: =VUZ56*VVD56+VUZ55*VVD55 -> 0 | VVL94: =VVH56*VVL56+VVH55*VVL55 -> 0 | VVT94: =VVP56*VVT56+VVP55*VVT55 -> 0 | VWB94: =VVX56*VWB56+VVX55*VWB55 -> 0 | VWJ94: =VWF56*VWJ56+VWF55*VWJ55 -> 0 | VWR94: =VWN56*VWR56+VWN55*VWR55 -> 0 | VWZ94: =VWV56*VWZ56+VWV55*VWZ55 -> 0 | VXH94: =VXD56*VXH56+VXD55*VXH55 -> 0 | VXP94: =VXL56*VXP56+VXL55*VXP55 -> 0 | VXX94: =VXT56*VXX56+VXT55*VXX55 -> 0 | VYF94: =VYB56*VYF56+VYB55*VYF55 -> 0 | VYN94: =VYJ56*VYN56+VYJ55*VYN55 -> 0 | VYV94: =VYR56*VYV56+VYR55*VYV55 -> 0 | VZD94: =VYZ56*VZD56+VYZ55*VZD55 -> 0 | VZL94: =VZH56*VZL56+VZH55*VZL55 -> 0 | VZT94: =VZP56*VZT56+VZP55*VZT55 -> 0 | WAB94: =VZX56*WAB56+VZX55*WAB55 -> 0 | WAJ94: =WAF56*WAJ56+WAF55*WAJ55 -> 0 | WAR94: =WAN56*WAR56+WAN55*WAR55 -> 0 | WAZ94: =WAV56*WAZ56+WAV55*WAZ55 -> 0 | WBH94: =WBD56*WBH56+WBD55*WBH55 -> 0 | WBP94: =WBL56*WBP56+WBL55*WBP55 -> 0 | WBX94: =WBT56*WBX56+WBT55*WBX55 -> 0 | WCF94: =WCB56*WCF56+WCB55*WCF55 -> 0 | WCN94: =WCJ56*WCN56+WCJ55*WCN55 -> 0 | WCV94: =WCR56*WCV56+WCR55*WCV55 -> 0 | WDD94: =WCZ56*WDD56+WCZ55*WDD55 -> 0 | WDL94: =WDH56*WDL56+WDH55*WDL55 -> 0 | WDT94: =WDP56*WDT56+WDP55*WDT55 -> 0 | WEB94: =WDX56*WEB56+WDX55*WEB55 -> 0 | WEJ94: =WEF56*WEJ56+WEF55*WEJ55 -> 0 | WER94: =WEN56*WER56+WEN55*WER55 -> 0 | WEZ94: =WEV56*WEZ56+WEV55*WEZ55 -> 0 | WFH94: =WFD56*WFH56+WFD55*WFH55 -> 0 | WFP94: =WFL56*WFP56+WFL55*WFP55 -> 0 | WFX94: =WFT56*WFX56+WFT55*WFX55 -> 0 | WGF94: =WGB56*WGF56+WGB55*WGF55 -> 0 | WGN94: =WGJ56*WGN56+WGJ55*WGN55 -> 0 | WGV94: =WGR56*WGV56+WGR55*WGV55 -> 0 | WHD94: =WGZ56*WHD56+WGZ55*WHD55 -> 0 | WHL94: =WHH56*WHL56+WHH55*WHL55 -> 0 | WHT94: =WHP56*WHT56+WHP55*WHT55 -> 0 | WIB94: =WHX56*WIB56+WHX55*WIB55 -> 0 | WIJ94: =WIF56*WIJ56+WIF55*WIJ55 -> 0 | WIR94: =WIN56*WIR56+WIN55*WIR55 -> 0 | WIZ94: =WIV56*WIZ56+WIV55*WIZ55 -> 0 | WJH94: =WJD56*WJH56+WJD55*WJH55 -> 0 | WJP94: =WJL56*WJP56+WJL55*WJP55 -> 0 | WJX94: =WJT56*WJX56+WJT55*WJX55 -> 0 | WKF94: =WKB56*WKF56+WKB55*WKF55 -> 0 | WKN94: =WKJ56*WKN56+WKJ55*WKN55 -> 0 | WKV94: =WKR56*WKV56+WKR55*WKV55 -> 0 | WLD94: =WKZ56*WLD56+WKZ55*WLD55 -> 0 | WLL94: =WLH56*WLL56+WLH55*WLL55 -> 0 | WLT94: =WLP56*WLT56+WLP55*WLT55 -> 0 | WMB94: =WLX56*WMB56+WLX55*WMB55 -> 0 | WMJ94: =WMF56*WMJ56+WMF55*WMJ55 -> 0 | WMR94: =WMN56*WMR56+WMN55*WMR55 -> 0 | WMZ94: =WMV56*WMZ56+WMV55*WMZ55 -> 0 | WNH94: =WND56*WNH56+WND55*WNH55 -> 0 | WNP94: =WNL56*WNP56+WNL55*WNP55 -> 0 | WNX94: =WNT56*WNX56+WNT55*WNX55 -> 0 | WOF94: =WOB56*WOF56+WOB55*WOF55 -> 0 | WON94: =WOJ56*WON56+WOJ55*WON55 -> 0 | WOV94: =WOR56*WOV56+WOR55*WOV55 -> 0 | WPD94: =WOZ56*WPD56+WOZ55*WPD55 -> 0 | WPL94: =WPH56*WPL56+WPH55*WPL55 -> 0 | WPT94: =WPP56*WPT56+WPP55*WPT55 -> 0 | WQB94: =WPX56*WQB56+WPX55*WQB55 -> 0 | WQJ94: =WQF56*WQJ56+WQF55*WQJ55 -> 0 | WQR94: =WQN56*WQR56+WQN55*WQR55 -> 0 | WQZ94: =WQV56*WQZ56+WQV55*WQZ55 -> 0 | WRH94: =WRD56*WRH56+WRD55*WRH55 -> 0 | WRP94: =WRL56*WRP56+WRL55*WRP55 -> 0 | WRX94: =WRT56*WRX56+WRT55*WRX55 -> 0 | WSF94: =WSB56*WSF56+WSB55*WSF55 -> 0 | WSN94: =WSJ56*WSN56+WSJ55*WSN55 -> 0 | WSV94: =WSR56*WSV56+WSR55*WSV55 -> 0 | WTD94: =WSZ56*WTD56+WSZ55*WTD55 -> 0 | WTL94: =WTH56*WTL56+WTH55*WTL55 -> 0 | WTT94: =WTP56*WTT56+WTP55*WTT55 -> 0 | WUB94: =WTX56*WUB56+WTX55*WUB55 -> 0 | WUJ94: =WUF56*WUJ56+WUF55*WUJ55 -> 0 | WUR94: =WUN56*WUR56+WUN55*WUR55 -> 0 | WUZ94: =WUV56*WUZ56+WUV55*WUZ55 -> 0 | WVH94: =WVD56*WVH56+WVD55*WVH55 -> 0 | WVP94: =WVL56*WVP56+WVL55*WVP55 -> 0 | WVX94: =WVT56*WVX56+WVT55*WVX55 -> 0 | WWF94: =WWB56*WWF56+WWB55*WWF55 -> 0 | WWN94: =WWJ56*WWN56+WWJ55*WWN55 -> 0 | WWV94: =WWR56*WWV56+WWR55*WWV55 -> 0 | WXD94: =WWZ56*WXD56+WWZ55*WXD55 -> 0 | WXL94: =WXH56*WXL56+WXH55*WXL55 -> 0 | WXT94: =WXP56*WXT56+WXP55*WXT55 -> 0 | WYB94: =WXX56*WYB56+WXX55*WYB55 -> 0 | WYJ94: =WYF56*WYJ56+WYF55*WYJ55 -> 0 | WYR94: =WYN56*WYR56+WYN55*WYR55 -> 0 | WYZ94: =WYV56*WYZ56+WYV55*WYZ55 -> 0 | WZH94: =WZD56*WZH56+WZD55*WZH55 -> 0 | WZP94: =WZL56*WZP56+WZL55*WZP55 -> 0 | WZX94: =WZT56*WZX56+WZT55*WZX55 -> 0 | XAF94: =XAB56*XAF56+XAB55*XAF55 -> 0 | XAN94: =XAJ56*XAN56+XAJ55*XAN55 -> 0 | XAV94: =XAR56*XAV56+XAR55*XAV55 -> 0 | XBD94: =XAZ56*XBD56+XAZ55*XBD55 -> 0 | XBL94: =XBH56*XBL56+XBH55*XBL55 -> 0 | XBT94: =XBP56*XBT56+XBP55*XBT55 -> 0 | XCB94: =XBX56*XCB56+XBX55*XCB55 -> 0 | XCJ94: =XCF56*XCJ56+XCF55*XCJ55 -> 0 | XCR94: =XCN56*XCR56+XCN55*XCR55 -> 0 | XCZ94: =XCV56*XCZ56+XCV55*XCZ55 -> 0 | XDH94: =XDD56*XDH56+XDD55*XDH55 -> 0 | XDP94: =XDL56*XDP56+XDL55*XDP55 -> 0 | XDX94: =XDT56*XDX56+XDT55*XDX55 -> 0 | XEF94: =XEB56*XEF56+XEB55*XEF55 -> 0 | XEN94: =XEJ56*XEN56+XEJ55*XEN55 -> 0 | XEV94: =XER56*XEV56+XER55*XEV55 -> 0 | XFD94: =XEZ56*XFD56+XEZ55*XFD55 -> 0
A96: =CPU!A78 -> 3.2.2 | B96: =VLOOKUP(A96,CPU!$A$7:$E$5624,4,0) -> Hospedagem | C96: =VLOOKUP(A96,CPU!$A$8:$E$5446,5,0) -> um | G96: Dias | H96: =H97 -> 19.305
H97: =D94*H94+D93*H93 -> 19.305
A98: =CPU!A79 -> 3.2.3 | B98: =VLOOKUP(A98,CPU!$A$7:$E$5624,4,0) -> Miniônibus com capacidade para 30 passageiros - 111 Kw | C98: =VLOOKUP(A98,CPU!$A$8:$E$5446,5,0) -> chp | E98: Horas/dia | F98: Quant.Dias | H98: =H99 -> 9.6525
E99: 1 | F99: =H93 -> 9.6525 | H99: =E99*F99 -> 9.6525
A100: =CPU!A80 -> 3.2.4 | B100: =VLOOKUP(A100,CPU!$A$7:$E$5624,4,0) -> Miniônibus com capacidade para 30 passageiros - 111 Kw | C100: =VLOOKUP(A100,CPU!$A$8:$E$5446,5,0) -> chi | E100: Horas/dia | F100: Quant.Dias | H100: =H101 -> 67.5675
E101: =8-E99 -> 7 | F101: =H93 -> 9.6525 | H101: =E101*F101 -> 67.5675
A103: =CPU!A87 -> 3.3.1 | B103: =VLOOKUP(A103,CPU!$A$7:$E$5624,4,0) -> REMOÇÃO DE RAÍZES REMANESCENTES DE TRONCO DE ÁRVORE COM DIÂMETRO MAIOR OU IGUAL A 0,20 M E MENOR QUE 0,40 M. AF_03/2024 | C103: =VLOOKUP(A103,CPU!$A$8:$E$5446,5,0) -> UN | H103: 50
B104: Quantidade estimada através das imagens obtidas na visita técnica (Contém na especificação técnica) | C104: 50 | H104: =C104 -> 50
B105: Mão de Obra | D105: QUANT. PESSOAS | E105: ÍNDICE | F105: RENDIMENTO | G105: H | H105: DIAS
B106: 88316 SERVENTE COM ENCARGOS COMPLEMENTARES | D106: 1 | E106: =0.678 -> 0.678 | F106: =E106/D106 -> 0.678 | G106: =F106*$H$103 -> 33.9 | H106: =G106/8 -> 4.2375
B107: 88441 JARDINEIRO COM ENCARGOS COMPLEMENTARES | D107: 1 | E107: =0.678 -> 0.678 | F107: =E107/D107 -> 0.678 | G107: =F107*$H$103 -> 33.9 | H107: =G107/8 -> 4.2375
A109: =CPU!A88 -> 3.3.2 | B109: =VLOOKUP(A109,CPU!$A$7:$E$5624,4,0) -> Hospedagem | C109: =VLOOKUP(A109,CPU!$A$8:$E$5446,5,0) -> um | G109: Dias | H109: =H110 -> 8.475
H110: =D106*H106+D107*H107 -> 8.475
A111: =CPU!A89 -> 3.3.3 | B111: =VLOOKUP(A111,CPU!$A$7:$E$5624,4,0) -> Miniônibus com capacidade para 30 passageiros - 111 Kw | C111: =VLOOKUP(A111,CPU!$A$8:$E$5446,5,0) -> chp | E111: Horas/dia | F111: Quant.Dias | H111: =H112 -> 4.2375
E112: 1 | F112: =H106 -> 4.2375 | H112: =E112*F112 -> 4.2375
A113: =CPU!A90 -> 3.3.4 | B113: =VLOOKUP(A113,CPU!$A$7:$E$5624,4,0) -> Miniônibus com capacidade para 30 passageiros - 111 Kw | C113: =VLOOKUP(A113,CPU!$A$8:$E$5446,5,0) -> chi | E113: Horas/dia | F113: Quant.Dias | H113: =H114 -> 29.6625
E114: =8-E112 -> 7 | F114: =H106 -> 4.2375 | H114: =E114*F114 -> 29.6625
A116: ='Planilha Orçamentária'!A24 -> 4 | B116: =VLOOKUP(A116,'Planilha Orçamentária'!$A$10:$D$31,4,0) -> APLICAÇÃO DE CONCRETO NA CRISTA
A117: =CPU!A97 -> 4.1.1 | B117: =VLOOKUP(A117,CPU!$A$7:$E$5624,4,0) -> Concretagem De Reservatórios, Fck=25 Mpa, Com Uso De Bomba - Lançamento, Adensamento E Acabamento. Af_02/2022_Ps | C117: =VLOOKUP(A117,CPU!$A$8:$E$5446,5,0) -> m3 | H117: =H118 -> 4
B118: Considerou-se uma quantidade de 4m³ para o preenchimento de buracos no coroamento | C118: 4 | H118: =C118 -> 4
B119: Mão de Obra | D119: QUANT. PESSOAS | E119: ÍNDICE | F119: RENDIMENTO | G119: H | H119: DIAS
B120: 88262 CARPINTEIRO DE FORMAS COM ENCARGOS COMPLEMENTARES | D120: 1 | E120: 0.171 | F120: =E120/D120 -> 0.171 | G120: =F120*$H$117 -> 0.684 | H120: =G120/8 -> 0.0855
B121: 88309 PEDREIRO COM ENCARGOS COMPLEMENTARES | D121: 1 | E121: 1.026 | F121: =E121/D121 -> 1.026 | G121: =F121*$H$117 -> 4.104 | H121: =G121/8 -> 0.513
B122: 88316 SERVENTE COM ENCARGOS COMPLEMENTARES | D122: 1 | E122: 1.213 | F122: =E122/D122 -> 1.213 | G122: 4.852 | H122: 0.6065
A124: =CPU!A98 -> 4.1.2 | B124: =VLOOKUP(A124,CPU!$A$7:$E$5624,4,0) -> Transporte Com Caminhão Basculante De 10 M³, Em Via Urbana Em Revestimento Primário (Unidade: Txkm). Af_07/2020 | C124: =VLOOKUP(A124,CPU!$A$8:$E$5446,5,0) -> txkm | D124: m³ | E124: Densidade (Ton/m³) | F124: km | H124: =H125 -> 24.84
D125: =$C$118 -> 4 | E125: 2.3 | F125: =H8 -> 2.7 | H125: =D125*E125*F125 -> 24.84
A126: =CPU!A99 -> 4.1.3 | B126: =VLOOKUP(A126,CPU!$A$7:$E$5624,4,0) -> Transporte Com Caminhão Basculante De 10 M³, Em Via Urbana Pavimentada, Adicional Para Dmt Excedente A 30 Km (Unidade: Txkm). Af_07/2020 | C126: =VLOOKUP(A126,CPU!$A$8:$E$5446,5,0) -> txkm | D126: m³ | E126: Densidade (Ton/m³) | F126: km | H126: =H127 -> 218.96
D127: =$C$118 -> 4 | E127: 2.3 | F127: =H7 -> 23.8 | H127: =D127*E127*F127 -> 218.96
A129: =CPU!A100 -> 4.1.4 | B129: =VLOOKUP(A129,CPU!$A$7:$E$5624,4,0) -> Hospedagem | C129: =VLOOKUP(A129,CPU!$A$8:$E$5446,5,0) -> um | G129: Dias | H129: =H130 -> 1.205
H130: =D120*H120+D121*H121+D122*H122 -> 1.205
A131: =CPU!A101 -> 4.1.5 | B131: =VLOOKUP(A131,CPU!$A$7:$E$5624,4,0) -> Miniônibus com capacidade para 30 passageiros - 111 Kw | C131: =VLOOKUP(A131,CPU!$A$8:$E$5446,5,0) -> chp | E131: Horas/dia | F131: Quant.Dias | H131: =H132 -> 0.6065
E132: 1 | F132: =H122 -> 0.6065 | H132: =E132*F132 -> 0.6065
A133: =CPU!A102 -> 4.1.6 | B133: =VLOOKUP(A133,CPU!$A$7:$E$5624,4,0) -> Miniônibus com capacidade para 30 passageiros - 111 Kw | C133: =VLOOKUP(A133,CPU!$A$8:$E$5446,5,0) -> chi | E133: Horas/dia | F133: Quant.Dias | H133: =H134 -> 4.2455
E134: =8-E132 -> 7 | F134: =H122 -> 0.6065 | H134: =E134*F134 -> 4.2455
A135: ='Planilha Orçamentária'!A27 -> 5 | B135: =VLOOKUP(A135,'Planilha Orçamentária'!$A$10:$D$31,4,0) -> REGULARIZAÇÃO E PAVIMENTAÇÃO DA CRISTA
A136: =CPU!B117 -> 5.2 | B136: Limpeza e regularização da Crista
A137: =CPU!A109 -> 5.1.1 | B137: =VLOOKUP(A137,CPU!$A$7:$E$5624,4,0) -> Demolição De Guias, Sarjetas Ou Sarjetões, De Forma Mecanizada, Sem Reaproveitamento. Af_09/2023 | C137: =VLOOKUP(A137,CPU!$A$8:$E$5446,5,0) -> m | H137: =H138 -> 680
B138: Considerou-se a restauração dos meio-fios localizados no encontro com o talude de jusante | C138: 680 | H138: =C138 -> 680
B139: Mão de Obra | D139: QUANT. PESSOAS | E139: ÍNDICE | F139: RENDIMENTO | G139: H | H139: DIAS
B140: 88309 PEDREIRO COM ENCARGOS COMPLEMENTARES | D140: 2 | E140: 0.1759 | F140: =E140/D140 -> 0.08795 | G140: =F140*$H$137 -> 59.806 | H140: =G140/8 -> 7.47575
B141: 88316 SERVENTE COM ENCARGOS COMPLEMENTARES | D141: 1 | E141: 0.0772 | F141: =E141/D141 -> 0.0772 | G141: =F141*$H$137 -> 52.496 | H141: =G141/8 -> 6.562
A143: =CPU!A110 -> 5.1.2 | B143: =VLOOKUP(A143,CPU!$A$7:$E$5624,4,0) -> Transporte Com Caminhão Carroceria 9T, Em Via Urbana Em Revestimento Primário (Unidade: Txkm). Af_07/2020 | C143: =VLOOKUP(A143,CPU!$A$8:$E$5446,5,0) -> txkm | D143: m (meio-fio) | E143: kg/meio-fio | F143: Ton | G143: km | H143: =H144 -> 105.57
B144: Considerou-se um peso aproximado por metro de meio-fio de 57,5 kg | D144: =$H$137 -> 680 | E144: 57.5 | F144: =(E144*D144)/1000 -> 39.1 | G144: =H8 -> 2.7 | H144: =G144*F144 -> 105.57
A146: =CPU!A111 -> 5.1.3 | B146: =VLOOKUP(A146,CPU!$A$7:$E$5624,4,0) -> Transporte Com Caminhão Carroceria 9T, Em Via Urbana Pavimentada, Dmt Até 30Km (Unidade: Txkm). Af_07/2020 | C146: =VLOOKUP(A146,CPU!$A$8:$E$5446,5,0) -> txkm | D146: m (meio-fio) | E146: kg/meio-fio | F146: Ton | G146: km | H146: =H147 -> 930.58
B147: Considerou-se um peso aproximado por metro de meio-fio de 57,5 kg | D147: =$H$137 -> 680 | E147: 57.5 | F147: =(E147*D147)/1000 -> 39.1 | G147: =H7 -> 23.8 | H147: =G147*F147 -> 930.58
A149: =CPU!A112 -> 5.1.4 | B149: =VLOOKUP(A149,CPU!$A$7:$E$5624,4,0) -> Hospedagem | C149: =VLOOKUP(A149,CPU!$A$8:$E$5446,5,0) -> um | G149: Dias | H149: =H150 -> 21.5135
H150: =D140*H140+D141*H141 -> 21.5135
A151: =CPU!A113 -> 5.1.5 | B151: =VLOOKUP(A151,CPU!$A$7:$E$5624,4,0) -> Miniônibus com capacidade para 30 passageiros - 111 Kw | C151: =VLOOKUP(A151,CPU!$A$8:$E$5446,5,0) -> chp | E151: Horas/dia | F151: Quant.Dias | H151: =H152 -> 7.47575
E152: 1 | F152: =H140 -> 7.47575 | H152: =E152*F152 -> 7.47575
A153: =CPU!A113 -> 5.1.5 | B153: =VLOOKUP(A153,CPU!$A$7:$E$5624,4,0) -> Miniônibus com capacidade para 30 passageiros - 111 Kw | C153: =VLOOKUP(A153,CPU!$A$8:$E$5446,5,0) -> chp | E153: Horas/dia | F153: Quant.Dias | H153: =H154 -> 52.33025
E154: =8-E152 -> 7 | F154: =H140 -> 7.47575 | H154: =E154*F154 -> 52.33025
A156: =CPU!A121 -> 5.2.1 | B156: =VLOOKUP(A156,CPU!$A$7:$E$5624,4,0) -> Regularização E Compactação De Subleito De Solo Predominantemente Argiloso. Af_11/2019 | C156: =VLOOKUP(A156,CPU!$A$8:$E$5446,5,0) -> m2 | D156: Largura (m) | E156: Comprimento (m) | H156: =H157 -> 3230
B157: Medidas de comprimento e largura obtida do google earth | D157: 4.75 | E157: 680 | H157: =E157*D157 -> 3230
B158: Mão de Obra | D158: QUANT. PESSOAS | E158: ÍNDICE | F158: RENDIMENTO | G158: H | H158: DIAS
B159: 88316 SERVENTE COM ENCARGOS COMPLEMENTARES | D159: 1 | E159: 0.008 | F159: =E159/D159 -> 0.008 | G159: =F159*$H$157 -> 25.84 | H159: =G159/8 -> 3.23
A160: =CPU!A122 -> 5.2.2 | B160: =VLOOKUP(A160,CPU!$A$7:$E$5624,4,0) -> Hospedagem | C160: =VLOOKUP(A160,CPU!$A$8:$E$5446,5,0) -> um | G160: Dias | H160: =H161 -> 3.23
H161: =D159*H159 -> 3.23
A162: =CPU!A123 -> 5.2.3 | B162: =VLOOKUP(A162,CPU!$A$7:$E$5624,4,0) -> Miniônibus com capacidade para 30 passageiros - 111 Kw | C162: =VLOOKUP(A162,CPU!$A$8:$E$5446,5,0) -> chp | E162: Horas/dia | F162: Quant.Dias | H162: =H163 -> 3.23
E163: 1 | F163: =H159 -> 3.23 | H163: =E163*F163 -> 3.23
A164: =CPU!A124 -> 5.2.4 | B164: =VLOOKUP(A164,CPU!$A$7:$E$5624,4,0) -> Miniônibus com capacidade para 30 passageiros - 111 Kw | C164: =VLOOKUP(A164,CPU!$A$8:$E$5446,5,0) -> chi | E164: Horas/dia | F164: Quant.Dias | H164: =H165 -> 22.61
E165: =8-E163 -> 7 | F165: =H159 -> 3.23 | H165: =E165*F165 -> 22.61
A166: 5.3 | B166: Drenagem
A167: =CPU!A131 -> 5.3.1 | B167: =VLOOKUP(A167,CPU!$A$7:$E$5624,4,0) -> Guia (Meio-Fio) E Sarjeta Conjugados De Concreto, Moldada In Loco Em Trecho Reto Com Extrusora, 45 Cm Base (15 Cm Base Da Guia + 30 Cm Base Da Sarjeta) X 22 Cm Altura. Af_01/2024 | C167: =VLOOKUP(A167,CPU!$A$8:$E$5446,5,0) -> m | H167: =H168 -> 680
B168: Considerou-se a restauração do meio-fio localizado no encontro com o talude de jusante | C168: 680 | H168: =C168 -> 680
B169: Mão de Obra | D169: QUANT. PESSOAS | E169: ÍNDICE | F169: RENDIMENTO | G169: H | H169: DIAS
B170: 88243 AJUDANTE ESPECIALIZADO COM ENCARGOS COMPLEMENTARES | D170: 1 | E170: 0.109 | F170: =E170/D170 -> 0.109 | G170: =F170*$H$167 -> 74.12 | H170: =G170/8 -> 9.265
B171: 88309 PEDREIRO COM ENCARGOS COMPLEMENTARES | D171: 2 | E171: 0.244 | F171: =E171/D171 -> 0.122 | G171: =F171*$H$167 -> 82.96 | H171: =G171/8 -> 10.37
B172: 88316 SERVENTE COM ENCARGOS COMPLEMENTARES | D172: 4 | E172: 0.487 | F172: 0.12175 | G172: 82.79 | H172: 10.34875
A174: =CPU!A132 -> 5.3.2 | B174: =VLOOKUP(A174,CPU!$A$7:$E$5624,4,0) -> Betoneira Capacidade Nominal De 400 L, Capacidade De Mistura 280 L, Motor Elétrico Trifásico Potência De 2 Cv, Sem Carregador - Chp Diurno. Af_05/2023 | C174: =VLOOKUP(A174,CPU!$A$8:$E$5446,5,0) -> chp | H174: =H175 -> 74.12
C175: =G170 -> 74.12 | H175: =C175 -> 74.12
A176: =CPU!A133 -> 5.3.3 | B176: =VLOOKUP(A176,CPU!$A$7:$E$5624,4,0) -> Transporte Com Caminhão Carroceria 9T, Em Via Urbana Em Revestimento Primário (Unidade: Txkm). Af_07/2020 | C176: =VLOOKUP(A176,CPU!$A$8:$E$5446,5,0) -> txkm | D176: m (meio-fio) | E176: kg/meio-fio | F176: Ton | G176: km | H176: =H177 -> 8049.132
B177: Considerou-se o peso da betoenira de 200 kg | D177: =$H$167 -> 680 | E177: 80 | F177: =((D177*E177)/1000)+(200/1000) -> 54.6 | G177: =F177*H8 -> 147.42 | H177: =G177*F177 -> 8049.132
A178: =CPU!A134 -> 5.3.4 | B178: =VLOOKUP(A178,CPU!$A$7:$E$5624,4,0) -> Transporte Com Caminhão Carroceria 9T, Em Via Urbana Pavimentada, Dmt Até 30Km (Unidade: Txkm). Af_07/2020 | C178: =VLOOKUP(A178,CPU!$A$8:$E$5446,5,0) -> txkm | H178: =H179 -> 11924.64
B179: Considerou-se o peso da betoenira de 200 kg | D179: =$H$167 -> 680 | E179: 80 | F179: =((D179*E179)/1000)+(200/1000) -> 54.6 | G179: =F179*H10 -> 218.4 | H179: =G179*F179 -> 11924.64
A180: =CPU!A135 -> 5.3.5 | B180: =VLOOKUP(A180,CPU!$A$7:$E$5624,4,0) -> Hospedagem | C180: =VLOOKUP(A180,CPU!$A$8:$E$5446,5,0) -> um | G180: Dias | H180: =H181 -> 71.4
H181: =H170*D170+H171*D171+H172*D172 -> 71.4
A182: =CPU!A136 -> 5.3.6 | B182: =VLOOKUP(A182,CPU!$A$7:$E$5624,4,0) -> Miniônibus com capacidade para 30 passageiros - 111 Kw | C182: =VLOOKUP(A182,CPU!$A$8:$E$5446,5,0) -> chp | E182: Horas/dia | F182: Quant.Dias | H182: =H183 -> 10.37
E183: 1 | F183: =H171 -> 10.37 | H183: =E183*F183 -> 10.37
A184: =CPU!A137 -> 5.3.7 | B184: =VLOOKUP(A184,CPU!$A$7:$E$5624,4,0) -> Miniônibus com capacidade para 30 passageiros - 111 Kw | C184: =VLOOKUP(A184,CPU!$A$8:$E$5446,5,0) -> chi | E184: Horas/dia | F184: Quant.Dias | H184: =H185 -> 72.59
E185: =8-E183 -> 7 | F185: =H171 -> 10.37 | H185: =E185*F185 -> 72.59
A186: 5.4 | B186: Revestimento com BGTC
A187: =CPU!A145 -> 5.4.1 | B187: =VLOOKUP(A187,CPU!$A$7:$E$5624,4,0) -> Execução E Compactação De Base E Ou Sub Base Para Pavimentação De Brita Graduada Simples Tratada Com Cimento - Exclusive Carga E Transporte. Af_11/2019 | C187: =VLOOKUP(A187,CPU!$A$8:$E$5446,5,0) -> m3 | D187: Largura (m) | E187: Comprimento (m) | F187: Camada | H187: =H188 -> 323
B188: Medidas de comprimento e largura obtida do google earth | D188: 4.75 | E188: 680 | F188: 0.1 | H188: =F188*E188*D188 -> 323
B189: Mão de Obra | D189: QUANT. PESSOAS | E189: ÍNDICE | F189: RENDIMENTO | G189: H | H189: DIAS
B190: 88316 SERVENTE COM ENCARGOS COMPLEMENTARES | D190: 1 | E190: 0.035 | F190: =E190/D190 -> 0.035 | G190: =F190*$H$187 -> 11.305 | H190: =G190/8 -> 1.413125
A192: =CPU!A146 -> 5.4.2 | B192: =VLOOKUP(A192,CPU!$A$7:$E$5624,4,0) -> Carga, Manobra E Descarga De Solos E Materiais Granulares Em Caminhão Basculante 18 M³ - Carga Com Pá Carregadeira (Caçamba De 1,7 A 2,8 M³ / 128 Hp) E Descarga Livre (Unidade: M3). Af_07/2020 | C192: =VLOOKUP(A192,CPU!$A$8:$E$5446,5,0) -> m3 | D192: Largura (m) | E192: Comprimento (m) | F192: Camada | H192: =H193 -> 323
B193: Medidas de comprimento e largura obtida do google earth | D193: =D188 -> 4.75 | E193: =E188 -> 680 | F193: =F188 -> 0.1 | H193: =F193*E193*D193 -> 323
A194: =CPU!A147 -> 5.4.3 | B194: =VLOOKUP(A194,CPU!$A$7:$E$5624,4,0) -> Transporte Com Caminhão Basculante De 18 M³, Em Via Urbana Em Revestimento Primário (Unidade: M3Xkm). Af_07/2020 | C194: =VLOOKUP(A194,CPU!$A$8:$E$5446,5,0) -> m3xkm | D194: m³ | E194: km | H194: =H195 -> 872.1
D195: =H187 -> 323 | E195: =H8 -> 2.7 | H195: =D195*E195 -> 872.1
A196: =CPU!A148 -> 5.4.4 | B196: =VLOOKUP(A196,CPU!$A$7:$E$5624,4,0) -> Transporte Com Caminhão Basculante De 18 M³, Em Via Urbana Em Leito Natural (Unidade: M3Xkm). Af_07/2020 | C196: =VLOOKUP(A196,CPU!$A$8:$E$5446,5,0) -> m3xkm | D196: m³ | E196: km | H196: =H197 -> 7687.4
D197: =H192 -> 323 | E197: =H7 -> 23.8 | H197: =D197*E197 -> 7687.4
A198: =CPU!A149 -> 5.4.5 | B198: =VLOOKUP(A198,CPU!$A$7:$E$5624,4,0) -> Hospedagem | C198: =VLOOKUP(A198,CPU!$A$8:$E$5446,5,0) -> um | G198: Dias | H198: =H199 -> 1.413125
H199: =D190*H190 -> 1.413125
A200: =CPU!A150 -> 5.4.6 | B200: =VLOOKUP(A200,CPU!$A$7:$E$5624,4,0) -> Miniônibus com capacidade para 30 passageiros - 111 Kw | C200: =VLOOKUP(A200,CPU!$A$8:$E$5446,5,0) -> chp | E200: Horas/dia | F200: Quant.Dias | H200: =H201 -> 1.413125
E201: 1 | F201: =H190 -> 1.413125 | H201: =E201*F201 -> 1.413125
A202: =CPU!A151 -> 5.4.7 | B202: =VLOOKUP(A202,CPU!$A$7:$E$5624,4,0) -> Miniônibus com capacidade para 30 passageiros - 111 Kw | C202: =VLOOKUP(A202,CPU!$A$8:$E$5446,5,0) -> chi | E202: Horas/dia | F202: Quant.Dias | H202: =H203 -> 9.891875
E203: =8-E201 -> 7 | F203: =H190 -> 1.413125 | H203: =E203*F203 -> 9.891875
A205: ='Planilha Orçamentária'!A33 -> 6 | B205: =VLOOKUP(A205,'Planilha Orçamentária'!A11:I63,4,0) -> MANUTENÇÃO NO TALUDE DE MONTANTE
A206: ='Planilha Orçamentária'!A34 -> 6.1 | B206: =VLOOKUP(A206,'Planilha Orçamentária'!$A$7:$E$5132,4,0) -> Enrocamento c/ pedra de mão c/ fornecimento e assentamento | C206: =VLOOKUP(A206,'Planilha Orçamentária'!A11:I63,5,0) -> m³ | D206: m2 | E206: Espessura (m) | H206: =H207 -> 225
B207: Área talude de montante calculada no Google Earth | D207: 2250 | E207: 0.1 | H207: =D207*E207 -> 225
A208: =CPU!A156 -> 6.1.1 | B208: =VLOOKUP(A208,CPU!$A$7:$E$5624,4,0) -> PEDRA DE MAO OU PEDRA RACHAO PARA ARRIMO/FUNDACAO (POSTO PEDREIRA/FORNECEDOR, SEM FRETE) | C208: =VLOOKUP(A208,CPU!$A$8:$E$5446,5,0) -> M3 | H208: =H209 -> 1.2
H209: 1.2
A210: =CPU!A159 -> 6.1.2 | B210: =VLOOKUP(A210,CPU!$A$7:$E$5624,4,0) -> TRANSPORTE COM CAMINHÃO BASCULANTE DE 10 M³, EM VIA URBANA EM REVESTIMENTO PRIMÁRIO (UNIDADE: M3XKM). AF_07/2020 | C210: =VLOOKUP(A210,CPU!$A$8:$E$5446,5,0) -> M3XKM | E210: m³ | F210: km | H210: =H211/H206 -> 2.7
E211: =H207 -> 225 | F211: =H8 -> 2.7 | H211: =F211*E211 -> 607.5 | I211: 2.7
A212: =CPU!A160 -> 6.1.3 | B212: =VLOOKUP(A212,CPU!$A$7:$E$5624,4,0) -> TRANSPORTE COM CAMINHÃO BASCULANTE DE 10 M³, EM VIA URBANA PAVIMENTADA, ADICIONAL PARA DMT EXCEDENTE A 30 KM (UNIDADE: M3XKM). AF_07/2020 | C212: =VLOOKUP(A212,CPU!$A$8:$E$5446,5,0) -> M3XKM | E212: m³ | F212: km | H212: =H213/H206 -> 23.8
E213: =H207 -> 225 | F213: =H7 -> 23.8 | H213: =F213*E213 -> 5355 | I213: 23.8
A214: =CPU!A161 -> 6.1.4 | B214: =VLOOKUP(A214,CPU!$A$7:$E$5624,4,0) -> CARGA, MANOBRA E DESCARGA DE SOLOS E MATERIAIS GRANULARES EM CAMINHÃO BASCULANTE 18 M³ - CARGA COM PÁ CARREGADEIRA (CAÇAMBA DE 1,7 A 2,8 M³ / 128 HP) E DESCARGA LIVRE (UNIDADE: M3). AF_07/2020 | C214: =VLOOKUP(A214,CPU!$A$8:$E$5446,5,0) -> M3 | H214: =H215 -> 1
H215: =1 -> 1
B217: Mão de Obra | D217: QUANT. PESSOAS | E217: ÍNDICE | F217: RENDIMENTO | G217: H | H217: DIAS
B218: 88309 PEDREIRO COM ENCARGOS COMPLEMENTARES | D218: 1 | E218: 0.5 | F218: =E218/D218 -> 0.5 | G218: =F218*$H$206 -> 112.5 | H218: =G218/8 -> 14.0625 | I218: =F218*1 -> 0.5
B219: 88316 SERVENTE COM ENCARGOS COMPLEMENTARES | D219: 4 | E219: 5 | F219: =E219/D219 -> 1.25 | G219: =F219*$H$206 -> 281.25 | H219: =G219/8 -> 35.15625 | I219: =F219*1 -> 1.25
A221: =CPU!A162 -> 6.1.5 | B221: =VLOOKUP(A221,CPU!$A$7:$E$5624,4,0) -> Hospedagem | C221: =VLOOKUP(A221,CPU!$A$8:$E$5446,5,0) -> um | G221: Dias | H221: =H222/H206 -> 0.6875
H222: =D218*H218+D219*H219 -> 154.6875
A223: =CPU!A163 -> 6.1.6 | B223: =VLOOKUP(A223,CPU!$A$7:$E$5624,4,0) -> Miniônibus com capacidade para 30 passageiros - 111 Kw | C223: =VLOOKUP(A223,CPU!$A$8:$E$5446,5,0) -> chp | E223: Horas/dia | F223: Quant.Dias | H223: =H224/H206 -> 0.15625
E224: 1 | F224: =H219 -> 35.15625 | H224: =E224*F224 -> 35.15625 | I224: =E224*I219 -> 1.25
A225: =CPU!A164 -> 6.1.7 | B225: =VLOOKUP(A225,CPU!$A$7:$E$5624,4,0) -> Miniônibus com capacidade para 30 passageiros - 111 Kw | C225: =VLOOKUP(A225,CPU!$A$8:$E$5446,5,0) -> chi | E225: Horas/dia | F225: Quant.Dias | H225: =H226/H206 -> 1.09375
E226: =8-E224 -> 7 | F226: =H219 -> 35.15625 | H226: =E226*F226 -> 246.09375 | I226: =E226*I219 -> 8.75
... 177 more rows

Sheet BDI serv
A1: Ministério da Integração e do Desenvolvimento Regional
A2: Companhia de Desenvolvimento dos Vales do São Francisco e do Parnaíba
A3: ='Planilha Orçamentária'!A3:I3 -> 0
A4: COMPOSIÇÃO DE BDI - SERVIÇOS - ONERADO
A5: OBRA: | B5: =CPU!C5 -> SERVIÇOS DE MANUTENÇÃO E OBRAS CIVIS NA BARRAGEM CACHIMBO | F5: BDI (serv.): | G5: =D22 -> 0.2378
A6: LOCAL: | B6: =CPU!C6 -> BARRAGEM CACHIMBO, PARNAMIRIM/PE | F6: BDI (forn.): | G6: ='BDI forn'!D22 -> 0.147
A7: DATA BASE: | B7: =CPU!C7 -> 2024-03-01
A8: PRAZO: | B8: 120 DIAS
A9: ITEM | B9: DESCRIÇÃO | C9: SIGLA | D9: % APLICADO | E9: REFERÊNCIA TCU (ACÓRDÃO Nº 2622/2013)
E10: 1º QUARTIL | F10: 2º QUARTIL | G10: 3º QUARTIL
A11: 1 | B11: ADMINISTRAÇÃO CENTRAL | C11: AC | D11: =E11 -> 0.04 | E11: 0.04 | F11: 0.0552 | G11: 0.0785
A12: 2 | B12: IMPOSTOS | C12: T | D12: =SUM(D13:D16) -> 0.0715
A13: 2.1 | B13: ISS (*) | D13: 0.035 | E13: - | F13: - | G13: -
A14: 2.2 | B14: PIS | D14: 0.0065 | E14: - | F14: - | G14: -
A15: 2.3 | B15: Cofins | D15: 0.03 | E15: - | F15: - | G15: -
A16: 2.4 | B16: Contribuição previdênciária sobre a receita bruta (CPRB) | E16: - | F16: - | G16: -
A17: 3 | B17: SEGURO, GARANTIA E RISCO | D17: =SUM(D18:D19) -> 0.0227
A18: 3.1 | B18: Seguro + Garantia | C18: S + G | D18: =E18 -> 0.0081 | E18: 0.0081 | F18: 0.0122 | G18: 0.0199
A19: 3.2 | B19: Risco | C19: R | D19: =E19 -> 0.0146 | E19: 0.0146 | F19: 0.0232 | G19: 0.0316
A20: 4 | B20: DESPESAS FINANCEIRAS | C20: DF | D20: =E20 -> 0.0094 | E20: 0.0094 | F20: 0.0102 | G20: 0.01363
A21: 5 | B21: LUCRO | C21: L | D21: =E21 -> 0.0714 | E21: 0.0714 | F21: 0.084 | G21: 0.1043
B22: BDI ADOTADO: | D22: =ROUND(((((1+D11+D17)*(1+D20)*(1+D21))/(1-D12))-1),4) -> 0.2378
A23: Considerações: O BDI foi calculado através da seguinte fórmula, regulamentada pelo Acórdão Nº 2622/2013 – TCU. * O percentual de ISSQN aqui utilizado refere-se ao município de Porteirinha/MG, conforme Lei Complementar 1899/2007 - Art. 1º (Item 7.02C). Conforme Art. 112, § 14, na base de cálculo do ISSQN considerou-se dedução do percentual abaixo discriminado.

Sheet BDI serv Desonerado (hidden)
A1: Ministério do Desenvolvimento Regional
A2: Companhia de Desenvolvimento dos Vales do São Francisco e do Parnaíba
A3: ='Planilha Orçamentária'!A3:I3 -> 0
A4: COMPOSIÇÃO DE BDI - SERVIÇOS - DESONERADO
A5: OBRA: | B5: =UPPER("SERVIÇOS DE MANUTENÇÃO E OBRAS CIVIS NA ESTRUTURA DA BARRAGEM E EQUIPAMENTO HIDROMECÂNICO") -> SERVIÇOS DE MANUTENÇÃO E OBRAS CIVIS NA ESTRUTURA DA BARRAGEM E EQUIPAMENTO HIDROMECÂNICO | D5: BDI (serv.): | E5: =D22 -> 0.3351
A6: LOCAL: | B6: BARRAGEM POÇO DO MAGRO, GUANAMBI/BA | D6: BDI (forn.): | E6: ='BDI forn Desonerado'!E6 -> 0.212
A7: DATA BASE: | B7: 2023-05-01
A8: PRAZO: | B8: 120 DIAS
A9: ITEM | B9: DESCRIÇÃO | C9: SIGLA | D9: % APLICADO | E9: REFERÊNCIA TCU (ACÓRDÃO Nº 2622/2013)
E10: 1º QUARTIL | F10: 2º QUARTIL | G10: 3º QUARTIL
A11: 1 | B11: ADMINISTRAÇÃO CENTRAL | C11: AC | D11: =E11 -> 0.04 | E11: 0.04 | F11: 0.0552 | G11: 0.0785
A12: 2 | B12: IMPOSTOS | C12: T | D12: =SUM(D13:D16) -> 0.1315
A13: 2.1 | B13: ISS (*) | D13: 0.05 | E13: - | F13: - | G13: -
A14: 2.2 | B14: PIS | D14: 0.0065 | E14: - | F14: - | G14: -
A15: 2.3 | B15: Cofins | D15: 0.03 | E15: - | F15: - | G15: -
A16: 2.4 | B16: Contribuição previdênciária sobre a receita bruta (CPRB) | D16: 0.045 | E16: - | F16: - | G16: -
A17: 3 | B17: SEGURO, GARANTIA E RISCO | D17: =SUM(D18:D19) -> 0.0313
A18: 3.1 | B18: Seguro + Garantia | C18: S + G | D18: =E18 -> 0.0081 | E18: 0.0081 | F18: 0.0122 | G18: 0.0199
A19: 3.2 | B19: Risco | C19: R | D19: =F19 -> 0.0232 | E19: 0.0146 | F19: 0.0232 | G19: 0.0316
A20: 4 | B20: DESPESAS FINANCEIRAS | C20: DF | D20: =F20 -> 0.0102 | E20: 0.0094 | F20: 0.0102 | G20: 0.01363
A21: 5 | B21: LUCRO | C21: L | D21: =E21 -> 0.0714 | E21: 0.0714 | F21: 0.084 | G21: 0.1043
B22: BDI ADOTADO: | D22: =ROUND(((((1+D11+D17)*(1+D20)*(1+D21))/(1-D12))-1),4) -> 0.3351
A23: Considerações: O BDI foi calculado através da seguinte fórmula, regulamentada pelo Acórdão Nº 2622/2013 – TCU. * O percentual de ISSQN aqui utilizado refere-se ao município de Porteirinha/MG, conforme Lei Complementar 1899/2007 - Art. 1º (Item 7.02C). Conforme Art. 112, § 14, na base de cálculo do ISSQN considerou-se dedução do percentual abaixo discriminado.

Sheet BDI forn
A1: Ministério do Desenvolvimento Regional
A2: Companhia de Desenvolvimento dos Vales do São Francisco e do Parnaíba
A3: ='Planilha Orçamentária'!A3:I3 -> 0
A4: COMPOSIÇÃO DE BDI - FORNECIMENTO - ONERADO
A5: OBRA: | B5: =CPU!C5 -> SERVIÇOS DE MANUTENÇÃO E OBRAS CIVIS NA BARRAGEM CACHIMBO | D5: BDI (serv.): | E5: ='BDI serv'!D22 -> 0.2378
A6: LOCAL: | B6: =CPU!C6 -> BARRAGEM CACHIMBO, PARNAMIRIM/PE | D6: BDI (forn.): | E6: =D22 -> 0.147
A7: DATA BASE: | B7: =CPU!C7 -> 2024-03-01
A8: PRAZO: | B8: 120 DIAS
A9: ITEM | B9: DESCRIÇÃO | C9: SIGLA | D9: % APLICADO | E9: REFERÊNCIA TCU (ACÓRDÃO Nº 2622/2013)
E10: 1º QUARTIL | F10: 2º QUARTIL | G10: 3º QUARTIL
A11: 1 | B11: ADMINISTRAÇÃO CENTRAL | C11: AC | D11: 0.04 | E11: 0.015 | F11: 0.0345 | G11: 0.0449
A12: 2 | B12: IMPOSTOS | C12: T | D12: =SUM(D13:D16) -> 0.0365
A13: 2.1 | B13: ISS (*) | E13: - | F13: - | G13: -
A14: 2.2 | B14: PIS | D14: 0.0065 | E14: - | F14: - | G14: -
A15: 2.3 | B15: Cofins | D15: 0.03 | E15: - | F15: - | G15: -
A16: 2.4 | B16: Contribuição previdênciária sobre a receita bruta (CPRB) | E16: - | F16: - | G16: -
A17: 3 | B17: SEGURO, GARANTIA E RISCO | D17: =SUM(D18:D19) -> 0.0086
A18: 3.1 | B18: Seguro + Garantia | C18: S + G | D18: =E18 -> 0.003 | E18: 0.003 | F18: 0.0048 | G18: 0.0082
A19: 3.3 | B19: Risco | C19: R | D19: =E19 -> 0.0056 | E19: 0.0056 | F19: 0.0085 | G19: 0.0089
A20: 4 | B20: DESPESAS FINANCEIRAS | C20: DF | D20: =E20 -> 0.0085 | E20: 0.0085 | F20: 0.0085 | G20: 0.0111
A21: 5 | B21: LUCRO | C21: L | D21: 0.045 | E21: 0.035 | F21: 0.0511 | G21: 0.0622
B22: BDI ADOTADO: | D22: =ROUND(((((1+D11+D17)*(1+D20)*(1+D21))/(1-D12))-1),4) -> 0.147
A23: Considerações: O BDI foi calculado através da seguinte fórmula, regulamentada pelo Acórdão Nº 2622/2013 – TCU.

Sheet BDI forn Desonerado (hidden)
A1: Ministério do Desenvolvimento Regional
A2: Companhia de Desenvolvimento dos Vales do São Francisco e do Parnaíba
A3: ='Planilha Orçamentária'!A3:I3 -> 0
A4: COMPOSIÇÃO DE BDI - FORNECIMENTO - DESONERADO
A5: OBRA: | B5: =UPPER("SERVIÇOS DE MANUTENÇÃO E OBRAS CIVIS NA ESTRUTURA DA BARRAGEM E EQUIPAMENTO HIDROMECÂNICO") -> SERVIÇOS DE MANUTENÇÃO E OBRAS CIVIS NA ESTRUTURA DA BARRAGEM E EQUIPAMENTO HIDROMECÂNICO | D5: BDI (serv.): | E5: ='BDI serv Desonerado'!E5 -> 0.3351
A6: LOCAL: | B6: BARRAGEM POÇO DO MAGRO, GUANAMBI/BA | D6: BDI (forn.): | E6: =D22 -> 0.212
A7: DATA BASE: | B7: 2023-05-01
A8: PRAZO: | B8: 120 DIAS
A9: ITEM | B9: DESCRIÇÃO | C9: SIGLA | D9: % APLICADO | E9: REFERÊNCIA TCU (ACÓRDÃO Nº 2622/2013)
E10: 1º QUARTIL | F10: 2º QUARTIL | G10: 3º QUARTIL
A11: 1 | B11: ADMINISTRAÇÃO CENTRAL | C11: AC | D11: 0.04 | E11: 0.015 | F11: 0.0345 | G11: 0.0449
A12: 2 | B12: IMPOSTOS | C12: T | D12: =SUM(D13:D16) -> 0.0815
A13: 2.1 | B13: ISS (*) | E13: - | F13: - | G13: -
A14: 2.2 | B14: PIS | D14: 0.0065 | E14: - | F14: - | G14: -
A15: 2.3 | B15: Cofins | D15: 0.03 | E15: - | F15: - | G15: -
A16: 2.4 | B16: Contribuição previdênciária sobre a receita bruta (CPRB) | D16: 0.045 | E16: - | F16: - | G16: -
A17: 3 | B17: SEGURO, GARANTIA E RISCO | D17: =SUM(D18:D19) -> 0.0086
A18: 3.1 | B18: Seguro +Garantia | C18: S+G | D18: =E18 -> 0.003 | E18: 0.003 | F18: 0.0048 | G18: 0.0082
A19: 3.2 | B19: Risco | C19: R | D19: =E19 -> 0.0056 | E19: 0.0056 | F19: 0.0085 | G19: 0.0089
A20: 4 | B20: DESPESAS FINANCEIRAS | C20: DF | D20: 0.01 | E20: 0.0085 | F20: 0.0085 | G20: 0.0111
A21: 5 | B21: LUCRO | C21: L | D21: =F21 -> 0.0511 | E21: 0.035 | F21: 0.0511 | G21: 0.0622
B22: BDI ADOTADO: | D22: =ROUND(((((1+D11+D17)*(1+D20)*(1+D21))/(1-D12))-1),4) -> 0.212
A23: Considerações: O BDI foi calculado através da seguinte fórmula, regulamentada pelo Acórdão Nº 2622/2013 – TCU.

Sheet Encargos Sociais
A1: Ministério da Integração e do Desenvolvimento Regional
A2: Companhia de Desenvolvimento dos Vales do São Francisco e do Parnaíba
A3: ='Planilha Orçamentária'!A3:I3 -> 0
A4: COMPOSIÇÃO DE ENCARGOS SOCIAIS SOBRE A MÃO DE OBRA
A5: OBRA: | B5: =CPU!C5 -> SERVIÇOS DE MANUTENÇÃO E OBRAS CIVIS NA BARRAGEM CACHIMBO
A6: LOCAL: | B6: ='Planilha Orçamentária'!B6 -> BARRAGEM CACHIMBO, PARNAMIRIM/PE
A7: DATA BASE: | B7: =CPU!C7 -> 2024-03-01
A8: PRAZO: | B8: 120 DIAS
A9: Encargos Sociais – PERNAMBUCO VIGÊNCIA A PARTIR DE 12/2023
A10: ENCARGOS SOCIAIS SOBRE A MÃO DE OBRA
A11: CÓDIGO | B11: DESCRIÇÃO | C11: COM DESONERAÇÃO | E11: SEM DESONERAÇÃO
C12: HORISTA % | D12: MENSALISTA % | E12: HORISTA % | F12: MENSALISTA %
A13: GRUPO A
A14: A1 | B14: INSS | C14: 0 | D14: 0 | E14: 0.2 | F14: 0.2
A15: A2 | B15: SESI | C15: 0.015 | D15: 0.015 | E15: 0.015 | F15: 0.015
A16: A3 | B16: SENAI | C16: 0.01 | D16: 0.01 | E16: 0.01 | F16: 0.01
A17: A4 | B17: INCRA | C17: 0.002 | D17: 0.002 | E17: 0.002 | F17: 0.002
A18: A5 | B18: SEBRAE | C18: 0.006 | D18: 0.006 | E18: 0.006 | F18: 0.006
A19: A6 | B19: Salário Educação | C19: 0.025 | D19: 0.025 | E19: 0.025 | F19: 0.025
A20: A7 | B20: Seguro Contra Acidentes de Trabalho | C20: 0.03 | D20: 0.03 | E20: 0.03 | F20: 0.03
A21: A8 | B21: FGTS | C21: 0.08 | D21: 0.08 | E21: 0.08 | F21: 0.08
A22: A9 | B22: SECONCI | C22: 0 | D22: 0 | E22: 0 | F22: 0
A23: A | B23: Total | C23: =SUM(C14:C22) -> 0.168 | D23: =SUM(D14:D22) -> 0.168 | E23: =SUM(E14:E22) -> 0.368 | F23: =SUM(F14:F22) -> 0.368
A24: GRUPO B
A25: B1 | B25: Repouso Semanal Remunerado | C25: 0.1801 | D25: Não incide | E25: 0.1801 | F25: Não incide
A26: B2 | B26: Feriados | C26: 0.0432 | D26: Não incide | E26: 0.0432 | F26: Não incide
A27: B3 | B27: Auxílio - Enfermidade | C27: 0.0085 | D27: 0.0064 | E27: 0.0085 | F27: 0.0064
A28: B4 | B28: 13º Salário | C28: 0.1103 | D28: 0.0833 | E28: 0.1103 | F28: 0.0833
A29: B5 | B29: Licença Paternidade | C29: 0.0006 | D29: 0.0004 | E29: 0.0006 | F29: 0.0004
A30: B6 | B30: Faltas Justificadas | C30: 0.0074 | D30: 0.0056 | E30: 0.0074 | F30: 0.0056
A31: B7 | B31: Dias de Chuvas | C31: 0.0198 | D31: Não incide | E31: 0.0198 | F31: Não incide
A32: B8 | B32: Auxílio Acidente de Trabalho | C32: 0.001 | D32: 0.0008 | E32: 0.001 | F32: 0.0008
A33: B9 | B33: Férias Gozadas | C33: 0.109 | D33: 0.0824 | E33: 0.109 | F33: 0.0824
A34: B10 | B34: Salário Maternidade | C34: 0.0004 | D34: 0.0003 | E34: 0.0004 | F34: 0.0003
A35: B | B35: Total | C35: =SUM(C25:C34) -> 0.4803 | D35: =SUM(D25:D34) -> 0.1792 | E35: =SUM(E25:E34) -> 0.4803 | F35: =SUM(F25:F34) -> 0.1792
A36: GRUPO C
A37: C1 | B37: Aviso Prévio Indenizado | C37: 0.048 | D37: 0.0363 | E37: 0.048 | F37: 0.0363
A38: C2 | B38: Aviso Prévio Trabalhado | C38: 0.0011 | D38: 0.0009 | E38: 0.0011 | F38: 0.0009
A39: C3 | B39: Férias Indenizadas | C39: 0.0291 | D39: 0.022 | E39: 0.0291 | F39: 0.022
A40: C4 | B40: Depósito Rescisão Sem Justa Causa | C40: 0.0283 | D40: 0.0214 | E40: 0.0283 | F40: 0.0214
A41: C5 | B41: Indenização Adicional | C41: 0.004 | D41: 0.0031 | E41: 0.004 | F41: 0.0031
A42: C | B42: Total | C42: =SUM(C37:C41) -> 0.1105 | D42: =SUM(D37:D41) -> 0.0837 | E42: =SUM(E37:E41) -> 0.1105 | F42: =SUM(F37:F41) -> 0.0837
A43: GRUPO D
A44: D1 | B44: Reincidência de Grupo A sobre Grupo B | C44: 0.0807 | D44: 0.0301 | E44: 0.1768 | F44: 0.0659
A45: D2 | B45: Reincidência de Grupo A sobre Aviso Prévio Trabalhado e Reincidência do FGTS sobre Aviso Prévio Indenizado | C45: 0.004 | D45: 0.0031 | E45: 0.0042 | F45: 0.0032
A46: D | B46: Total | C46: =SUM(C44:C45) -> 0.0847 | D46: =SUM(D44:D45) -> 0.0332 | E46: =SUM(E44:E45) -> 0.181 | F46: =SUM(F44:F45) -> 0.0691
A47: TOTAL(A+B+C+D) | C47: =C23+C35+C42+C46 -> 0.8435 | D47: =D23+D35+D42+D46 -> 0.4641 | E47: =E23+E35+E42+E46 -> 1.1398 | F47: =F23+F35+F42+F46 -> 0.7
A48: Fonte: Informação Dias de Chuva – INMET

Sheet Comp SINAPI PE 03-2024 Onerado
A1: PCI.817.01 - CUSTO DE COMPOSIÇÕES - SINTÉTICO DATA DE EMISSÃO: 16/05/2024 23:42:45 DATA DE RT: 16/05/2024
A2: ENCARGOS SOCIAIS SOBRE PREÇOS DA MÃO-DE-OBRA: 113,98%(HORA) 70,00%(MÊS)
A3: ABRANGÊNCIA : NACIONAL LOCALIDADE : RECIFE DATA DE PREÇO : 04/2024 REFERÊNCIA COLETA : MEDIANO
A5: DESCRICAO DA CLASSE | B5: SIGLA DA CLASSE | C5: DESCRICAO DO TIPO 1 | D5: SIGLA DO TIPO 1 | E5: CODIGO DO AGRUPADOR | F5: DESCRICAO DO AGRUPADOR | G5: CODIGO DA COMPOSICAO | H5: DESCRICAO DA COMPOSICAO | I5: UNIDADE | J5: ORIGEM DE PREÇO | K5: CUSTO TOTAL | L5: VINCULO
A7: ASSENTAMENTO DE TUBOS E PECAS | B7: ASTU | C7: FORNEC E/OU ASSENT DE TUBO DE FERRO FUNDIDO JUNTA ELASTICA | D7: 45 | G7: 97141 | H7: ASSENTAMENTO DE TUBO DE FERRO FUNDIDO PARA REDE DE ÁGUA, DN 80 MM, JUNTA ELÁSTICA, INSTALADO EM LOCAL COM NÍVEL ALTO DE INTERFERÊNCIAS (NÃO INCLUI FORNECIMENTO). AF_11/2017 | I7: M | J7: COEFICIENTE DE REPRESENTATIVIDADE | K7: 8.98 | L7: CAIXA REFERENCIAL
A8: ASSENTAMENTO DE TUBOS E PECAS | B8: ASTU | C8: FORNEC E/OU ASSENT DE TUBO DE FERRO FUNDIDO JUNTA ELASTICA | D8: 45 | G8: 97142 | H8: ASSENTAMENTO DE TUBO DE FERRO FUNDIDO PARA REDE DE ÁGUA, DN 100 MM, JUNTA ELÁSTICA, INSTALADO EM LOCAL COM NÍVEL ALTO DE INTERFERÊNCIAS (NÃO INCLUI FORNECIMENTO). AF_11/2017 | I8: M | J8: COEFICIENTE DE REPRESENTATIVIDADE | K8: 9.94 | L8: CAIXA REFERENCIAL
A9: ASSENTAMENTO DE TUBOS E PECAS | B9: ASTU | C9: FORNEC E/OU ASSENT DE TUBO DE FERRO FUNDIDO JUNTA ELASTICA | D9: 45 | G9: 97143 | H9: ASSENTAMENTO DE TUBO DE FERRO FUNDIDO PARA REDE DE ÁGUA, DN 150 MM, JUNTA ELÁSTICA, INSTALADO EM LOCAL COM NÍVEL ALTO DE INTERFERÊNCIAS (NÃO INCLUI FORNECIMENTO). AF_11/2017 | I9: M | J9: COEFICIENTE DE REPRESENTATIVIDADE | K9: 12.37 | L9: CAIXA REFERENCIAL
A10: ASSENTAMENTO DE TUBOS E PECAS | B10: ASTU | C10: FORNEC E/OU ASSENT DE TUBO DE FERRO FUNDIDO JUNTA ELASTICA | D10: 45 | G10: 97144 | H10: ASSENTAMENTO DE TUBO DE FERRO FUNDIDO PARA REDE DE ÁGUA, DN 200 MM, JUNTA ELÁSTICA, INSTALADO EM LOCAL COM NÍVEL ALTO DE INTERFERÊNCIAS (NÃO INCLUI FORNECIMENTO). AF_11/2017 | I10: M | J10: COEFICIENTE DE REPRESENTATIVIDADE | K10: 14.79 | L10: CAIXA REFERENCIAL
A11: ASSENTAMENTO DE TUBOS E PECAS | B11: ASTU | C11: FORNEC E/OU ASSENT DE TUBO DE FERRO FUNDIDO JUNTA ELASTICA | D11: 45 | G11: 97145 | H11: ASSENTAMENTO DE TUBO DE FERRO FUNDIDO PARA REDE DE ÁGUA, DN 250 MM, JUNTA ELÁSTICA, INSTALADO EM LOCAL COM NÍVEL ALTO DE INTERFERÊNCIAS (NÃO INCLUI FORNECIMENTO). AF_11/2017 | I11: M | J11: COEFICIENTE DE REPRESENTATIVIDADE | K11: 17.25 | L11: CAIXA REFERENCIAL
A12: ASSENTAMENTO DE TUBOS E PECAS | B12: ASTU | C12: FORNEC E/OU ASSENT DE TUBO DE FERRO FUNDIDO JUNTA ELASTICA | D12: 45 | G12: 97146 | H12: ASSENTAMENTO DE TUBO DE FERRO FUNDIDO PARA REDE DE ÁGUA, DN 300 MM, JUNTA ELÁSTICA, INSTALADO EM LOCAL COM NÍVEL ALTO DE INTERFERÊNCIAS (NÃO INCLUI FORNECIMENTO). AF_11/2017 | I12: M | J12: COEFICIENTE DE REPRESENTATIVIDADE | K12: 19.69 | L12: CAIXA REFERENCIAL
A13: ASSENTAMENTO DE TUBOS E PECAS | B13: ASTU | C13: FORNEC E/OU ASSENT DE TUBO DE FERRO FUNDIDO JUNTA ELASTICA | D13: 45 | G13: 97147 | H13: ASSENTAMENTO DE TUBO DE FERRO FUNDIDO PARA REDE DE ÁGUA, DN 350 MM, JUNTA ELÁSTICA, INSTALADO EM LOCAL COM NÍVEL ALTO DE INTERFERÊNCIAS (NÃO INCLUI FORNECIMENTO). AF_11/2017 | I13: M | J13: COEFICIENTE DE REPRESENTATIVIDADE | K13: 22.12 | L13: CAIXA REFERENCIAL
A14: ASSENTAMENTO DE TUBOS E PECAS | B14: ASTU | C14: FORNEC E/OU ASSENT DE TUBO DE FERRO FUNDIDO JUNTA ELASTICA | D14: 45 | G14: 97148 | H14: ASSENTAMENTO DE TUBO DE FERRO FUNDIDO PARA REDE DE ÁGUA, DN 400 MM, JUNTA ELÁSTICA, INSTALADO EM LOCAL COM NÍVEL ALTO DE INTERFERÊNCIAS (NÃO INCLUI FORNECIMENTO). AF_11/2017 | I14: M | J14: COEFICIENTE DE REPRESENTATIVIDADE | K14: 24.56 | L14: CAIXA REFERENCIAL
A15: ASSENTAMENTO DE TUBOS E PECAS | B15: ASTU | C15: FORNEC E/OU ASSENT DE TUBO DE FERRO FUNDIDO JUNTA ELASTICA | D15: 45 | G15: 97149 | H15: ASSENTAMENTO DE TUBO DE FERRO FUNDIDO PARA REDE DE ÁGUA, DN 450 MM, JUNTA ELÁSTICA, INSTALADO EM LOCAL COM NÍVEL ALTO DE INTERFERÊNCIAS (NÃO INCLUI FORNECIMENTO). AF_11/2017 | I15: M | J15: COEFICIENTE DE REPRESENTATIVIDADE | K15: 27.05 | L15: CAIXA REFERENCIAL
A16: ASSENTAMENTO DE TUBOS E PECAS | B16: ASTU | C16: FORNEC E/OU ASSENT DE TUBO DE FERRO FUNDIDO JUNTA ELASTICA | D16: 45 | G16: 97150 | H16: ASSENTAMENTO DE TUBO DE FERRO FUNDIDO PARA REDE DE ÁGUA, DN 500 MM, JUNTA ELÁSTICA, INSTALADO EM LOCAL COM NÍVEL ALTO DE INTERFERÊNCIAS (NÃO INCLUI FORNECIMENTO). AF_11/2017 | I16: M | J16: COEFICIENTE DE REPRESENTATIVIDADE | K16: 33.72 | L16: CAIXA REFERENCIAL
A17: ASSENTAMENTO DE TUBOS E PECAS | B17: ASTU | C17: FORNEC E/OU ASSENT DE TUBO DE FERRO FUNDIDO JUNTA ELASTICA | D17: 45 | G17: 97151 | H17: ASSENTAMENTO DE TUBO DE FERRO FUNDIDO PARA REDE DE ÁGUA, DN 600 MM, JUNTA ELÁSTICA, INSTALADO EM LOCAL COM NÍVEL ALTO DE INTERFERÊNCIAS (NÃO INCLUI FORNECIMENTO). AF_11/2017 | I17: M | J17: COEFICIENTE DE REPRESENTATIVIDADE | K17: 39.24 | L17: CAIXA REFERENCIAL
A18: ASSENTAMENTO DE TUBOS E PECAS | B18: ASTU | C18: FORNEC E/OU ASSENT DE TUBO DE FERRO FUNDIDO JUNTA ELASTICA | D18: 45 | G18: 97152 | H18: ASSENTAMENTO DE TUBO DE FERRO FUNDIDO PARA REDE DE ÁGUA, DN 700 MM, JUNTA ELÁSTICA, INSTALADO EM LOCAL COM NÍVEL ALTO DE INTERFERÊNCIAS (NÃO INCLUI FORNECIMENTO). AF_11/2017 | I18: M | J18: COEFICIENTE DE REPRESENTATIVIDADE | K18: 44.54 | L18: CAIXA REFERENCIAL
A19: ASSENTAMENTO DE TUBOS E PECAS | B19: ASTU | C19: FORNEC E/OU ASSENT DE TUBO DE FERRO FUNDIDO JUNTA ELASTICA | D19: 45 | G19: 97153 | H19: ASSENTAMENTO DE TUBO DE FERRO FUNDIDO PARA REDE DE ÁGUA, DN 800 MM, JUNTA ELÁSTICA, INSTALADO EM LOCAL COM NÍVEL ALTO DE INTERFERÊNCIAS (NÃO INCLUI FORNECIMENTO). AF_11/2017 | I19: M | J19: COEFICIENTE DE REPRESENTATIVIDADE | K19: 49.98 | L19: CAIXA REFERENCIAL
A20: ASSENTAMENTO DE TUBOS E PECAS | B20: ASTU | C20: FORNEC E/OU ASSENT DE TUBO DE FERRO FUNDIDO JUNTA ELASTICA | D20: 45 | G20: 97154 | H20: ASSENTAMENTO DE TUBO DE FERRO FUNDIDO PARA REDE DE ÁGUA, DN 900 MM, JUNTA ELÁSTICA, INSTALADO EM LOCAL COM NÍVEL ALTO DE INTERFERÊNCIAS (NÃO INCLUI FORNECIMENTO). AF_11/2017 | I20: M | J20: COEFICIENTE DE REPRESENTATIVIDADE | K20: 55.47 | L20: CAIXA REFERENCIAL
A21: ASSENTAMENTO DE TUBOS E PECAS | B21: ASTU | C21: FORNEC E/OU ASSENT DE TUBO DE FERRO FUNDIDO JUNTA ELASTICA | D21: 45 | G21: 97155 | H21: ASSENTAMENTO DE TUBO DE FERRO FUNDIDO PARA REDE DE ÁGUA, DN 1000 MM, JUNTA ELÁSTICA, INSTALADO EM LOCAL COM NÍVEL ALTO DE INTERFERÊNCIAS (NÃO INCLUI FORNECIMENTO). AF_11/2017 | I21: M | J21: COEFICIENTE DE REPRESENTATIVIDADE | K21: 60.93 | L21: CAIXA REFERENCIAL
A22: ASSENTAMENTO DE TUBOS E PECAS | B22: ASTU | C22: FORNEC E/OU ASSENT DE TUBO DE FERRO FUNDIDO JUNTA ELASTICA | D22: 45 | G22: 97156 | H22: ASSENTAMENTO DE TUBO DE FERRO FUNDIDO PARA REDE DE ÁGUA, DN 1200 MM, JUNTA ELÁSTICA, INSTALADO EM LOCAL COM NÍVEL ALTO DE INTERFERÊNCIAS (NÃO INCLUI FORNECIMENTO). AF_11/2017 | I22: M | J22: COEFICIENTE DE REPRESENTATIVIDADE | K22: 72.24 | L22: CAIXA REFERENCIAL
A23: ASSENTAMENTO DE TUBOS E PECAS | B23: ASTU | C23: FORNEC E/OU ASSENT DE TUBO DE FERRO FUNDIDO JUNTA ELASTICA | D23: 45 | G23: 97157 | H23: ASSENTAMENTO DE TUBO DE FERRO FUNDIDO PARA REDE DE ÁGUA, DN 80 MM, JUNTA ELÁSTICA, INSTALADO EM LOCAL COM NÍVEL BAIXO DE INTERFERÊNCIAS (NÃO INCLUI FORNECIMENTO). AF_11/2017 | I23: M | J23: COEFICIENTE DE REPRESENTATIVIDADE | K23: 5.38 | L23: CAIXA REFERENCIAL
A24: ASSENTAMENTO DE TUBOS E PECAS | B24: ASTU | C24: FORNEC E/OU ASSENT DE TUBO DE FERRO FUNDIDO JUNTA ELASTICA | D24: 45 | G24: 97158 | H24: ASSENTAMENTO DE TUBO DE FERRO FUNDIDO PARA REDE DE ÁGUA, DN 100 MM, JUNTA ELÁSTICA, INSTALADO EM LOCAL COM NÍVEL BAIXO DE INTERFERÊNCIAS (NÃO INCLUI FORNECIMENTO). AF_11/2017 | I24: M | J24: COEFICIENTE DE REPRESENTATIVIDADE | K24: 5.97 | L24: CAIXA REFERENCIAL
A25: ASSENTAMENTO DE TUBOS E PECAS | B25: ASTU | C25: FORNEC E/OU ASSENT DE TUBO DE FERRO FUNDIDO JUNTA ELASTICA | D25: 45 | G25: 97159 | H25: ASSENTAMENTO DE TUBO DE FERRO FUNDIDO PARA REDE DE ÁGUA, DN 150 MM, JUNTA ELÁSTICA, INSTALADO EM LOCAL COM NÍVEL BAIXO DE INTERFERÊNCIAS (NÃO INCLUI FORNECIMENTO). AF_11/2017 | I25: M | J25: COEFICIENTE DE REPRESENTATIVIDADE | K25: 7.43 | L25: CAIXA REFERENCIAL
A26: ASSENTAMENTO DE TUBOS E PECAS | B26: ASTU | C26: FORNEC E/OU ASSENT DE TUBO DE FERRO FUNDIDO JUNTA ELASTICA | D26: 45 | G26: 97160 | H26: ASSENTAMENTO DE TUBO DE FERRO FUNDIDO PARA REDE DE ÁGUA, DN 200 MM, JUNTA ELÁSTICA, INSTALADO EM LOCAL COM NÍVEL BAIXO DE INTERFERÊNCIAS (NÃO INCLUI FORNECIMENTO). AF_11/2017 | I26: M | J26: COEFICIENTE DE REPRESENTATIVIDADE | K26: 8.89 | L26: CAIXA REFERENCIAL
A27: ASSENTAMENTO DE TUBOS E PECAS | B27: ASTU | C27: FORNEC E/OU ASSENT DE TUBO DE FERRO FUNDIDO JUNTA ELASTICA | D27: 45 | G27: 97161 | H27: ASSENTAMENTO DE TUBO DE FERRO FUNDIDO PARA REDE DE ÁGUA, DN 250 MM, JUNTA ELÁSTICA, INSTALADO EM LOCAL COM NÍVEL BAIXO DE INTERFERÊNCIAS (NÃO INCLUI FORNECIMENTO). AF_11/2017 | I27: M | J27: COEFICIENTE DE REPRESENTATIVIDADE | K27: 10.39 | L27: CAIXA REFERENCIAL
A28: ASSENTAMENTO DE TUBOS E PECAS | B28: ASTU | C28: FORNEC E/OU ASSENT DE TUBO DE FERRO FUNDIDO JUNTA ELASTICA | D28: 45 | G28: 97162 | H28: ASSENTAMENTO DE TUBO DE FERRO FUNDIDO PARA REDE DE ÁGUA, DN 300 MM, JUNTA ELÁSTICA, INSTALADO EM LOCAL COM NÍVEL BAIXO DE INTERFERÊNCIAS (NÃO INCLUI FORNECIMENTO). AF_11/2017 | I28: M | J28: COEFICIENTE DE REPRESENTATIVIDADE | K28: 11.87 | L28: CAIXA REFERENCIAL
A29: ASSENTAMENTO DE TUBOS E PECAS | B29: ASTU | C29: FORNEC E/OU ASSENT DE TUBO DE FERRO FUNDIDO JUNTA ELASTICA | D29: 45 | G29: 97163 | H29: ASSENTAMENTO DE TUBO DE FERRO FUNDIDO PARA REDE DE ÁGUA, DN 350 MM, JUNTA ELÁSTICA, INSTALADO EM LOCAL COM NÍVEL BAIXO DE INTERFERÊNCIAS (NÃO INCLUI FORNECIMENTO). AF_11/2017 | I29: M | J29: COEFICIENTE DE REPRESENTATIVIDADE | K29: 13.36 | L29: CAIXA REFERENCIAL
A30: ASSENTAMENTO DE TUBOS E PECAS | B30: ASTU | C30: FORNEC E/OU ASSENT DE TUBO DE FERRO FUNDIDO JUNTA ELASTICA | D30: 45 | G30: 97164 | H30: ASSENTAMENTO DE TUBO DE FERRO FUNDIDO PARA REDE DE ÁGUA, DN 400 MM, JUNTA ELÁSTICA, INSTALADO EM LOCAL COM NÍVEL BAIXO DE INTERFERÊNCIAS (NÃO INCLUI FORNECIMENTO). AF_11/2017 | I30: M | J30: COEFICIENTE DE REPRESENTATIVIDADE | K30: 14.84 | L30: CAIXA REFERENCIAL
A31: ASSENTAMENTO DE TUBOS E PECAS | B31: ASTU | C31: FORNEC E/OU ASSENT DE TUBO DE FERRO FUNDIDO JUNTA ELASTICA | D31: 45 | G31: 97165 | H31: ASSENTAMENTO DE TUBO DE FERRO FUNDIDO PARA REDE DE ÁGUA, DN 450 MM, JUNTA ELÁSTICA, INSTALADO EM LOCAL COM NÍVEL BAIXO DE INTERFERÊNCIAS (NÃO INCLUI FORNECIMENTO). AF_11/2017 | I31: M | J31: COEFICIENTE DE REPRESENTATIVIDADE | K31: 16.36 | L31: CAIXA REFERENCIAL
A32: ASSENTAMENTO DE TUBOS E PECAS | B32: ASTU | C32: FORNEC E/OU ASSENT DE TUBO DE FERRO FUNDIDO JUNTA ELASTICA | D32: 45 | G32: 97166 | H32: ASSENTAMENTO DE TUBO DE FERRO FUNDIDO PARA REDE DE ÁGUA, DN 500 MM, JUNTA ELÁSTICA, INSTALADO EM LOCAL COM NÍVEL BAIXO DE INTERFERÊNCIAS (NÃO INCLUI FORNECIMENTO). AF_11/2017 | I32: M | J32: COEFICIENTE DE REPRESENTATIVIDADE | K32: 20.41 | L32: CAIXA REFERENCIAL
A33: ASSENTAMENTO DE TUBOS E PECAS | B33: ASTU | C33: FORNEC E/OU ASSENT DE TUBO DE FERRO FUNDIDO JUNTA ELASTICA | D33: 45 | G33: 97167 | H33: ASSENTAMENTO DE TUBO DE FERRO FUNDIDO PARA REDE DE ÁGUA, DN 600 MM, JUNTA ELÁSTICA, INSTALADO EM LOCAL COM NÍVEL BAIXO DE INTERFERÊNCIAS (NÃO INCLUI FORNECIMENTO). AF_11/2017 | I33: M | J33: COEFICIENTE DE REPRESENTATIVIDADE | K33: 23.78 | L33: CAIXA REFERENCIAL
A34: ASSENTAMENTO DE TUBOS E PECAS | B34: ASTU | C34: FORNEC E/OU ASSENT DE TUBO DE FERRO FUNDIDO JUNTA ELASTICA | D34: 45 | G34: 97168 | H34: ASSENTAMENTO DE TUBO DE FERRO FUNDIDO PARA REDE DE ÁGUA, DN 700 MM, JUNTA ELÁSTICA, INSTALADO EM LOCAL COM NÍVEL BAIXO DE INTERFERÊNCIAS (NÃO INCLUI FORNECIMENTO). AF_11/2017 | I34: M | J34: COEFICIENTE DE REPRESENTATIVIDADE | K34: 26.94 | L34: CAIXA REFERENCIAL
A35: ASSENTAMENTO DE TUBOS E PECAS | B35: ASTU | C35: FORNEC E/OU ASSENT DE TUBO DE FERRO FUNDIDO JUNTA ELASTICA | D35: 45 | G35: 97169 | H35: ASSENTAMENTO DE TUBO DE FERRO FUNDIDO PARA REDE DE ÁGUA, DN 800 MM, JUNTA ELÁSTICA, INSTALADO EM LOCAL COM NÍVEL BAIXO DE INTERFERÊNCIAS (NÃO INCLUI FORNECIMENTO). AF_11/2017 | I35: M | J35: COEFICIENTE DE REPRESENTATIVIDADE | K35: 30.24 | L35: CAIXA REFERENCIAL
A36: ASSENTAMENTO DE TUBOS E PECAS | B36: ASTU | C36: FORNEC E/OU ASSENT DE TUBO DE FERRO FUNDIDO JUNTA ELASTICA | D36: 45 | G36: 97170 | H36: ASSENTAMENTO DE TUBO DE FERRO FUNDIDO PARA REDE DE ÁGUA, DN 900 MM, JUNTA ELÁSTICA, INSTALADO EM LOCAL COM NÍVEL BAIXO DE INTERFERÊNCIAS (NÃO INCLUI FORNECIMENTO). AF_11/2017 | I36: M | J36: COEFICIENTE DE REPRESENTATIVIDADE | K36: 33.56 | L36: CAIXA REFERENCIAL
A37: ASSENTAMENTO DE TUBOS E PECAS | B37: ASTU | C37: FORNEC E/OU ASSENT DE TUBO DE FERRO FUNDIDO JUNTA ELASTICA | D37: 45 | G37: 97171 | H37: ASSENTAMENTO DE TUBO DE FERRO FUNDIDO PARA REDE DE ÁGUA, DN 1000 MM, JUNTA ELÁSTICA, INSTALADO EM LOCAL COM NÍVEL BAIXO DE INTERFERÊNCIAS (NÃO INCLUI FORNECIMENTO). AF_11/2017 | I37: M | J37: COEFICIENTE DE REPRESENTATIVIDADE | K37: 36.89 | L37: CAIXA REFERENCIAL
A38: ASSENTAMENTO DE TUBOS E PECAS | B38: ASTU | C38: FORNEC E/OU ASSENT DE TUBO DE FERRO FUNDIDO JUNTA ELASTICA | D38: 45 | G38: 97172 | H38: ASSENTAMENTO DE TUBO DE FERRO FUNDIDO PARA REDE DE ÁGUA, DN 1200 MM, JUNTA ELÁSTICA, INSTALADO EM LOCAL COM NÍVEL BAIXO DE INTERFERÊNCIAS (NÃO INCLUI FORNECIMENTO). AF_11/2017 | I38: M | J38: COEFICIENTE DE REPRESENTATIVIDADE | K38: 43.9 | L38: CAIXA REFERENCIAL
A39: ASSENTAMENTO DE TUBOS E PECAS | B39: ASTU | C39: FORNEC E/OU ASSENT DE TUBO DE ACO COM JUNTA SOLDADA | D39: 46 | G39: 97173 | H39: ASSENTAMENTO DE TUBO DE AÇO CARBONO PARA REDE DE ÁGUA, DN 600 MM (24"), JUNTA SOLDADA, INSTALADO EM LOCAL COM NÍVEL ALTO DE INTERFERÊNCIAS (NÃO INCLUI FORNECIMENTO). AF_11/2017 | I39: M | J39: COEFICIENTE DE REPRESENTATIVIDADE | K39: 36.33 | L39: CAIXA REFERENCIAL
A40: ASSENTAMENTO DE TUBOS E PECAS | B40: ASTU | C40: FORNEC E/OU ASSENT DE TUBO DE ACO COM JUNTA SOLDADA | D40: 46 | G40: 97174 | H40: ASSENTAMENTO DE TUBO DE AÇO CARBONO PARA REDE DE ÁGUA, DN 700 MM (28"), JUNTA SOLDADA, INSTALADO EM LOCAL COM NÍVEL ALTO DE INTERFERÊNCIAS (NÃO INCLUI FORNECIMENTO). AF_11/2017 | I40: M | J40: COEFICIENTE DE REPRESENTATIVIDADE | K40: 42.07 | L40: CAIXA REFERENCIAL
A41: ASSENTAMENTO DE TUBOS E PECAS | B41: ASTU | C41: FORNEC E/OU ASSENT DE TUBO DE ACO COM JUNTA SOLDADA | D41: 46 | G41: 97175 | H41: ASSENTAMENTO DE TUBO DE AÇO CARBONO PARA REDE DE ÁGUA, DN 800 MM (32"), JUNTA SOLDADA, INSTALADO EM LOCAL COM NÍVEL ALTO DE INTERFERÊNCIAS (NÃO INCLUI FORNECIMENTO). AF_11/2017 | I41: M | J41: COEFICIENTE DE REPRESENTATIVIDADE | K41: 47.78 | L41: CAIXA REFERENCIAL
A42: ASSENTAMENTO DE TUBOS E PECAS | B42: ASTU | C42: FORNEC E/OU ASSENT DE TUBO DE ACO COM JUNTA SOLDADA | D42: 46 | G42: 97176 | H42: ASSENTAMENTO DE TUBO DE AÇO CARBONO PARA REDE DE ÁGUA, DN 900 MM (36"), JUNTA SOLDADA, INSTALADO EM LOCAL COM NÍVEL ALTO DE INTERFERÊNCIAS (NÃO INCLUI FORNECIMENTO). AF_11/2017 | I42: M | J42: COEFICIENTE DE REPRESENTATIVIDADE | K42: 53.52 | L42: CAIXA REFERENCIAL
A43: ASSENTAMENTO DE TUBOS E PECAS | B43: ASTU | C43: FORNEC E/OU ASSENT DE TUBO DE ACO COM JUNTA SOLDADA | D43: 46 | G43: 97177 | H43: ASSENTAMENTO DE TUBO DE AÇO CARBONO PARA REDE DE ÁGUA, DN 1000 MM (40") OU DN 1100 MM (44"), JUNTA SOLDADA, INSTALADO EM LOCAL COM NÍVEL ALTO DE INTERFERÊNCIAS (NÃO INCLUI FORNECIMENTO). AF_11/2017 | I43: M | J43: COEFICIENTE DE REPRESENTATIVIDADE | K43: 64.99 | L43: CAIXA REFERENCIAL
A44: ASSENTAMENTO DE TUBOS E PECAS | B44: ASTU | C44: FORNEC E/OU ASSENT DE TUBO DE ACO COM JUNTA SOLDADA | D44: 46 | G44: 97178 | H44: ASSENTAMENTO DE TUBO DE AÇO CARBONO PARA REDE DE ÁGUA, DN 1200 MM (48") OU DN 1300 MM (52"), JUNTA SOLDADA, INSTALADO EM LOCAL COM NÍVEL ALTO DE INTERFERÊNCIAS (NÃO INCLUI FORNECIMENTO). AF_11/2017 | I44: M | J44: COEFICIENTE DE REPRESENTATIVIDADE | K44: 76.46 | L44: CAIXA REFERENCIAL
A45: ASSENTAMENTO DE TUBOS E PECAS | B45: ASTU | C45: FORNEC E/OU ASSENT DE TUBO DE ACO COM JUNTA SOLDADA | D45: 46 | G45: 97179 | H45: ASSENTAMENTO DE TUBO DE AÇO CARBONO PARA REDE DE ÁGUA, DN 1400 MM (56'') OU DN 1500 MM (60"), JUNTA SOLDADA, INSTALADO EM LOCAL COM NÍVEL ALTO DE INTERFERÊNCIAS (NÃO INCLUI FORNECIMENTO). AF_11/2017 | I45: M | J45: COEFICIENTE DE REPRESENTATIVIDADE | K45: 87.9 | L45: CAIXA REFERENCIAL
A46: ASSENTAMENTO DE TUBOS E PECAS | B46: ASTU | C46: FORNEC E/OU ASSENT DE TUBO DE ACO COM JUNTA SOLDADA | D46: 46 | G46: 97180 | H46: ASSENTAMENTO DE TUBO DE AÇO CARBONO PARA REDE DE ÁGUA, DN 1600 MM (64") OU DN 1700 MM (68"), JUNTA SOLDADA, INSTALADO EM LOCAL COM NÍVEL ALTO DE INTERFERÊNCIAS (NÃO INCLUI FORNECIMENTO). AF_11/2017 | I46: M | J46: COEFICIENTE DE REPRESENTATIVIDADE | K46: 99.38 | L46: CAIXA REFERENCIAL
A47: ASSENTAMENTO DE TUBOS E PECAS | B47: ASTU | C47: FORNEC E/OU ASSENT DE TUBO DE ACO COM JUNTA SOLDADA | D47: 46 | G47: 97181 | H47: ASSENTAMENTO DE TUBO DE AÇO CARBONO PARA REDE DE ÁGUA, DN 1800 MM (72") OU DN 1900 MM (76"), JUNTA SOLDADA, INSTALADO EM LOCAL COM NÍVEL ALTO DE INTERFERÊNCIAS (NÃO INCLUI FORNECIMENTO). AF_11/2017 | I47: M | J47: COEFICIENTE DE REPRESENTATIVIDADE | K47: 115.52 | L47: CAIXA REFERENCIAL
A48: ASSENTAMENTO DE TUBOS E PECAS | B48: ASTU | C48: FORNEC E/OU ASSENT DE TUBO DE ACO COM JUNTA SOLDADA | D48: 46 | G48: 97182 | H48: ASSENTAMENTO DE TUBO DE AÇO CARBONO PARA REDE DE ÁGUA, DN 2000 MM (80") OU DN 2100 MM (84"), JUNTA SOLDADA, INSTALADO EM LOCAL COM NÍVEL ALTO DE INTERFERÊNCIAS (NÃO INCLUI FORNECIMENTO). AF_11/2017 | I48: M | J48: COEFICIENTE DE REPRESENTATIVIDADE | K48: 127.49 | L48: CAIXA REFERENCIAL
A49: ASSENTAMENTO DE TUBOS E PECAS | B49: ASTU | C49: FORNEC E/OU ASSENT DE TUBO DE ACO COM JUNTA SOLDADA | D49: 46 | G49: 97183 | H49: ASSENTAMENTO DE TUBO DE AÇO CARBONO PARA REDE DE ÁGUA, DN 600 MM (24"), JUNTA SOLDADA, INSTALADO EM LOCAL COM NÍVEL BAIXO DE INTERFERÊNCIAS (NÃO INCLUI FORNECIMENTO). AF_11/2017 | I49: M | J49: COEFICIENTE DE REPRESENTATIVIDADE | K49: 28.69 | L49: CAIXA REFERENCIAL
A50: ASSENTAMENTO DE TUBOS E PECAS | B50: ASTU | C50: FORNEC E/OU ASSENT DE TUBO DE ACO COM JUNTA SOLDADA | D50: 46 | G50: 97184 | H50: ASSENTAMENTO DE TUBO DE AÇO CARBONO PARA REDE DE ÁGUA, DN 700 MM (28"), JUNTA SOLDADA, INSTALADO EM LOCAL COM NÍVEL BAIXO DE INTERFERÊNCIAS (NÃO INCLUI FORNECIMENTO). AF_11/2017 | I50: M | J50: COEFICIENTE DE REPRESENTATIVIDADE | K50: 33.27 | L50: CAIXA REFERENCIAL
A51: ASSENTAMENTO DE TUBOS E PECAS | B51: ASTU | C51: FORNEC E/OU ASSENT DE TUBO DE ACO COM JUNTA SOLDADA | D51: 46 | G51: 97185 | H51: ASSENTAMENTO DE TUBO DE AÇO CARBONO PARA REDE DE ÁGUA, DN 800 MM (32"), JUNTA SOLDADA, INSTALADO EM LOCAL COM NÍVEL BAIXO DE INTERFERÊNCIAS (NÃO INCLUI FORNECIMENTO). AF_11/2017 | I51: M | J51: COEFICIENTE DE REPRESENTATIVIDADE | K51: 37.84 | L51: CAIXA REFERENCIAL
A52: ASSENTAMENTO DE TUBOS E PECAS | B52: ASTU | C52: FORNEC E/OU ASSENT DE TUBO DE ACO COM JUNTA SOLDADA | D52: 46 | G52: 97186 | H52: ASSENTAMENTO DE TUBO DE AÇO CARBONO PARA REDE DE ÁGUA, DN 900 MM (36"), JUNTA SOLDADA, INSTALADO EM LOCAL COM NÍVEL BAIXO DE INTERFERÊNCIAS (NÃO INCLUI FORNECIMENTO). AF_11/2017 | I52: M | J52: COEFICIENTE DE REPRESENTATIVIDADE | K52: 42.45 | L52: CAIXA REFERENCIAL
A53: ASSENTAMENTO DE TUBOS E PECAS | B53: ASTU | C53: FORNEC E/OU ASSENT DE TUBO DE ACO COM JUNTA SOLDADA | D53: 46 | G53: 97187 | H53: ASSENTAMENTO DE TUBO DE AÇO CARBONO PARA REDE DE ÁGUA, DN 1000 MM (40 ) OU DN 1100 MM (44 ), JUNTA SOLDADA, INSTALADO EM LOCAL COM NÍVEL BAIXO DE INTERFERÊNCIAS (NÃO INCLUI FORNECIMENTO). AF_11/2017 | I53: M | J53: COEFICIENTE DE REPRESENTATIVIDADE | K53: 51.62 | L53: CAIXA REFERENCIAL
A54: ASSENTAMENTO DE TUBOS E PECAS | B54: ASTU | C54: FORNEC E/OU ASSENT DE TUBO DE ACO COM JUNTA SOLDADA | D54: 46 | G54: 97188 | H54: ASSENTAMENTO DE TUBO DE AÇO CARBONO PARA REDE DE ÁGUA, DN 1200 MM (48") OU DN 1300 MM (52"), JUNTA SOLDADA, INSTALADO EM LOCAL COM NÍVEL BAIXO DE INTERFERÊNCIAS (NÃO INCLUI FORNECIMENTO). AF_11/2017 | I54: M | J54: COEFICIENTE DE REPRESENTATIVIDADE | K54: 60.79 | L54: CAIXA REFERENCIAL
A55: ASSENTAMENTO DE TUBOS E PECAS | B55: ASTU | C55: FORNEC E/OU ASSENT DE TUBO DE ACO COM JUNTA SOLDADA | D55: 46 | G55: 97189 | H55: ASSENTAMENTO DE TUBO DE AÇO CARBONO PARA REDE DE ÁGUA, DN 1400 MM (56'') OU DN 1500 MM (60"), JUNTA SOLDADA, INSTALADO EM LOCAL COM NÍVEL BAIXO DE INTERFERÊNCIAS (NÃO INCLUI FORNECIMENTO). AF_11/2017 | I55: M | J55: COEFICIENTE DE REPRESENTATIVIDADE | K55: 69.96 | L55: CAIXA REFERENCIAL
A56: ASSENTAMENTO DE TUBOS E PECAS | B56: ASTU | C56: FORNEC E/OU ASSENT DE TUBO DE ACO COM JUNTA SOLDADA | D56: 46 | G56: 97190 | H56: ASSENTAMENTO DE TUBO DE AÇO CARBONO PARA REDE DE ÁGUA, DN 1600 MM (64") OU DN 1700 MM (68"), JUNTA SOLDADA, INSTALADO EM LOCAL COM NÍVEL BAIXO DE INTERFERÊNCIAS (NÃO INCLUI FORNECIMENTO). AF_11/2017 | I56: M | J56: COEFICIENTE DE REPRESENTATIVIDADE | K56: 79.14 | L56: CAIXA REFERENCIAL
A57: ASSENTAMENTO DE TUBOS E PECAS | B57: ASTU | C57: FORNEC E/OU ASSENT DE TUBO DE ACO COM JUNTA SOLDADA | D57: 46 | G57: 97191 | H57: ASSENTAMENTO DE TUBO DE AÇO CARBONO PARA REDE DE ÁGUA, DN 1800 MM (72") OU DN 1900 MM (76"), JUNTA SOLDADA, INSTALADO EM LOCAL COM NÍVEL BAIXO DE INTERFERÊNCIAS (NÃO INCLUI FORNECIMENTO). AF_11/2017 | I57: M | J57: COEFICIENTE DE REPRESENTATIVIDADE | K57: 91.72 | L57: CAIXA REFERENCIAL
A58: ASSENTAMENTO DE TUBOS E PECAS | B58: ASTU | C58: FORNEC E/OU ASSENT DE TUBO DE ACO COM JUNTA SOLDADA | D58: 46 | G58: 97192 | H58: ASSENTAMENTO DE TUBO DE AÇO CARBONO PARA REDE DE ÁGUA, DN 2000 MM (80") OU DN 2100 MM (84"), JUNTA SOLDADA, INSTALADO EM LOCAL COM NÍVEL BAIXO DE INTERFERÊNCIAS (NÃO INCLUI FORNECIMENTO). AF_11/2017 | I58: M | J58: COEFICIENTE DE REPRESENTATIVIDADE | K58: 101.26 | L58: CAIXA REFERENCIAL
A59: ASSENTAMENTO DE TUBOS E PECAS | B59: ASTU | C59: FORNEC E/OU ASSENT DE TUBO DE PVC COM JUNTA ELASTICA | D59: 48 | G59: 90694 | H59: TUBO DE PVC PARA REDE COLETORA DE ESGOTO DE PAREDE MACIÇA, DN 100 MM, JUNTA ELÁSTICA - FORNECIMENTO E ASSENTAMENTO. AF_01/2021 | I59: M | J59: COEFICIENTE DE REPRESENTATIVIDADE | K59: 34.26 | L59: CAIXA REFERENCIAL
A60: ASSENTAMENTO DE TUBOS E PECAS | B60: ASTU | C60: FORNEC E/OU ASSENT DE TUBO DE PVC COM JUNTA ELASTICA | D60: 48 | G60: 90695 | H60: TUBO DE PVC PARA REDE COLETORA DE ESGOTO DE PAREDE MACIÇA, DN 150 MM, JUNTA ELÁSTICA - FORNECIMENTO E ASSENTAMENTO. AF_01/2021 | I60: M | J60: COEFICIENTE DE REPRESENTATIVIDADE | K60: 64.58 | L60: CAIXA REFERENCIAL
A61: ASSENTAMENTO DE TUBOS E PECAS | B61: ASTU | C61: FORNEC E/OU ASSENT DE TUBO DE PVC COM JUNTA ELASTICA | D61: 48 | G61: 90696 | H61: TUBO DE PVC PARA REDE COLETORA DE ESGOTO DE PAREDE MACIÇA, DN 200 MM, JUNTA ELÁSTICA - FORNECIMENTO E ASSENTAMENTO. AF_01/2021 | I61: M | J61: COEFICIENTE DE REPRESENTATIVIDADE | K61: 107.43 | L61: CAIXA REFERENCIAL
A62: ASSENTAMENTO DE TUBOS E PECAS | B62: ASTU | C62: FORNEC E/OU ASSENT DE TUBO DE PVC COM JUNTA ELASTICA | D62: 48 | G62: 90697 | H62: TUBO DE PVC PARA REDE COLETORA DE ESGOTO DE PAREDE MACIÇA, DN 250 MM, JUNTA ELÁSTICA - FORNECIMENTO E ASSENTAMENTO. AF_01/2021 | I62: M | J62: COEFICIENTE DE REPRESENTATIVIDADE | K62: 166.27 | L62: CAIXA REFERENCIAL
A63: ASSENTAMENTO DE TUBOS E PECAS | B63: ASTU | C63: FORNEC E/OU ASSENT DE TUBO DE PVC COM JUNTA ELASTICA | D63: 48 | G63: 90698 | H63: TUBO DE PVC PARA REDE COLETORA DE ESGOTO DE PAREDE MACIÇA, DN 300 MM, JUNTA ELÁSTICA, FORNECIMENTO E ASSENTAMENTO. AF_01/2021 | I63: M | J63: COEFICIENTE DE REPRESENTATIVIDADE | K63: 253.66 | L63: CAIXA REFERENCIAL
A64: ASSENTAMENTO DE TUBOS E PECAS | B64: ASTU | C64: FORNEC E/OU ASSENT DE TUBO DE PVC COM JUNTA ELASTICA | D64: 48 | G64: 90699 | H64: TUBO DE PVC PARA REDE COLETORA DE ESGOTO DE PAREDE MACIÇA, DN 350 MM, JUNTA ELÁSTICA - FORNECIMENTO E ASSENTAMENTO. AF_01/2021 | I64: M | J64: COEFICIENTE DE REPRESENTATIVIDADE | K64: 356.63 | L64: CAIXA REFERENCIAL
A65: ASSENTAMENTO DE TUBOS E PECAS | B65: ASTU | C65: FORNEC E/OU ASSENT DE TUBO DE PVC COM JUNTA ELASTICA | D65: 48 | G65: 90700 | H65: TUBO DE PVC PARA REDE COLETORA DE ESGOTO DE PAREDE MACIÇA, DN 400 MM, JUNTA ELÁSTICA FORNECIMENTO E ASSENTAMENTO. AF_01/2021 | I65: M | J65: COEFICIENTE DE REPRESENTATIVIDADE | K65: 417.61 | L65: CAIXA REFERENCIAL
A66: ASSENTAMENTO DE TUBOS E PECAS | B66: ASTU | C66: FORNEC E/OU ASSENT DE TUBO DE PVC COM JUNTA ELASTICA | D66: 48 | G66: 90701 | H66: TUBO DE PVC CORRUGADO DE DUPLA PAREDE PARA REDE COLETORA DE ESGOTO, DN 150 MM, JUNTA ELÁSTICA - FORNECIMENTO E ASSENTAMENTO. AF_01/2021 | I66: M | J66: COEFICIENTE DE REPRESENTATIVIDADE | K66: 52.12 | L66: CAIXA REFERENCIAL
A67: ASSENTAMENTO DE TUBOS E PECAS | B67: ASTU | C67: FORNEC E/OU ASSENT DE TUBO DE PVC COM JUNTA ELASTICA | D67: 48 | G67: 90702 | H67: TUBO DE PVC CORRUGADO DE DUPLA PAREDE PARA REDE COLETORA DE ESGOTO, DN 200 MM, JUNTA ELÁSTICA - FORNECIMENTO E ASSENTAMENTO. AF_01/2021 | I67: M | J67: COEFICIENTE DE REPRESENTATIVIDADE | K67: 85.61 | L67: CAIXA REFERENCIAL
A68: ASSENTAMENTO DE TUBOS E PECAS | B68: ASTU | C68: FORNEC E/OU ASSENT DE TUBO DE PVC COM JUNTA ELASTICA | D68: 48 | G68: 90703 | H68: TUBO DE PVC CORRUGADO DE DUPLA PAREDE PARA REDE COLETORA DE ESGOTO, DN 250 MM, JUNTA ELÁSTICA - FORNECIMENTO E ASSENTAMENTO. AF_01/2021 | I68: M | J68: COEFICIENTE DE REPRESENTATIVIDADE | K68: 135.18 | L68: CAIXA REFERENCIAL
A69: ASSENTAMENTO DE TUBOS E PECAS | B69: ASTU | C69: FORNEC E/OU ASSENT DE TUBO DE PVC COM JUNTA ELASTICA | D69: 48 | G69: 90704 | H69: TUBO DE PVC CORRUGADO DE DUPLA PAREDE PARA REDE COLETORA DE ESGOTO, DN 300 MM, JUNTA ELÁSTICA - FORNECIMENTO E ASSENTAMENTO. AF_01/2021 | I69: M | J69: COEFICIENTE DE REPRESENTATIVIDADE | K69: 203.52 | L69: CAIXA REFERENCIAL
A70: ASSENTAMENTO DE TUBOS E PECAS | B70: ASTU | C70: FORNEC E/OU ASSENT DE TUBO DE PVC COM JUNTA ELASTICA | D70: 48 | G70: 90705 | H70: TUBO DE PVC CORRUGADO DE DUPLA PAREDE PARA REDE COLETORA DE ESGOTO, DN 350 MM, JUNTA ELÁSTICA - FORNECIMENTO E ASSENTAMENTO. AF_01/2021 | I70: M | J70: COEFICIENTE DE REPRESENTATIVIDADE | K70: 260.39 | L70: CAIXA REFERENCIAL
A71: ASSENTAMENTO DE TUBOS E PECAS | B71: ASTU | C71: FORNEC E/OU ASSENT DE TUBO DE PVC COM JUNTA ELASTICA | D71: 48 | G71: 90706 | H71: TUBO DE PVC CORRUGADO DE DUPLA PAREDE PARA REDE COLETORA DE ESGOTO, DN 400 MM, JUNTA ELÁSTICA - FORNECIMENTO E ASSENTAMENTO. AF_01/2021 | I71: M | J71: COEFICIENTE DE REPRESENTATIVIDADE | K71: 346.61 | L71: CAIXA REFERENCIAL
A72: ASSENTAMENTO DE TUBOS E PECAS | B72: ASTU | C72: FORNEC E/OU ASSENT DE TUBO DE PVC COM JUNTA ELASTICA | D72: 48 | G72: 90708 | H72: TUBO DE PEAD CORRUGADO DE DUPLA PAREDE PARA REDE COLETORA DE ESGOTO, DN 600 MM, JUNTA ELÁSTICA INTEGRADA - FORNECIMENTO E ASSENTAMENTO. AF_01/2021 | I72: M | J72: ATRIBUÍDO SÃO PAULO | K72: 796.35 | L72: CAIXA REFERENCIAL
A73: ASSENTAMENTO DE TUBOS E PECAS | B73: ASTU | C73: FORNEC E/OU ASSENT DE TUBO DE PVC COM JUNTA ELASTICA | D73: 48 | G73: 90724 | H73: JUNTA ARGAMASSADA ENTRE TUBO DN 100 MM E O POÇO DE VISITA/ CAIXA DE CONCRETO OU ALVENARIA EM REDES DE ESGOTO. AF_01/2021 | I73: UN | J73: COEFICIENTE DE REPRESENTATIVIDADE | K73: 22.89 | L73: CAIXA REFERENCIAL
A74: ASSENTAMENTO DE TUBOS E PECAS | B74: ASTU | C74: FORNEC E/OU ASSENT DE TUBO DE PVC COM JUNTA ELASTICA | D74: 48 | G74: 90725 | H74: JUNTA ARGAMASSADA ENTRE TUBO DN 150 MM E O POÇO DE VISITA/ CAIXA DE CONCRETO OU ALVENARIA EM REDES DE ESGOTO. AF_01/2021 | I74: UN | J74: COEFICIENTE DE REPRESENTATIVIDADE | K74: 28.18 | L74: CAIXA REFERENCIAL
A75: ASSENTAMENTO DE TUBOS E PECAS | B75: ASTU | C75: FORNEC E/OU ASSENT DE TUBO DE PVC COM JUNTA ELASTICA | D75: 48 | G75: 90726 | H75: JUNTA ARGAMASSADA ENTRE TUBO DN 200 MM E O POÇO/ CAIXA DE CONCRETO OU ALVENARIA EM REDES DE ESGOTO. AF_01/2021 | I75: UN | J75: COEFICIENTE DE REPRESENTATIVIDADE | K75: 33.55 | L75: CAIXA REFERENCIAL
A76: ASSENTAMENTO DE TUBOS E PECAS | B76: ASTU | C76: FORNEC E/OU ASSENT DE TUBO DE PVC COM JUNTA ELASTICA | D76: 48 | G76: 90727 | H76: JUNTA ARGAMASSADA ENTRE TUBO DN 250 MM E O POÇO DE VISITA/ CAIXA DE CONCRETO OU ALVENARIA EM REDES DE ESGOTO. AF_01/2021 | I76: UN | J76: COEFICIENTE DE REPRESENTATIVIDADE | K76: 38.83 | L76: CAIXA REFERENCIAL
A77: ASSENTAMENTO DE TUBOS E PECAS | B77: ASTU | C77: FORNEC E/OU ASSENT DE TUBO DE PVC COM JUNTA ELASTICA | D77: 48 | G77: 90728 | H77: JUNTA ARGAMASSADA ENTRE TUBO DN 300 MM E O POÇO DE VISITA/ CAIXA DE CONCRETO OU ALVENARIA EM REDES DE ESGOTO. AF_01/2021 | I77: UN | J77: COEFICIENTE DE REPRESENTATIVIDADE | K77: 44.12 | L77: CAIXA REFERENCIAL
A78: ASSENTAMENTO DE TUBOS E PECAS | B78: ASTU | C78: FORNEC E/OU ASSENT DE TUBO DE PVC COM JUNTA ELASTICA | D78: 48 | G78: 90729 | H78: JUNTA ARGAMASSADA ENTRE TUBO DN 350 MM E O POÇO DE VISITA/ CAIXA DE CONCRETO OU ALVENARIA EM REDES DE ESGOTO. AF_01/2021 | I78: UN | J78: COEFICIENTE DE REPRESENTATIVIDADE | K78: 49.41 | L78: CAIXA REFERENCIAL
A79: ASSENTAMENTO DE TUBOS E PECAS | B79: ASTU | C79: FORNEC E/OU ASSENT DE TUBO DE PVC COM JUNTA ELASTICA | D79: 48 | G79: 90730 | H79: JUNTA ARGAMASSADA ENTRE TUBO DN 400 MM E O POÇO DE VISITA/ CAIXA DE CONCRETO OU ALVENARIA EM REDES DE ESGOTO. AF_01/2021 | I79: UN | J79: COEFICIENTE DE REPRESENTATIVIDADE | K79: 54.7 | L79: CAIXA REFERENCIAL
A80: ASSENTAMENTO DE TUBOS E PECAS | B80: ASTU | C80: FORNEC E/OU ASSENT DE TUBO DE PVC COM JUNTA ELASTICA | D80: 48 | G80: 90731 | H80: JUNTA ARGAMASSADA ENTRE TUBO DN 450 MM E O POÇO DE VISITA/ CAIXA DE CONCRETO OU ALVENARIA EM REDES DE ESGOTO. AF_01/2021 | I80: UN | J80: COEFICIENTE DE REPRESENTATIVIDADE | K80: 59.99 | L80: CAIXA REFERENCIAL
A81: ASSENTAMENTO DE TUBOS E PECAS | B81: ASTU | C81: FORNEC E/OU ASSENT DE TUBO DE PVC COM JUNTA ELASTICA | D81: 48 | G81: 90732 | H81: JUNTA ARGAMASSADA ENTRE TUBO DN 600 MM E O POÇO DE VISITA/ CAIXA DE CONCRETO OU ALVENARIA EM REDES DE ESGOTO. AF_01/2021 | I81: UN | J81: COEFICIENTE DE REPRESENTATIVIDADE | K81: 75.87 | L81: CAIXA REFERENCIAL
A82: ASSENTAMENTO DE TUBOS E PECAS | B82: ASTU | C82: FORNEC E/OU ASSENT DE TUBO DE PVC COM JUNTA ELASTICA | D82: 48 | G82: 90733 | H82: ASSENTAMENTO DE TUBO DE PVC PARA REDE COLETORA DE ESGOTO DE PAREDE MACIÇA, DN 100 MM, JUNTA ELÁSTICA (NÃO INCLUI FORNECIMENTO). AF_01/2021 | I82: M | J82: COEFICIENTE DE REPRESENTATIVIDADE | K82: 3.21 | L82: CAIXA REFERENCIAL
A83: ASSENTAMENTO DE TUBOS E PECAS | B83: ASTU | C83: FORNEC E/OU ASSENT DE TUBO DE PVC COM JUNTA ELASTICA | D83: 48 | G83: 90734 | H83: ASSENTAMENTO DE TUBO DE PVC PARA REDE COLETORA DE ESGOTO DE PAREDE MACIÇA, DN 150 MM, JUNTA ELÁSTICA, (NÃO INCLUI FORNECIMENTO). AF_01/2021 | I83: M | J83: COEFICIENTE DE REPRESENTATIVIDADE | K83: 3.8 | L83: CAIXA REFERENCIAL
A84: ASSENTAMENTO DE TUBOS E PECAS | B84: ASTU | C84: FORNEC E/OU ASSENT DE TUBO DE PVC COM JUNTA ELASTICA | D84: 48 | G84: 90735 | H84: ASSENTAMENTO DE TUBO DE PVC PARA REDE COLETORA DE ESGOTO DE PAREDE MACIÇA, DN 200 MM, JUNTA ELÁSTICA (NÃO INCLUI FORNECIMENTO). AF_01/2021 | I84: M | J84: COEFICIENTE DE REPRESENTATIVIDADE | K84: 4.39 | L84: CAIXA REFERENCIAL
A85: ASSENTAMENTO DE TUBOS E PECAS | B85: ASTU | C85: FORNEC E/OU ASSENT DE TUBO DE PVC COM JUNTA ELASTICA | D85: 48 | G85: 90736 | H85: ASSENTAMENTO DE TUBO DE PVC PARA REDE COLETORA DE ESGOTO DE PAREDE MACIÇA, DN 250 MM, JUNTA ELÁSTICA (NÃO INCLUI FORNECIMENTO). AF_01/2021 | I85: M | J85: COEFICIENTE DE REPRESENTATIVIDADE | K85: 4.99 | L85: CAIXA REFERENCIAL
A86: ASSENTAMENTO DE TUBOS E PECAS | B86: ASTU | C86: FORNEC E/OU ASSENT DE TUBO DE PVC COM JUNTA ELASTICA | D86: 48 | G86: 90737 | H86: ASSENTAMENTO DE TUBO DE PVC PARA REDE COLETORA DE ESGOTO DE PAREDE MACIÇA, DN 300 MM, JUNTA ELÁSTICA (NÃO INCLUI FORNECIMENTO). AF_01/2021 | I86: M | J86: COEFICIENTE DE REPRESENTATIVIDADE | K86: 5.58 | L86: CAIXA REFERENCIAL
A87: ASSENTAMENTO DE TUBOS E PECAS | B87: ASTU | C87: FORNEC E/OU ASSENT DE TUBO DE PVC COM JUNTA ELASTICA | D87: 48 | G87: 90738 | H87: ASSENTAMENTO DE TUBO DE PVC PARA REDE COLETORA DE ESGOTO DE PAREDE MACIÇA, DN 350 MM, JUNTA ELÁSTICA (NÃO INCLUI FORNECIMENTO). AF_01/2021 | I87: M | J87: COEFICIENTE DE REPRESENTATIVIDADE | K87: 6.18 | L87: CAIXA REFERENCIAL
A88: ASSENTAMENTO DE TUBOS E PECAS | B88: ASTU | C88: FORNEC E/OU ASSENT DE TUBO DE PVC COM JUNTA ELASTICA | D88: 48 | G88: 90739 | H88: ASSENTAMENTO DE TUBO DE PVC PARA REDE COLETORA DE ESGOTO DE PAREDE MACIÇA, DN 400 MM, JUNTA ELÁSTICA (NÃO INCLUI FORNECIMENTO). AF_01/2021 | I88: M | J88: COEFICIENTE DE REPRESENTATIVIDADE | K88: 9.49 | L88: CAIXA REFERENCIAL
A89: ASSENTAMENTO DE TUBOS E PECAS | B89: ASTU | C89: FORNEC E/OU ASSENT DE TUBO DE PVC COM JUNTA ELASTICA | D89: 48 | G89: 90740 | H89: ASSENTAMENTO DE TUBO DE PVC CORRUGADO DE DUPLA PAREDE PARA REDE COLETORA DE ESGOTO, DN 150 MM, JUNTA ELÁSTICA (NÃO INCLUI FORNECIMENTO). AF_01/2021 | I89: M | J89: COEFICIENTE DE REPRESENTATIVIDADE | K89: 4.24 | L89: CAIXA REFERENCIAL
A90: ASSENTAMENTO DE TUBOS E PECAS | B90: ASTU | C90: FORNEC E/OU ASSENT DE TUBO DE PVC COM JUNTA ELASTICA | D90: 48 | G90: 90741 | H90: ASSENTAMENTO DE TUBO DE PVC CORRUGADO DE DUPLA PAREDE PARA REDE COLETORA DE ESGOTO, DN 200 MM, JUNTA ELÁSTICA (NÃO INCLUI FORNECIMENTO). AF_01/2021 | I90: M | J90: COEFICIENTE DE REPRESENTATIVIDADE | K90: 4.83 | L90: CAIXA REFERENCIAL
A91: ASSENTAMENTO DE TUBOS E PECAS | B91: ASTU | C91: FORNEC E/OU ASSENT DE TUBO DE PVC COM JUNTA ELASTICA | D91: 48 | G91: 90742 | H91: ASSENTAMENTO DE TUBO DE PVC CORRUGADO DE DUPLA PAREDE PARA REDE COLETORA DE ESGOTO, DN 250 MM, JUNTA ELÁSTICA (NÃO INCLUI FORNECIMENTO). AF_01/2021 | I91: M | J91: COEFICIENTE DE REPRESENTATIVIDADE | K91: 5.42 | L91: CAIXA REFERENCIAL
A92: ASSENTAMENTO DE TUBOS E PECAS | B92: ASTU | C92: FORNEC E/OU ASSENT DE TUBO DE PVC COM JUNTA ELASTICA | D92: 48 | G92: 90743 | H92: ASSENTAMENTO DE TUBO DE PVC CORRUGADO DE DUPLA PAREDE PARA REDE COLETORA DE ESGOTO, DN 300 MM, JUNTA ELÁSTICA (NÃO INCLUI FORNECIMENTO). AF_01/2021 | I92: M | J92: COEFICIENTE DE REPRESENTATIVIDADE | K92: 6.01 | L92: CAIXA REFERENCIAL
A93: ASSENTAMENTO DE TUBOS E PECAS | B93: ASTU | C93: FORNEC E/OU ASSENT DE TUBO DE PVC COM JUNTA ELASTICA | D93: 48 | G93: 90744 | H93: ASSENTAMENTO DE TUBO DE PVC CORRUGADO DE DUPLA PAREDE PARA REDE COLETORA DE ESGOTO, DN 350 MM, JUNTA ELÁSTICA (NÃO INCLUI FORNECIMENTO). AF_01/2021 | I93: M | J93: COEFICIENTE DE REPRESENTATIVIDADE | K93: 6.62 | L93: CAIXA REFERENCIAL
A94: ASSENTAMENTO DE TUBOS E PECAS | B94: ASTU | C94: FORNEC E/OU ASSENT DE TUBO DE PVC COM JUNTA ELASTICA | D94: 48 | G94: 90745 | H94: ASSENTAMENTO DE TUBO DE PVC CORRUGADO DE DUPLA PAREDE PARA REDE COLETORA DE ESGOTO, DN 400 MM, JUNTA ELÁSTICA (NÃO INCLUI FORNECIMENTO). AF_01/2021 | I94: M | J94: COEFICIENTE DE REPRESENTATIVIDADE | K94: 10.58 | L94: CAIXA REFERENCIAL
A95: ASSENTAMENTO DE TUBOS E PECAS | B95: ASTU | C95: FORNEC E/OU ASSENT DE TUBO DE PVC COM JUNTA ELASTICA | D95: 48 | G95: 90746 | H95: ASSENTAMENTO DE TUBO DE PEAD CORRUGADO DE DUPLA PAREDE PARA REDE COLETORA DE ESGOTO, DN 450 MM, JUNTA ELÁSTICA INTEGRADA (NÃO INCLUI FORNECIMENTO). AF_01/2021 | I95: M | J95: COEFICIENTE DE REPRESENTATIVIDADE | K95: 3.47 | L95: CAIXA REFERENCIAL
A96: ASSENTAMENTO DE TUBOS E PECAS | B96: ASTU | C96: FORNEC E/OU ASSENT DE TUBO DE PVC COM JUNTA ELASTICA | D96: 48 | G96: 90747 | H96: ASSENTAMENTO DE TUBO DE PEAD CORRUGADO DE DUPLA PAREDE PARA REDE COLETORA DE ESGOTO, DN 600 MM, JUNTA ELÁSTICA INTEGRADA (NÃO INCLUI FORNECIMENTO). AF_01/2021 | I96: M | J96: COEFICIENTE DE REPRESENTATIVIDADE | K96: 17.26 | L96: CAIXA REFERENCIAL
A97: ASSENTAMENTO DE TUBOS E PECAS | B97: ASTU | C97: FORNEC E/OU ASSENT DE TUBO DE PVC COM JUNTA ELASTICA | D97: 48 | G97: 94869 | H97: TUBO DE PEAD CORRUGADO DE DUPLA PAREDE PARA REDE COLETORA DE ESGOTO, DN 250 MM, JUNTA ELÁSTICA INTEGRADA - FORNECIMENTO E ASSENTAMENTO. AF_01/2021 | I97: M | J97: ATRIBUÍDO SÃO PAULO | K97: 140.26 | L97: CAIXA REFERENCIAL
A98: ASSENTAMENTO DE TUBOS E PECAS | B98: ASTU | C98: FORNEC E/OU ASSENT DE TUBO DE PVC COM JUNTA ELASTICA | D98: 48 | G98: 94870 | H98: ASSENTAMENTO DE TUBO DE PEAD CORRUGADO DE DUPLA PAREDE PARA REDE COLETORA DE ESGOTO, DN 250 MM, JUNTA ELÁSTICA INTEGRADA (NÃO INCLUI FORNECIMENTO). AF_01/2021 | I98: M | J98: COEFICIENTE DE REPRESENTATIVIDADE | K98: 1.74 | L98: CAIXA REFERENCIAL
A99: ASSENTAMENTO DE TUBOS E PECAS | B99: ASTU | C99: FORNEC E/OU ASSENT DE TUBO DE PVC COM JUNTA ELASTICA | D99: 48 | G99: 94871 | H99: TUBO DE PEAD CORRUGADO DE DUPLA PAREDE PARA REDE COLETORA DE ESGOTO, DN 300 MM, JUNTA ELÁSTICA INTEGRADA - FORNECIMENTO E ASSENTAMENTO. AF_01/2021 | I99: M | J99: ATRIBUÍDO SÃO PAULO | K99: 219.49 | L99: CAIXA REFERENCIAL
